Workbook

Sheet Disclaimer
A3: DISCLAIMER: Croplife Europe (CLE) is making the tool available for risk assessors of plant protection products to aid them in the exposure and risk assessment of substances used in plant protection products in the context of plant protection products regulation (PPPR) according to EFSA exposure guidance 2022. The tool has been subjected to thorough testing; however, CLE does not guarantee that the tool works error-free. CLE offers no warranty either to the reliability of the tool and the provided information or to the conclusions or assumptions made by any user on the basis of the use of this tool or the use of such information or to the regulatory acceptance of the assessments conducted using the tool. All usage is at the discretion of the user and CLE is not liable for any consequences resulting from such use. Before using this calculator, the user should make sure that the latest version is being used.

Sheet Instructions
A2: Instructions for using the workbook
A4: The information required for the exposure assessment needs to be entered in the worksheet "Data entry".
A5: In the following worksheets formulas calculate the exposure values automatically
A6: Worksheet "Operator Spray" is for spray applications. PPE options can be selected in this worksheet
A7: Worksheet "Operator Granules" is for granular applications. Currently the calculator does not allow operator exposure for indoor applications. PPE options can be selected in this worksheet
A8: Worksheet "Recreational Exposure" is only applicable for amenity grassland areas where members of the public are likely to have access
A9: The combined results of the exposure assessment are presented in worksheet "Summary"
A10: This calculator should be used in conjuction with the Guidance on the Assessment of Exposure for Operators, Workers, Residents and Bystanders in Risk Assessment for Plant Protection Products
A12: EFSA (European Food Safety Authority), Charistou A, Coja T, Craig P, Hamey P, Martin S, Sanvido O, Chiusolo A, Colas M and Istace F, 2022. Guidance on the assessment of exposure of operators, workers, residents and bystanders in risk assessment of plant protection products. EFSA Journal 2022;20(1):7032, 134 pp. https://doi.org/10.2903/j.efsa.2022.7032
A14: Latest offline calculator update: 02 August 2023

Sheet opex_indoor75_hm (hidden)
A1: Column12 | B1: Column1 | C1: Column2 | D1: Column3 | E1: Column4 | F1: Column5 | G1: Column6
B2: ML Tank
B3: intercept | C3: log TA | D3: form:liquid | E3: form:WP | F3: WPS | G3: F shield
A4: Total hands | B4: 3.27 | C4: 0.64 | D4: 0.64 | E4: 1.28 | F4: 1.17
A5: Protected hands | B5: 1.46 | C5: 0.46 | D5: 0.32 | E5: 1.66 | F5: 0.2
A6: Total body | B6: 3.04 | C6: 0.74 | D6: 0.52 | E6: 1.85
A7: Protected body | B7: 1.58 | C7: 0.62 | D7: 0.12 | E7: 1.84
A8: Head | B8: 1.46 | C8: 1 | D8: 0.34 | E8: 0.7 | G8: -1.67
A9: Inhalation | B9: 1.38 | C9: 0.38 | D9: -0.87 | E9: 1.96 | F9: -0.03
B12: Appl. LCTM
B21: A HCTM
B31: A HCHH
B32: intercept | C32: log TA | D32: dense | E32: trolley | F32: rain suit | G32: protective coverall
A33: Total hands | B33: 4.4 | C33: 0.83 | D33: 0.17 | E33: -0.62
A34: Protected hands | B34: 1.71 | C34: 1 | D34: 1.32 | E34: -1.04
A35: Total body | B35: 5.59 | C35: 1 | D35: 0.67 | E35: -0.81
A36: Protected body | C36: 1 | D36: 1.64 | E36: -1.23 | F36: -2.42 | G36: -0.54
A37: Head | B37: 2.7 | C37: 0.18 | D37: 0.29 | E37: -0.41
A38: Inhalation | B38: 2.69 | C38: 1 | D38: 0.08 | E38: -0.19
B42: ML knapsack
B43: 75th percentile
A44: Total hands | B44: 9497
A45: Protected hands | B45: 21
A46: Total body | B46: 803
A47: Protected body | B47: 25
A48: Head | B48: 5.5
A49: Inhalation | B49: 35
B52: A LCHH
B53: normal | C53: dense | D53: dense with rain trousers
A54: Total hands | B54: 1323 | C54: 1323 | D54: 1323
A55: Protected hands | B55: 1.5 | C55: 1.5 | D55: 1.5
A56: Total body | B56: 16797 | C56: 55521 | D56: 55521
A57: Protected body | B57: 132 | C57: 12180 | D57: 80
A58: Head | B58: 21 | C58: 21 | D58: 21
A59: Inhalation | B59: 47 | C59: 47 | D59: 47

Sheet opex_AOEM95_hm (hidden)
A1: Column7 | B1: Column1 | C1: Column2 | D1: Column3 | E1: Column4 | F1: Column5 | G1: Column6
B2: ML Tank
B3: intercept | C3: log TA | D3: form:liquid | E3: form:WP | F3: WPS | G3: F shield
A4: Total hands | B4: 3.74 | C4: 0.69 | D4: 0.71 | E4: 1.21 | F4: 1.3
A5: Protected hands | B5: 2.29 | C5: 0.53 | D5: 0.83 | E5: 1.39 | F5: 0.38
A6: Total body | B6: 3.87 | C6: 0.69 | D6: 0.72 | E6: 1.29
A7: Protected body | B7: 2.09 | C7: 0.78 | D7: 0.44 | E7: 1.58
A8: Head | B8: 2.19 | C8: 1 | D8: 0.39 | E8: 0.11 | G8: -1.16
A9: Inhalation | B9: 1.81 | C9: 0.49 | D9: -0.92 | E9: 1.54 | F9: 0.19
B12: Appl. LCTM
B13: intercept | C13: log TA | D13: droplets: normal | E13: equipmt: normal
A14: Total hands | B14: 2.96 | C14: 0.73 | D14: 0.61 | E14: -0.21
A15: Protected hands | B15: -0.46 | C15: 0.12 | D15: 1.79 | E15: 2.19
A16: Total body | B16: 1.94 | C16: 1 | D16: 1.51 | E16: -0.82
A17: Protected body | B17: 0.47 | C17: 1 | D17: 1.05 | E17: -0.77
A18: Head | B18: 1.16 | C18: 1 | D18: 1.03 | E18: -1.12
A19: Inhalation | B19: 1.27 | C19: 0.58 | D19: 0.33 | E19: -1.14
B21: A HCTM
B22: intercept | C22: log TA | D22: cabin: no_cabin
A23: Total hands | B23: 3.32 | C23: 1 | D23: 0.48
A24: Protected hands | B24: 2.88 | C24: 1 | D24: 0.08
A25: Total body | B25: 3.92 | C25: 1 | D25: 0.79
A26: Protected body | B26: 2.21 | C26: 1 | D26: 0.15
A27: Head | B27: 2.29 | C27: 1 | D27: 1.56
A28: Inhalation | B28: 1.32 | C28: 1 | D28: 0.6
B31: A HCHH
B32: intercept | C32: log TA | D32: culture: normal
A33: Total hands | B33: 4.41 | C33: 0.77 | D33: -0.47
A34: Protected hands | B34: 2.61 | C34: 1 | D34: -0.51
A35: Total body | B35: 6.34 | C35: 0.01 | D35: -1.09
A36: Protected body | B36: 5.27 | D36: -1.99
A37: Head | B37: 3.5 | C37: 0.33 | D37: -0.59
A38: Inhalation | B38: 2.52 | C38: 0.6 | D38: -0.26
B42: ML knapsack
B43: 95th percentile
A44: Total hands | B44: 25490
A45: Protected hands | B45: 164
A46: Total body | B46: 2787
A47: Protected body | B47: 103
A48: Head | B48: 11
A49: Inhalation | B49: 36
B52: A LCHH
B53: 95th percentile
A54: Total hands | B54: 4213
A55: Protected hands | B55: 22
A56: Total body | B56: 137007
A57: Protected body | B57: 62630
A58: Head | B58: 85
A59: Inhalation | B59: 26

Sheet opex_indoor95_hm (hidden)
A1: Column12 | B1: Column1 | C1: Column2 | D1: Column3 | E1: Column4 | F1: Column5 | G1: Column6
B2: ML Tank
B3: intercept | C3: log TA | D3: form:liquid | E3: form:WP | F3: WPS | G3: F shield
A4: Total hands | B4: 3.74 | C4: 0.69 | D4: 0.71 | E4: 1.21 | F4: 1.3
A5: Protected hands | B5: 2.29 | C5: 0.53 | D5: 0.83 | E5: 1.39 | F5: 0.38
A6: Total body | B6: 3.87 | C6: 0.69 | D6: 0.72 | E6: 1.29
A7: Protected body | B7: 2.09 | C7: 0.78 | D7: 0.44 | E7: 1.58
A8: Head | B8: 2.19 | C8: 1 | D8: 0.39 | E8: 0.11 | G8: -1.16
A9: Inhalation | B9: 1.81 | C9: 0.49 | D9: -0.92 | E9: 1.54 | F9: 0.19
B12: Appl. LCTM
B21: A HCTM
B31: A HCHH
B32: intercept | C32: log TA | D32: dense | E32: trolley | F32: rain suit | G32: protective coverall
A33: Total hands | B33: 4.81 | C33: 0.84 | D33: 0.14 | E33: -0.82
A34: Protected hands | B34: 2.36 | C34: 0.67 | D34: 0.76 | E34: -1.19
A35: Total body | B35: 6.1 | C35: 1 | D35: 0.48 | E35: -0.92
A36: Protected body | B36: 5.07 | C36: 1 | D36: 1.07 | E36: -1.71 | F36: -2.2 | G36: -0.64
A37: Head | B37: 3.1 | C37: 0.33 | D37: 0.79 | E37: 0.25
A38: Inhalation | B38: 2.82 | C38: 1 | D38: 0.63 | E38: -0.26
B42: ML knapsack
B43: 95th percentile
A44: Total hands | B44: 25490
A45: Protected hands | B45: 164
A46: Total body | B46: 2787
A47: Protected body | B47: 103
A48: Head | B48: 11
A49: Inhalation | B49: 36
B52: A LCHH
B53: normal | C53: dense | D53: dense with rain trousers
A54: Total hands | B54: 4159 | C54: 4159 | D54: 4159
A55: Protected hands | B55: 12 | C55: 12 | D55: 12
A56: Total body | B56: 28082 | C56: 85382 | D56: 85382
A57: Protected body | B57: 640 | C57: 27958 | D57: 154
A58: Head | B58: 39 | C58: 39 | D58: 39
A59: Inhalation | B59: 80 | C59: 80 | D59: 80

Sheet opex_AOEM75_hm (hidden)
A1: Column7 | B1: Column1 | C1: Column2 | D1: Column3 | E1: Column4 | F1: Column5 | G1: Column6
B2: ML Tank
B3: intercept | C3: log TA | D3: form:liquid | E3: form:WP | F3: WPS | G3: F shield
A4: Total hands | B4: 3.27 | C4: 0.64 | D4: 0.64 | E4: 1.28 | F4: 1.17
A5: Protected hands | B5: 1.46 | C5: 0.46 | D5: 0.32 | E5: 1.66 | F5: 0.2
A6: Total body | B6: 3.04 | C6: 0.74 | D6: 0.52 | E6: 1.85
A7: Protected body | B7: 1.58 | C7: 0.62 | D7: 0.12 | E7: 1.84
A8: Head | B8: 1.46 | C8: 1 | D8: 0.34 | E8: 0.7 | G8: -1.67
A9: Inhalation | B9: 1.38 | C9: 0.38 | D9: -0.87 | E9: 1.96 | F9: -0.03
B12: Appl. LCTM
B13: intercept | C13: log TA | D13: droplets: normal | E13: equipmt: normal
A14: Total hands | B14: 2.84 | C14: 1 | D14: 0.37 | E14: -1.04
A15: Protected hands | B15: 0.23 | C15: 0.54 | D15: 1.11 | E15: 0.29
A16: Total body | B16: 2.54 | C16: 1 | D16: 0.81 | E16: -1.43
A17: Protected body | B17: 0.74 | C17: 1 | D17: 0.7 | E17: -1.09
A18: Head | B18: 0.24 | C18: 1 | D18: 0.88 | E18: -0.53
A19: Inhalation | B19: 0.72 | C19: 0.5 | D19: 0.01 | E19: -0.71
B21: A HCTM
B22: intercept | C22: log TA | D22: cabin: no_cabin
A23: Total hands | B23: 3.12 | C23: 0.89 | D23: 0.28
A24: Protected hands | B24: 1.55 | C24: 1
A25: Total body | B25: 3.47 | C25: 1 | D25: 0.48
A26: Protected body | B26: 1.83 | C26: 1 | D26: 0.23
A27: Head | B27: 1.17 | C27: 1 | D27: 1.89
A28: Inhalation | B28: 0.99 | C28: 0.57 | D28: 0.82
B31: A HCHH
B32: intercept | C32: log TA | D32: culture: normal
A33: Total hands | B33: 4.26 | C33: 0.84 | D33: -0.83
A34: Protected hands | B34: 2.26 | C34: 1 | D34: -0.88
A35: Total body | B35: 6.08 | C35: 0.16 | D35: -1.29
A36: Protected body | B36: 4.65 | D36: -1.64
A37: Head | B37: 3.27 | C37: 0.32 | D37: -1.09
A38: Inhalation | B38: 2.17 | C38: 0.83 | D38: -0.26
B42: ML knapsack
B43: 75th percentile
A44: Total hands | B44: 9497
A45: Protected hands | B45: 21
A46: Total body | B46: 803
A47: Protected body | B47: 25
A48: Head | B48: 5.5
A49: Inhalation | B49: 35
B52: A LCHH
B53: 75th percentile
A54: Total hands | B54: 1544
A55: Protected hands | B55: 5
A56: Total body | B56: 88868
A57: Protected body | B57: 8903
A58: Head | B58: 12
A59: Inhalation | B59: 26

Sheet Data entry
A1: Note: Some drop-down menus depend on others. To avoid errors, please fill-in from top to bottom
C2: Application Scenarios
C3: Product name
C4: Formulation type
C5: Crop type | D5: Activity
C7: Scenario
C8: Indoor or Outdoor application
C9: Max. application rate of the product [L or kg/ha] | E9: =IF(i_FormVal<>'Look up'!A4,"kg/ha","L/ha") -> kg/ha
C10: Minimum volume water for application (liquids) | E10: L/ha
C11: Maximum volume water for application (liquids) | E11: L/ha
C12: Application method
C13: Application equipment | F13: Drift reduction | G13: 0
C14: Buffer strip | E14: m | F14: =IFERROR(IF(i_FormVal="Granules, fine granules","",IF(Bystander!C18="NA","No drift data for a buffer strip of "&i_Buffer&" m, please select a different buffer strip.","")),"") -> 
C15: Max. number of applications | D15: 1
C16: Interval between multiple applications | D16: 365 | E16: days | F16: =IF(AND(i_AppNo=1, i_AppInt<>365),"For single applications interval must be 365 days","") -> 
C17: Season (upward spraying orchards only) | D17: not relevant
C19: Active substance properties
C20: Active substance name
C21: Concentration of active substance [g a.s./L or kg] | H21: =IF(i_FormVal<>'Look up'!A4,"g a.s./kg","g a.s./L") -> g a.s./kg
C22: Minimum in-use-concentration of active substance | D22: =IFERROR(IF(i_FormVal<>"Granules, fine granules",i_AppRatePPP*D21/i_MaxVol,"N/A"),"") ->  | E22: =IFERROR(IF(i_FormVal<>"Granules, fine granules",i_AppRatePPP*E21/i_MaxVol,"N/A"),"") ->  | F22: =IFERROR(IF(i_FormVal<>"Granules, fine granules",i_AppRatePPP*F21/i_MaxVol,"N/A"),"") ->  | G22: =IFERROR(IF(i_FormVal<>"Granules, fine granules",i_AppRatePPP*G21/i_MaxVol,"N/A"),"") ->  | H22: g a.s./L
C23: Maximum in-use-concentration of active substance | D23: =IFERROR(IF(i_FormVal<>"Granules, fine granules",i_AppRatePPP*D21/i_MinVol,"N/A"),"") ->  | E23: =IFERROR(IF(i_FormVal<>"Granules, fine granules",i_AppRatePPP*E21/i_MinVol,"N/A"),"") ->  | F23: =IFERROR(IF(i_FormVal<>"Granules, fine granules",i_AppRatePPP*F21/i_MinVol,"N/A"),"") ->  | G23: =IFERROR(IF(i_FormVal<>"Granules, fine granules",i_AppRatePPP*G21/i_MinVol,"N/A"),"") ->  | H23: g a.s./L
C24: Maximum application rate of active substance | D24: =i_AppRatePPP*D21/1000 -> 0 | E24: =i_AppRatePPP*E21/1000 -> 0 | F24: =i_AppRatePPP*F21/1000 -> 0 | G24: =i_AppRatePPP*G21/1000 -> 0 | H24: kg a.s./ha
C26: Acceptable Operator Exposure Level (AOEL) | H26: mg/kg bw/day
C27: Acute Acceptable Operator Exposure Level (AAOEL) | H27: mg/kg bw/day
C29: Foliar DT50 | D29: 30 | E29: 30 | F29: 30 | G29: 30 | H29: days
C30: Initial Dislodgeable Foliar Residue | D30: 3 | E30: 3 | F30: 3 | G30: 3 | H30: µg/cm² of foliage/kg a.s. applied/ha
C31: Dermal absorption of product
C32: Dermal absorption of in-use dilution
C33: Oral absorption of active substance | D33: 1 | E33: 1 | F33: 1 | G33: 1
C34: Inhalation absorption of active substance | D34: 1 | E34: 1 | F34: 1 | G34: 1
C35: Vapour pressure of active substance | H35: Pa
C36: Molecular weight of active substance | H36: g/mol
D43: =IF(i_VP1<0.005,'Look up'!$A22,'Look up'!$A23) -> low volatile substances having a vapour pressure of < 0.005 Pa | E43: =IF(i_VP2<0.005,'Look up'!$A22,'Look up'!$A23) -> low volatile substances having a vapour pressure of < 0.005 Pa | F43: =IF(i_VP3<0.005,'Look up'!$A22,'Look up'!$A23) -> low volatile substances having a vapour pressure of < 0.005 Pa | G43: =IF(i_VP4<0.005,'Look up'!$A22,'Look up'!$A23) -> low volatile substances having a vapour pressure of < 0.005 Pa

Sheet Summary
A1: ="Product "&i_ProductName -> Product | B1: ="Formulation = "&i_FormVal -> Formulation =
A2: Scenario | B2: =i_CropType & " "& IF(i_Season<>"not relevant",i_Season,"") & " / " &'Data entry'!D8&" / "&i_AppMeth&" / "&i_AppEquip -> / / / | D2: ="Buffer strip = "&i_Buffer&" m"& " Drift reduction = "&Driftreduction*100&"%" -> Buffer strip = m Drift reduction = 0% | E2: ="Number applications = "&i_AppNo&", Application interval = "&i_AppInt&" d" -> Number applications = 1, Application interval = 365 d
A3: Substance | B3: =i_SubstName1 -> 0 | C3: ="Application rate = "&i_AppRateAS1&" kg a.s./ha" -> Application rate = 0 kg a.s./ha | D3: =IF(i_FormVal="Granules, fine granules","N/A","Spray dilution = "&d_ConcAs1&" g a.s./L") ->  | E3: ="Vapour pressure = "&i_VP1&" Pa" -> Vapour pressure = Pa | F3: =i_SubstName2 -> 0 | G3: ="Application rate = "&i_AppRateAS2&" kg a.s./ha" -> Application rate = 0 kg a.s./ha | H3: =IF(i_FormVal="Granules, fine granules","N/A","Spray dilution = "&d_ConcAs2&" g a.s./L") ->  | I3: ="Vapour pressure = "&i_VP2&" Pa" -> Vapour pressure = Pa | J3: =i_SubstName3 -> 0 | K3: ="Application rate = "&i_AppRateAS3&" kg a.s./ha" -> Application rate = 0 kg a.s./ha | L3: =IF(i_FormVal="Granules, fine granules","N/A","Spray dilution = "&d_ConcAs3&" g a.s./L") ->  | M3: ="Vapour pressure = "&i_VP3&" Pa" -> Vapour pressure = Pa | N3: =i_SubstName4 -> 0 | O3: ="Application rate = "&i_AppRateAS4&" kg a.s./ha" -> Application rate = 0 kg a.s./ha | P3: =IF(i_FormVal="Granules, fine granules","N/A","Spray dilution = "&d_ConcAs4&" g a.s./L") ->  | Q3: ="Vapour pressure = "&i_VP4&" Pa" -> Vapour pressure = Pa
A4: Percentage Absorption | B4: ="Dermal for product = "&i_AbsorpProduct1*100 -> Dermal for product = 0 | C4: ="Dermal for in-use dilution = "&i_AbsorpInuse1*100 -> Dermal for in-use dilution = 0 | D4: ="Oral = "&i_AbsorpOralInuse1*100 -> Oral = 100 | E4: ="Inhalation = "&i_AbsorpInhalation1*100 -> Inhalation = 100 | F4: ="Dermal for product = "&i_AbsorpProduct2*100 -> Dermal for product = 0 | G4: ="Dermal for in-use dilution = "&i_AbsorpInuse2*100 -> Dermal for in-use dilution = 0 | H4: ="Oral = "&i_AbsorpOralInuse2*100 -> Oral = 100 | I4: ="Inhalation = "&i_AbsorpInhalation2*100 -> Inhalation = 100 | J4: ="Dermal for product = "&i_AbsorpProduct3*100 -> Dermal for product = 0 | K4: ="Dermal for in-use dilution = "&i_AbsorpInuse3*100 -> Dermal for in-use dilution = 0 | L4: ="Oral = "&i_AbsorpOralInuse3*100 -> Oral = 100 | M4: ="Inhalation = "&i_AbsorpInhalation3*100 -> Inhalation = 100 | N4: ="Dermal for product = "&i_AbsorpProduct4*100 -> Dermal for product = 0 | O4: ="Dermal for in-use dilution = "&i_AbsorpInuse4*100 -> Dermal for in-use dilution = 0 | P4: ="Oral = "&i_AbsorpOralInuse4*100 -> Oral = 100 | Q4: ="Inhalation = "&i_AbsorpInhalation4*100 -> Inhalation = 100
B5: ="AOEL = "&i_AOEL1&" mg/kg bw/d" -> AOEL = mg/kg bw/d | C5: ="AAOEL = "&i_AAOEL1&" mg/kg bw/d" -> AAOEL = mg/kg bw/d | D5: ="DFR = "&i_DFR1&" μg a.s./cm² per kg a.s./ha" -> DFR = 3 μg a.s./cm² per kg a.s./ha | E5: ="DT50 = "&d_HalflifeAS1&" d" -> DT50 = 30 d | F5: ="AOEL = "&i_AOEL2&" mg/kg bw/d" -> AOEL = mg/kg bw/d | G5: ="AAOEL = "&i_AAOEL2&" mg/kg bw/d" -> AAOEL = mg/kg bw/d | H5: ="DFR = "&i_DFR2&" μg a.s./cm² per kg a.s./ha" -> DFR = 3 μg a.s./cm² per kg a.s./ha | I5: ="DT50 = "&d_HalflifeAS2&" d" -> DT50 = 30 d | J5: ="AOEL = "&i_AOEL3&" mg/kg bw/d" -> AOEL = mg/kg bw/d | K5: ="AAOEL = "&i_AAOEL3 -> AAOEL = | L5: ="DFR = "&i_DFR3&" μg a.s./cm² per kg a.s./ha" -> DFR = 3 μg a.s./cm² per kg a.s./ha | M5: ="DT50 = "&d_HalflifeAS3&" d" -> DT50 = 30 d | N5: ="AOEL = "&i_AOEL4&" mg/kg bw/d" -> AOEL = mg/kg bw/d | O5: ="AAOEL = "&i_AAOEL4&" mg/kg bw/d" -> AAOEL = mg/kg bw/d | P5: ="DFR = "&i_DFR4&" μg a.s./cm² per kg a.s./ha" -> DFR = 3 μg a.s./cm² per kg a.s./ha | Q5: ="DT50 = "&d_HalflifeAS4&" d" -> DT50 = 30 d
A6: Operator Model | B6: =IF(sys_OperatorModel=1,"Mixing/loading and application AOEM","Loading and application PHED") -> Mixing/loading and application AOEM
A7: Mixing and Loading | B7: ="Gloves = "&IF(sys_OperatorModel=1,'Operator Spray'!D25,IF(sys_OperatorModel=3,#REF!,IF(sys_OperatorModel=2,'Operator Granules'!C18,""))) -> Gloves = No | C7: ="Clothing = "&IF(sys_OperatorModel=1,'Operator Spray'!D26,IF(sys_OperatorModel=2,'Operator Granules'!C19,"")) -> Clothing = Work wear - arms, body and legs covered | D7: ="Head and respiratory PPE = "&IF(sys_OperatorModel=1,'Operator Spray'!D27,IF(sys_OperatorModel=2,'Operator Granules'!C20,"")) -> Head and respiratory PPE = None | E7: =IF(sys_OperatorModel=2,"","Soluble bags = "&'Operator Spray'!D28) -> Soluble bags = No
A8: Application | B8: ="Gloves = "&IF(sys_OperatorModel=1,'Operator Spray'!D39,IF(sys_OperatorModel=3,#REF!,IF(sys_OperatorModel=2,'Operator Granules'!C27,""))) -> Gloves = No | C8: ="Clothing = "&IF(sys_OperatorModel=1,'Operator Spray'!D40,IF(sys_OperatorModel=2,'Operator Granules'!C28,"")) -> Clothing = Work wear - arms, body and legs covered | D8: ="Head and respiratory PPE = "&IF(sys_OperatorModel=1,'Operator Spray'!D41,IF(sys_OperatorModel=2,'Operator Granules'!C29,"")) -> Head and respiratory PPE = None | E8: ="Closed cabin = "&IF(sys_OperatorModel=1,'Operator Spray'!D42,"NA") -> Closed cabin = Not relevant
A9: Operator - M&L + Application | B9: =i_SubstName1 -> 0 | D9: Exposure (mg/kg bw/d) | E9: %(A)AOEL | F9: =i_SubstName2 -> 0 | H9: Exposure (mg/kg bw/d) | I9: %(A)AOEL | J9: =i_SubstName3 -> 0 | L9: Exposure (mg/kg bw/d) | M9: %(A)AOEL | N9: =i_SubstName4 -> 0 | P9: Exposure (mg/kg bw/d) | Q9: %(A)AOEL | R9: Combined | T9: Hazard Index
A10: Potential exposure | B10: Longer term systemic exposure | D10: =IF(OR(sys_OperatorModel=1,sys_OperatorModel=3),'Operator Spray'!D48,IF(sys_OperatorModel=2,'Operator Granules'!C36,"")) ->  | E10: =IF(OR(sys_OperatorModel=1,sys_OperatorModel=3),'Operator Spray'!D49,IF(sys_OperatorModel=2,'Operator Granules'!C37,"")) -> 0 | F10: Longer term systemic exposure | H10: =IF(OR(sys_OperatorModel=1,sys_OperatorModel=3),'Operator Spray'!F48,IF(sys_OperatorModel=2,'Operator Granules'!E36,"")) ->  | I10: =IF(OR(sys_OperatorModel=1,sys_OperatorModel=3),'Operator Spray'!F49,IF(sys_OperatorModel=2,'Operator Granules'!E37,"")) -> 0 | J10: Longer term systemic exposure | L10: =IF(OR(sys_OperatorModel=1,sys_OperatorModel=3),'Operator Spray'!H48,IF(sys_OperatorModel=2,'Operator Granules'!G36,"")) ->  | M10: =IF(OR(sys_OperatorModel=1,sys_OperatorModel=3),'Operator Spray'!H49,IF(sys_OperatorModel=2,'Operator Granules'!G37,"")) -> 0 | N10: Longer term systemic exposure | P10: =IF(OR(sys_OperatorModel=1,sys_OperatorModel=3),'Operator Spray'!J48,IF(sys_OperatorModel=2,'Operator Granules'!I36,"")) ->  | Q10: =IF(OR(sys_OperatorModel=1,sys_OperatorModel=3),'Operator Spray'!J49,IF(sys_OperatorModel=2,'Operator Granules'!I37,"")) -> 0 | R10: Longer term systemic exposure | T10: =IF(sys_OperatorModel=1,'Operator Spray'!L49,'Operator Granules'!K37) -> N/A
B11: Acute systemic exposure | D11: =IF(OR(sys_OperatorModel=1,sys_OperatorModel=3),'Operator Spray'!D52,IF(sys_OperatorModel=2,'Operator Granules'!C40,"")) ->  | E11: =IF(i_AAOEL1>0,IF(OR(sys_OperatorModel=1,sys_OperatorModel=3),'Operator Spray'!D53,IF(sys_OperatorModel=2,'Operator Granules'!C41,"")),"") ->  | F11: Acute systemic exposure | H11: =IF(OR(sys_OperatorModel=1,sys_OperatorModel=3),'Operator Spray'!F52,IF(sys_OperatorModel=2,'Operator Granules'!E40,"")) ->  | I11: =IF(OR(sys_OperatorModel=1,sys_OperatorModel=3),'Operator Spray'!F53,IF(sys_OperatorModel=2,'Operator Granules'!E41,"")) -> 0 | J11: Acute systemic exposure | L11: =IF(OR(sys_OperatorModel=1,sys_OperatorModel=3),'Operator Spray'!H52,IF(sys_OperatorModel=2,'Operator Granules'!G40,"")) ->  | M11: =IF(OR(sys_OperatorModel=1,sys_OperatorModel=3),'Operator Spray'!H53,IF(sys_OperatorModel=2,'Operator Granules'!G41,"")) -> 0 | N11: Acute systemic exposure | P11: =IF(OR(sys_OperatorModel=1,sys_OperatorModel=3),'Operator Spray'!J52,IF(sys_OperatorModel=2,'Operator Granules'!I40,"")) ->  | Q11: =IF(OR(sys_OperatorModel=1,sys_OperatorModel=3),'Operator Spray'!J53,IF(sys_OperatorModel=2,'Operator Granules'!I41,"")) -> 0 | R11: Acute systemic exposure | T11: =IF(sys_OperatorModel=1,'Operator Spray'!L53,'Operator Granules'!K41) -> N/A
A12: Exposure (including PPE options shown above) | B12: Longer term systemic exposure | D12: =IF(OR(sys_OperatorModel=1,sys_OperatorModel=3),'Operator Spray'!E48,IF(sys_OperatorModel=2,'Operator Granules'!D36,"")) ->  | E12: =IF(OR(sys_OperatorModel=1,sys_OperatorModel=3),'Operator Spray'!E49,IF(sys_OperatorModel=2,'Operator Granules'!D37,"")) -> 0 | F12: Longer term systemic exposure | H12: =IF(OR(sys_OperatorModel=1,sys_OperatorModel=3),'Operator Spray'!G48,IF(sys_OperatorModel=2,'Operator Granules'!F36,"")) ->  | I12: =IF(OR(sys_OperatorModel=1,sys_OperatorModel=3),'Operator Spray'!G49,IF(sys_OperatorModel=2,'Operator Granules'!F37,"")) -> 0 | J12: Longer term systemic exposure | L12: =IF(OR(sys_OperatorModel=1,sys_OperatorModel=3),'Operator Spray'!I48,IF(sys_OperatorModel=2,'Operator Granules'!H36,"")) ->  | M12: =IF(OR(sys_OperatorModel=1,sys_OperatorModel=3),'Operator Spray'!I49,IF(sys_OperatorModel=2,'Operator Granules'!H37,"")) -> 0 | N12: Longer term systemic exposure | P12: =IF(OR(sys_OperatorModel=1,sys_OperatorModel=3),'Operator Spray'!K48,IF(sys_OperatorModel=2,'Operator Granules'!J36,"")) ->  | Q12: =IF(OR(sys_OperatorModel=1,sys_OperatorModel=3),'Operator Spray'!K49,IF(sys_OperatorModel=2,'Operator Granules'!J37,"")) -> 0 | R12: Longer term systemic exposure | T12: =IF(sys_OperatorModel=1,'Operator Spray'!M49,'Operator Granules'!L37) -> N/A
B13: Acute systemic exposure | D13: =IF(OR(sys_OperatorModel=1,sys_OperatorModel=3),'Operator Spray'!E52,IF(sys_OperatorModel=2,'Operator Granules'!D40,"")) ->  | E13: =IF(i_AAOEL1>0,IF(OR(sys_OperatorModel=1,sys_OperatorModel=3),'Operator Spray'!E53,IF(sys_OperatorModel=2,'Operator Granules'!D41,"")),"") ->  | F13: Acute systemic exposure | H13: =IF(OR(sys_OperatorModel=1,sys_OperatorModel=3),'Operator Spray'!G52,IF(sys_OperatorModel=2,'Operator Granules'!F40,"")) ->  | I13: =IF(OR(sys_OperatorModel=1,sys_OperatorModel=3),'Operator Spray'!G53,IF(sys_OperatorModel=2,'Operator Granules'!F41,"")) -> 0 | J13: Acute systemic exposure | L13: =IF(OR(sys_OperatorModel=1,sys_OperatorModel=3),'Operator Spray'!I52,IF(sys_OperatorModel=2,'Operator Granules'!H40,"")) ->  | M13: =IF(OR(sys_OperatorModel=1,sys_OperatorModel=3),'Operator Spray'!I53,IF(sys_OperatorModel=2,'Operator Granules'!H41,"")) -> 0 | N13: Acute systemic exposure | P13: =IF(OR(sys_OperatorModel=1,sys_OperatorModel=3),'Operator Spray'!K52,IF(sys_OperatorModel=2,'Operator Granules'!J40,"")) ->  | Q13: =IF(sys_OperatorModel=1,'Operator Spray'!K53,'Operator Granules'!J41) -> 0 | R13: Acute systemic exposure | T13: =IF(sys_OperatorModel=1,'Operator Spray'!M53,'Operator Granules'!L41) -> N/A
A14: ="Worker - " & Worker!C6 -> Worker - 0 | B14: =i_SubstName1 -> 0 | C14: Exposure (mg/kg bw/d) | D14: %AOEL | E14: Safe re-entry (d) | F14: =i_SubstName2 -> 0 | G14: Exposure (mg/kg bw/d) | H14: %AOEL | I14: Safe re-entry (d) | J14: =i_SubstName3 -> 0 | K14: Exposure (mg/kg bw/d) | L14: %AOEL | M14: Safe re-entry (d) | N14: =i_SubstName4 -> 0 | O14: Exposure (mg/kg bw/d) | P14: %AOEL | Q14: Safe re-entry (d) | R14: Combined | T14: Hazard Index | U14: Safe re-entry (d)
B15: Potential exposure | C15: =IFERROR(Worker!B$32,"N/A") -> N/A | D15: =IFERROR(Worker!B$33,"N/A") -> 0 | E15: =Worker!B50 -> 0 | F15: Potential exposure | G15: =IFERROR(Worker!F$32,"N/A") -> N/A | H15: =IFERROR(Worker!F$33,"N/A") -> 0 | I15: =Worker!F50 -> 0 | J15: Potential exposure | K15: =IFERROR(Worker!J$32,"N/A") -> N/A | L15: =IFERROR(Worker!J$33,"N/A") -> 0 | M15: =Worker!J50 -> 0 | N15: Potential exposure | O15: =IFERROR(Worker!N$32,"N/A") -> N/A | P15: =IFERROR(Worker!N$33,"N/A") -> 0 | Q15: =Worker!N50 -> 0 | R15: Potential exposure | T15: =Worker!R$33 -> N/A | U15: =Worker!R50 -> 0
B16: Work wear | C16: =IFERROR(Worker!C$32,"N/A") -> N/A | D16: =IFERROR(Worker!C$33,"N/A") -> 0 | E16: =Worker!C50 -> 0 | F16: Work wear | G16: =IFERROR(Worker!G$32,"N/A") -> N/A | H16: =IFERROR(Worker!G$33,"N/A") -> 0 | I16: =Worker!G50 -> 0 | J16: Work wear | K16: =IFERROR(Worker!K$32,"N/A") -> N/A | L16: =IFERROR(Worker!K$33,"N/A") -> 0 | M16: =Worker!K50 -> 0 | N16: Work wear | O16: =IFERROR(Worker!O$32,"N/A") -> N/A | P16: =IFERROR(Worker!O$33,"N/A") -> 0 | Q16: =Worker!O50 -> 0 | R16: Work wear | T16: =Worker!S$33 -> N/A | U16: =Worker!S50 -> 0
B17: Work wear and gloves | C17: =IFERROR(Worker!D$32,"N/A") -> N/A | D17: =IFERROR(Worker!D$33,"N/A") -> 0 | E17: =Worker!D50 -> 0 | F17: Work wear and gloves | G17: =IFERROR(Worker!H$32,"N/A") -> N/A | H17: =IFERROR(Worker!H$33,"N/A") -> 0 | I17: =Worker!H50 -> 0 | J17: Work wear and gloves | K17: =IFERROR(Worker!L$32,"N/A") -> N/A | L17: =IFERROR(Worker!L$33,"N/A") -> 0 | M17: =Worker!L50 -> 0 | N17: Work wear and gloves | O17: =IFERROR(Worker!P$32,"N/A") -> N/A | P17: =IFERROR(Worker!P$33,"N/A") -> 0 | Q17: =Worker!P50 -> 0 | R17: Work wear and gloves | T17: =Worker!T33 -> N/A | U17: =Worker!T50 -> 0
B18: Gloves, no work wear | C18: =IFERROR(FIXED(Worker!E$32,3),"N/A") -> N/A | D18: =IFERROR(Worker!E$33,"N/A") -> 0 | E18: =Worker!E50 -> 0 | F18: Gloves, no work wear | G18: =IFERROR(FIXED(Worker!I$32,3),"N/A") -> N/A | H18: =IFERROR(Worker!I$33,"N/A") -> 0 | I18: =Worker!I50 -> 0 | J18: Gloves, no work wear | K18: =IFERROR(FIXED(Worker!M$32,3),"N/A") -> N/A | L18: =IFERROR(Worker!M$33,"N/A") -> 0 | M18: =Worker!M50 -> 0 | N18: Gloves, no work wear | O18: =IFERROR(FIXED(Worker!Q$32,3),"N/A") -> N/A | P18: =IFERROR(Worker!Q$33,"N/A") -> 0 | Q18: =Worker!Q50 -> 0 | R18: Gloves, no work wear | T18: =Worker!U33 -> N/A | U18: =Worker!U50 -> 0
A19: Resident - adult | B19: =i_SubstName1 -> 0 | D19: Exposure (mg/kg bw/d) | E19: %AOEL | F19: =i_SubstName2 -> 0 | H19: Exposure (mg/kg bw/d) | I19: %AOEL | J19: =i_SubstName3 -> 0 | L19: Exposure (mg/kg bw/d) | M19: %AOEL | N19: =i_SubstName4 -> 0 | P19: Exposure (mg/kg bw/d) | Q19: %AOEL | R19: Combined | T19: Hazard Index
B20: Spray drift (75th percentile) | D20: =IFERROR(Resident!B$34,"N/A") -> 0 | E20: =Resident!B$35 -> 0 | F20: Spray drift (75th percentile) | H20: =IFERROR(Resident!G$34,"N/A") -> 0 | I20: =Resident!G$35 -> 0 | J20: Spray drift (75th percentile) | L20: =IFERROR(Resident!L$34,"N/A") -> 0 | M20: =Resident!L$35 -> 0 | N20: Spray drift (75th percentile) | P20: =IFERROR(Resident!Q$34,"N/A") -> 0 | Q20: =Resident!Q$35 -> 0 | R20: Spray drift (75th percentile) | T20: =Resident!V$35 -> N/A
B21: Vapour (75th percentile) | D21: =IFERROR(Resident!C$34,"N/A") -> 0.00027 | E21: =Resident!C$35 -> 0 | F21: Vapour (75th percentile) | H21: =IFERROR(Resident!H$34,"N/A") -> 0.00027 | I21: =Resident!H$35 -> 0 | J21: Vapour (75th percentile) | L21: =IFERROR(Resident!M$34,"N/A") -> 0.00027 | M21: =Resident!M$35 -> 0 | N21: Vapour (75th percentile) | P21: =IFERROR(Resident!R$34,"N/A") -> 0.00027 | Q21: =Resident!R$35 -> 0 | R21: Vapour (75th percentile) | T21: =Resident!W$35 -> N/A
B22: Surface deposits (75th percentile) | D22: =IFERROR(Resident!D$34,"N/A") ->  | E22: =Resident!D$35 -> 0 | F22: Surface deposits (75th percentile) | H22: =IFERROR(Resident!I$34,"N/A") ->  | I22: =Resident!I$35 -> 0 | J22: Surface deposits (75th percentile) | L22: =IFERROR(Resident!N$34,"N/A") ->  | M22: =Resident!N$35 -> 0 | N22: Surface deposits (75th percentile) | P22: =IFERROR(Resident!S$34,"N/A") ->  | Q22: =Resident!S$35 -> 0 | R22: Surface deposits (75th percentile) | T22: =Resident!X$35 -> N/A
B23: Entry into treated crops (75th percentile) | D23: =IFERROR(Resident!E$34,"N/A") -> 0 | E23: =Resident!E$35 -> 0 | F23: Entry into treated crops (75th percentile) | H23: =IFERROR(Resident!J$34,"N/A") -> 0 | I23: =Resident!J$35 -> 0 | J23: Entry into treated crops (75th percentile) | L23: =IFERROR(Resident!O$34,"N/A") ->  | M23: =Resident!O$35 -> 0 | N23: Entry into treated crops (75th percentile) | P23: =IFERROR(Resident!T$34,"N/A") ->  | Q23: =Resident!T$35 -> 0 | R23: Entry into treated crops (75th percentile) | T23: =Resident!Y$35 -> N/A
B24: All pathways (mean) | D24: =IFERROR(Resident!F$34,"N/A") -> N/A | E24: =Resident!F$35 -> 0 | F24: All pathways (mean) | H24: =IFERROR(Resident!K$34,"N/A") -> N/A | I24: =Resident!K$35 -> 0 | J24: All pathways (mean) | L24: =IFERROR(Resident!P$34,"N/A") -> 0.00027 | M24: =Resident!P$35 -> 0 | N24: All pathways (mean) | P24: =IFERROR(Resident!U$34,"N/A") -> N/A | Q24: =Resident!U$35 -> 0 | R24: All pathways (mean) | T24: =Resident!Z$35 -> N/A
A25: Resident - child | B25: Spray drift (75th percentile) | D25: =IFERROR(Resident!B$38,"N/A") -> N/A | E25: =Resident!B$39 -> 0 | F25: Spray drift (75th percentile) | H25: =IFERROR(Resident!G$38,"N/A") -> N/A | I25: =Resident!G$39 -> 0 | J25: Spray drift (75th percentile) | L25: =IFERROR(Resident!L$38,"N/A") ->  | M25: =Resident!L$39 -> 0 | N25: Spray drift (75th percentile) | P25: =IFERROR(Resident!Q$38,"N/A") ->  | Q25: =Resident!Q$39 -> 0 | R25: Spray drift (75th percentile) | T25: =Resident!V$39 -> N/A
B26: Vapour (75th percentile) | D26: =IFERROR(Resident!C$38,"N/A") -> 0.0008 | E26: =Resident!C$39 -> 0 | F26: Vapour (75th percentile) | H26: =IFERROR(Resident!H$38,"N/A") -> 0.0008 | I26: =Resident!H$39 -> 0 | J26: Vapour (75th percentile) | L26: =IFERROR(Resident!M$38,"N/A") -> 0.0008 | M26: =Resident!M$39 -> 0 | N26: Vapour (75th percentile) | P26: =IFERROR(Resident!Q$38,"N/A") ->  | Q26: =Resident!R$39 -> 0 | R26: Vapour (75th percentile) | T26: =Resident!W$39 -> N/A
B27: Surface deposits (75th percentile) | D27: =IFERROR(Resident!D$38,"N/A") -> N/A | E27: =Resident!D$39 -> 0 | F27: Surface deposits (75th percentile) | H27: =IFERROR(Resident!I$38,"N/A") -> N/A | I27: =Resident!I$39 -> 0 | J27: Surface deposits (75th percentile) | L27: =IFERROR(Resident!N$38,"N/A") -> N/A | M27: =Resident!N$39 -> 0 | N27: Surface deposits (75th percentile) | P27: =IFERROR(Resident!S$38,"N/A") -> N/A | Q27: =Resident!S$39 -> 0 | R27: Surface deposits (75th percentile) | T27: =Resident!X$39 -> N/A
B28: Entry into treated crops (75th percentile) | D28: =IFERROR(Resident!E$38,"N/A") -> 0 | E28: =Resident!E$39 -> 0 | F28: Entry into treated crops (75th percentile) | H28: =IFERROR(Resident!J$38,"N/A") -> 0 | I28: =Resident!J$39 -> 0 | J28: Entry into treated crops (75th percentile) | L28: =IFERROR(Resident!O$38,"N/A") -> 0 | M28: =Resident!O$39 -> 0 | N28: Entry into treated crops (75th percentile) | P28: =IFERROR(Resident!T$38,"N/A") -> 0 | Q28: =Resident!T$39 -> 0 | R28: Entry into treated crops (75th percentile) | T28: =Resident!Y$39 -> N/A
B29: All pathways (mean) | D29: =IFERROR(Resident!F$38,"N/A") -> N/A | E29: =Resident!F$39 -> 0 | F29: All pathways (mean) | H29: =IFERROR(Resident!K$38,"N/A") -> N/A | I29: =Resident!K$39 -> 0 | J29: All pathways (mean) | L29: =IFERROR(Resident!P$38,"N/A") -> N/A | M29: =Resident!P$39 -> 0 | N29: All pathways (mean) | P29: =IFERROR(Resident!U$38,"N/A") -> N/A | Q29: =Resident!U$39 -> 0 | R29: All pathways (mean) | T29: =Resident!Z$39 -> N/A
A30: Bystander - adult | B30: =i_SubstName1 -> 0 | D30: Exposure (mg/kg bw/d) | E30: %AAOEL | F30: =i_SubstName2 -> 0 | H30: Exposure (mg/kg bw/d) | I30: %AAOEL | J30: =i_SubstName3 -> 0 | L30: Exposure (mg/kg bw/d) | M30: %AAOEL | N30: =i_SubstName4 -> 0 | P30: Exposure (mg/kg bw/d) | Q30: %AAOEL | R30: Combined | T30: Hazard Index
B31: Spray drift (95th percentile) | D31: =Bystander!B$28 -> 0 | E31: =Bystander!B29 -> 0 | F31: Spray drift (95th percentile) | H31: =Bystander!F$28 -> 0 | I31: =Bystander!F29 -> 0 | J31: Spray drift (95th percentile) | L31: =Bystander!J$28 -> 0 | M31: =Bystander!J29 -> 0 | N31: Spray drift (95th percentile) | P31: =Bystander!N$28 -> 0 | Q31: =Bystander!N29 -> 0 | R31: Spray drift (95th percentile) | T31: =Bystander!R$29 -> N/A
B32: Vapour (95th percentile) | D32: =Bystander!C$28 -> 0.00027 | E32: =Bystander!C29 -> 0 | F32: Vapour (95th percentile) | H32: =Bystander!G$28 -> 0.00027 | I32: =Bystander!G29 -> 0 | J32: Vapour (95th percentile) | L32: =Bystander!K$28 -> 0.00027 | M32: =Bystander!K29 -> 0 | N32: Vapour (95th percentile) | P32: =Bystander!O$28 -> 0.00027 | Q32: =Bystander!O29 -> 0 | R32: Vapour (95th percentile) | T32: =Bystander!S$29 -> N/A
B33: Surface deposits (95th percentile) | D33: =Bystander!D$28 ->  | E33: =Bystander!D29 -> 0 | F33: Surface deposits (95th percentile) | H33: =Bystander!H$28 ->  | I33: =Bystander!H29 -> 0 | J33: Surface deposits (95th percentile) | L33: =Bystander!L$28 ->  | M33: =Bystander!L29 -> 0 | N33: Surface deposits (95th percentile) | P33: =Bystander!P$28 ->  | Q33: =Bystander!P29 -> 0 | R33: Surface deposits (95th percentile) | T33: =Bystander!T$29 -> N/A
B34: Entry into treated crops (95th percentile) | D34: =Bystander!E$28 -> 0 | E34: =Bystander!E29 -> 0 | F34: Entry into treated crops (95th percentile) | H34: =Bystander!I$28 -> 0 | I34: =Bystander!I29 -> 0 | J34: Entry into treated crops (95th percentile) | L34: =Bystander!M$28 -> 0 | M34: =Bystander!M29 -> 0 | N34: Entry into treated crops (95th percentile) | P34: =Bystander!Q$28 -> 0 | Q34: =Bystander!Q29 -> 0 | R34: Entry into treated crops (95th percentile) | T34: =Bystander!U$29 -> N/A
A35: Bystander - child | B35: Spray drift (95th percentile) | D35: =Bystander!B$32 -> 0 | E35: =Bystander!B33 -> 0 | F35: Spray drift (95th percentile) | H35: =Bystander!F$32 -> 0 | I35: =Bystander!F33 -> 0 | J35: Spray drift (95th percentile) | L35: =Bystander!J$32 -> 0 | M35: =Bystander!J33 -> 0 | N35: Spray drift (95th percentile) | P35: =Bystander!N$32 -> 0 | Q35: =Bystander!N33 -> 0 | R35: Spray drift (95th percentile) | T35: =Bystander!R$33 -> N/A
B36: Vapour (95th percentile) | D36: =Bystander!C$32 -> 0.0008 | E36: =Bystander!C33 -> 0 | F36: Vapour (95th percentile) | H36: =Bystander!G$32 -> 0.0008 | I36: =Bystander!G33 -> 0 | J36: Vapour (95th percentile) | L36: =Bystander!K$32 -> 0.0008 | M36: =Bystander!K33 -> 0 | N36: Vapour (95th percentile) | P36: =Bystander!O$32 -> 0.0008 | Q36: =Bystander!O33 -> 0 | R36: Vapour (95th percentile) | T36: =Bystander!S$33 -> N/A
B37: Surface deposits (95th percentile) | D37: =Bystander!D$32 ->  | E37: =Bystander!D33 -> 0 | F37: Surface deposits (95th percentile) | H37: =Bystander!H$32 ->  | I37: =Bystander!H33 -> 0 | J37: Surface deposits (95th percentile) | L37: =Bystander!L$32 ->  | M37: =Bystander!L33 -> 0 | N37: Surface deposits (95th percentile) | P37: =Bystander!P$32 ->  | Q37: =Bystander!P33 -> 0 | R37: Surface deposits (95th percentile) | T37: =Bystander!T$33 -> N/A
B38: Entry into treated crops (95th percentile) | D38: =Bystander!E$32 -> 0 | E38: =Bystander!E33 -> 0 | F38: Entry into treated crops (95th percentile) | H38: =Bystander!I$32 -> 0 | I38: =Bystander!I33 -> 0 | J38: Entry into treated crops (95th percentile) | L38: =Bystander!M$32 -> 0 | M38: =Bystander!M33 -> 0 | N38: Entry into treated crops (95th percentile) | P38: =Bystander!Q$32 -> 0 | Q38: =Bystander!Q33 -> 0 | R38: Entry into treated crops (95th percentile) | T38: =Bystander!U$33 -> N/A
A39: Recreational Exposure | B39: =i_SubstName1 -> 0 | F39: =i_SubstName2 -> 0 | J39: =i_SubstName3 -> 0 | N39: =i_SubstName4 -> 0 | R39: Combined
B40: Child (%AOEL): | C40: =IFERROR('Recreational Exposure'!C32,"N/A") -> 0 | D40: Adult (%AOEL): | E40: =IFERROR('Recreational Exposure'!C35,"N/A") -> 0 | F40: Child (%AOEL): | G40: =IFERROR('Recreational Exposure'!E32,"N/A") -> 0 | H40: Adult (%AOEL): | I40: =IFERROR('Recreational Exposure'!E35,"N/A") -> 0 | J40: Child (%AOEL): | K40: =IFERROR('Recreational Exposure'!G32,"N/A") -> 0 | L40: Adult (%AOEL): | M40: =IFERROR('Recreational Exposure'!G35,"N/A") -> 0 | N40: Child (%AOEL): | O40: =IFERROR('Recreational Exposure'!I32,"N/A") -> 0 | P40: Adult (%AOEL): | Q40: =IFERROR('Recreational Exposure'!I35,"N/A") -> 0 | R40: Child (HI): | S40: =IFERROR('Recreational Exposure'!J32,"N/A") ->  | T40: Adult (HI): | U40: =IFERROR('Recreational Exposure'!J35,"N/A") -> 
A41: =Instructions!A14 -> Latest offline calculator update: 02 August 2023

Sheet Trolley (hidden)
B1: ="Operator exposure for "&i_ProductName & " spray applications" -> Operator exposure for spray applications | F1: =IF(i_FormVal <> "Granules, fine granules","","This sheet is only to be used for spray applications") -> 
D2: =i_SubstName1 -> 0 | F2: =i_SubstName2 -> 0 | H2: =i_SubstName3 -> 0 | J2: =i_SubstName4 -> 0
B3: Application rate of active substance | D3: =i_AppRateAS1*0.9 -> 0 | F3: =i_AppRateAS2*0.9 -> 0 | H3: =i_AppRateAS3*0.9 -> 0 | J3: =i_AppRateAS4*0.9 -> 0 | L3: kg a.s./ha | M3: i_AppRateAS
B4: Amount of active substance applied | D4: =d_AreaTreated*i_AppRateAS1 -> 0 | F4: =d_AreaTreated*i_AppRateAS2 -> 0 | H4: =d_AreaTreated*i_AppRateAS3 -> 0 | J4: =d_AreaTreated*i_AppRateAS4 -> 0 | L4: kg a.s./day | M4: i_AmountAS
B5: Dermal absorption of the product | D5: =i_AbsorpProduct1 -> 0 | F5: =i_AbsorpProduct2 -> 0 | H5: =i_AbsorpProduct3 -> 0 | J5: =i_AbsorpProduct4 -> 0 | M5: i_AbsorpProduct
B6: Dermal absorption of in-use dilution | D6: =i_AbsorpInuse1 -> 0 | F6: =i_AbsorpInuse2 -> 0 | H6: =i_AbsorpInuse3 -> 0 | J6: =i_AbsorpInuse4 -> 0 | M6: i_AbsorInuse
B7: Formulation type | D7: =i_FormVal -> 0
B8: Indoor or Outdoor application | D8: ='Data entry'!D8 -> 0
B9: Application method | D9: =i_AppMeth -> 0
B10: Application equipment | D10: =i_AppEquip -> 0
B11: Assumed area treated | D11: =d_AreaTreated -> 1 | L11: ha/day | M11: d_AreaTreated
B12: Season | D12: =i_Season -> not relevant
B13: =i_IndoorOutdoor&i_FormVal&i_AppMeth&"Manual-Trolley" -> Manual-Trolley
D14: =i_SubstName1 -> 0 | F14: =i_SubstName2 -> 0 | H14: =i_SubstName3 -> 0 | J14: =i_SubstName4 -> 0
B15: Mixing and loading | C15: Exposure values | D15: µg exposure/day mixed and loaded | F15: µg exposure/day mixed and loaded | H15: µg exposure/day mixed and loaded | J15: µg exposure/day mixed and loaded | L15: Reference | M15: Comment
D16: 75th percentile | E16: 95th percentile | F16: 75th percentile | G16: 95th percentile | H16: 75th percentile | I16: 95th percentile | J16: 75th percentile | K16: 95th percentile
C17: Hands | D17: =IF(ISBLANK(INDEX(ay_OpExAOEM,MATCH(sys_KeyOperator&"Hands",key_AOEM,0),10)),10^(INDEX(ay_OpExAOEM,MATCH(sys_KeyOperator&"Hands",key_AOEM,0),7)+(LOG(i_AmountAS1)*INDEX(ay_OpExAOEM,MATCH(sys_KeyOperator&"Hands",key_AOEM,0),8))+INDEX(ay_OpExAOEM,MATCH(sys_KeyOperator&"Hands",key_AOEM,0),9)),MAX(INDEX(ay_OpExAOEM,MATCH(sys_KeyOperator&"Hands",key_AOEM,0),10),(INDEX(ay_OpExAOEM,MATCH(sys_KeyOperator&"Hands",key_AOEM,0),10)/1.5)*i_AmountAS1)) ->  | E17: =IF(ISBLANK(INDEX(ay_OpExAOEM,MATCH(sys_KeyOperator&"Hands",key_AOEM,0),14)),10^(INDEX(ay_OpExAOEM,MATCH(sys_KeyOperator&"Hands",key_AOEM,0),11)+(LOG(i_AmountAS1)*INDEX(ay_OpExAOEM,MATCH(sys_KeyOperator&"Hands",key_AOEM,0),12))+INDEX(ay_OpExAOEM,MATCH(sys_KeyOperator&"Hands",key_AOEM,0),13)),MAX(INDEX(ay_OpExAOEM,MATCH(sys_KeyOperator&"Hands",key_AOEM,0),14),(INDEX(ay_OpExAOEM,MATCH(sys_KeyOperator&"Hands",key_AOEM,0),14)/1.5)*i_AmountAS1)) ->  | F17: =IF(ISBLANK(INDEX(ay_OpExAOEM,MATCH(sys_KeyOperator&"Hands",key_AOEM,0),10)),10^(INDEX(ay_OpExAOEM,MATCH(sys_KeyOperator&"Hands",key_AOEM,0),7)+(LOG(i_AmountAS2)*INDEX(ay_OpExAOEM,MATCH(sys_KeyOperator&"Hands",key_AOEM,0),8))+INDEX(ay_OpExAOEM,MATCH(sys_KeyOperator&"Hands",key_AOEM,0),9)),MAX(INDEX(ay_OpExAOEM,MATCH(sys_KeyOperator&"Hands",key_AOEM,0),10),(INDEX(ay_OpExAOEM,MATCH(sys_KeyOperator&"Hands",key_AOEM,0),10)/1.5)*i_AmountAS2)) ->  | G17: =IF(ISBLANK(INDEX(ay_OpExAOEM,MATCH(sys_KeyOperator&"Hands",key_AOEM,0),14)),10^(INDEX(ay_OpExAOEM,MATCH(sys_KeyOperator&"Hands",key_AOEM,0),11)+(LOG(i_AmountAS2)*INDEX(ay_OpExAOEM,MATCH(sys_KeyOperator&"Hands",key_AOEM,0),12))+INDEX(ay_OpExAOEM,MATCH(sys_KeyOperator&"Hands",key_AOEM,0),13)),MAX(INDEX(ay_OpExAOEM,MATCH(sys_KeyOperator&"Hands",key_AOEM,0),14),(INDEX(ay_OpExAOEM,MATCH(sys_KeyOperator&"Hands",key_AOEM,0),14)/1.5)*i_AmountAS2)) ->  | H17: =IF(ISBLANK(INDEX(ay_OpExAOEM,MATCH(sys_KeyOperator&"Hands",key_AOEM,0),10)),10^(INDEX(ay_OpExAOEM,MATCH(sys_KeyOperator&"Hands",key_AOEM,0),7)+(LOG(i_AmountAS3)*INDEX(ay_OpExAOEM,MATCH(sys_KeyOperator&"Hands",key_AOEM,0),8))+INDEX(ay_OpExAOEM,MATCH(sys_KeyOperator&"Hands",key_AOEM,0),9)),MAX(INDEX(ay_OpExAOEM,MATCH(sys_KeyOperator&"Hands",key_AOEM,0),10),(INDEX(ay_OpExAOEM,MATCH(sys_KeyOperator&"Hands",key_AOEM,0),10)/1.5)*i_AmountAS3)) ->  | I17: =IF(ISBLANK(INDEX(ay_OpExAOEM,MATCH(sys_KeyOperator&"Hands",key_AOEM,0),14)),10^(INDEX(ay_OpExAOEM,MATCH(sys_KeyOperator&"Hands",key_AOEM,0),11)+(LOG(i_AmountAS3)*INDEX(ay_OpExAOEM,MATCH(sys_KeyOperator&"Hands",key_AOEM,0),12))+INDEX(ay_OpExAOEM,MATCH(sys_KeyOperator&"Hands",key_AOEM,0),13)),MAX(INDEX(ay_OpExAOEM,MATCH(sys_KeyOperator&"Hands",key_AOEM,0),14),(INDEX(ay_OpExAOEM,MATCH(sys_KeyOperator&"Hands",key_AOEM,0),14)/1.5)*i_AmountAS3)) ->  | J17: =IF(ISBLANK(INDEX(ay_OpExAOEM,MATCH(sys_KeyOperator&"Hands",key_AOEM,0),10)),10^(INDEX(ay_OpExAOEM,MATCH(sys_KeyOperator&"Hands",key_AOEM,0),7)+(LOG(i_AmountAS4)*INDEX(ay_OpExAOEM,MATCH(sys_KeyOperator&"Hands",key_AOEM,0),8))+INDEX(ay_OpExAOEM,MATCH(sys_KeyOperator&"Hands",key_AOEM,0),9)),MAX(INDEX(ay_OpExAOEM,MATCH(sys_KeyOperator&"Hands",key_AOEM,0),10),(INDEX(ay_OpExAOEM,MATCH(sys_KeyOperator&"Hands",key_AOEM,0),10)/1.5)*i_AmountAS4)) ->  | K17: =IF(ISBLANK(INDEX(ay_OpExAOEM,MATCH(sys_KeyOperator&"Hands",key_AOEM,0),14)),10^(INDEX(ay_OpExAOEM,MATCH(sys_KeyOperator&"Hands",key_AOEM,0),11)+(LOG(i_AmountAS4)*INDEX(ay_OpExAOEM,MATCH(sys_KeyOperator&"Hands",key_AOEM,0),12))+INDEX(ay_OpExAOEM,MATCH(sys_KeyOperator&"Hands",key_AOEM,0),13)),MAX(INDEX(ay_OpExAOEM,MATCH(sys_KeyOperator&"Hands",key_AOEM,0),14),(INDEX(ay_OpExAOEM,MATCH(sys_KeyOperator&"Hands",key_AOEM,0),14)/1.5)*i_AmountAS4)) ->  | L17: AOEM
C18: Body | D18: =IF(ISBLANK(INDEX(ay_OpExAOEM,MATCH(sys_KeyOperator&"Body",key_AOEM,0),10)),10^(INDEX(ay_OpExAOEM,MATCH(sys_KeyOperator&"Body",key_AOEM,0),7)+(LOG(i_AmountAS1)*INDEX(ay_OpExAOEM,MATCH(sys_KeyOperator&"Body",key_AOEM,0),8))+INDEX(ay_OpExAOEM,MATCH(sys_KeyOperator&"Body",key_AOEM,0),9)),MAX(INDEX(ay_OpExAOEM,MATCH(sys_KeyOperator&"Body",key_AOEM,0),10),(INDEX(ay_OpExAOEM,MATCH(sys_KeyOperator&"Body",key_AOEM,0),10)/1.5)*i_AmountAS1)) ->  | E18: =IF(ISBLANK(INDEX(ay_OpExAOEM,MATCH(sys_KeyOperator&"Body",key_AOEM,0),14)), 10^(INDEX(ay_OpExAOEM,MATCH(sys_KeyOperator&"Body",key_AOEM,0),11) +(LOG(i_AmountAS1)*INDEX(ay_OpExAOEM,MATCH(sys_KeyOperator&"Body",key_AOEM,0),12)) +INDEX(ay_OpExAOEM,MATCH(sys_KeyOperator&"Body",key_AOEM,0),13)),MAX(INDEX(ay_OpExAOEM,MATCH(sys_KeyOperator&"Body",key_AOEM,0),14),(INDEX(ay_OpExAOEM,MATCH(sys_KeyOperator&"Body",key_AOEM,0),14) /1.5)*i_AmountAS1)) ->  | F18: =IF(ISBLANK(INDEX(ay_OpExAOEM,MATCH(sys_KeyOperator&"Body",key_AOEM,0),10)),10^(INDEX(ay_OpExAOEM,MATCH(sys_KeyOperator&"Body",key_AOEM,0),7)+(LOG(i_AmountAS2)*INDEX(ay_OpExAOEM,MATCH(sys_KeyOperator&"Body",key_AOEM,0),8))+INDEX(ay_OpExAOEM,MATCH(sys_KeyOperator&"Body",key_AOEM,0),9)),MAX(INDEX(ay_OpExAOEM,MATCH(sys_KeyOperator&"Body",key_AOEM,0),10),(INDEX(ay_OpExAOEM,MATCH(sys_KeyOperator&"Body",key_AOEM,0),10)/1.5)*i_AmountAS2)) ->  | G18: =IF(ISBLANK(INDEX(ay_OpExAOEM,MATCH(sys_KeyOperator&"Body",key_AOEM,0),14)), 10^(INDEX(ay_OpExAOEM,MATCH(sys_KeyOperator&"Body",key_AOEM,0),11) +(LOG(i_AmountAS2)*INDEX(ay_OpExAOEM,MATCH(sys_KeyOperator&"Body",key_AOEM,0),12)) +INDEX(ay_OpExAOEM,MATCH(sys_KeyOperator&"Body",key_AOEM,0),13)),MAX(INDEX(ay_OpExAOEM,MATCH(sys_KeyOperator&"Body",key_AOEM,0),14),(INDEX(ay_OpExAOEM,MATCH(sys_KeyOperator&"Body",key_AOEM,0),14) /1.5)*i_AmountAS2)) ->  | H18: =IF(ISBLANK(INDEX(ay_OpExAOEM,MATCH(sys_KeyOperator&"Body",key_AOEM,0),10)),10^(INDEX(ay_OpExAOEM,MATCH(sys_KeyOperator&"Body",key_AOEM,0),7)+(LOG(i_AmountAS3)*INDEX(ay_OpExAOEM,MATCH(sys_KeyOperator&"Body",key_AOEM,0),8))+INDEX(ay_OpExAOEM,MATCH(sys_KeyOperator&"Body",key_AOEM,0),9)),MAX(INDEX(ay_OpExAOEM,MATCH(sys_KeyOperator&"Body",key_AOEM,0),10),(INDEX(ay_OpExAOEM,MATCH(sys_KeyOperator&"Body",key_AOEM,0),10)/1.5)*i_AmountAS3)) ->  | I18: =IF(ISBLANK(INDEX(ay_OpExAOEM,MATCH(sys_KeyOperator&"Body",key_AOEM,0),14)), 10^(INDEX(ay_OpExAOEM,MATCH(sys_KeyOperator&"Body",key_AOEM,0),11) +(LOG(i_AmountAS3)*INDEX(ay_OpExAOEM,MATCH(sys_KeyOperator&"Body",key_AOEM,0),12)) +INDEX(ay_OpExAOEM,MATCH(sys_KeyOperator&"Body",key_AOEM,0),13)),MAX(INDEX(ay_OpExAOEM,MATCH(sys_KeyOperator&"Body",key_AOEM,0),14),(INDEX(ay_OpExAOEM,MATCH(sys_KeyOperator&"Body",key_AOEM,0),14) /1.5)*i_AmountAS3)) ->  | J18: =IF(ISBLANK(INDEX(ay_OpExAOEM,MATCH(sys_KeyOperator&"Body",key_AOEM,0),10)),10^(INDEX(ay_OpExAOEM,MATCH(sys_KeyOperator&"Body",key_AOEM,0),7)+(LOG(i_AmountAS4)*INDEX(ay_OpExAOEM,MATCH(sys_KeyOperator&"Body",key_AOEM,0),8))+INDEX(ay_OpExAOEM,MATCH(sys_KeyOperator&"Body",key_AOEM,0),9)),MAX(INDEX(ay_OpExAOEM,MATCH(sys_KeyOperator&"Body",key_AOEM,0),10),(INDEX(ay_OpExAOEM,MATCH(sys_KeyOperator&"Body",key_AOEM,0),10)/1.5)*i_AmountAS4)) ->  | K18: =IF(ISBLANK(INDEX(ay_OpExAOEM,MATCH(sys_KeyOperator&"Body",key_AOEM,0),14)), 10^(INDEX(ay_OpExAOEM,MATCH(sys_KeyOperator&"Body",key_AOEM,0),11) +(LOG(i_AmountAS4)*INDEX(ay_OpExAOEM,MATCH(sys_KeyOperator&"Body",key_AOEM,0),12)) +INDEX(ay_OpExAOEM,MATCH(sys_KeyOperator&"Body",key_AOEM,0),13)),MAX(INDEX(ay_OpExAOEM,MATCH(sys_KeyOperator&"Body",key_AOEM,0),14),(INDEX(ay_OpExAOEM,MATCH(sys_KeyOperator&"Body",key_AOEM,0),14) /1.5)*i_AmountAS4)) ->  | L18: AOEM
C19: Head | D19: =IF(ISBLANK(INDEX(ay_OpExAOEM,MATCH(sys_KeyOperator&"Head",key_AOEM,0),10)),10^(INDEX(ay_OpExAOEM,MATCH(sys_KeyOperator&"Head",key_AOEM,0),7)+(LOG(i_AmountAS1)*INDEX(ay_OpExAOEM,MATCH(sys_KeyOperator&"Head",key_AOEM,0),8))+INDEX(ay_OpExAOEM,MATCH(sys_KeyOperator&"Head",key_AOEM,0),9)),MAX(INDEX(ay_OpExAOEM,MATCH(sys_KeyOperator&"Head",key_AOEM,0),10),(INDEX(ay_OpExAOEM,MATCH(sys_KeyOperator&"Head",key_AOEM,0),10)/1.5)*i_AmountAS1)) ->  | E19: =IF(ISBLANK(INDEX(ay_OpExAOEM,MATCH(sys_KeyOperator&"Head",key_AOEM,0),14)), 10^(INDEX(ay_OpExAOEM,MATCH(sys_KeyOperator&"Head",key_AOEM,0),11) +(LOG(i_AmountAS1)*INDEX(ay_OpExAOEM,MATCH(sys_KeyOperator&"Head",key_AOEM,0),12)) +INDEX(ay_OpExAOEM,MATCH(sys_KeyOperator&"Head",key_AOEM,0),13)),MAX(INDEX(ay_OpExAOEM,MATCH(sys_KeyOperator&"Head",key_AOEM,0),14),(INDEX(ay_OpExAOEM,MATCH(sys_KeyOperator&"Head",key_AOEM,0),14) /1.5)*i_AmountAS1)) ->  | F19: =IF(ISBLANK(INDEX(ay_OpExAOEM,MATCH(sys_KeyOperator&"Head",key_AOEM,0),10)),10^(INDEX(ay_OpExAOEM,MATCH(sys_KeyOperator&"Head",key_AOEM,0),7)+(LOG(i_AmountAS2)*INDEX(ay_OpExAOEM,MATCH(sys_KeyOperator&"Head",key_AOEM,0),8))+INDEX(ay_OpExAOEM,MATCH(sys_KeyOperator&"Head",key_AOEM,0),9)),MAX(INDEX(ay_OpExAOEM,MATCH(sys_KeyOperator&"Head",key_AOEM,0),10),(INDEX(ay_OpExAOEM,MATCH(sys_KeyOperator&"Head",key_AOEM,0),10)/1.5)*i_AmountAS2)) ->  | G19: =IF(ISBLANK(INDEX(ay_OpExAOEM,MATCH(sys_KeyOperator&"Head",key_AOEM,0),14)), 10^(INDEX(ay_OpExAOEM,MATCH(sys_KeyOperator&"Head",key_AOEM,0),11) +(LOG(i_AmountAS2)*INDEX(ay_OpExAOEM,MATCH(sys_KeyOperator&"Head",key_AOEM,0),12)) +INDEX(ay_OpExAOEM,MATCH(sys_KeyOperator&"Head",key_AOEM,0),13)),MAX(INDEX(ay_OpExAOEM,MATCH(sys_KeyOperator&"Head",key_AOEM,0),14),(INDEX(ay_OpExAOEM,MATCH(sys_KeyOperator&"Head",key_AOEM,0),14) /1.5)*i_AmountAS2)) ->  | H19: =IF(ISBLANK(INDEX(ay_OpExAOEM,MATCH(sys_KeyOperator&"Head",key_AOEM,0),10)),10^(INDEX(ay_OpExAOEM,MATCH(sys_KeyOperator&"Head",key_AOEM,0),7)+(LOG(i_AmountAS3)*INDEX(ay_OpExAOEM,MATCH(sys_KeyOperator&"Head",key_AOEM,0),8))+INDEX(ay_OpExAOEM,MATCH(sys_KeyOperator&"Head",key_AOEM,0),9)),MAX(INDEX(ay_OpExAOEM,MATCH(sys_KeyOperator&"Head",key_AOEM,0),10),(INDEX(ay_OpExAOEM,MATCH(sys_KeyOperator&"Head",key_AOEM,0),10)/1.5)*i_AmountAS3)) ->  | I19: =IF(ISBLANK(INDEX(ay_OpExAOEM,MATCH(sys_KeyOperator&"Head",key_AOEM,0),14)), 10^(INDEX(ay_OpExAOEM,MATCH(sys_KeyOperator&"Head",key_AOEM,0),11) +(LOG(i_AmountAS3)*INDEX(ay_OpExAOEM,MATCH(sys_KeyOperator&"Head",key_AOEM,0),12)) +INDEX(ay_OpExAOEM,MATCH(sys_KeyOperator&"Head",key_AOEM,0),13)),MAX(INDEX(ay_OpExAOEM,MATCH(sys_KeyOperator&"Head",key_AOEM,0),14),(INDEX(ay_OpExAOEM,MATCH(sys_KeyOperator&"Head",key_AOEM,0),14) /1.5)*i_AmountAS3)) ->  | J19: =IF(ISBLANK(INDEX(ay_OpExAOEM,MATCH(sys_KeyOperator&"Head",key_AOEM,0),10)),10^(INDEX(ay_OpExAOEM,MATCH(sys_KeyOperator&"Head",key_AOEM,0),7)+(LOG(i_AmountAS4)*INDEX(ay_OpExAOEM,MATCH(sys_KeyOperator&"Head",key_AOEM,0),8))+INDEX(ay_OpExAOEM,MATCH(sys_KeyOperator&"Head",key_AOEM,0),9)),MAX(INDEX(ay_OpExAOEM,MATCH(sys_KeyOperator&"Head",key_AOEM,0),10),(INDEX(ay_OpExAOEM,MATCH(sys_KeyOperator&"Head",key_AOEM,0),10)/1.5)*i_AmountAS4)) ->  | K19: =IF(ISBLANK(INDEX(ay_OpExAOEM,MATCH(sys_KeyOperator&"Head",key_AOEM,0),14)), 10^(INDEX(ay_OpExAOEM,MATCH(sys_KeyOperator&"Head",key_AOEM,0),11) +(LOG(i_AmountAS4)*INDEX(ay_OpExAOEM,MATCH(sys_KeyOperator&"Head",key_AOEM,0),12)) +INDEX(ay_OpExAOEM,MATCH(sys_KeyOperator&"Head",key_AOEM,0),13)),MAX(INDEX(ay_OpExAOEM,MATCH(sys_KeyOperator&"Head",key_AOEM,0),14),(INDEX(ay_OpExAOEM,MATCH(sys_KeyOperator&"Head",key_AOEM,0),14) /1.5)*i_AmountAS4)) ->  | L19: AOEM
C20: Protected hands (gloves) | D20: =IF(ISBLANK(INDEX(ay_OpExAOEM,MATCH(sys_KeyOperator&"Protected hands",key_AOEM,0),10)),10^(INDEX(ay_OpExAOEM,MATCH(sys_KeyOperator&"Protected hands",key_AOEM,0),7)+(LOG(i_AmountAS1)*INDEX(ay_OpExAOEM,MATCH(sys_KeyOperator&"Protected hands",key_AOEM,0),8))+INDEX(ay_OpExAOEM,MATCH(sys_KeyOperator&"Protected hands",key_AOEM,0),9)),MAX(INDEX(ay_OpExAOEM,MATCH(sys_KeyOperator&"Protected hands",key_AOEM,0),10),(INDEX(ay_OpExAOEM,MATCH(sys_KeyOperator&"Protected hands",key_AOEM,0),10)/1.5)*i_AmountAS1)) ->  | E20: =IF(ISBLANK(INDEX(ay_OpExAOEM,MATCH(sys_KeyOperator&"Protected Hands",key_AOEM,0),14)), 10^(INDEX(ay_OpExAOEM,MATCH(sys_KeyOperator&"Protected Hands",key_AOEM,0),11) +(LOG(i_AmountAS1)*INDEX(ay_OpExAOEM,MATCH(sys_KeyOperator&"Protected Hands",key_AOEM,0),12)) +INDEX(ay_OpExAOEM,MATCH(sys_KeyOperator&"Protected Hands",key_AOEM,0),13)),MAX(INDEX(ay_OpExAOEM,MATCH(sys_KeyOperator&"Protected Hands",key_AOEM,0),14),(INDEX(ay_OpExAOEM,MATCH(sys_KeyOperator&"Protected Hands",key_AOEM,0),14) /1.5)*i_AmountAS1)) ->  | F20: =IF(ISBLANK(INDEX(ay_OpExAOEM,MATCH(sys_KeyOperator&"Protected hands",key_AOEM,0),10)),10^(INDEX(ay_OpExAOEM,MATCH(sys_KeyOperator&"Protected hands",key_AOEM,0),7)+(LOG(i_AmountAS2)*INDEX(ay_OpExAOEM,MATCH(sys_KeyOperator&"Protected hands",key_AOEM,0),8))+INDEX(ay_OpExAOEM,MATCH(sys_KeyOperator&"Protected hands",key_AOEM,0),9)),MAX(INDEX(ay_OpExAOEM,MATCH(sys_KeyOperator&"Protected hands",key_AOEM,0),10),(INDEX(ay_OpExAOEM,MATCH(sys_KeyOperator&"Protected hands",key_AOEM,0),10)/1.5)*i_AmountAS2)) ->  | G20: =IF(ISBLANK(INDEX(ay_OpExAOEM,MATCH(sys_KeyOperator&"Protected Hands",key_AOEM,0),14)), 10^(INDEX(ay_OpExAOEM,MATCH(sys_KeyOperator&"Protected Hands",key_AOEM,0),11) +(LOG(i_AmountAS2)*INDEX(ay_OpExAOEM,MATCH(sys_KeyOperator&"Protected Hands",key_AOEM,0),12)) +INDEX(ay_OpExAOEM,MATCH(sys_KeyOperator&"Protected Hands",key_AOEM,0),13)),MAX(INDEX(ay_OpExAOEM,MATCH(sys_KeyOperator&"Protected Hands",key_AOEM,0),14),(INDEX(ay_OpExAOEM,MATCH(sys_KeyOperator&"Protected Hands",key_AOEM,0),14) /1.5)*i_AmountAS2)) ->  | H20: =IF(ISBLANK(INDEX(ay_OpExAOEM,MATCH(sys_KeyOperator&"Protected hands",key_AOEM,0),10)),10^(INDEX(ay_OpExAOEM,MATCH(sys_KeyOperator&"Protected hands",key_AOEM,0),7)+(LOG(i_AmountAS3)*INDEX(ay_OpExAOEM,MATCH(sys_KeyOperator&"Protected hands",key_AOEM,0),8))+INDEX(ay_OpExAOEM,MATCH(sys_KeyOperator&"Protected hands",key_AOEM,0),9)),MAX(INDEX(ay_OpExAOEM,MATCH(sys_KeyOperator&"Protected hands",key_AOEM,0),10),(INDEX(ay_OpExAOEM,MATCH(sys_KeyOperator&"Protected hands",key_AOEM,0),10)/1.5)*i_AmountAS3)) ->  | I20: =IF(ISBLANK(INDEX(ay_OpExAOEM,MATCH(sys_KeyOperator&"Protected Hands",key_AOEM,0),14)), 10^(INDEX(ay_OpExAOEM,MATCH(sys_KeyOperator&"Protected Hands",key_AOEM,0),11) +(LOG(i_AmountAS3)*INDEX(ay_OpExAOEM,MATCH(sys_KeyOperator&"Protected Hands",key_AOEM,0),12)) +INDEX(ay_OpExAOEM,MATCH(sys_KeyOperator&"Protected Hands",key_AOEM,0),13)),MAX(INDEX(ay_OpExAOEM,MATCH(sys_KeyOperator&"Protected Hands",key_AOEM,0),14),(INDEX(ay_OpExAOEM,MATCH(sys_KeyOperator&"Protected Hands",key_AOEM,0),14) /1.5)*i_AmountAS3)) ->  | J20: =IF(ISBLANK(INDEX(ay_OpExAOEM,MATCH(sys_KeyOperator&"Protected hands",key_AOEM,0),10)),10^(INDEX(ay_OpExAOEM,MATCH(sys_KeyOperator&"Protected hands",key_AOEM,0),7)+(LOG(i_AmountAS4)*INDEX(ay_OpExAOEM,MATCH(sys_KeyOperator&"Protected hands",key_AOEM,0),8))+INDEX(ay_OpExAOEM,MATCH(sys_KeyOperator&"Protected hands",key_AOEM,0),9)),MAX(INDEX(ay_OpExAOEM,MATCH(sys_KeyOperator&"Protected hands",key_AOEM,0),10),(INDEX(ay_OpExAOEM,MATCH(sys_KeyOperator&"Protected hands",key_AOEM,0),10)/1.5)*i_AmountAS4)) ->  | K20: =IF(ISBLANK(INDEX(ay_OpExAOEM,MATCH(sys_KeyOperator&"Protected Hands",key_AOEM,0),14)), 10^(INDEX(ay_OpExAOEM,MATCH(sys_KeyOperator&"Protected Hands",key_AOEM,0),11) +(LOG(i_AmountAS4)*INDEX(ay_OpExAOEM,MATCH(sys_KeyOperator&"Protected Hands",key_AOEM,0),12)) +INDEX(ay_OpExAOEM,MATCH(sys_KeyOperator&"Protected Hands",key_AOEM,0),13)),MAX(INDEX(ay_OpExAOEM,MATCH(sys_KeyOperator&"Protected Hands",key_AOEM,0),14),(INDEX(ay_OpExAOEM,MATCH(sys_KeyOperator&"Protected Hands",key_AOEM,0),14) /1.5)*i_AmountAS4)) ->  | L20: AOEM
C21: Protected body (workwear or protective garment and sturdy footwear) | D21: =IF(ISBLANK(INDEX(ay_OpExAOEM,MATCH(sys_KeyOperator&"Protected Body",key_AOEM,0),10)),10^(INDEX(ay_OpExAOEM,MATCH(sys_KeyOperator&"Protected Body",key_AOEM,0),7)+(LOG(i_AmountAS1)*INDEX(ay_OpExAOEM,MATCH(sys_KeyOperator&"Protected Body",key_AOEM,0),8))+INDEX(ay_OpExAOEM,MATCH(sys_KeyOperator&"Protected Body",key_AOEM,0),9)),MAX(INDEX(ay_OpExAOEM,MATCH(sys_KeyOperator&"Protected Body",key_AOEM,0),10),(INDEX(ay_OpExAOEM,MATCH(sys_KeyOperator&"Protected Body",key_AOEM,0),10)/1.5)*i_AmountAS1)) ->  | E21: =IF(ISBLANK(INDEX(ay_OpExAOEM,MATCH(sys_KeyOperator&"Protected Body",key_AOEM,0),14)), 10^(INDEX(ay_OpExAOEM,MATCH(sys_KeyOperator&"Protected Body",key_AOEM,0),11) +(LOG(i_AmountAS1)*INDEX(ay_OpExAOEM,MATCH(sys_KeyOperator&"Protected Body",key_AOEM,0),12)) +INDEX(ay_OpExAOEM,MATCH(sys_KeyOperator&"Protected Body",key_AOEM,0),13)),MAX(INDEX(ay_OpExAOEM,MATCH(sys_KeyOperator&"Protected Body",key_AOEM,0),14),(INDEX(ay_OpExAOEM,MATCH(sys_KeyOperator&"Protected Body",key_AOEM,0),14) /1.5)*i_AmountAS1)) ->  | F21: =IF(ISBLANK(INDEX(ay_OpExAOEM,MATCH(sys_KeyOperator&"Protected Body",key_AOEM,0),10)),10^(INDEX(ay_OpExAOEM,MATCH(sys_KeyOperator&"Protected Body",key_AOEM,0),7)+(LOG(i_AmountAS2)*INDEX(ay_OpExAOEM,MATCH(sys_KeyOperator&"Protected Body",key_AOEM,0),8))+INDEX(ay_OpExAOEM,MATCH(sys_KeyOperator&"Protected Body",key_AOEM,0),9)),MAX(INDEX(ay_OpExAOEM,MATCH(sys_KeyOperator&"Protected Body",key_AOEM,0),10),(INDEX(ay_OpExAOEM,MATCH(sys_KeyOperator&"Protected Body",key_AOEM,0),10)/1.5)*i_AmountAS2)) ->  | G21: =IF(ISBLANK(INDEX(ay_OpExAOEM,MATCH(sys_KeyOperator&"Protected Body",key_AOEM,0),14)), 10^(INDEX(ay_OpExAOEM,MATCH(sys_KeyOperator&"Protected Body",key_AOEM,0),11) +(LOG(i_AmountAS2)*INDEX(ay_OpExAOEM,MATCH(sys_KeyOperator&"Protected Body",key_AOEM,0),12)) +INDEX(ay_OpExAOEM,MATCH(sys_KeyOperator&"Protected Body",key_AOEM,0),13)),MAX(INDEX(ay_OpExAOEM,MATCH(sys_KeyOperator&"Protected Body",key_AOEM,0),14),(INDEX(ay_OpExAOEM,MATCH(sys_KeyOperator&"Protected Body",key_AOEM,0),14) /1.5)*i_AmountAS2)) ->  | H21: =IF(ISBLANK(INDEX(ay_OpExAOEM,MATCH(sys_KeyOperator&"Protected Body",key_AOEM,0),10)),10^(INDEX(ay_OpExAOEM,MATCH(sys_KeyOperator&"Protected Body",key_AOEM,0),7)+(LOG(i_AmountAS3)*INDEX(ay_OpExAOEM,MATCH(sys_KeyOperator&"Protected Body",key_AOEM,0),8))+INDEX(ay_OpExAOEM,MATCH(sys_KeyOperator&"Protected Body",key_AOEM,0),9)),MAX(INDEX(ay_OpExAOEM,MATCH(sys_KeyOperator&"Protected Body",key_AOEM,0),10),(INDEX(ay_OpExAOEM,MATCH(sys_KeyOperator&"Protected Body",key_AOEM,0),10)/1.5)*i_AmountAS3)) ->  | I21: =IF(ISBLANK(INDEX(ay_OpExAOEM,MATCH(sys_KeyOperator&"Protected Body",key_AOEM,0),14)), 10^(INDEX(ay_OpExAOEM,MATCH(sys_KeyOperator&"Protected Body",key_AOEM,0),11) +(LOG(i_AmountAS3)*INDEX(ay_OpExAOEM,MATCH(sys_KeyOperator&"Protected Body",key_AOEM,0),12)) +INDEX(ay_OpExAOEM,MATCH(sys_KeyOperator&"Protected Body",key_AOEM,0),13)),MAX(INDEX(ay_OpExAOEM,MATCH(sys_KeyOperator&"Protected Body",key_AOEM,0),14),(INDEX(ay_OpExAOEM,MATCH(sys_KeyOperator&"Protected Body",key_AOEM,0),14) /1.5)*i_AmountAS3)) ->  | J21: =IF(ISBLANK(INDEX(ay_OpExAOEM,MATCH(sys_KeyOperator&"Protected Body",key_AOEM,0),10)),10^(INDEX(ay_OpExAOEM,MATCH(sys_KeyOperator&"Protected Body",key_AOEM,0),7)+(LOG(i_AmountAS4)*INDEX(ay_OpExAOEM,MATCH(sys_KeyOperator&"Protected Body",key_AOEM,0),8))+INDEX(ay_OpExAOEM,MATCH(sys_KeyOperator&"Protected Body",key_AOEM,0),9)),MAX(INDEX(ay_OpExAOEM,MATCH(sys_KeyOperator&"Protected Body",key_AOEM,0),10),(INDEX(ay_OpExAOEM,MATCH(sys_KeyOperator&"Protected Body",key_AOEM,0),10)/1.5)*i_AmountAS4)) ->  | K21: =IF(ISBLANK(INDEX(ay_OpExAOEM,MATCH(sys_KeyOperator&"Protected Body",key_AOEM,0),14)), 10^(INDEX(ay_OpExAOEM,MATCH(sys_KeyOperator&"Protected Body",key_AOEM,0),11) +(LOG(i_AmountAS4)*INDEX(ay_OpExAOEM,MATCH(sys_KeyOperator&"Protected Body",key_AOEM,0),12)) +INDEX(ay_OpExAOEM,MATCH(sys_KeyOperator&"Protected Body",key_AOEM,0),13)),MAX(INDEX(ay_OpExAOEM,MATCH(sys_KeyOperator&"Protected Body",key_AOEM,0),14),(INDEX(ay_OpExAOEM,MATCH(sys_KeyOperator&"Protected Body",key_AOEM,0),14) /1.5)*i_AmountAS4)) ->  | L21: AOEM
C22: Protected head (hood +/- face shield) | D22: =IF(ISBLANK(INDEX(ay_OpExAOEM,MATCH(sys_KeyOperator&"Head",key_AOEM,0),10)),10^(INDEX(ay_OpExAOEM,MATCH(sys_KeyOperator&"Head",key_AOEM,0),7)+(LOG(i_AmountAS1)*INDEX(ay_OpExAOEM,MATCH(sys_KeyOperator&"Head",key_AOEM,0),8))+INDEX(ay_OpExAOEM,MATCH(sys_KeyOperator&"Head",key_AOEM,0),9)+ d_head75ProtectionFactor),MAX(INDEX(ay_OpExAOEM,MATCH(sys_KeyOperator&"Head",key_AOEM,0),10),(INDEX(ay_OpExAOEM,MATCH(sys_KeyOperator&"Head",key_AOEM,0),10)/1.5)*i_AmountAS1))*IF(ISNUMBER(Hole_F25),Hole_F25,1) ->  | E22: =IF(ISBLANK(INDEX(ay_OpExAOEM,MATCH(sys_KeyOperator&"Head",key_AOEM,0),14)), 10^(INDEX(ay_OpExAOEM,MATCH(sys_KeyOperator&"Head",key_AOEM,0),11) +(LOG(i_AmountAS1)*INDEX(ay_OpExAOEM,MATCH(sys_KeyOperator&"Head",key_AOEM,0),12)) +INDEX(ay_OpExAOEM,MATCH(sys_KeyOperator&"Head",key_AOEM,0),13)+ d_head95ProtectionFactor),MAX(INDEX(ay_OpExAOEM,MATCH(sys_KeyOperator&"Head",key_AOEM,0),14),(INDEX(ay_OpExAOEM,MATCH(sys_KeyOperator&"Head",key_AOEM,0),14) /1.5)*i_AmountAS1))*IF(ISNUMBER(Hole_F25),Hole_F25,1) ->  | F22: =IF(ISBLANK(INDEX(ay_OpExAOEM,MATCH(sys_KeyOperator&"Head",key_AOEM,0),10)),10^(INDEX(ay_OpExAOEM,MATCH(sys_KeyOperator&"Head",key_AOEM,0),7)+(LOG(i_AmountAS2)*INDEX(ay_OpExAOEM,MATCH(sys_KeyOperator&"Head",key_AOEM,0),8))+INDEX(ay_OpExAOEM,MATCH(sys_KeyOperator&"Head",key_AOEM,0),9) + d_head75ProtectionFactor ),MAX(INDEX(ay_OpExAOEM,MATCH(sys_KeyOperator&"Head",key_AOEM,0),10),(INDEX(ay_OpExAOEM,MATCH(sys_KeyOperator&"Head",key_AOEM,0),10)/1.5)*i_AmountAS2))*IF(ISNUMBER(Hole_F25),Hole_F25,1) ->  | G22: =IF(ISBLANK(INDEX(ay_OpExAOEM,MATCH(sys_KeyOperator&"Head",key_AOEM,0),14)), 10^(INDEX(ay_OpExAOEM,MATCH(sys_KeyOperator&"Head",key_AOEM,0),11) +(LOG(i_AmountAS2)*INDEX(ay_OpExAOEM,MATCH(sys_KeyOperator&"Head",key_AOEM,0),12)) +INDEX(ay_OpExAOEM,MATCH(sys_KeyOperator&"Head",key_AOEM,0),13)+ d_head95ProtectionFactor),MAX(INDEX(ay_OpExAOEM,MATCH(sys_KeyOperator&"Head",key_AOEM,0),14),(INDEX(ay_OpExAOEM,MATCH(sys_KeyOperator&"Head",key_AOEM,0),14) /1.5)*i_AmountAS2))*IF(ISNUMBER(Hole_F25),Hole_F25,1) ->  | H22: =IF(ISBLANK(INDEX(ay_OpExAOEM,MATCH(sys_KeyOperator&"Head",key_AOEM,0),10)),10^(INDEX(ay_OpExAOEM,MATCH(sys_KeyOperator&"Head",key_AOEM,0),7)+(LOG(i_AmountAS3)*INDEX(ay_OpExAOEM,MATCH(sys_KeyOperator&"Head",key_AOEM,0),8))+INDEX(ay_OpExAOEM,MATCH(sys_KeyOperator&"Head",key_AOEM,0),9) + d_head75ProtectionFactor ),MAX(INDEX(ay_OpExAOEM,MATCH(sys_KeyOperator&"Head",key_AOEM,0),10),(INDEX(ay_OpExAOEM,MATCH(sys_KeyOperator&"Head",key_AOEM,0),10)/1.5)*i_AmountAS3))*IF(ISNUMBER(Hole_F25),Hole_F25,1) ->  | I22: =IF(ISBLANK(INDEX(ay_OpExAOEM,MATCH(sys_KeyOperator&"Head",key_AOEM,0),14)), 10^(INDEX(ay_OpExAOEM,MATCH(sys_KeyOperator&"Head",key_AOEM,0),11) +(LOG(i_AmountAS3)*INDEX(ay_OpExAOEM,MATCH(sys_KeyOperator&"Head",key_AOEM,0),12)) +INDEX(ay_OpExAOEM,MATCH(sys_KeyOperator&"Head",key_AOEM,0),13)+ d_head95ProtectionFactor),MAX(INDEX(ay_OpExAOEM,MATCH(sys_KeyOperator&"Head",key_AOEM,0),14),(INDEX(ay_OpExAOEM,MATCH(sys_KeyOperator&"Head",key_AOEM,0),14) /1.5)*i_AmountAS3))*IF(ISNUMBER(Hole_F25),Hole_F25,1) ->  | J22: =IF(ISBLANK(INDEX(ay_OpExAOEM,MATCH(sys_KeyOperator&"Head",key_AOEM,0),10)),10^(INDEX(ay_OpExAOEM,MATCH(sys_KeyOperator&"Head",key_AOEM,0),7)+(LOG(i_AmountAS4)*INDEX(ay_OpExAOEM,MATCH(sys_KeyOperator&"Head",key_AOEM,0),8))+INDEX(ay_OpExAOEM,MATCH(sys_KeyOperator&"Head",key_AOEM,0),9) + d_head75ProtectionFactor ),MAX(INDEX(ay_OpExAOEM,MATCH(sys_KeyOperator&"Head",key_AOEM,0),10),(INDEX(ay_OpExAOEM,MATCH(sys_KeyOperator&"Head",key_AOEM,0),10)/1.5)*i_AmountAS4))*IF(ISNUMBER(Hole_F25),Hole_F25,1) ->  | K22: =IF(ISBLANK(INDEX(ay_OpExAOEM,MATCH(sys_KeyOperator&"Head",key_AOEM,0),14)), 10^(INDEX(ay_OpExAOEM,MATCH(sys_KeyOperator&"Head",key_AOEM,0),11) +(LOG(i_AmountAS4)*INDEX(ay_OpExAOEM,MATCH(sys_KeyOperator&"Head",key_AOEM,0),12)) +INDEX(ay_OpExAOEM,MATCH(sys_KeyOperator&"Head",key_AOEM,0),13)+ d_head95ProtectionFactor),MAX(INDEX(ay_OpExAOEM,MATCH(sys_KeyOperator&"Head",key_AOEM,0),14),(INDEX(ay_OpExAOEM,MATCH(sys_KeyOperator&"Head",key_AOEM,0),14) /1.5)*i_AmountAS4))*IF(ISNUMBER(Hole_F25),Hole_F25,1) ->  | L22: AOEM
C23: Inhalation | D23: =IF(ISBLANK(INDEX(ay_OpExAOEM,MATCH(sys_KeyOperator&"Inhalation",key_AOEM,0),10)),10^(INDEX(ay_OpExAOEM,MATCH(sys_KeyOperator&"Inhalation",key_AOEM,0),7)+(LOG(i_AmountAS1)*INDEX(ay_OpExAOEM,MATCH(sys_KeyOperator&"Inhalation",key_AOEM,0),8))+INDEX(ay_OpExAOEM,MATCH(sys_KeyOperator&"Inhalation",key_AOEM,0),9)),MAX(INDEX(ay_OpExAOEM,MATCH(sys_KeyOperator&"Inhalation",key_AOEM,0),10),(INDEX(ay_OpExAOEM,MATCH(sys_KeyOperator&"Inhalation",key_AOEM,0),10)/1.5)*i_AmountAS1)) ->  | E23: =IF(ISBLANK(INDEX(ay_OpExAOEM,MATCH(sys_KeyOperator&"Inhalation",key_AOEM,0),14)), 10^(INDEX(ay_OpExAOEM,MATCH(sys_KeyOperator&"Inhalation",key_AOEM,0),11) +(LOG(i_AmountAS1)*INDEX(ay_OpExAOEM,MATCH(sys_KeyOperator&"Inhalation",key_AOEM,0),12)) +INDEX(ay_OpExAOEM,MATCH(sys_KeyOperator&"Inhalation",key_AOEM,0),13)),MAX(INDEX(ay_OpExAOEM,MATCH(sys_KeyOperator&"Inhalation",key_AOEM,0),14),(INDEX(ay_OpExAOEM,MATCH(sys_KeyOperator&"Inhalation",key_AOEM,0),14) /1.5)*i_AmountAS1)) ->  | F23: =IF(ISBLANK(INDEX(ay_OpExAOEM,MATCH(sys_KeyOperator&"Inhalation",key_AOEM,0),10)),10^(INDEX(ay_OpExAOEM,MATCH(sys_KeyOperator&"Inhalation",key_AOEM,0),7)+(LOG(i_AmountAS2)*INDEX(ay_OpExAOEM,MATCH(sys_KeyOperator&"Inhalation",key_AOEM,0),8))+INDEX(ay_OpExAOEM,MATCH(sys_KeyOperator&"Inhalation",key_AOEM,0),9)),MAX(INDEX(ay_OpExAOEM,MATCH(sys_KeyOperator&"Inhalation",key_AOEM,0),10),(INDEX(ay_OpExAOEM,MATCH(sys_KeyOperator&"Inhalation",key_AOEM,0),10)/1.5)*i_AmountAS2)) ->  | G23: =IF(ISBLANK(INDEX(ay_OpExAOEM,MATCH(sys_KeyOperator&"Inhalation",key_AOEM,0),14)), 10^(INDEX(ay_OpExAOEM,MATCH(sys_KeyOperator&"Inhalation",key_AOEM,0),11) +(LOG(i_AmountAS2)*INDEX(ay_OpExAOEM,MATCH(sys_KeyOperator&"Inhalation",key_AOEM,0),12)) +INDEX(ay_OpExAOEM,MATCH(sys_KeyOperator&"Inhalation",key_AOEM,0),13)),MAX(INDEX(ay_OpExAOEM,MATCH(sys_KeyOperator&"Inhalation",key_AOEM,0),14),(INDEX(ay_OpExAOEM,MATCH(sys_KeyOperator&"Inhalation",key_AOEM,0),14) /1.5)*i_AmountAS2)) ->  | H23: =IF(ISBLANK(INDEX(ay_OpExAOEM,MATCH(sys_KeyOperator&"Inhalation",key_AOEM,0),10)),10^(INDEX(ay_OpExAOEM,MATCH(sys_KeyOperator&"Inhalation",key_AOEM,0),7)+(LOG(i_AmountAS3)*INDEX(ay_OpExAOEM,MATCH(sys_KeyOperator&"Inhalation",key_AOEM,0),8))+INDEX(ay_OpExAOEM,MATCH(sys_KeyOperator&"Inhalation",key_AOEM,0),9)),MAX(INDEX(ay_OpExAOEM,MATCH(sys_KeyOperator&"Inhalation",key_AOEM,0),10),(INDEX(ay_OpExAOEM,MATCH(sys_KeyOperator&"Inhalation",key_AOEM,0),10)/1.5)*i_AmountAS3)) ->  | I23: =IF(ISBLANK(INDEX(ay_OpExAOEM,MATCH(sys_KeyOperator&"Inhalation",key_AOEM,0),14)), 10^(INDEX(ay_OpExAOEM,MATCH(sys_KeyOperator&"Inhalation",key_AOEM,0),11) +(LOG(i_AmountAS3)*INDEX(ay_OpExAOEM,MATCH(sys_KeyOperator&"Inhalation",key_AOEM,0),12)) +INDEX(ay_OpExAOEM,MATCH(sys_KeyOperator&"Inhalation",key_AOEM,0),13)),MAX(INDEX(ay_OpExAOEM,MATCH(sys_KeyOperator&"Inhalation",key_AOEM,0),14),(INDEX(ay_OpExAOEM,MATCH(sys_KeyOperator&"Inhalation",key_AOEM,0),14) /1.5)*i_AmountAS3)) ->  | J23: =IF(ISBLANK(INDEX(ay_OpExAOEM,MATCH(sys_KeyOperator&"Inhalation",key_AOEM,0),10)),10^(INDEX(ay_OpExAOEM,MATCH(sys_KeyOperator&"Inhalation",key_AOEM,0),7)+(LOG(i_AmountAS4)*INDEX(ay_OpExAOEM,MATCH(sys_KeyOperator&"Inhalation",key_AOEM,0),8))+INDEX(ay_OpExAOEM,MATCH(sys_KeyOperator&"Inhalation",key_AOEM,0),9)),MAX(INDEX(ay_OpExAOEM,MATCH(sys_KeyOperator&"Inhalation",key_AOEM,0),10),(INDEX(ay_OpExAOEM,MATCH(sys_KeyOperator&"Inhalation",key_AOEM,0),10)/1.5)*i_AmountAS4)) ->  | K23: =IF(ISBLANK(INDEX(ay_OpExAOEM,MATCH(sys_KeyOperator&"Inhalation",key_AOEM,0),14)), 10^(INDEX(ay_OpExAOEM,MATCH(sys_KeyOperator&"Inhalation",key_AOEM,0),11) +(LOG(i_AmountAS4)*INDEX(ay_OpExAOEM,MATCH(sys_KeyOperator&"Inhalation",key_AOEM,0),12)) +INDEX(ay_OpExAOEM,MATCH(sys_KeyOperator&"Inhalation",key_AOEM,0),13)),MAX(INDEX(ay_OpExAOEM,MATCH(sys_KeyOperator&"Inhalation",key_AOEM,0),14),(INDEX(ay_OpExAOEM,MATCH(sys_KeyOperator&"Inhalation",key_AOEM,0),14) /1.5)*i_AmountAS4)) ->  | L23: AOEM
C24: Protective Equipment | D24: Select for inclusion | L24: Penetration factor | M24: Inhalation Protection factor
C25: Gloves | D25: ='Operator Spray'!D25 -> No | L25: =IF(D25="Yes","Incl. in AOEM model","") -> 
C26: Clothing | D26: ='Operator Spray'!D26 -> Work wear - arms, body and legs covered | L26: Incl. in AOEM model
C27: Head and respiratory PPE | D27: ='Operator Spray'!D27 -> None | L27: =IF(AND(i_AppEquip="Manual-Hand held",D27="Hood and visor"),"Incl. in AOEM model",INDEX(ay_MixPPEHead,MATCH(D27,key_MixPPEHead,0),2)) -> 1 | M27: =IF(OR(D27="Hood and visor",D27="Hood"),1,INDEX(ay_MixRPE,MATCH(D27,key_MixRPE,0),2)) -> 1
C28: Water soluble bag | D28: ='Operator Spray'!D28 -> No | L28: =IF(AND(D28="Yes"),0.1,1) -> 1
B29: Application | D29: =i_SubstName1 -> 0 | F29: =i_SubstName2 -> 0 | H29: =i_SubstName3 -> 0 | J29: =i_SubstName4 -> 0
C30: Exposure values | D30: µg exposure/day applied | F30: µg exposure/day applied | H30: µg exposure/day applied | J30: µg exposure/day applied | L30: Reference | M30: Comment
D31: 75th percentile | E31: 95th percentile | F31: 75th percentile | G31: 95th percentile | H31: 75th percentile | I31: 95th percentile | J31: 75th percentile | K31: 95th percentile
C32: Hands | D32: =IF(ISBLANK(INDEX(ay_OpExAOEM,MATCH(sys_KeyOperator&"Hands",key_AOEM,0),18)),10^(INDEX(ay_OpExAOEM,MATCH(sys_KeyOperator&"Hands",key_AOEM,0),15)+(LOG(0.9*i_AmountAS1)*INDEX(ay_OpExAOEM,MATCH(sys_KeyOperator&"Hands",key_AOEM,0),16))+ IF(AND(i_AppMeth="Upward spraying",LEFT(i_AppEquip,15)="Vehicle-mounted",d_AppPfCaBfR = "Yes"),0,IF(AND(i_Season = "late (dense foliage)",i_AppMeth="Upward spraying",OR(i_AppEquip="Manual-Hand held",i_AppEquip="Manual-Knapsack")),0,INDEX(ay_OpExAOEM,MATCH(sys_KeyOperator&"Hands",key_AOEM,0),17))) ),MAX(INDEX(ay_OpExAOEM,MATCH(sys_KeyOperator&"Hands",key_AOEM,0),18),(INDEX(ay_OpExAOEM,MATCH(sys_KeyOperator&"Hands",key_AOEM,0),18)/d_PctExtrapolation)*0.9*i_AmountAS1)) ->  | E32: =IF(ISBLANK(INDEX(ay_OpExAOEM,MATCH(sys_KeyOperator&"Hands",key_AOEM,0),22)),10^(INDEX(ay_OpExAOEM,MATCH(sys_KeyOperator&"Hands",key_AOEM,0),19)+(LOG(0.9*i_AmountAS1)*INDEX(ay_OpExAOEM,MATCH(sys_KeyOperator&"Hands",key_AOEM,0),20))+ IF(AND(i_AppMeth="Upward spraying",LEFT(i_AppEquip,15)="Vehicle-mounted",d_AppPfCaBfR = "Yes"),0,IF(AND(i_Season = "late (dense foliage)",i_AppMeth="Upward spraying",OR(i_AppEquip="Manual-Hand held",i_AppEquip="Manual-Knapsack")),0,INDEX(ay_OpExAOEM,MATCH(sys_KeyOperator&"Hands",key_AOEM,0),21))) ),MAX(INDEX(ay_OpExAOEM,MATCH(sys_KeyOperator&"Hands",key_AOEM,0),22),(INDEX(ay_OpExAOEM,MATCH(sys_KeyOperator&"Hands",key_AOEM,0),22)/d_PctExtrapolation)*0.9*i_AmountAS1)) ->  | F32: =IF(ISBLANK(INDEX(ay_OpExAOEM,MATCH(sys_KeyOperator&"Hands",key_AOEM,0),18)),10^(INDEX(ay_OpExAOEM,MATCH(sys_KeyOperator&"Hands",key_AOEM,0),15)+(LOG(0.9*i_AmountAS2)*INDEX(ay_OpExAOEM,MATCH(sys_KeyOperator&"Hands",key_AOEM,0),16))+ IF(AND(i_AppMeth="Upward spraying",LEFT(i_AppEquip,15)="Vehicle-mounted",d_AppPfCaBfR = "Yes"),0,IF(AND(i_Season = "late (dense foliage)",i_AppMeth="Upward spraying",OR(i_AppEquip="Manual-Hand held",i_AppEquip="Manual-Knapsack")),0,INDEX(ay_OpExAOEM,MATCH(sys_KeyOperator&"Hands",key_AOEM,0),17))) ),MAX(INDEX(ay_OpExAOEM,MATCH(sys_KeyOperator&"Hands",key_AOEM,0),18),(INDEX(ay_OpExAOEM,MATCH(sys_KeyOperator&"Hands",key_AOEM,0),18)/d_PctExtrapolation)*0.9*i_AmountAS2)) ->  | G32: =IF(ISBLANK(INDEX(ay_OpExAOEM,MATCH(sys_KeyOperator&"Hands",key_AOEM,0),22)),10^(INDEX(ay_OpExAOEM,MATCH(sys_KeyOperator&"Hands",key_AOEM,0),19)+(LOG(0.9*i_AmountAS2)*INDEX(ay_OpExAOEM,MATCH(sys_KeyOperator&"Hands",key_AOEM,0),20))+ IF(AND(i_AppMeth="Upward spraying",LEFT(i_AppEquip,15)="Vehicle-mounted",d_AppPfCaBfR = "Yes"),0,IF(AND(i_Season = "late (dense foliage)",i_AppMeth="Upward spraying",OR(i_AppEquip="Manual-Hand held",i_AppEquip="Manual-Knapsack")),0,INDEX(ay_OpExAOEM,MATCH(sys_KeyOperator&"Hands",key_AOEM,0),21))) ),MAX(INDEX(ay_OpExAOEM,MATCH(sys_KeyOperator&"Hands",key_AOEM,0),22),(INDEX(ay_OpExAOEM,MATCH(sys_KeyOperator&"Hands",key_AOEM,0),22)/d_PctExtrapolation)*0.9*i_AmountAS2)) ->  | H32: =IF(ISBLANK(INDEX(ay_OpExAOEM,MATCH(sys_KeyOperator&"Hands",key_AOEM,0),18)),10^(INDEX(ay_OpExAOEM,MATCH(sys_KeyOperator&"Hands",key_AOEM,0),15)+(LOG(0.9*i_AmountAS3)*INDEX(ay_OpExAOEM,MATCH(sys_KeyOperator&"Hands",key_AOEM,0),16))+ IF(AND(i_AppMeth="Upward spraying",LEFT(i_AppEquip,15)="Vehicle-mounted",d_AppPfCaBfR = "Yes"),0,IF(AND(i_Season = "late (dense foliage)",i_AppMeth="Upward spraying",OR(i_AppEquip="Manual-Hand held",i_AppEquip="Manual-Knapsack")),0,INDEX(ay_OpExAOEM,MATCH(sys_KeyOperator&"Hands",key_AOEM,0),17))) ),MAX(INDEX(ay_OpExAOEM,MATCH(sys_KeyOperator&"Hands",key_AOEM,0),18),(INDEX(ay_OpExAOEM,MATCH(sys_KeyOperator&"Hands",key_AOEM,0),18)/d_PctExtrapolation)*0.9*i_AmountAS3)) ->  | I32: =IF(ISBLANK(INDEX(ay_OpExAOEM,MATCH(sys_KeyOperator&"Hands",key_AOEM,0),22)),10^(INDEX(ay_OpExAOEM,MATCH(sys_KeyOperator&"Hands",key_AOEM,0),19)+(LOG(0.9*i_AmountAS3)*INDEX(ay_OpExAOEM,MATCH(sys_KeyOperator&"Hands",key_AOEM,0),20))+ IF(AND(i_AppMeth="Upward spraying",LEFT(i_AppEquip,15)="Vehicle-mounted",d_AppPfCaBfR = "Yes"),0,IF(AND(i_Season = "late (dense foliage)",i_AppMeth="Upward spraying",OR(i_AppEquip="Manual-Hand held",i_AppEquip="Manual-Knapsack")),0,INDEX(ay_OpExAOEM,MATCH(sys_KeyOperator&"Hands",key_AOEM,0),21))) ),MAX(INDEX(ay_OpExAOEM,MATCH(sys_KeyOperator&"Hands",key_AOEM,0),22),(INDEX(ay_OpExAOEM,MATCH(sys_KeyOperator&"Hands",key_AOEM,0),22)/d_PctExtrapolation)*0.9*i_AmountAS3)) ->  | J32: =IF(ISBLANK(INDEX(ay_OpExAOEM,MATCH(sys_KeyOperator&"Hands",key_AOEM,0),18)),10^(INDEX(ay_OpExAOEM,MATCH(sys_KeyOperator&"Hands",key_AOEM,0),15)+(LOG(0.9*i_AmountAS4)*INDEX(ay_OpExAOEM,MATCH(sys_KeyOperator&"Hands",key_AOEM,0),16))+ IF(AND(i_AppMeth="Upward spraying",LEFT(i_AppEquip,15)="Vehicle-mounted",d_AppPfCaBfR = "Yes"),0,IF(AND(i_Season = "late (dense foliage)",i_AppMeth="Upward spraying",OR(i_AppEquip="Manual-Hand held",i_AppEquip="Manual-Knapsack")),0,INDEX(ay_OpExAOEM,MATCH(sys_KeyOperator&"Hands",key_AOEM,0),17))) ),MAX(INDEX(ay_OpExAOEM,MATCH(sys_KeyOperator&"Hands",key_AOEM,0),18),(INDEX(ay_OpExAOEM,MATCH(sys_KeyOperator&"Hands",key_AOEM,0),18)/d_PctExtrapolation)*0.9*i_AmountAS4)) ->  | K32: =IF(ISBLANK(INDEX(ay_OpExAOEM,MATCH(sys_KeyOperator&"Hands",key_AOEM,0),22)),10^(INDEX(ay_OpExAOEM,MATCH(sys_KeyOperator&"Hands",key_AOEM,0),19)+(LOG(0.9*i_AmountAS4)*INDEX(ay_OpExAOEM,MATCH(sys_KeyOperator&"Hands",key_AOEM,0),20))+ IF(AND(i_AppMeth="Upward spraying",LEFT(i_AppEquip,15)="Vehicle-mounted",d_AppPfCaBfR = "Yes"),0,IF(AND(i_Season = "late (dense foliage)",i_AppMeth="Upward spraying",OR(i_AppEquip="Manual-Hand held",i_AppEquip="Manual-Knapsack")),0,INDEX(ay_OpExAOEM,MATCH(sys_KeyOperator&"Hands",key_AOEM,0),21))) ),MAX(INDEX(ay_OpExAOEM,MATCH(sys_KeyOperator&"Hands",key_AOEM,0),22),(INDEX(ay_OpExAOEM,MATCH(sys_KeyOperator&"Hands",key_AOEM,0),22)/d_PctExtrapolation)*0.9*i_AmountAS4)) ->  | L32: AOEM | M32: =IF(AND(d_AreaTreated=10,i_AppMeth="Downward spraying"),IF(i_AppEquip="Vehicle-mounted-Drift Reduction","Small area equipment and drift reduction cannot be selected together - drift reduction has not been applied","This scenario assumes that small area equipment is used"),IF(i_AppMeth="Upward spraying", "No data available for a drift reduction scenario","") ) -> 
C33: Body | D33: =IF(ISBLANK(INDEX(ay_OpExAOEM,MATCH(sys_KeyOperator&"Body",key_AOEM,0),18)),10^(INDEX(ay_OpExAOEM,MATCH(sys_KeyOperator&"Body",key_AOEM,0),15)+(LOG(0.9*i_AmountAS1)*INDEX(ay_OpExAOEM,MATCH(sys_KeyOperator&"Body",key_AOEM,0),16))+ IF(AND(i_AppMeth="Upward spraying",LEFT(i_AppEquip,15)="Vehicle-mounted",d_AppPfCaBfR = "Yes"),0,IF(AND(i_Season = "late (dense foliage)",i_AppMeth="Upward spraying",OR(i_AppEquip="Manual-Hand held",i_AppEquip="Manual-Knapsack")),0,INDEX(ay_OpExAOEM,MATCH(sys_KeyOperator&"Body",key_AOEM,0),17))) ),MAX(INDEX(ay_OpExAOEM,MATCH(sys_KeyOperator&"Body",key_AOEM,0),18),(INDEX(ay_OpExAOEM,MATCH(sys_KeyOperator&"Body",key_AOEM,0),18)/d_PctExtrapolation)*0.9*i_AmountAS1)) ->  | E33: =IF(ISBLANK(INDEX(ay_OpExAOEM,MATCH(sys_KeyOperator&"Body",key_AOEM,0),22)),10^(INDEX(ay_OpExAOEM,MATCH(sys_KeyOperator&"Body",key_AOEM,0),19)+(LOG(0.9*i_AmountAS1)*INDEX(ay_OpExAOEM,MATCH(sys_KeyOperator&"Body",key_AOEM,0),20))+ IF(AND(i_AppMeth="Upward spraying",LEFT(i_AppEquip,15)="Vehicle-mounted",d_AppPfCaBfR = "Yes"),0,IF(AND(i_Season = "late (dense foliage)",i_AppMeth="Upward spraying",OR(i_AppEquip="Manual-Hand held",i_AppEquip="Manual-Knapsack")),0,INDEX(ay_OpExAOEM,MATCH(sys_KeyOperator&"Body",key_AOEM,0),21))) ),MAX(INDEX(ay_OpExAOEM,MATCH(sys_KeyOperator&"Body",key_AOEM,0),22),(INDEX(ay_OpExAOEM,MATCH(sys_KeyOperator&"Body",key_AOEM,0),22)/d_PctExtrapolation)*0.9*i_AmountAS1)) ->  | F33: =IF(ISBLANK(INDEX(ay_OpExAOEM,MATCH(sys_KeyOperator&"Body",key_AOEM,0),18)),10^(INDEX(ay_OpExAOEM,MATCH(sys_KeyOperator&"Body",key_AOEM,0),15)+(LOG(0.9*i_AmountAS2)*INDEX(ay_OpExAOEM,MATCH(sys_KeyOperator&"Body",key_AOEM,0),16))+ IF(AND(i_AppMeth="Upward spraying",LEFT(i_AppEquip,15)="Vehicle-mounted",d_AppPfCaBfR = "Yes"),0,IF(AND(i_Season = "late (dense foliage)",i_AppMeth="Upward spraying",OR(i_AppEquip="Manual-Hand held",i_AppEquip="Manual-Knapsack")),0,INDEX(ay_OpExAOEM,MATCH(sys_KeyOperator&"Body",key_AOEM,0),17))) ),MAX(INDEX(ay_OpExAOEM,MATCH(sys_KeyOperator&"Body",key_AOEM,0),18),(INDEX(ay_OpExAOEM,MATCH(sys_KeyOperator&"Body",key_AOEM,0),18)/d_PctExtrapolation)*0.9*i_AmountAS2)) ->  | G33: =IF(ISBLANK(INDEX(ay_OpExAOEM,MATCH(sys_KeyOperator&"Body",key_AOEM,0),22)),10^(INDEX(ay_OpExAOEM,MATCH(sys_KeyOperator&"Body",key_AOEM,0),19)+(LOG(0.9*i_AmountAS2)*INDEX(ay_OpExAOEM,MATCH(sys_KeyOperator&"Body",key_AOEM,0),20))+ IF(AND(i_AppMeth="Upward spraying",LEFT(i_AppEquip,15)="Vehicle-mounted",d_AppPfCaBfR = "Yes"),0,IF(AND(i_Season = "late (dense foliage)",i_AppMeth="Upward spraying",OR(i_AppEquip="Manual-Hand held",i_AppEquip="Manual-Knapsack")),0,INDEX(ay_OpExAOEM,MATCH(sys_KeyOperator&"Body",key_AOEM,0),21))) ),MAX(INDEX(ay_OpExAOEM,MATCH(sys_KeyOperator&"Body",key_AOEM,0),22),(INDEX(ay_OpExAOEM,MATCH(sys_KeyOperator&"Body",key_AOEM,0),22)/d_PctExtrapolation)*0.9*i_AmountAS2)) ->  | H33: =IF(ISBLANK(INDEX(ay_OpExAOEM,MATCH(sys_KeyOperator&"Body",key_AOEM,0),18)),10^(INDEX(ay_OpExAOEM,MATCH(sys_KeyOperator&"Body",key_AOEM,0),15)+(LOG(0.9*i_AmountAS3)*INDEX(ay_OpExAOEM,MATCH(sys_KeyOperator&"Body",key_AOEM,0),16))+ IF(AND(i_AppMeth="Upward spraying",LEFT(i_AppEquip,15)="Vehicle-mounted",d_AppPfCaBfR = "Yes"),0,IF(AND(i_Season = "late (dense foliage)",i_AppMeth="Upward spraying",OR(i_AppEquip="Manual-Hand held",i_AppEquip="Manual-Knapsack")),0,INDEX(ay_OpExAOEM,MATCH(sys_KeyOperator&"Body",key_AOEM,0),17))) ),MAX(INDEX(ay_OpExAOEM,MATCH(sys_KeyOperator&"Body",key_AOEM,0),18),(INDEX(ay_OpExAOEM,MATCH(sys_KeyOperator&"Body",key_AOEM,0),18)/d_PctExtrapolation)*0.9*i_AmountAS3)) ->  | I33: =IF(ISBLANK(INDEX(ay_OpExAOEM,MATCH(sys_KeyOperator&"Body",key_AOEM,0),22)),10^(INDEX(ay_OpExAOEM,MATCH(sys_KeyOperator&"Body",key_AOEM,0),19)+(LOG(0.9*i_AmountAS3)*INDEX(ay_OpExAOEM,MATCH(sys_KeyOperator&"Body",key_AOEM,0),20))+ IF(AND(i_AppMeth="Upward spraying",LEFT(i_AppEquip,15)="Vehicle-mounted",d_AppPfCaBfR = "Yes"),0,IF(AND(i_Season = "late (dense foliage)",i_AppMeth="Upward spraying",OR(i_AppEquip="Manual-Hand held",i_AppEquip="Manual-Knapsack")),0,INDEX(ay_OpExAOEM,MATCH(sys_KeyOperator&"Body",key_AOEM,0),21))) ),MAX(INDEX(ay_OpExAOEM,MATCH(sys_KeyOperator&"Body",key_AOEM,0),22),(INDEX(ay_OpExAOEM,MATCH(sys_KeyOperator&"Body",key_AOEM,0),22)/d_PctExtrapolation)*0.9*i_AmountAS3)) ->  | J33: =IF(ISBLANK(INDEX(ay_OpExAOEM,MATCH(sys_KeyOperator&"Body",key_AOEM,0),18)),10^(INDEX(ay_OpExAOEM,MATCH(sys_KeyOperator&"Body",key_AOEM,0),15)+(LOG(0.9*i_AmountAS4)*INDEX(ay_OpExAOEM,MATCH(sys_KeyOperator&"Body",key_AOEM,0),16))+ IF(AND(i_AppMeth="Upward spraying",LEFT(i_AppEquip,15)="Vehicle-mounted",d_AppPfCaBfR = "Yes"),0,IF(AND(i_Season = "late (dense foliage)",i_AppMeth="Upward spraying",OR(i_AppEquip="Manual-Hand held",i_AppEquip="Manual-Knapsack")),0,INDEX(ay_OpExAOEM,MATCH(sys_KeyOperator&"Body",key_AOEM,0),17))) ),MAX(INDEX(ay_OpExAOEM,MATCH(sys_KeyOperator&"Body",key_AOEM,0),18),(INDEX(ay_OpExAOEM,MATCH(sys_KeyOperator&"Body",key_AOEM,0),18)/d_PctExtrapolation)*0.9*i_AmountAS4)) ->  | K33: =IF(ISBLANK(INDEX(ay_OpExAOEM,MATCH(sys_KeyOperator&"Body",key_AOEM,0),22)),10^(INDEX(ay_OpExAOEM,MATCH(sys_KeyOperator&"Body",key_AOEM,0),19)+(LOG(0.9*i_AmountAS4)*INDEX(ay_OpExAOEM,MATCH(sys_KeyOperator&"Body",key_AOEM,0),20))+ IF(AND(i_AppMeth="Upward spraying",LEFT(i_AppEquip,15)="Vehicle-mounted",d_AppPfCaBfR = "Yes"),0,IF(AND(i_Season = "late (dense foliage)",i_AppMeth="Upward spraying",OR(i_AppEquip="Manual-Hand held",i_AppEquip="Manual-Knapsack")),0,INDEX(ay_OpExAOEM,MATCH(sys_KeyOperator&"Body",key_AOEM,0),21))) ),MAX(INDEX(ay_OpExAOEM,MATCH(sys_KeyOperator&"Body",key_AOEM,0),22),(INDEX(ay_OpExAOEM,MATCH(sys_KeyOperator&"Body",key_AOEM,0),22)/d_PctExtrapolation)*0.9*i_AmountAS4)) ->  | L33: AOEM
C34: Head | D34: =IF(ISBLANK(INDEX(ay_OpExAOEM,MATCH(sys_KeyOperator&"Head",key_AOEM,0),18)),10^(INDEX(ay_OpExAOEM,MATCH(sys_KeyOperator&"Head",key_AOEM,0),15)+(LOG(0.9*i_AmountAS1)*INDEX(ay_OpExAOEM,MATCH(sys_KeyOperator&"Head",key_AOEM,0),16))+ IF(AND(i_AppMeth="Upward spraying",LEFT(i_AppEquip,15)="Vehicle-mounted",d_AppPfCaBfR = "Yes"),0,IF(AND(i_Season = "late (dense foliage)",i_AppMeth="Upward spraying",OR(i_AppEquip="Manual-Hand held",i_AppEquip="Manual-Knapsack")),0,INDEX(ay_OpExAOEM,MATCH(sys_KeyOperator&"Head",key_AOEM,0),17))) ),MAX(INDEX(ay_OpExAOEM,MATCH(sys_KeyOperator&"Head",key_AOEM,0),18),(INDEX(ay_OpExAOEM,MATCH(sys_KeyOperator&"Head",key_AOEM,0),18)/d_PctExtrapolation)*0.9*i_AmountAS1)) ->  | E34: =IF(ISBLANK(INDEX(ay_OpExAOEM,MATCH(sys_KeyOperator&"Head",key_AOEM,0),22)),10^(INDEX(ay_OpExAOEM,MATCH(sys_KeyOperator&"Head",key_AOEM,0),19)+(LOG(0.9*i_AmountAS1)*INDEX(ay_OpExAOEM,MATCH(sys_KeyOperator&"Head",key_AOEM,0),20))+ IF(AND(i_AppMeth="Upward spraying",LEFT(i_AppEquip,15)="Vehicle-mounted",d_AppPfCaBfR = "Yes"),0,IF(AND(i_Season = "late (dense foliage)",i_AppMeth="Upward spraying",OR(i_AppEquip="Manual-Hand held",i_AppEquip="Manual-Knapsack")),0,INDEX(ay_OpExAOEM,MATCH(sys_KeyOperator&"Head",key_AOEM,0),21))) ),MAX(INDEX(ay_OpExAOEM,MATCH(sys_KeyOperator&"Head",key_AOEM,0),22),(INDEX(ay_OpExAOEM,MATCH(sys_KeyOperator&"Head",key_AOEM,0),22)/d_PctExtrapolation)*0.9*i_AmountAS1)) ->  | F34: =IF(ISBLANK(INDEX(ay_OpExAOEM,MATCH(sys_KeyOperator&"Head",key_AOEM,0),18)),10^(INDEX(ay_OpExAOEM,MATCH(sys_KeyOperator&"Head",key_AOEM,0),15)+(LOG(0.9*i_AmountAS2)*INDEX(ay_OpExAOEM,MATCH(sys_KeyOperator&"Head",key_AOEM,0),16))+ IF(AND(i_AppMeth="Upward spraying",LEFT(i_AppEquip,15)="Vehicle-mounted",d_AppPfCaBfR = "Yes"),0,IF(AND(i_Season = "late (dense foliage)",i_AppMeth="Upward spraying",OR(i_AppEquip="Manual-Hand held",i_AppEquip="Manual-Knapsack")),0,INDEX(ay_OpExAOEM,MATCH(sys_KeyOperator&"Head",key_AOEM,0),17))) ),MAX(INDEX(ay_OpExAOEM,MATCH(sys_KeyOperator&"Head",key_AOEM,0),18),(INDEX(ay_OpExAOEM,MATCH(sys_KeyOperator&"Head",key_AOEM,0),18)/d_PctExtrapolation)*0.9*i_AmountAS2)) ->  | G34: =IF(ISBLANK(INDEX(ay_OpExAOEM,MATCH(sys_KeyOperator&"Head",key_AOEM,0),22)),10^(INDEX(ay_OpExAOEM,MATCH(sys_KeyOperator&"Head",key_AOEM,0),19)+(LOG(0.9*i_AmountAS2)*INDEX(ay_OpExAOEM,MATCH(sys_KeyOperator&"Head",key_AOEM,0),20))+ IF(AND(i_AppMeth="Upward spraying",LEFT(i_AppEquip,15)="Vehicle-mounted",d_AppPfCaBfR = "Yes"),0,IF(AND(i_Season = "late (dense foliage)",i_AppMeth="Upward spraying",OR(i_AppEquip="Manual-Hand held",i_AppEquip="Manual-Knapsack")),0,INDEX(ay_OpExAOEM,MATCH(sys_KeyOperator&"Head",key_AOEM,0),21))) ),MAX(INDEX(ay_OpExAOEM,MATCH(sys_KeyOperator&"Head",key_AOEM,0),22),(INDEX(ay_OpExAOEM,MATCH(sys_KeyOperator&"Head",key_AOEM,0),22)/d_PctExtrapolation)*0.9*i_AmountAS2)) ->  | H34: =IF(ISBLANK(INDEX(ay_OpExAOEM,MATCH(sys_KeyOperator&"Head",key_AOEM,0),18)),10^(INDEX(ay_OpExAOEM,MATCH(sys_KeyOperator&"Head",key_AOEM,0),15)+(LOG(0.9*i_AmountAS3)*INDEX(ay_OpExAOEM,MATCH(sys_KeyOperator&"Head",key_AOEM,0),16))+ IF(AND(i_AppMeth="Upward spraying",LEFT(i_AppEquip,15)="Vehicle-mounted",d_AppPfCaBfR = "Yes"),0,IF(AND(i_Season = "late (dense foliage)",i_AppMeth="Upward spraying",OR(i_AppEquip="Manual-Hand held",i_AppEquip="Manual-Knapsack")),0,INDEX(ay_OpExAOEM,MATCH(sys_KeyOperator&"Head",key_AOEM,0),17))) ),MAX(INDEX(ay_OpExAOEM,MATCH(sys_KeyOperator&"Head",key_AOEM,0),18),(INDEX(ay_OpExAOEM,MATCH(sys_KeyOperator&"Head",key_AOEM,0),18)/d_PctExtrapolation)*0.9*i_AmountAS3)) ->  | I34: =IF(ISBLANK(INDEX(ay_OpExAOEM,MATCH(sys_KeyOperator&"Head",key_AOEM,0),22)),10^(INDEX(ay_OpExAOEM,MATCH(sys_KeyOperator&"Head",key_AOEM,0),19)+(LOG(0.9*i_AmountAS3)*INDEX(ay_OpExAOEM,MATCH(sys_KeyOperator&"Head",key_AOEM,0),20))+ IF(AND(i_AppMeth="Upward spraying",LEFT(i_AppEquip,15)="Vehicle-mounted",d_AppPfCaBfR = "Yes"),0,IF(AND(i_Season = "late (dense foliage)",i_AppMeth="Upward spraying",OR(i_AppEquip="Manual-Hand held",i_AppEquip="Manual-Knapsack")),0,INDEX(ay_OpExAOEM,MATCH(sys_KeyOperator&"Head",key_AOEM,0),21))) ),MAX(INDEX(ay_OpExAOEM,MATCH(sys_KeyOperator&"Head",key_AOEM,0),22),(INDEX(ay_OpExAOEM,MATCH(sys_KeyOperator&"Head",key_AOEM,0),22)/d_PctExtrapolation)*0.9*i_AmountAS3)) ->  | J34: =IF(ISBLANK(INDEX(ay_OpExAOEM,MATCH(sys_KeyOperator&"Head",key_AOEM,0),18)),10^(INDEX(ay_OpExAOEM,MATCH(sys_KeyOperator&"Head",key_AOEM,0),15)+(LOG(0.9*i_AmountAS4)*INDEX(ay_OpExAOEM,MATCH(sys_KeyOperator&"Head",key_AOEM,0),16))+ IF(AND(i_AppMeth="Upward spraying",LEFT(i_AppEquip,15)="Vehicle-mounted",d_AppPfCaBfR = "Yes"),0,IF(AND(i_Season = "late (dense foliage)",i_AppMeth="Upward spraying",OR(i_AppEquip="Manual-Hand held",i_AppEquip="Manual-Knapsack")),0,INDEX(ay_OpExAOEM,MATCH(sys_KeyOperator&"Head",key_AOEM,0),17))) ),MAX(INDEX(ay_OpExAOEM,MATCH(sys_KeyOperator&"Head",key_AOEM,0),18),(INDEX(ay_OpExAOEM,MATCH(sys_KeyOperator&"Head",key_AOEM,0),18)/d_PctExtrapolation)*0.9*i_AmountAS4)) ->  | K34: =IF(ISBLANK(INDEX(ay_OpExAOEM,MATCH(sys_KeyOperator&"Head",key_AOEM,0),22)),10^(INDEX(ay_OpExAOEM,MATCH(sys_KeyOperator&"Head",key_AOEM,0),19)+(LOG(0.9*i_AmountAS4)*INDEX(ay_OpExAOEM,MATCH(sys_KeyOperator&"Head",key_AOEM,0),20))+ IF(AND(i_AppMeth="Upward spraying",LEFT(i_AppEquip,15)="Vehicle-mounted",d_AppPfCaBfR = "Yes"),0,IF(AND(i_Season = "late (dense foliage)",i_AppMeth="Upward spraying",OR(i_AppEquip="Manual-Hand held",i_AppEquip="Manual-Knapsack")),0,INDEX(ay_OpExAOEM,MATCH(sys_KeyOperator&"Head",key_AOEM,0),21))) ),MAX(INDEX(ay_OpExAOEM,MATCH(sys_KeyOperator&"Head",key_AOEM,0),22),(INDEX(ay_OpExAOEM,MATCH(sys_KeyOperator&"Head",key_AOEM,0),22)/d_PctExtrapolation)*0.9*i_AmountAS4)) ->  | L34: AOEM
C35: Protected hands (gloves) | D35: =IF(ISBLANK(INDEX(ay_OpExAOEM,MATCH(sys_KeyOperator&"Protected Hands",key_AOEM,0),18)),10^(INDEX(ay_OpExAOEM,MATCH(sys_KeyOperator&"Protected Hands",key_AOEM,0),15)+(LOG(0.9*i_AmountAS1)*INDEX(ay_OpExAOEM,MATCH(sys_KeyOperator&"Protected Hands",key_AOEM,0),16))+ IF(AND(i_AppMeth="Upward spraying",LEFT(i_AppEquip,15)="Vehicle-mounted",d_AppPfCaBfR = "Yes"),0,IF(AND(i_Season = "late (dense foliage)",i_AppMeth="Upward spraying",OR(i_AppEquip="Manual-Hand held",i_AppEquip="Manual-Knapsack")),0,INDEX(ay_OpExAOEM,MATCH(sys_KeyOperator&"Protected Hands",key_AOEM,0),17))) ),MAX(INDEX(ay_OpExAOEM,MATCH(sys_KeyOperator&"Protected Hands",key_AOEM,0),18),(INDEX(ay_OpExAOEM,MATCH(sys_KeyOperator&"Protected Hands",key_AOEM,0),18)/d_PctExtrapolation)*0.9*i_AmountAS1)) ->  | E35: =IF(ISBLANK(INDEX(ay_OpExAOEM,MATCH(sys_KeyOperator&"Protected Hands",key_AOEM,0),22)),10^(INDEX(ay_OpExAOEM,MATCH(sys_KeyOperator&"Protected Hands",key_AOEM,0),19)+(LOG(0.9*i_AmountAS1)*INDEX(ay_OpExAOEM,MATCH(sys_KeyOperator&"Protected Hands",key_AOEM,0),20))+ IF(AND(i_AppMeth="Upward spraying",LEFT(i_AppEquip,15)="Vehicle-mounted",d_AppPfCaBfR = "Yes"),0,IF(AND(i_Season = "late (dense foliage)",i_AppMeth="Upward spraying",OR(i_AppEquip="Manual-Hand held",i_AppEquip="Manual-Knapsack")),0,INDEX(ay_OpExAOEM,MATCH(sys_KeyOperator&"Protected Hands",key_AOEM,0),21))) ),MAX(INDEX(ay_OpExAOEM,MATCH(sys_KeyOperator&"Protected Hands",key_AOEM,0),22),(INDEX(ay_OpExAOEM,MATCH(sys_KeyOperator&"Protected Hands",key_AOEM,0),22)/d_PctExtrapolation)*0.9*i_AmountAS1)) ->  | F35: =IF(ISBLANK(INDEX(ay_OpExAOEM,MATCH(sys_KeyOperator&"Protected Hands",key_AOEM,0),18)),10^(INDEX(ay_OpExAOEM,MATCH(sys_KeyOperator&"Protected Hands",key_AOEM,0),15)+(LOG(0.9*i_AmountAS2)*INDEX(ay_OpExAOEM,MATCH(sys_KeyOperator&"Protected Hands",key_AOEM,0),16))+ IF(AND(i_AppMeth="Upward spraying",LEFT(i_AppEquip,15)="Vehicle-mounted",d_AppPfCaBfR = "Yes"),0,IF(AND(i_Season = "late (dense foliage)",i_AppMeth="Upward spraying",OR(i_AppEquip="Manual-Hand held",i_AppEquip="Manual-Knapsack")),0,INDEX(ay_OpExAOEM,MATCH(sys_KeyOperator&"Protected Hands",key_AOEM,0),17))) ),MAX(INDEX(ay_OpExAOEM,MATCH(sys_KeyOperator&"Protected Hands",key_AOEM,0),18),(INDEX(ay_OpExAOEM,MATCH(sys_KeyOperator&"Protected Hands",key_AOEM,0),18)/d_PctExtrapolation)*0.9*i_AmountAS2)) ->  | G35: =IF(ISBLANK(INDEX(ay_OpExAOEM,MATCH(sys_KeyOperator&"Protected Hands",key_AOEM,0),22)),10^(INDEX(ay_OpExAOEM,MATCH(sys_KeyOperator&"Protected Hands",key_AOEM,0),19)+(LOG(0.9*i_AmountAS2)*INDEX(ay_OpExAOEM,MATCH(sys_KeyOperator&"Protected Hands",key_AOEM,0),20))+ IF(AND(i_AppMeth="Upward spraying",LEFT(i_AppEquip,15)="Vehicle-mounted",d_AppPfCaBfR = "Yes"),0,IF(AND(i_Season = "late (dense foliage)",i_AppMeth="Upward spraying",OR(i_AppEquip="Manual-Hand held",i_AppEquip="Manual-Knapsack")),0,INDEX(ay_OpExAOEM,MATCH(sys_KeyOperator&"Protected Hands",key_AOEM,0),21))) ),MAX(INDEX(ay_OpExAOEM,MATCH(sys_KeyOperator&"Protected Hands",key_AOEM,0),22),(INDEX(ay_OpExAOEM,MATCH(sys_KeyOperator&"Protected Hands",key_AOEM,0),22)/d_PctExtrapolation)*0.9*i_AmountAS2)) ->  | H35: =IF(ISBLANK(INDEX(ay_OpExAOEM,MATCH(sys_KeyOperator&"Protected Hands",key_AOEM,0),18)),10^(INDEX(ay_OpExAOEM,MATCH(sys_KeyOperator&"Protected Hands",key_AOEM,0),15)+(LOG(0.9*i_AmountAS3)*INDEX(ay_OpExAOEM,MATCH(sys_KeyOperator&"Protected Hands",key_AOEM,0),16))+ IF(AND(i_AppMeth="Upward spraying",LEFT(i_AppEquip,15)="Vehicle-mounted",d_AppPfCaBfR = "Yes"),0,IF(AND(i_Season = "late (dense foliage)",i_AppMeth="Upward spraying",OR(i_AppEquip="Manual-Hand held",i_AppEquip="Manual-Knapsack")),0,INDEX(ay_OpExAOEM,MATCH(sys_KeyOperator&"Protected Hands",key_AOEM,0),17))) ),MAX(INDEX(ay_OpExAOEM,MATCH(sys_KeyOperator&"Protected Hands",key_AOEM,0),18),(INDEX(ay_OpExAOEM,MATCH(sys_KeyOperator&"Protected Hands",key_AOEM,0),18)/d_PctExtrapolation)*0.9*i_AmountAS3)) ->  | I35: =IF(ISBLANK(INDEX(ay_OpExAOEM,MATCH(sys_KeyOperator&"Protected Hands",key_AOEM,0),22)),10^(INDEX(ay_OpExAOEM,MATCH(sys_KeyOperator&"Protected Hands",key_AOEM,0),19)+(LOG(0.9*i_AmountAS3)*INDEX(ay_OpExAOEM,MATCH(sys_KeyOperator&"Protected Hands",key_AOEM,0),20))+ IF(AND(i_AppMeth="Upward spraying",LEFT(i_AppEquip,15)="Vehicle-mounted",d_AppPfCaBfR = "Yes"),0,IF(AND(i_Season = "late (dense foliage)",i_AppMeth="Upward spraying",OR(i_AppEquip="Manual-Hand held",i_AppEquip="Manual-Knapsack")),0,INDEX(ay_OpExAOEM,MATCH(sys_KeyOperator&"Protected Hands",key_AOEM,0),21))) ),MAX(INDEX(ay_OpExAOEM,MATCH(sys_KeyOperator&"Protected Hands",key_AOEM,0),22),(INDEX(ay_OpExAOEM,MATCH(sys_KeyOperator&"Protected Hands",key_AOEM,0),22)/d_PctExtrapolation)*0.9*i_AmountAS3)) ->  | J35: =IF(ISBLANK(INDEX(ay_OpExAOEM,MATCH(sys_KeyOperator&"Protected Hands",key_AOEM,0),18)),10^(INDEX(ay_OpExAOEM,MATCH(sys_KeyOperator&"Protected Hands",key_AOEM,0),15)+(LOG(0.9*i_AmountAS4)*INDEX(ay_OpExAOEM,MATCH(sys_KeyOperator&"Protected Hands",key_AOEM,0),16))+ IF(AND(i_AppMeth="Upward spraying",LEFT(i_AppEquip,15)="Vehicle-mounted",d_AppPfCaBfR = "Yes"),0,IF(AND(i_Season = "late (dense foliage)",i_AppMeth="Upward spraying",OR(i_AppEquip="Manual-Hand held",i_AppEquip="Manual-Knapsack")),0,INDEX(ay_OpExAOEM,MATCH(sys_KeyOperator&"Protected Hands",key_AOEM,0),17))) ),MAX(INDEX(ay_OpExAOEM,MATCH(sys_KeyOperator&"Protected Hands",key_AOEM,0),18),(INDEX(ay_OpExAOEM,MATCH(sys_KeyOperator&"Protected Hands",key_AOEM,0),18)/d_PctExtrapolation)*0.9*i_AmountAS4)) ->  | K35: =IF(ISBLANK(INDEX(ay_OpExAOEM,MATCH(sys_KeyOperator&"Protected Hands",key_AOEM,0),22)),10^(INDEX(ay_OpExAOEM,MATCH(sys_KeyOperator&"Protected Hands",key_AOEM,0),19)+(LOG(0.9*i_AmountAS4)*INDEX(ay_OpExAOEM,MATCH(sys_KeyOperator&"Protected Hands",key_AOEM,0),20))+ IF(AND(i_AppMeth="Upward spraying",LEFT(i_AppEquip,15)="Vehicle-mounted",d_AppPfCaBfR = "Yes"),0,IF(AND(i_Season = "late (dense foliage)",i_AppMeth="Upward spraying",OR(i_AppEquip="Manual-Hand held",i_AppEquip="Manual-Knapsack")),0,INDEX(ay_OpExAOEM,MATCH(sys_KeyOperator&"Protected Hands",key_AOEM,0),21))) ),MAX(INDEX(ay_OpExAOEM,MATCH(sys_KeyOperator&"Protected Hands",key_AOEM,0),22),(INDEX(ay_OpExAOEM,MATCH(sys_KeyOperator&"Protected Hands",key_AOEM,0),22)/d_PctExtrapolation)*0.9*i_AmountAS4)) ->  | L35: AOEM
C36: Protected body (workwear or protective garment and sturdy footwear) | D36: =IF(ISBLANK(INDEX(ay_OpExAOEM,MATCH(sys_KeyOperator&"Protected Body",key_AOEM,0),18)),10^(INDEX(ay_OpExAOEM,MATCH(sys_KeyOperator&"Protected Body",key_AOEM,0),15)+(LOG(0.9*i_AmountAS1)*INDEX(ay_OpExAOEM,MATCH(sys_KeyOperator&"Protected Body",key_AOEM,0),16))+ IF(AND(i_AppMeth="Upward spraying",LEFT(i_AppEquip,15)="Vehicle-mounted",d_AppPfCaBfR = "Yes"),0,IF(AND(i_Season = "late (dense foliage)",i_AppMeth="Upward spraying",OR(i_AppEquip="Manual-Hand held",i_AppEquip="Manual-Knapsack")),0,INDEX(ay_OpExAOEM,MATCH(sys_KeyOperator&"Protected Body",key_AOEM,0),17))) ),MAX(INDEX(ay_OpExAOEM,MATCH(sys_KeyOperator&"Protected Body",key_AOEM,0),18),(INDEX(ay_OpExAOEM,MATCH(sys_KeyOperator&"Protected Body",key_AOEM,0),18)/d_PctExtrapolation)*0.9*i_AmountAS1)) ->  | E36: =IF(ISBLANK(INDEX(ay_OpExAOEM,MATCH(sys_KeyOperator&"Protected Body",key_AOEM,0),22)),10^(INDEX(ay_OpExAOEM,MATCH(sys_KeyOperator&"Protected Body",key_AOEM,0),19)++(LOG(0.9*i_AmountAS1)*INDEX(ay_OpExAOEM,MATCH(sys_KeyOperator&"Protected Body",key_AOEM,0),20))+ IF(AND(i_AppMeth="Upward spraying",LEFT(i_AppEquip,15)="Vehicle-mounted",d_AppPfCaBfR = "Yes"),0,IF(AND(i_Season = "late (dense foliage)",i_AppMeth="Upward spraying",OR(i_AppEquip="Manual-Hand held",i_AppEquip="Manual-Knapsack")),0,INDEX(ay_OpExAOEM,MATCH(sys_KeyOperator&"Protected Body",key_AOEM,0),21))) ),MAX(INDEX(ay_OpExAOEM,MATCH(sys_KeyOperator&"Protected Body",key_AOEM,0),22),(INDEX(ay_OpExAOEM,MATCH(sys_KeyOperator&"Protected Body",key_AOEM,0),22)/d_PctExtrapolation)*0.9*i_AmountAS1)) ->  | F36: =IF(ISBLANK(INDEX(ay_OpExAOEM,MATCH(sys_KeyOperator&"Protected Body",key_AOEM,0),18)),10^(INDEX(ay_OpExAOEM,MATCH(sys_KeyOperator&"Protected Body",key_AOEM,0),15)+(LOG(0.9*i_AmountAS2)*INDEX(ay_OpExAOEM,MATCH(sys_KeyOperator&"Protected Body",key_AOEM,0),16))+ IF(AND(i_AppMeth="Upward spraying",LEFT(i_AppEquip,15)="Vehicle-mounted",d_AppPfCaBfR = "Yes"),0,IF(AND(i_Season = "late (dense foliage)",i_AppMeth="Upward spraying",OR(i_AppEquip="Manual-Hand held",i_AppEquip="Manual-Knapsack")),0,INDEX(ay_OpExAOEM,MATCH(sys_KeyOperator&"Protected Body",key_AOEM,0),17))) ),MAX(INDEX(ay_OpExAOEM,MATCH(sys_KeyOperator&"Protected Body",key_AOEM,0),18),(INDEX(ay_OpExAOEM,MATCH(sys_KeyOperator&"Protected Body",key_AOEM,0),18)/d_PctExtrapolation)*0.9*i_AmountAS2)) ->  | G36: =IF(ISBLANK(INDEX(ay_OpExAOEM,MATCH(sys_KeyOperator&"Protected Body",key_AOEM,0),22)),10^(INDEX(ay_OpExAOEM,MATCH(sys_KeyOperator&"Protected Body",key_AOEM,0),19)+(LOG(0.9*i_AmountAS2)*INDEX(ay_OpExAOEM,MATCH(sys_KeyOperator&"Protected Body",key_AOEM,0),20))+ IF(AND(i_AppMeth="Upward spraying",LEFT(i_AppEquip,15)="Vehicle-mounted",d_AppPfCaBfR = "Yes"),0,IF(AND(i_Season = "late (dense foliage)",i_AppMeth="Upward spraying",OR(i_AppEquip="Manual-Hand held",i_AppEquip="Manual-Knapsack")),0,INDEX(ay_OpExAOEM,MATCH(sys_KeyOperator&"Protected Body",key_AOEM,0),21))) ),MAX(INDEX(ay_OpExAOEM,MATCH(sys_KeyOperator&"Protected Body",key_AOEM,0),22),(INDEX(ay_OpExAOEM,MATCH(sys_KeyOperator&"Protected Body",key_AOEM,0),22)/d_PctExtrapolation)*0.9*i_AmountAS2)) ->  | H36: =IF(ISBLANK(INDEX(ay_OpExAOEM,MATCH(sys_KeyOperator&"Protected Body",key_AOEM,0),18)),10^(INDEX(ay_OpExAOEM,MATCH(sys_KeyOperator&"Protected Body",key_AOEM,0),15)+(LOG(0.9*i_AmountAS3)*INDEX(ay_OpExAOEM,MATCH(sys_KeyOperator&"Protected Body",key_AOEM,0),16))+ IF(AND(i_AppMeth="Upward spraying",LEFT(i_AppEquip,15)="Vehicle-mounted",d_AppPfCaBfR = "Yes"),0,IF(AND(i_Season = "late (dense foliage)",i_AppMeth="Upward spraying",OR(i_AppEquip="Manual-Hand held",i_AppEquip="Manual-Knapsack")),0,INDEX(ay_OpExAOEM,MATCH(sys_KeyOperator&"Protected Body",key_AOEM,0),17))) ),MAX(INDEX(ay_OpExAOEM,MATCH(sys_KeyOperator&"Protected Body",key_AOEM,0),18),(INDEX(ay_OpExAOEM,MATCH(sys_KeyOperator&"Protected Body",key_AOEM,0),18)/d_PctExtrapolation)*0.9*i_AmountAS3)) ->  | I36: =IF(ISBLANK(INDEX(ay_OpExAOEM,MATCH(sys_KeyOperator&"Protected Body",key_AOEM,0),22)),10^(INDEX(ay_OpExAOEM,MATCH(sys_KeyOperator&"Protected Body",key_AOEM,0),19)+(LOG(0.9*i_AmountAS3)*INDEX(ay_OpExAOEM,MATCH(sys_KeyOperator&"Protected Body",key_AOEM,0),20))+ IF(AND(i_AppMeth="Upward spraying",LEFT(i_AppEquip,15)="Vehicle-mounted",d_AppPfCaBfR = "Yes"),0,IF(AND(i_Season = "late (dense foliage)",i_AppMeth="Upward spraying",OR(i_AppEquip="Manual-Hand held",i_AppEquip="Manual-Knapsack")),0,INDEX(ay_OpExAOEM,MATCH(sys_KeyOperator&"Protected Body",key_AOEM,0),21))) ),MAX(INDEX(ay_OpExAOEM,MATCH(sys_KeyOperator&"Protected Body",key_AOEM,0),22),(INDEX(ay_OpExAOEM,MATCH(sys_KeyOperator&"Protected Body",key_AOEM,0),22)/d_PctExtrapolation)*0.9*i_AmountAS3)) ->  | J36: =IF(ISBLANK(INDEX(ay_OpExAOEM,MATCH(sys_KeyOperator&"Protected Body",key_AOEM,0),18)),10^(INDEX(ay_OpExAOEM,MATCH(sys_KeyOperator&"Protected Body",key_AOEM,0),15)+(LOG(0.9*i_AmountAS4)*INDEX(ay_OpExAOEM,MATCH(sys_KeyOperator&"Protected Body",key_AOEM,0),16))+ IF(AND(i_AppMeth="Upward spraying",LEFT(i_AppEquip,15)="Vehicle-mounted",d_AppPfCaBfR = "Yes"),0,IF(AND(i_Season = "late (dense foliage)",i_AppMeth="Upward spraying",OR(i_AppEquip="Manual-Hand held",i_AppEquip="Manual-Knapsack")),0,INDEX(ay_OpExAOEM,MATCH(sys_KeyOperator&"Protected Body",key_AOEM,0),17))) ),MAX(INDEX(ay_OpExAOEM,MATCH(sys_KeyOperator&"Protected Body",key_AOEM,0),18),(INDEX(ay_OpExAOEM,MATCH(sys_KeyOperator&"Protected Body",key_AOEM,0),18)/d_PctExtrapolation)*0.9*i_AmountAS4)) ->  | K36: =IF(ISBLANK(INDEX(ay_OpExAOEM,MATCH(sys_KeyOperator&"Protected Body",key_AOEM,0),22)),10^(INDEX(ay_OpExAOEM,MATCH(sys_KeyOperator&"Protected Body",key_AOEM,0),19)+(LOG(0.9*i_AmountAS4)*INDEX(ay_OpExAOEM,MATCH(sys_KeyOperator&"Protected Body",key_AOEM,0),20))+ IF(AND(i_AppMeth="Upward spraying",LEFT(i_AppEquip,15)="Vehicle-mounted",d_AppPfCaBfR = "Yes"),0,IF(AND(i_Season = "late (dense foliage)",i_AppMeth="Upward spraying",OR(i_AppEquip="Manual-Hand held",i_AppEquip="Manual-Knapsack")),0,INDEX(ay_OpExAOEM,MATCH(sys_KeyOperator&"Protected Body",key_AOEM,0),21))) ),MAX(INDEX(ay_OpExAOEM,MATCH(sys_KeyOperator&"Protected Body",key_AOEM,0),22),(INDEX(ay_OpExAOEM,MATCH(sys_KeyOperator&"Protected Body",key_AOEM,0),22)/d_PctExtrapolation)*0.9*i_AmountAS4)) ->  | L36: AOEM
C37: Inhalation | D37: =IF(ISBLANK(INDEX(ay_OpExAOEM,MATCH(sys_KeyOperator&"Inhalation",key_AOEM,0),18)),10^(INDEX(ay_OpExAOEM,MATCH(sys_KeyOperator&"Inhalation",key_AOEM,0),15)+(LOG(0.9*i_AmountAS1)*INDEX(ay_OpExAOEM,MATCH(sys_KeyOperator&"Inhalation",key_AOEM,0),16))+ IF(AND(i_AppMeth="Upward spraying",LEFT(i_AppEquip,15)="Vehicle-mounted",d_AppPfCaBfR = "Yes"),0,IF(AND(i_Season = "late (dense foliage)",i_AppMeth="Upward spraying",OR(i_AppEquip="Manual-Hand held",i_AppEquip="Manual-Knapsack")),0,INDEX(ay_OpExAOEM,MATCH(sys_KeyOperator&"Inhalation",key_AOEM,0),17))) ),MAX(INDEX(ay_OpExAOEM,MATCH(sys_KeyOperator&"Inhalation",key_AOEM,0),18),(INDEX(ay_OpExAOEM,MATCH(sys_KeyOperator&"Inhalation",key_AOEM,0),18)/d_PctExtrapolation)*0.9*i_AmountAS1)) ->  | E37: =IF(ISBLANK(INDEX(ay_OpExAOEM,MATCH(sys_KeyOperator&"Inhalation",key_AOEM,0),22)),10^(INDEX(ay_OpExAOEM,MATCH(sys_KeyOperator&"Inhalation",key_AOEM,0),19)+(LOG(0.9*i_AmountAS1)*INDEX(ay_OpExAOEM,MATCH(sys_KeyOperator&"Inhalation",key_AOEM,0),20))+ IF(AND(i_AppMeth="Upward spraying",LEFT(i_AppEquip,15)="Vehicle-mounted",d_AppPfCaBfR = "Yes"),0,IF(AND(i_Season = "late (dense foliage)",i_AppMeth="Upward spraying",OR(i_AppEquip="Manual-Hand held",i_AppEquip="Manual-Knapsack")),0,INDEX(ay_OpExAOEM,MATCH(sys_KeyOperator&"Inhalation",key_AOEM,0),21))) ),MAX(INDEX(ay_OpExAOEM,MATCH(sys_KeyOperator&"Inhalation",key_AOEM,0),22),(INDEX(ay_OpExAOEM,MATCH(sys_KeyOperator&"Inhalation",key_AOEM,0),22)/d_PctExtrapolation)*0.9*i_AmountAS1)) ->  | F37: =IF(ISBLANK(INDEX(ay_OpExAOEM,MATCH(sys_KeyOperator&"Inhalation",key_AOEM,0),18)),10^(INDEX(ay_OpExAOEM,MATCH(sys_KeyOperator&"Inhalation",key_AOEM,0),15)+(LOG(0.9*i_AmountAS2)*INDEX(ay_OpExAOEM,MATCH(sys_KeyOperator&"Inhalation",key_AOEM,0),16))+ IF(AND(i_AppMeth="Upward spraying",LEFT(i_AppEquip,15)="Vehicle-mounted",d_AppPfCaBfR = "Yes"),0,IF(AND(i_Season = "late (dense foliage)",i_AppMeth="Upward spraying",OR(i_AppEquip="Manual-Hand held",i_AppEquip="Manual-Knapsack")),0,INDEX(ay_OpExAOEM,MATCH(sys_KeyOperator&"Inhalation",key_AOEM,0),17))) ),MAX(INDEX(ay_OpExAOEM,MATCH(sys_KeyOperator&"Inhalation",key_AOEM,0),18),(INDEX(ay_OpExAOEM,MATCH(sys_KeyOperator&"Inhalation",key_AOEM,0),18)/d_PctExtrapolation)*0.9*i_AmountAS2)) ->  | G37: =IF(ISBLANK(INDEX(ay_OpExAOEM,MATCH(sys_KeyOperator&"Inhalation",key_AOEM,0),22)),10^(INDEX(ay_OpExAOEM,MATCH(sys_KeyOperator&"Inhalation",key_AOEM,0),19)+(LOG(0.9*i_AmountAS2)*INDEX(ay_OpExAOEM,MATCH(sys_KeyOperator&"Inhalation",key_AOEM,0),20))+ IF(AND(i_AppMeth="Upward spraying",LEFT(i_AppEquip,15)="Vehicle-mounted",d_AppPfCaBfR = "Yes"),0,IF(AND(i_Season = "late (dense foliage)",i_AppMeth="Upward spraying",OR(i_AppEquip="Manual-Hand held",i_AppEquip="Manual-Knapsack")),0,INDEX(ay_OpExAOEM,MATCH(sys_KeyOperator&"Inhalation",key_AOEM,0),21))) ),MAX(INDEX(ay_OpExAOEM,MATCH(sys_KeyOperator&"Inhalation",key_AOEM,0),22),(INDEX(ay_OpExAOEM,MATCH(sys_KeyOperator&"Inhalation",key_AOEM,0),22)/d_PctExtrapolation)*0.9*i_AmountAS2)) ->  | H37: =IF(ISBLANK(INDEX(ay_OpExAOEM,MATCH(sys_KeyOperator&"Inhalation",key_AOEM,0),18)),10^(INDEX(ay_OpExAOEM,MATCH(sys_KeyOperator&"Inhalation",key_AOEM,0),15)+(LOG(0.9*i_AmountAS3)*INDEX(ay_OpExAOEM,MATCH(sys_KeyOperator&"Inhalation",key_AOEM,0),16))+ IF(AND(i_AppMeth="Upward spraying",LEFT(i_AppEquip,15)="Vehicle-mounted",d_AppPfCaBfR = "Yes"),0,IF(AND(i_Season = "late (dense foliage)",i_AppMeth="Upward spraying",OR(i_AppEquip="Manual-Hand held",i_AppEquip="Manual-Knapsack")),0,INDEX(ay_OpExAOEM,MATCH(sys_KeyOperator&"Inhalation",key_AOEM,0),17))) ),MAX(INDEX(ay_OpExAOEM,MATCH(sys_KeyOperator&"Inhalation",key_AOEM,0),18),(INDEX(ay_OpExAOEM,MATCH(sys_KeyOperator&"Inhalation",key_AOEM,0),18)/d_PctExtrapolation)*0.9*i_AmountAS3)) ->  | I37: =IF(ISBLANK(INDEX(ay_OpExAOEM,MATCH(sys_KeyOperator&"Inhalation",key_AOEM,0),22)),10^(INDEX(ay_OpExAOEM,MATCH(sys_KeyOperator&"Inhalation",key_AOEM,0),19)+(LOG(0.9*i_AmountAS3)*INDEX(ay_OpExAOEM,MATCH(sys_KeyOperator&"Inhalation",key_AOEM,0),20))+ IF(AND(i_AppMeth="Upward spraying",LEFT(i_AppEquip,15)="Vehicle-mounted",d_AppPfCaBfR = "Yes"),0,IF(AND(i_Season = "late (dense foliage)",i_AppMeth="Upward spraying",OR(i_AppEquip="Manual-Hand held",i_AppEquip="Manual-Knapsack")),0,INDEX(ay_OpExAOEM,MATCH(sys_KeyOperator&"Inhalation",key_AOEM,0),21))) ),MAX(INDEX(ay_OpExAOEM,MATCH(sys_KeyOperator&"Inhalation",key_AOEM,0),22),(INDEX(ay_OpExAOEM,MATCH(sys_KeyOperator&"Inhalation",key_AOEM,0),22)/d_PctExtrapolation)*0.9*i_AmountAS3)) ->  | J37: =IF(ISBLANK(INDEX(ay_OpExAOEM,MATCH(sys_KeyOperator&"Inhalation",key_AOEM,0),18)),10^(INDEX(ay_OpExAOEM,MATCH(sys_KeyOperator&"Inhalation",key_AOEM,0),15)+(LOG(0.9*i_AmountAS4)*INDEX(ay_OpExAOEM,MATCH(sys_KeyOperator&"Inhalation",key_AOEM,0),16))+ IF(AND(i_AppMeth="Upward spraying",LEFT(i_AppEquip,15)="Vehicle-mounted",d_AppPfCaBfR = "Yes"),0,IF(AND(i_Season = "late (dense foliage)",i_AppMeth="Upward spraying",OR(i_AppEquip="Manual-Hand held",i_AppEquip="Manual-Knapsack")),0,INDEX(ay_OpExAOEM,MATCH(sys_KeyOperator&"Inhalation",key_AOEM,0),17))) ),MAX(INDEX(ay_OpExAOEM,MATCH(sys_KeyOperator&"Inhalation",key_AOEM,0),18),(INDEX(ay_OpExAOEM,MATCH(sys_KeyOperator&"Inhalation",key_AOEM,0),18)/d_PctExtrapolation)*0.9*i_AmountAS4)) ->  | K37: =IF(ISBLANK(INDEX(ay_OpExAOEM,MATCH(sys_KeyOperator&"Inhalation",key_AOEM,0),22)),10^(INDEX(ay_OpExAOEM,MATCH(sys_KeyOperator&"Inhalation",key_AOEM,0),19)+(LOG(0.9*i_AmountAS4)*INDEX(ay_OpExAOEM,MATCH(sys_KeyOperator&"Inhalation",key_AOEM,0),20))+ IF(AND(i_AppMeth="Upward spraying",LEFT(i_AppEquip,15)="Vehicle-mounted",d_AppPfCaBfR = "Yes"),0,IF(AND(i_Season = "late (dense foliage)",i_AppMeth="Upward spraying",OR(i_AppEquip="Manual-Hand held",i_AppEquip="Manual-Knapsack")),0,INDEX(ay_OpExAOEM,MATCH(sys_KeyOperator&"Inhalation",key_AOEM,0),21))) ),MAX(INDEX(ay_OpExAOEM,MATCH(sys_KeyOperator&"Inhalation",key_AOEM,0),22),(INDEX(ay_OpExAOEM,MATCH(sys_KeyOperator&"Inhalation",key_AOEM,0),22)/d_PctExtrapolation)*0.9*i_AmountAS4)) ->  | L37: AOEM
C38: Protective Equipment | L38: Penetration factor | M38: Inhalation Protection factor
C39: Gloves | D39: ='Operator Spray'!D39 -> No | L39: =IF(D39="Yes","Incl. in AOEM model","") -> 
C40: Clothing | D40: ='Operator Spray'!D40 -> Work wear - arms, body and legs covered | L40: Incl. in AOEM model
C41: Head and respiratory PPE | D41: ='Operator Spray'!D41 -> None | L41: =INDEX(ay_MixPPEHead,MATCH(D41,key_MixPPEHead,0),2) -> 1 | M41: =IF(OR(D41="Hood and visor",D41="Hood"),1,INDEX(ay_MixRPE,MATCH(D41,key_MixRPE,0),2)) -> 1
C42: Cabin | D42: ='Operator Spray'!D42 -> Not relevant | L42: vehicle mounted upward spraying only
B44: 1. Total | D44: =i_SubstName1 -> 0 | F44: =i_SubstName2 -> 0 | H44: =i_SubstName3 -> 0 | J44: =i_SubstName4 -> 0 | L44: Combined
D45: Without RPE/PPE | E45: With RPE/PPE | F45: Without RPE/PPE | G45: With RPE/PPE | H45: Without RPE/PPE | I45: With RPE/PPE | J45: Without RPE/PPE | K45: With RPE/PPE | L45: Without RPE/PPE | M45: With RPE/PPE
B46: Short-term
B47: Total systemic exposure from mixing, loading and application (mg a.s./day) | D47: =(D63+D79) ->  | E47: =(D70+D85) ->  | F47: =(F63+F79) ->  | G47: =(F70+F85) ->  | H47: =(H63+H79) ->  | I47: =(H70+H85) ->  | J47: =(J63+J79) ->  | K47: =(J70+J85) -> 
B48: Total systemic dose from mixing, loading and application per kg body weight (mg/kg bw/day) | D48: =D47/d_BwAdult -> 
B49: % of AOEL | D49: =IFERROR(D48/i_AOEL1,0) -> 0 | E49: =IFERROR(E48/i_AOEL1,0) -> 0 | F49: =IFERROR(F48/i_AOEL2,0) -> 0 | G49: =IFERROR(G48/i_AOEL2,0) -> 0 | H49: =IFERROR(H48/i_AOEL3,0) -> 0 | I49: =IFERROR(I48/i_AOEL3,0) -> 0 | J49: =IFERROR(J48/i_AOEL4,0) -> 0 | K49: =IFERROR(K48/i_AOEL4,0) -> 0 | L49: ="Hazard index = "&FIXED(D49+F49+H49+J49,3) -> Hazard index = 0.000 | M49: ="Hazard index = "&FIXED(E49+G49+I49+K49,3) -> Hazard index = 0.000
B50: Acute
B51: Total systemic exposure from mixing, loading and application (mg a.s./day) | D51: =(D95+D111) ->  | E51: =(D102+D117) ->  | F51: =(F95+F111) ->  | G51: =(F102+F117) ->  | H51: =(H95+H111) ->  | I51: =(H102+H117) ->  | J51: =(J95+J111) ->  | K51: =(J102+J117) -> 
B52: Total systemic dose from mixing, loading and application per kg body weight (mg/kg bw/day) | D52: =D51/d_BwAdult -> 
B53: % of AAOEL | D53: =IFERROR(D52/i_AAOEL1,0) -> 0 | E53: =IFERROR(E52/i_AAOEL1,0) -> 0 | F53: =IFERROR(F52/i_AAOEL2,0) -> 0 | G53: =IFERROR(G52/i_AAOEL2,0) -> 0 | H53: =IFERROR(H52/i_AAOEL3,0) -> 0 | I53: =IFERROR(I52/i_AAOEL3,0) -> 0 | J53: =IFERROR(J52/i_AAOEL4,0) -> 0 | K53: =IFERROR(K52/i_AAOEL4,0) -> 0 | L53: ="Hazard index = "&FIXED(D53+F53+H53+J53,3) -> Hazard index = 0.000 | M53: ="Hazard index = "&FIXED(E53+G53+I53+K53,3) -> Hazard index = 0.000
B55: 2. Short-term exposure
B56: 2.1 Mixing and loading | D56: =i_SubstName1 -> 0 | F56: =i_SubstName2 -> 0 | H56: =i_SubstName3 -> 0 | J56: =i_SubstName4 -> 0
D57: Systemic exposure [mg a.s. /day] | E57: Systemic dose [mg a.s./kg bw/day] | F57: Systemic exposure [mg a.s. /day] | G57: Systemic dose [mg a.s./kg bw/day] | H57: Systemic exposure [mg a.s. /day] | I57: Systemic dose [mg a.s./kg bw/day] | J57: Systemic exposure [mg a.s. /day] | K57: Systemic dose [mg a.s./kg bw/day]
B58: Without RPE/PPE
B59: Hands | D59: =D17*i_AbsorpProduct1/1000 ->  | E59: =D59/d_BwAdult ->  | F59: =F17*i_AbsorpProduct2/1000 ->  | G59: =F59/d_BwAdult ->  | H59: =H17*i_AbsorpProduct3/1000 ->  | I59: =H59/d_BwAdult ->  | J59: =J17*i_AbsorpProduct4/1000 ->  | K59: =J59/d_BwAdult -> 
B60: Body | D60: =D18*i_AbsorpProduct1/1000 ->  | E60: =D60/d_BwAdult ->  | F60: =F18*i_AbsorpProduct2/1000 ->  | G60: =F60/d_BwAdult ->  | H60: =H18*i_AbsorpProduct3/1000 ->  | I60: =H60/d_BwAdult ->  | J60: =J18*i_AbsorpProduct4/1000 ->  | K60: =J60/d_BwAdult -> 
B61: Head | D61: =D19*i_AbsorpProduct1/1000 ->  | E61: =D61/d_BwAdult ->  | F61: =F19*i_AbsorpProduct2/1000 ->  | G61: =F61/d_BwAdult ->  | H61: =H19*i_AbsorpProduct3/1000 ->  | I61: =H61/d_BwAdult ->  | J61: =J19*i_AbsorpProduct4/1000 ->  | K61: =J61/d_BwAdult -> 
B62: Inhalation | D62: =D23*i_AbsorpInhalation1/1000 ->  | E62: =D62/d_BwAdult ->  | F62: =F23*i_AbsorpInhalation1/1000 ->  | G62: =F62/d_BwAdult ->  | H62: =H23*i_AbsorpInhalation1/1000 ->  | I62: =H62/d_BwAdult ->  | J62: =J23*i_AbsorpInhalation1/1000 ->  | K62: =J62/d_BwAdult -> 
B63: Sum | D63: =D59+D60+D61+D62 ->  | E63: =D63/d_BwAdult ->  | F63: =F59+F60+F61+F62 ->  | G63: =F63/d_BwAdult ->  | H63: =H59+H60+H61+H62 ->  | I63: =H63/d_BwAdult ->  | J63: =J59+J60+J61+J62 ->  | K63: =J63/d_BwAdult -> 
B64: With RPE/PPE (as selected above)
B65: Hands | D65: =IF(D25="Yes", D20,D17)*i_AbsorpProduct1/1000 ->  | E65: =D65/d_BwAdult ->  | F65: =IF(D25="Yes", F20,F17)*i_AbsorpProduct2/1000 ->  | G65: =F65/d_BwAdult ->  | H65: =IF(D25="Yes", H20,H17)*i_AbsorpProduct3/1000 ->  | I65: =H65/d_BwAdult ->  | J65: =IF(D25="Yes", J20,J17)*i_AbsorpProduct4/1000 ->  | K65: =J65/d_BwAdult -> 
B66: Body | D66: =IF(D26<>"Potential exposure",D21,D18)*i_AbsorpProduct1/1000 ->  | F66: =IF(D26<>"Potential exposure",F21,F18)*i_AbsorpProduct2/1000 ->  | H66: =IF(D26<>"Potential exposure",H21,H18)*i_AbsorpProduct3/1000 ->  | J66: =IF(D26<>"Potential exposure",J21,J18)*i_AbsorpProduct4/1000 -> 
B67: Head | D67: =IF($D27<>"None",D22*i_AbsorpProduct1,D19*i_AbsorpProduct1)/1000 ->  | F67: =IF($D27<>"None",F22*i_AbsorpProduct2,F19*i_AbsorpProduct2)/1000 ->  | H67: =IF($D27<>"None",H22*i_AbsorpProduct3,H19*i_AbsorpProduct3)/1000 ->  | J67: =IF($D27<>"None",J22*i_AbsorpProduct4,J19*i_AbsorpProduct4)/1000 -> 
B68: Inhalation | D68: =D23*i_AbsorpInhalation1*$M27/1000 ->  | F68: =F23*i_AbsorpInhalation2*$M27/1000 ->  | H68: =H23*i_AbsorpInhalation3*$M27/1000 ->  | J68: =J23*i_AbsorpInhalation4*$M27/1000 -> 
B69: Sum | D69: =SUM(D65:D68) ->  | F69: =SUM(F65:F68) ->  | H69: =SUM(H65:H68) ->  | J69: =SUM(J65:J68) -> 
B70: Water soluble bag | D70: =D69*$L28 ->  | F70: =F69*$L28 ->  | H70: =H69*$L28 ->  | J70: =J69*$L28 -> 
B72: 2.2 Application | D72: =i_SubstName1 -> 0 | F72: =i_SubstName2 -> 0 | H72: =i_SubstName3 -> 0 | J72: =i_SubstName4 -> 0
D73: Systemic exposure [mg a.s. /day] | E73: Systemic dose [mg a.s./kg bw/day] | F73: Systemic exposure [mg a.s. /day] | G73: Systemic dose [mg a.s./kg bw/day] | H73: Systemic exposure [mg a.s. /day] | I73: Systemic dose [mg a.s./kg bw/day] | J73: Systemic exposure [mg a.s. /day] | K73: Systemic dose [mg a.s./kg bw/day]
B74: Without RPE/PPE
B75: Hands | D75: =D32*i_AbsorpInuse1/1000 ->  | E75: =D75/d_BwAdult ->  | F75: =F32*i_AbsorpInuse2/1000 ->  | G75: =F75/d_BwAdult ->  | H75: =H32*i_AbsorpInuse3/1000 ->  | I75: =H75/d_BwAdult ->  | J75: =J32*i_AbsorpInuse4/1000 ->  | K75: =J75/d_BwAdult -> 
B76: Body | D76: =D33*i_AbsorpInuse1/1000 ->  | E76: =D76/d_BwAdult ->  | F76: =F33*i_AbsorpInuse2/1000 ->  | G76: =F76/d_BwAdult ->  | H76: =H33*i_AbsorpInuse3/1000 ->  | I76: =H76/d_BwAdult ->  | J76: =J33*i_AbsorpInuse4/1000 ->  | K76: =J76/d_BwAdult -> 
B77: Head | D77: =D34*i_AbsorpInuse1/1000 ->  | E77: =D77/d_BwAdult ->  | F77: =F34*i_AbsorpInuse2/1000 ->  | G77: =F77/d_BwAdult ->  | H77: =H34*i_AbsorpInuse3/1000 ->  | I77: =H77/d_BwAdult ->  | J77: =J34*i_AbsorpInuse4/1000 ->  | K77: =J77/d_BwAdult -> 
B78: Inhalation | D78: =D37*i_AbsorpInhalation1/1000 ->  | E78: =D78/d_BwAdult ->  | F78: =F37*i_AbsorpInhalation1/1000 ->  | G78: =F78/d_BwAdult ->  | H78: =H37*i_AbsorpInhalation1/1000 ->  | I78: =H78/d_BwAdult ->  | J78: =J37*i_AbsorpInhalation1/1000 ->  | K78: =J78/d_BwAdult -> 
B79: Sum | D79: =D75+D76+D77+D78 ->  | E79: =D79/d_BwAdult ->  | F79: =F75+F76+F77+F78 ->  | G79: =F79/d_BwAdult ->  | H79: =H75+H76+H77+H78 ->  | I79: =H79/d_BwAdult ->  | J79: =J75+J76+J77+J78 ->  | K79: =J79/d_BwAdult -> 
B80: With RPE/PPE (as selected above)
B81: Hands | D81: =IF(D39="Yes", D35,D32)*i_AbsorpInuse1/1000 ->  | E81: =D81/d_BwAdult ->  | F81: =IF(D39="Yes", F35,F32)*i_AbsorpInuse2/1000 ->  | G81: =F81/d_BwAdult ->  | H81: =IF(D39="Yes", H35,H32)*i_AbsorpInuse3/1000 ->  | I81: =H81/d_BwAdult ->  | J81: =IF(D39="Yes", J35,J32)*i_AbsorpInuse4/1000 ->  | K81: =J81/d_BwAdult -> 
B82: Body | D82: =IF(D40<>"Potential exposure",D36,D33)*i_AbsorpInuse1/1000 ->  | E82: =D82/d_BwAdult ->  | F82: =IF(D40<>"Potential exposure",F36,F33)*i_AbsorpInuse2/1000 ->  | G82: =F82/d_BwAdult ->  | H82: =IF(D40<>"Potential exposure",H36,H33)*i_AbsorpInuse3/1000 ->  | I82: =H82/d_BwAdult ->  | J82: =IF(D40<>"Potential exposure",J36,J33)*i_AbsorpInuse4/1000 ->  | K82: =J82/d_BwAdult -> 
B83: Head | D83: =D34*i_AbsorpInuse1*$L41/1000 ->  | E83: =D83/d_BwAdult ->  | F83: =F34*i_AbsorpInuse2*L41/1000 ->  | G83: =F83/d_BwAdult ->  | H83: =H34*i_AbsorpInuse3*L41/1000 ->  | I83: =H83/d_BwAdult ->  | J83: =J34*i_AbsorpInuse4*L41/1000 ->  | K83: =J83/d_BwAdult -> 
B84: Inhalation | D84: =D37*i_AbsorpInhalation1*$M41/1000 ->  | E84: =D84/d_BwAdult ->  | F84: =F37*i_AbsorpInhalation2*$M41/1000 ->  | G84: =F84/d_BwAdult ->  | H84: =H37*i_AbsorpInhalation3*$M41/1000 ->  | I84: =H84/d_BwAdult ->  | J84: =J37*i_AbsorpInhalation4*$M41/1000 ->  | K84: =J84/d_BwAdult -> 
B85: Sum | D85: =SUM(D81:D84) ->  | E85: =D85/d_BwAdult ->  | F85: =SUM(F81:F84) ->  | G85: =F85/d_BwAdult ->  | H85: =SUM(H81:H84) ->  | I85: =H85/d_BwAdult ->  | J85: =SUM(J81:J84) ->  | K85: =J85/d_BwAdult -> 
B87: 3. Acute exposure
B88: 3.1 Mixing and loading | D88: =i_SubstName1 -> 0 | F88: =i_SubstName2 -> 0 | H88: =i_SubstName3 -> 0 | J88: =i_SubstName4 -> 0
D89: Systemic exposure [mg a.s. /day] | E89: Systemic dose [mg a.s./kg bw/day] | F89: Systemic exposure [mg a.s. /day] | G89: Systemic dose [mg a.s./kg bw/day] | H89: Systemic exposure [mg a.s. /day] | I89: Systemic dose [mg a.s./kg bw/day] | J89: Systemic exposure [mg a.s. /day] | K89: Systemic dose [mg a.s./kg bw/day]
B90: Without RPE/PPE
B91: Hands | D91: =E17*i_AbsorpProduct1/1000 ->  | E91: =D91/d_BwAdult ->  | F91: =G17*i_AbsorpProduct2/1000 ->  | G91: =F91/d_BwAdult ->  | H91: =I17*i_AbsorpProduct3/1000 ->  | I91: =H91/d_BwAdult ->  | J91: =K17*i_AbsorpProduct4/1000 ->  | K91: =J91/d_BwAdult -> 
B92: Body | D92: =E18*i_AbsorpProduct1/1000 ->  | E92: =D92/d_BwAdult ->  | F92: =G18*i_AbsorpProduct2/1000 ->  | G92: =F92/d_BwAdult ->  | H92: =I18*i_AbsorpProduct3/1000 ->  | I92: =H92/d_BwAdult ->  | J92: =K18*i_AbsorpProduct4/1000 ->  | K92: =J92/d_BwAdult -> 
B93: Head | D93: =E19*i_AbsorpProduct1/1000 ->  | E93: =D93/d_BwAdult ->  | F93: =G19*i_AbsorpProduct2/1000 ->  | G93: =F93/d_BwAdult ->  | H93: =I19*i_AbsorpProduct3/1000 ->  | I93: =H93/d_BwAdult ->  | J93: =K19*i_AbsorpProduct4/1000 ->  | K93: =J93/d_BwAdult -> 
B94: Inhalation | D94: =E23*i_AbsorpInhalation1/1000 ->  | E94: =D94/d_BwAdult ->  | F94: =G23*i_AbsorpInhalation1/1000 ->  | G94: =F94/d_BwAdult ->  | H94: =I23*i_AbsorpInhalation1/1000 ->  | I94: =H94/d_BwAdult ->  | J94: =K23*i_AbsorpInhalation1/1000 ->  | K94: =J94/d_BwAdult -> 
B95: Sum | D95: =D91+D92+D93+D94 ->  | E95: =D95/d_BwAdult ->  | F95: =F91+F92+F93+F94 ->  | G95: =F95/d_BwAdult ->  | H95: =H91+H92+H93+H94 ->  | I95: =H95/d_BwAdult ->  | J95: =J91+J92+J93+J94 ->  | K95: =J95/d_BwAdult -> 
B96: With RPE/PPE (as selected above)
B97: Hands | D97: =IF(D25="Yes", E20,E17)*i_AbsorpProduct1/1000 ->  | E97: =D97/d_BwAdult ->  | F97: =IF(D25="Yes", G20,G17)*i_AbsorpProduct2/1000 ->  | G97: =F97/d_BwAdult ->  | H97: =IF(D25="Yes", I20,I17)*i_AbsorpProduct3/1000 ->  | I97: =H97/d_BwAdult ->  | J97: =IF(D25="Yes", K20,K17)*i_AbsorpProduct4/1000 ->  | K97: =J97/d_BwAdult -> 
B98: Body | D98: =IF(D26="Work wear - arms, body and legs covered",E21,E18)*i_AbsorpProduct1/1000 ->  | F98: =IF(D26="Work wear - arms, body and legs covered",G21,G18)*i_AbsorpProduct2/1000 ->  | H98: =IF(D26="Work wear - arms, body and legs covered",I21,I18)*i_AbsorpProduct3/1000 ->  | J98: =IF(D26="Work wear - arms, body and legs covered",K21,K18)*i_AbsorpProduct4/1000 -> 
B99: Head | D99: =IF($D27<>"None",E22*i_AbsorpProduct1,E19*i_AbsorpProduct1)/1000 ->  | F99: =IF($D27<>"None",G22*i_AbsorpProduct2,G19*i_AbsorpProduct2)/1000 ->  | H99: =IF($D27<>"None",I22*i_AbsorpProduct3,I19*i_AbsorpProduct3)/1000 ->  | J99: =IF($D27<>"None",K22*i_AbsorpProduct4,K19*i_AbsorpProduct4)/1000 -> 
B100: Inhalation | D100: =E23*i_AbsorpInhalation1*$M27/1000 ->  | F100: =G23*i_AbsorpInhalation2*$M27/1000 ->  | H100: =I23*i_AbsorpInhalation3*$M27/1000 ->  | J100: =K23*i_AbsorpInhalation4*$M27/1000 -> 
B101: Sum | D101: =SUM(D97:D100) ->  | F101: =SUM(F97:F100) ->  | H101: =SUM(H97:H100) ->  | J101: =SUM(J97:J100) -> 
B102: Water soluble bag | D102: =D101*$L28 ->  | F102: =F101*$L28 ->  | H102: =H101*$L28 ->  | J102: =J101*$L28 -> 
B104: 2.2 Application | D104: =i_SubstName1 -> 0 | F104: =i_SubstName2 -> 0 | H104: =i_SubstName3 -> 0 | J104: =i_SubstName4 -> 0
D105: Systemic exposure [mg a.s. /day] | E105: Systemic dose [mg a.s./kg bw/day] | F105: Systemic exposure [mg a.s. /day] | G105: Systemic dose [mg a.s./kg bw/day] | H105: Systemic exposure [mg a.s. /day] | I105: Systemic dose [mg a.s./kg bw/day] | J105: Systemic exposure [mg a.s. /day] | K105: Systemic dose [mg a.s./kg bw/day]
B106: Without RPE/PPE
B107: Hands | D107: =E32*i_AbsorpInuse1/1000 ->  | E107: =D107/d_BwAdult ->  | F107: =G32*i_AbsorpInuse2/1000 ->  | G107: =F107/d_BwAdult ->  | H107: =I32*i_AbsorpInuse3/1000 ->  | I107: =H107/d_BwAdult ->  | J107: =K32*i_AbsorpInuse4/1000 ->  | K107: =J107/d_BwAdult -> 
B108: Body | D108: =E33*i_AbsorpInuse1/1000 ->  | E108: =D108/d_BwAdult ->  | F108: =G33*i_AbsorpInuse2/1000 ->  | G108: =F108/d_BwAdult ->  | H108: =I33*i_AbsorpInuse3/1000 ->  | I108: =H108/d_BwAdult ->  | J108: =K33*i_AbsorpInuse4/1000 ->  | K108: =J108/d_BwAdult -> 
B109: Head | D109: =E34*i_AbsorpInuse1/1000 ->  | E109: =D109/d_BwAdult ->  | F109: =G34*i_AbsorpInuse2/1000 ->  | G109: =F109/d_BwAdult ->  | H109: =I34*i_AbsorpInuse3/1000 ->  | I109: =H109/d_BwAdult ->  | J109: =K34*i_AbsorpInuse4/1000 ->  | K109: =J109/d_BwAdult -> 
B110: Inhalation | D110: =E37*i_AbsorpInhalation1/1000 ->  | E110: =D110/d_BwAdult ->  | F110: =G37*i_AbsorpInhalation2/1000 ->  | G110: =F110/d_BwAdult ->  | H110: =I37*i_AbsorpInhalation3/1000 ->  | I110: =H110/d_BwAdult ->  | J110: =K37*i_AbsorpInhalation4/1000 ->  | K110: =J110/d_BwAdult -> 
B111: Sum | D111: =D107+D108+D109+D110 ->  | E111: =D111/d_BwAdult ->  | F111: =F107+F108+F109+F110 ->  | G111: =F111/d_BwAdult ->  | H111: =H107+H108+H109+H110 ->  | I111: =H111/d_BwAdult ->  | J111: =J107+J108+J109+J110 ->  | K111: =J111/d_BwAdult -> 
B112: With RPE/PPE (as selected above)
B113: Hands | D113: =IF(D39="Yes",E35,E32)*i_AbsorpInuse1/1000 ->  | E113: =D113/d_BwAdult ->  | F113: =IF(D39="Yes",G35,G32)*i_AbsorpInuse2/1000 ->  | G113: =F113/d_BwAdult ->  | H113: =IF(D39="Yes",I35,I32)*i_AbsorpInuse3/1000 ->  | I113: =H113/d_BwAdult ->  | J113: =IF(D39="Yes",K35,K32)*i_AbsorpInuse4/1000 ->  | K113: =J113/d_BwAdult -> 
B114: Body | D114: =IF(D40="Work wear - arms, body and legs covered",E36,E33)*i_AbsorpInuse1/1000 ->  | E114: =D114/d_BwAdult ->  | F114: =IF(D40="Work wear - arms, body and legs covered",G36,G33)*i_AbsorpInuse2/1000 ->  | G114: =F114/d_BwAdult ->  | H114: =IF(D40="Work wear - arms, body and legs covered",I36,I33)*i_AbsorpInuse3/1000 ->  | I114: =H114/d_BwAdult ->  | J114: =IF(D40="Work wear - arms, body and legs covered",K36,K33)*i_AbsorpInuse4/1000 ->  | K114: =J114/d_BwAdult -> 
B115: Head | D115: =E34*i_AbsorpInuse1*$L41/1000 ->  | E115: =D115/d_BwAdult ->  | F115: =G34*i_AbsorpInuse2*$L41/1000 ->  | G115: =F115/d_BwAdult ->  | H115: =I34*i_AbsorpInuse3*$L41/1000 ->  | I115: =H115/d_BwAdult ->  | J115: =K34*i_AbsorpInuse4*$L41/1000 ->  | K115: =J115/d_BwAdult -> 
B116: Inhalation | D116: =E37*i_AbsorpInhalation1*$M41/1000 ->  | E116: =D116/d_BwAdult ->  | F116: =G37*i_AbsorpInhalation2*$M41/1000 ->  | G116: =F116/d_BwAdult ->  | H116: =I37*i_AbsorpInhalation3*$M41/1000 ->  | I116: =H116/d_BwAdult ->  | J116: =K37*i_AbsorpInhalation4*$M41/1000 ->  | K116: =J116/d_BwAdult -> 
B117: Sum | D117: =SUM(D113:D116) ->  | E117: =D117/d_BwAdult ->  | F117: =SUM(F113:F116) ->  | G117: =F117/d_BwAdult ->  | H117: =SUM(H113:H116) ->  | I117: =H117/d_BwAdult ->  | J117: =SUM(J113:J116) ->  | K117: =J117/d_BwAdult -> 

Sheet MHH (hidden)
B1: ="Operator exposure for "&i_ProductName & " spray applications" -> Operator exposure for spray applications | F1: =IF(i_FormVal <> "Granules, fine granules","","This sheet is only to be used for spray applications") -> 
D2: =i_SubstName1 -> 0 | F2: =i_SubstName2 -> 0 | H2: =i_SubstName3 -> 0 | J2: =i_SubstName4 -> 0
B3: Application rate of active substance | D3: =i_AppRateAS1*0.1 -> 0 | F3: =i_AppRateAS2*0.1 -> 0 | H3: =i_AppRateAS3*0.1 -> 0 | J3: =i_AppRateAS4*0.1 -> 0 | L3: kg a.s./ha | M3: i_AppRateAS
B4: Amount of active substance applied | D4: =d_AreaTreated*i_AppRateAS1 -> 0 | F4: =d_AreaTreated*i_AppRateAS2 -> 0 | H4: =d_AreaTreated*i_AppRateAS3 -> 0 | J4: =d_AreaTreated*i_AppRateAS4 -> 0 | L4: kg a.s./day | M4: i_AmountAS
B5: Dermal absorption of the product | D5: =i_AbsorpProduct1 -> 0 | F5: =i_AbsorpProduct2 -> 0 | H5: =i_AbsorpProduct3 -> 0 | J5: =i_AbsorpProduct4 -> 0 | M5: i_AbsorpProduct
B6: Dermal absorption of in-use dilution | D6: =i_AbsorpInuse1 -> 0 | F6: =i_AbsorpInuse2 -> 0 | H6: =i_AbsorpInuse3 -> 0 | J6: =i_AbsorpInuse4 -> 0 | M6: i_AbsorInuse
B7: Formulation type | D7: =i_FormVal -> 0
B8: Indoor or Outdoor application | D8: ='Data entry'!D8 -> 0
B9: Application method | D9: =i_AppMeth -> 0
B10: Application equipment | D10: =i_AppEquip -> 0
B11: Assumed area treated | D11: =d_AreaTreated -> 1 | L11: ha/day | M11: d_AreaTreated
B12: Season | D12: =i_Season -> not relevant
B13: =i_IndoorOutdoor&i_FormVal&i_AppMeth&"Manual-Hand held" -> Manual-Hand held
D14: =i_SubstName1 -> 0 | F14: =i_SubstName2 -> 0 | H14: =i_SubstName3 -> 0 | J14: =i_SubstName4 -> 0
B15: Mixing and loading | C15: Exposure values | D15: µg exposure/day mixed and loaded | F15: µg exposure/day mixed and loaded | H15: µg exposure/day mixed and loaded | J15: µg exposure/day mixed and loaded | L15: Reference | M15: Comment
D16: 75th percentile | E16: 95th percentile | F16: 75th percentile | G16: 95th percentile | H16: 75th percentile | I16: 95th percentile | J16: 75th percentile | K16: 95th percentile
C17: Hands | D17: =IF(ISBLANK(INDEX(ay_OpExAOEM,MATCH(sys_KeyOperator&"Hands",key_AOEM,0),10)),10^(INDEX(ay_OpExAOEM,MATCH(sys_KeyOperator&"Hands",key_AOEM,0),7)+(LOG(i_AmountAS1)*INDEX(ay_OpExAOEM,MATCH(sys_KeyOperator&"Hands",key_AOEM,0),8))+INDEX(ay_OpExAOEM,MATCH(sys_KeyOperator&"Hands",key_AOEM,0),9)),MAX(INDEX(ay_OpExAOEM,MATCH(sys_KeyOperator&"Hands",key_AOEM,0),10),(INDEX(ay_OpExAOEM,MATCH(sys_KeyOperator&"Hands",key_AOEM,0),10)/1.5)*i_AmountAS1)) ->  | E17: =IF(ISBLANK(INDEX(ay_OpExAOEM,MATCH(sys_KeyOperator&"Hands",key_AOEM,0),14)),10^(INDEX(ay_OpExAOEM,MATCH(sys_KeyOperator&"Hands",key_AOEM,0),11)+(LOG(i_AmountAS1)*INDEX(ay_OpExAOEM,MATCH(sys_KeyOperator&"Hands",key_AOEM,0),12))+INDEX(ay_OpExAOEM,MATCH(sys_KeyOperator&"Hands",key_AOEM,0),13)),MAX(INDEX(ay_OpExAOEM,MATCH(sys_KeyOperator&"Hands",key_AOEM,0),14),(INDEX(ay_OpExAOEM,MATCH(sys_KeyOperator&"Hands",key_AOEM,0),14)/1.5)*i_AmountAS1)) ->  | F17: =IF(ISBLANK(INDEX(ay_OpExAOEM,MATCH(sys_KeyOperator&"Hands",key_AOEM,0),10)),10^(INDEX(ay_OpExAOEM,MATCH(sys_KeyOperator&"Hands",key_AOEM,0),7)+(LOG(i_AmountAS2)*INDEX(ay_OpExAOEM,MATCH(sys_KeyOperator&"Hands",key_AOEM,0),8))+INDEX(ay_OpExAOEM,MATCH(sys_KeyOperator&"Hands",key_AOEM,0),9)),MAX(INDEX(ay_OpExAOEM,MATCH(sys_KeyOperator&"Hands",key_AOEM,0),10),(INDEX(ay_OpExAOEM,MATCH(sys_KeyOperator&"Hands",key_AOEM,0),10)/1.5)*i_AmountAS2)) ->  | G17: =IF(ISBLANK(INDEX(ay_OpExAOEM,MATCH(sys_KeyOperator&"Hands",key_AOEM,0),14)),10^(INDEX(ay_OpExAOEM,MATCH(sys_KeyOperator&"Hands",key_AOEM,0),11)+(LOG(i_AmountAS2)*INDEX(ay_OpExAOEM,MATCH(sys_KeyOperator&"Hands",key_AOEM,0),12))+INDEX(ay_OpExAOEM,MATCH(sys_KeyOperator&"Hands",key_AOEM,0),13)),MAX(INDEX(ay_OpExAOEM,MATCH(sys_KeyOperator&"Hands",key_AOEM,0),14),(INDEX(ay_OpExAOEM,MATCH(sys_KeyOperator&"Hands",key_AOEM,0),14)/1.5)*i_AmountAS2)) ->  | H17: =IF(ISBLANK(INDEX(ay_OpExAOEM,MATCH(sys_KeyOperator&"Hands",key_AOEM,0),10)),10^(INDEX(ay_OpExAOEM,MATCH(sys_KeyOperator&"Hands",key_AOEM,0),7)+(LOG(i_AmountAS3)*INDEX(ay_OpExAOEM,MATCH(sys_KeyOperator&"Hands",key_AOEM,0),8))+INDEX(ay_OpExAOEM,MATCH(sys_KeyOperator&"Hands",key_AOEM,0),9)),MAX(INDEX(ay_OpExAOEM,MATCH(sys_KeyOperator&"Hands",key_AOEM,0),10),(INDEX(ay_OpExAOEM,MATCH(sys_KeyOperator&"Hands",key_AOEM,0),10)/1.5)*i_AmountAS3)) ->  | I17: =IF(ISBLANK(INDEX(ay_OpExAOEM,MATCH(sys_KeyOperator&"Hands",key_AOEM,0),14)),10^(INDEX(ay_OpExAOEM,MATCH(sys_KeyOperator&"Hands",key_AOEM,0),11)+(LOG(i_AmountAS3)*INDEX(ay_OpExAOEM,MATCH(sys_KeyOperator&"Hands",key_AOEM,0),12))+INDEX(ay_OpExAOEM,MATCH(sys_KeyOperator&"Hands",key_AOEM,0),13)),MAX(INDEX(ay_OpExAOEM,MATCH(sys_KeyOperator&"Hands",key_AOEM,0),14),(INDEX(ay_OpExAOEM,MATCH(sys_KeyOperator&"Hands",key_AOEM,0),14)/1.5)*i_AmountAS3)) ->  | J17: =IF(ISBLANK(INDEX(ay_OpExAOEM,MATCH(sys_KeyOperator&"Hands",key_AOEM,0),10)),10^(INDEX(ay_OpExAOEM,MATCH(sys_KeyOperator&"Hands",key_AOEM,0),7)+(LOG(i_AmountAS4)*INDEX(ay_OpExAOEM,MATCH(sys_KeyOperator&"Hands",key_AOEM,0),8))+INDEX(ay_OpExAOEM,MATCH(sys_KeyOperator&"Hands",key_AOEM,0),9)),MAX(INDEX(ay_OpExAOEM,MATCH(sys_KeyOperator&"Hands",key_AOEM,0),10),(INDEX(ay_OpExAOEM,MATCH(sys_KeyOperator&"Hands",key_AOEM,0),10)/1.5)*i_AmountAS4)) ->  | K17: =IF(ISBLANK(INDEX(ay_OpExAOEM,MATCH(sys_KeyOperator&"Hands",key_AOEM,0),14)),10^(INDEX(ay_OpExAOEM,MATCH(sys_KeyOperator&"Hands",key_AOEM,0),11)+(LOG(i_AmountAS4)*INDEX(ay_OpExAOEM,MATCH(sys_KeyOperator&"Hands",key_AOEM,0),12))+INDEX(ay_OpExAOEM,MATCH(sys_KeyOperator&"Hands",key_AOEM,0),13)),MAX(INDEX(ay_OpExAOEM,MATCH(sys_KeyOperator&"Hands",key_AOEM,0),14),(INDEX(ay_OpExAOEM,MATCH(sys_KeyOperator&"Hands",key_AOEM,0),14)/1.5)*i_AmountAS4)) ->  | L17: AOEM
C18: Body | D18: =IF(ISBLANK(INDEX(ay_OpExAOEM,MATCH(sys_KeyOperator&"Body",key_AOEM,0),10)),10^(INDEX(ay_OpExAOEM,MATCH(sys_KeyOperator&"Body",key_AOEM,0),7)+(LOG(i_AmountAS1)*INDEX(ay_OpExAOEM,MATCH(sys_KeyOperator&"Body",key_AOEM,0),8))+INDEX(ay_OpExAOEM,MATCH(sys_KeyOperator&"Body",key_AOEM,0),9)),MAX(INDEX(ay_OpExAOEM,MATCH(sys_KeyOperator&"Body",key_AOEM,0),10),(INDEX(ay_OpExAOEM,MATCH(sys_KeyOperator&"Body",key_AOEM,0),10)/1.5)*i_AmountAS1)) ->  | E18: =IF(ISBLANK(INDEX(ay_OpExAOEM,MATCH(sys_KeyOperator&"Body",key_AOEM,0),14)), 10^(INDEX(ay_OpExAOEM,MATCH(sys_KeyOperator&"Body",key_AOEM,0),11) +(LOG(i_AmountAS1)*INDEX(ay_OpExAOEM,MATCH(sys_KeyOperator&"Body",key_AOEM,0),12)) +INDEX(ay_OpExAOEM,MATCH(sys_KeyOperator&"Body",key_AOEM,0),13)),MAX(INDEX(ay_OpExAOEM,MATCH(sys_KeyOperator&"Body",key_AOEM,0),14),(INDEX(ay_OpExAOEM,MATCH(sys_KeyOperator&"Body",key_AOEM,0),14) /1.5)*i_AmountAS1)) ->  | F18: =IF(ISBLANK(INDEX(ay_OpExAOEM,MATCH(sys_KeyOperator&"Body",key_AOEM,0),10)),10^(INDEX(ay_OpExAOEM,MATCH(sys_KeyOperator&"Body",key_AOEM,0),7)+(LOG(i_AmountAS2)*INDEX(ay_OpExAOEM,MATCH(sys_KeyOperator&"Body",key_AOEM,0),8))+INDEX(ay_OpExAOEM,MATCH(sys_KeyOperator&"Body",key_AOEM,0),9)),MAX(INDEX(ay_OpExAOEM,MATCH(sys_KeyOperator&"Body",key_AOEM,0),10),(INDEX(ay_OpExAOEM,MATCH(sys_KeyOperator&"Body",key_AOEM,0),10)/1.5)*i_AmountAS2)) ->  | G18: =IF(ISBLANK(INDEX(ay_OpExAOEM,MATCH(sys_KeyOperator&"Body",key_AOEM,0),14)), 10^(INDEX(ay_OpExAOEM,MATCH(sys_KeyOperator&"Body",key_AOEM,0),11) +(LOG(i_AmountAS2)*INDEX(ay_OpExAOEM,MATCH(sys_KeyOperator&"Body",key_AOEM,0),12)) +INDEX(ay_OpExAOEM,MATCH(sys_KeyOperator&"Body",key_AOEM,0),13)),MAX(INDEX(ay_OpExAOEM,MATCH(sys_KeyOperator&"Body",key_AOEM,0),14),(INDEX(ay_OpExAOEM,MATCH(sys_KeyOperator&"Body",key_AOEM,0),14) /1.5)*i_AmountAS2)) ->  | H18: =IF(ISBLANK(INDEX(ay_OpExAOEM,MATCH(sys_KeyOperator&"Body",key_AOEM,0),10)),10^(INDEX(ay_OpExAOEM,MATCH(sys_KeyOperator&"Body",key_AOEM,0),7)+(LOG(i_AmountAS3)*INDEX(ay_OpExAOEM,MATCH(sys_KeyOperator&"Body",key_AOEM,0),8))+INDEX(ay_OpExAOEM,MATCH(sys_KeyOperator&"Body",key_AOEM,0),9)),MAX(INDEX(ay_OpExAOEM,MATCH(sys_KeyOperator&"Body",key_AOEM,0),10),(INDEX(ay_OpExAOEM,MATCH(sys_KeyOperator&"Body",key_AOEM,0),10)/1.5)*i_AmountAS3)) ->  | I18: =IF(ISBLANK(INDEX(ay_OpExAOEM,MATCH(sys_KeyOperator&"Body",key_AOEM,0),14)), 10^(INDEX(ay_OpExAOEM,MATCH(sys_KeyOperator&"Body",key_AOEM,0),11) +(LOG(i_AmountAS3)*INDEX(ay_OpExAOEM,MATCH(sys_KeyOperator&"Body",key_AOEM,0),12)) +INDEX(ay_OpExAOEM,MATCH(sys_KeyOperator&"Body",key_AOEM,0),13)),MAX(INDEX(ay_OpExAOEM,MATCH(sys_KeyOperator&"Body",key_AOEM,0),14),(INDEX(ay_OpExAOEM,MATCH(sys_KeyOperator&"Body",key_AOEM,0),14) /1.5)*i_AmountAS3)) ->  | J18: =IF(ISBLANK(INDEX(ay_OpExAOEM,MATCH(sys_KeyOperator&"Body",key_AOEM,0),10)),10^(INDEX(ay_OpExAOEM,MATCH(sys_KeyOperator&"Body",key_AOEM,0),7)+(LOG(i_AmountAS4)*INDEX(ay_OpExAOEM,MATCH(sys_KeyOperator&"Body",key_AOEM,0),8))+INDEX(ay_OpExAOEM,MATCH(sys_KeyOperator&"Body",key_AOEM,0),9)),MAX(INDEX(ay_OpExAOEM,MATCH(sys_KeyOperator&"Body",key_AOEM,0),10),(INDEX(ay_OpExAOEM,MATCH(sys_KeyOperator&"Body",key_AOEM,0),10)/1.5)*i_AmountAS4)) ->  | K18: =IF(ISBLANK(INDEX(ay_OpExAOEM,MATCH(sys_KeyOperator&"Body",key_AOEM,0),14)), 10^(INDEX(ay_OpExAOEM,MATCH(sys_KeyOperator&"Body",key_AOEM,0),11) +(LOG(i_AmountAS4)*INDEX(ay_OpExAOEM,MATCH(sys_KeyOperator&"Body",key_AOEM,0),12)) +INDEX(ay_OpExAOEM,MATCH(sys_KeyOperator&"Body",key_AOEM,0),13)),MAX(INDEX(ay_OpExAOEM,MATCH(sys_KeyOperator&"Body",key_AOEM,0),14),(INDEX(ay_OpExAOEM,MATCH(sys_KeyOperator&"Body",key_AOEM,0),14) /1.5)*i_AmountAS4)) ->  | L18: AOEM
C19: Head | D19: =IF(ISBLANK(INDEX(ay_OpExAOEM,MATCH(sys_KeyOperator&"Head",key_AOEM,0),10)),10^(INDEX(ay_OpExAOEM,MATCH(sys_KeyOperator&"Head",key_AOEM,0),7)+(LOG(i_AmountAS1)*INDEX(ay_OpExAOEM,MATCH(sys_KeyOperator&"Head",key_AOEM,0),8))+INDEX(ay_OpExAOEM,MATCH(sys_KeyOperator&"Head",key_AOEM,0),9)),MAX(INDEX(ay_OpExAOEM,MATCH(sys_KeyOperator&"Head",key_AOEM,0),10),(INDEX(ay_OpExAOEM,MATCH(sys_KeyOperator&"Head",key_AOEM,0),10)/1.5)*i_AmountAS1)) ->  | E19: =IF(ISBLANK(INDEX(ay_OpExAOEM,MATCH(sys_KeyOperator&"Head",key_AOEM,0),14)), 10^(INDEX(ay_OpExAOEM,MATCH(sys_KeyOperator&"Head",key_AOEM,0),11) +(LOG(i_AmountAS1)*INDEX(ay_OpExAOEM,MATCH(sys_KeyOperator&"Head",key_AOEM,0),12)) +INDEX(ay_OpExAOEM,MATCH(sys_KeyOperator&"Head",key_AOEM,0),13)),MAX(INDEX(ay_OpExAOEM,MATCH(sys_KeyOperator&"Head",key_AOEM,0),14),(INDEX(ay_OpExAOEM,MATCH(sys_KeyOperator&"Head",key_AOEM,0),14) /1.5)*i_AmountAS1)) ->  | F19: =IF(ISBLANK(INDEX(ay_OpExAOEM,MATCH(sys_KeyOperator&"Head",key_AOEM,0),10)),10^(INDEX(ay_OpExAOEM,MATCH(sys_KeyOperator&"Head",key_AOEM,0),7)+(LOG(i_AmountAS2)*INDEX(ay_OpExAOEM,MATCH(sys_KeyOperator&"Head",key_AOEM,0),8))+INDEX(ay_OpExAOEM,MATCH(sys_KeyOperator&"Head",key_AOEM,0),9)),MAX(INDEX(ay_OpExAOEM,MATCH(sys_KeyOperator&"Head",key_AOEM,0),10),(INDEX(ay_OpExAOEM,MATCH(sys_KeyOperator&"Head",key_AOEM,0),10)/1.5)*i_AmountAS2)) ->  | G19: =IF(ISBLANK(INDEX(ay_OpExAOEM,MATCH(sys_KeyOperator&"Head",key_AOEM,0),14)), 10^(INDEX(ay_OpExAOEM,MATCH(sys_KeyOperator&"Head",key_AOEM,0),11) +(LOG(i_AmountAS2)*INDEX(ay_OpExAOEM,MATCH(sys_KeyOperator&"Head",key_AOEM,0),12)) +INDEX(ay_OpExAOEM,MATCH(sys_KeyOperator&"Head",key_AOEM,0),13)),MAX(INDEX(ay_OpExAOEM,MATCH(sys_KeyOperator&"Head",key_AOEM,0),14),(INDEX(ay_OpExAOEM,MATCH(sys_KeyOperator&"Head",key_AOEM,0),14) /1.5)*i_AmountAS2)) ->  | H19: =IF(ISBLANK(INDEX(ay_OpExAOEM,MATCH(sys_KeyOperator&"Head",key_AOEM,0),10)),10^(INDEX(ay_OpExAOEM,MATCH(sys_KeyOperator&"Head",key_AOEM,0),7)+(LOG(i_AmountAS3)*INDEX(ay_OpExAOEM,MATCH(sys_KeyOperator&"Head",key_AOEM,0),8))+INDEX(ay_OpExAOEM,MATCH(sys_KeyOperator&"Head",key_AOEM,0),9)),MAX(INDEX(ay_OpExAOEM,MATCH(sys_KeyOperator&"Head",key_AOEM,0),10),(INDEX(ay_OpExAOEM,MATCH(sys_KeyOperator&"Head",key_AOEM,0),10)/1.5)*i_AmountAS3)) ->  | I19: =IF(ISBLANK(INDEX(ay_OpExAOEM,MATCH(sys_KeyOperator&"Head",key_AOEM,0),14)), 10^(INDEX(ay_OpExAOEM,MATCH(sys_KeyOperator&"Head",key_AOEM,0),11) +(LOG(i_AmountAS3)*INDEX(ay_OpExAOEM,MATCH(sys_KeyOperator&"Head",key_AOEM,0),12)) +INDEX(ay_OpExAOEM,MATCH(sys_KeyOperator&"Head",key_AOEM,0),13)),MAX(INDEX(ay_OpExAOEM,MATCH(sys_KeyOperator&"Head",key_AOEM,0),14),(INDEX(ay_OpExAOEM,MATCH(sys_KeyOperator&"Head",key_AOEM,0),14) /1.5)*i_AmountAS3)) ->  | J19: =IF(ISBLANK(INDEX(ay_OpExAOEM,MATCH(sys_KeyOperator&"Head",key_AOEM,0),10)),10^(INDEX(ay_OpExAOEM,MATCH(sys_KeyOperator&"Head",key_AOEM,0),7)+(LOG(i_AmountAS4)*INDEX(ay_OpExAOEM,MATCH(sys_KeyOperator&"Head",key_AOEM,0),8))+INDEX(ay_OpExAOEM,MATCH(sys_KeyOperator&"Head",key_AOEM,0),9)),MAX(INDEX(ay_OpExAOEM,MATCH(sys_KeyOperator&"Head",key_AOEM,0),10),(INDEX(ay_OpExAOEM,MATCH(sys_KeyOperator&"Head",key_AOEM,0),10)/1.5)*i_AmountAS4)) ->  | K19: =IF(ISBLANK(INDEX(ay_OpExAOEM,MATCH(sys_KeyOperator&"Head",key_AOEM,0),14)), 10^(INDEX(ay_OpExAOEM,MATCH(sys_KeyOperator&"Head",key_AOEM,0),11) +(LOG(i_AmountAS4)*INDEX(ay_OpExAOEM,MATCH(sys_KeyOperator&"Head",key_AOEM,0),12)) +INDEX(ay_OpExAOEM,MATCH(sys_KeyOperator&"Head",key_AOEM,0),13)),MAX(INDEX(ay_OpExAOEM,MATCH(sys_KeyOperator&"Head",key_AOEM,0),14),(INDEX(ay_OpExAOEM,MATCH(sys_KeyOperator&"Head",key_AOEM,0),14) /1.5)*i_AmountAS4)) ->  | L19: AOEM
C20: Protected hands (gloves) | D20: =IF(ISBLANK(INDEX(ay_OpExAOEM,MATCH(sys_KeyOperator&"Protected hands",key_AOEM,0),10)),10^(INDEX(ay_OpExAOEM,MATCH(sys_KeyOperator&"Protected hands",key_AOEM,0),7)+(LOG(i_AmountAS1)*INDEX(ay_OpExAOEM,MATCH(sys_KeyOperator&"Protected hands",key_AOEM,0),8))+INDEX(ay_OpExAOEM,MATCH(sys_KeyOperator&"Protected hands",key_AOEM,0),9)),MAX(INDEX(ay_OpExAOEM,MATCH(sys_KeyOperator&"Protected hands",key_AOEM,0),10),(INDEX(ay_OpExAOEM,MATCH(sys_KeyOperator&"Protected hands",key_AOEM,0),10)/1.5)*i_AmountAS1)) ->  | E20: =IF(ISBLANK(INDEX(ay_OpExAOEM,MATCH(sys_KeyOperator&"Protected Hands",key_AOEM,0),14)), 10^(INDEX(ay_OpExAOEM,MATCH(sys_KeyOperator&"Protected Hands",key_AOEM,0),11) +(LOG(i_AmountAS1)*INDEX(ay_OpExAOEM,MATCH(sys_KeyOperator&"Protected Hands",key_AOEM,0),12)) +INDEX(ay_OpExAOEM,MATCH(sys_KeyOperator&"Protected Hands",key_AOEM,0),13)),MAX(INDEX(ay_OpExAOEM,MATCH(sys_KeyOperator&"Protected Hands",key_AOEM,0),14),(INDEX(ay_OpExAOEM,MATCH(sys_KeyOperator&"Protected Hands",key_AOEM,0),14) /1.5)*i_AmountAS1)) ->  | F20: =IF(ISBLANK(INDEX(ay_OpExAOEM,MATCH(sys_KeyOperator&"Protected hands",key_AOEM,0),10)),10^(INDEX(ay_OpExAOEM,MATCH(sys_KeyOperator&"Protected hands",key_AOEM,0),7)+(LOG(i_AmountAS2)*INDEX(ay_OpExAOEM,MATCH(sys_KeyOperator&"Protected hands",key_AOEM,0),8))+INDEX(ay_OpExAOEM,MATCH(sys_KeyOperator&"Protected hands",key_AOEM,0),9)),MAX(INDEX(ay_OpExAOEM,MATCH(sys_KeyOperator&"Protected hands",key_AOEM,0),10),(INDEX(ay_OpExAOEM,MATCH(sys_KeyOperator&"Protected hands",key_AOEM,0),10)/1.5)*i_AmountAS2)) ->  | G20: =IF(ISBLANK(INDEX(ay_OpExAOEM,MATCH(sys_KeyOperator&"Protected Hands",key_AOEM,0),14)), 10^(INDEX(ay_OpExAOEM,MATCH(sys_KeyOperator&"Protected Hands",key_AOEM,0),11) +(LOG(i_AmountAS2)*INDEX(ay_OpExAOEM,MATCH(sys_KeyOperator&"Protected Hands",key_AOEM,0),12)) +INDEX(ay_OpExAOEM,MATCH(sys_KeyOperator&"Protected Hands",key_AOEM,0),13)),MAX(INDEX(ay_OpExAOEM,MATCH(sys_KeyOperator&"Protected Hands",key_AOEM,0),14),(INDEX(ay_OpExAOEM,MATCH(sys_KeyOperator&"Protected Hands",key_AOEM,0),14) /1.5)*i_AmountAS2)) ->  | H20: =IF(ISBLANK(INDEX(ay_OpExAOEM,MATCH(sys_KeyOperator&"Protected hands",key_AOEM,0),10)),10^(INDEX(ay_OpExAOEM,MATCH(sys_KeyOperator&"Protected hands",key_AOEM,0),7)+(LOG(i_AmountAS3)*INDEX(ay_OpExAOEM,MATCH(sys_KeyOperator&"Protected hands",key_AOEM,0),8))+INDEX(ay_OpExAOEM,MATCH(sys_KeyOperator&"Protected hands",key_AOEM,0),9)),MAX(INDEX(ay_OpExAOEM,MATCH(sys_KeyOperator&"Protected hands",key_AOEM,0),10),(INDEX(ay_OpExAOEM,MATCH(sys_KeyOperator&"Protected hands",key_AOEM,0),10)/1.5)*i_AmountAS3)) ->  | I20: =IF(ISBLANK(INDEX(ay_OpExAOEM,MATCH(sys_KeyOperator&"Protected Hands",key_AOEM,0),14)), 10^(INDEX(ay_OpExAOEM,MATCH(sys_KeyOperator&"Protected Hands",key_AOEM,0),11) +(LOG(i_AmountAS3)*INDEX(ay_OpExAOEM,MATCH(sys_KeyOperator&"Protected Hands",key_AOEM,0),12)) +INDEX(ay_OpExAOEM,MATCH(sys_KeyOperator&"Protected Hands",key_AOEM,0),13)),MAX(INDEX(ay_OpExAOEM,MATCH(sys_KeyOperator&"Protected Hands",key_AOEM,0),14),(INDEX(ay_OpExAOEM,MATCH(sys_KeyOperator&"Protected Hands",key_AOEM,0),14) /1.5)*i_AmountAS3)) ->  | J20: =IF(ISBLANK(INDEX(ay_OpExAOEM,MATCH(sys_KeyOperator&"Protected hands",key_AOEM,0),10)),10^(INDEX(ay_OpExAOEM,MATCH(sys_KeyOperator&"Protected hands",key_AOEM,0),7)+(LOG(i_AmountAS4)*INDEX(ay_OpExAOEM,MATCH(sys_KeyOperator&"Protected hands",key_AOEM,0),8))+INDEX(ay_OpExAOEM,MATCH(sys_KeyOperator&"Protected hands",key_AOEM,0),9)),MAX(INDEX(ay_OpExAOEM,MATCH(sys_KeyOperator&"Protected hands",key_AOEM,0),10),(INDEX(ay_OpExAOEM,MATCH(sys_KeyOperator&"Protected hands",key_AOEM,0),10)/1.5)*i_AmountAS4)) ->  | K20: =IF(ISBLANK(INDEX(ay_OpExAOEM,MATCH(sys_KeyOperator&"Protected Hands",key_AOEM,0),14)), 10^(INDEX(ay_OpExAOEM,MATCH(sys_KeyOperator&"Protected Hands",key_AOEM,0),11) +(LOG(i_AmountAS4)*INDEX(ay_OpExAOEM,MATCH(sys_KeyOperator&"Protected Hands",key_AOEM,0),12)) +INDEX(ay_OpExAOEM,MATCH(sys_KeyOperator&"Protected Hands",key_AOEM,0),13)),MAX(INDEX(ay_OpExAOEM,MATCH(sys_KeyOperator&"Protected Hands",key_AOEM,0),14),(INDEX(ay_OpExAOEM,MATCH(sys_KeyOperator&"Protected Hands",key_AOEM,0),14) /1.5)*i_AmountAS4)) ->  | L20: AOEM
C21: Protected body (workwear or protective garment and sturdy footwear) | D21: =IF(ISBLANK(INDEX(ay_OpExAOEM,MATCH(sys_KeyOperator&"Protected Body",key_AOEM,0),10)),10^(INDEX(ay_OpExAOEM,MATCH(sys_KeyOperator&"Protected Body",key_AOEM,0),7)+(LOG(i_AmountAS1)*INDEX(ay_OpExAOEM,MATCH(sys_KeyOperator&"Protected Body",key_AOEM,0),8))+INDEX(ay_OpExAOEM,MATCH(sys_KeyOperator&"Protected Body",key_AOEM,0),9)),MAX(INDEX(ay_OpExAOEM,MATCH(sys_KeyOperator&"Protected Body",key_AOEM,0),10),(INDEX(ay_OpExAOEM,MATCH(sys_KeyOperator&"Protected Body",key_AOEM,0),10)/1.5)*i_AmountAS1)) ->  | E21: =IF(ISBLANK(INDEX(ay_OpExAOEM,MATCH(sys_KeyOperator&"Protected Body",key_AOEM,0),14)), 10^(INDEX(ay_OpExAOEM,MATCH(sys_KeyOperator&"Protected Body",key_AOEM,0),11) +(LOG(i_AmountAS1)*INDEX(ay_OpExAOEM,MATCH(sys_KeyOperator&"Protected Body",key_AOEM,0),12)) +INDEX(ay_OpExAOEM,MATCH(sys_KeyOperator&"Protected Body",key_AOEM,0),13)),MAX(INDEX(ay_OpExAOEM,MATCH(sys_KeyOperator&"Protected Body",key_AOEM,0),14),(INDEX(ay_OpExAOEM,MATCH(sys_KeyOperator&"Protected Body",key_AOEM,0),14) /1.5)*i_AmountAS1)) ->  | F21: =IF(ISBLANK(INDEX(ay_OpExAOEM,MATCH(sys_KeyOperator&"Protected Body",key_AOEM,0),10)),10^(INDEX(ay_OpExAOEM,MATCH(sys_KeyOperator&"Protected Body",key_AOEM,0),7)+(LOG(i_AmountAS2)*INDEX(ay_OpExAOEM,MATCH(sys_KeyOperator&"Protected Body",key_AOEM,0),8))+INDEX(ay_OpExAOEM,MATCH(sys_KeyOperator&"Protected Body",key_AOEM,0),9)),MAX(INDEX(ay_OpExAOEM,MATCH(sys_KeyOperator&"Protected Body",key_AOEM,0),10),(INDEX(ay_OpExAOEM,MATCH(sys_KeyOperator&"Protected Body",key_AOEM,0),10)/1.5)*i_AmountAS2)) ->  | G21: =IF(ISBLANK(INDEX(ay_OpExAOEM,MATCH(sys_KeyOperator&"Protected Body",key_AOEM,0),14)), 10^(INDEX(ay_OpExAOEM,MATCH(sys_KeyOperator&"Protected Body",key_AOEM,0),11) +(LOG(i_AmountAS2)*INDEX(ay_OpExAOEM,MATCH(sys_KeyOperator&"Protected Body",key_AOEM,0),12)) +INDEX(ay_OpExAOEM,MATCH(sys_KeyOperator&"Protected Body",key_AOEM,0),13)),MAX(INDEX(ay_OpExAOEM,MATCH(sys_KeyOperator&"Protected Body",key_AOEM,0),14),(INDEX(ay_OpExAOEM,MATCH(sys_KeyOperator&"Protected Body",key_AOEM,0),14) /1.5)*i_AmountAS2)) ->  | H21: =IF(ISBLANK(INDEX(ay_OpExAOEM,MATCH(sys_KeyOperator&"Protected Body",key_AOEM,0),10)),10^(INDEX(ay_OpExAOEM,MATCH(sys_KeyOperator&"Protected Body",key_AOEM,0),7)+(LOG(i_AmountAS3)*INDEX(ay_OpExAOEM,MATCH(sys_KeyOperator&"Protected Body",key_AOEM,0),8))+INDEX(ay_OpExAOEM,MATCH(sys_KeyOperator&"Protected Body",key_AOEM,0),9)),MAX(INDEX(ay_OpExAOEM,MATCH(sys_KeyOperator&"Protected Body",key_AOEM,0),10),(INDEX(ay_OpExAOEM,MATCH(sys_KeyOperator&"Protected Body",key_AOEM,0),10)/1.5)*i_AmountAS3)) ->  | I21: =IF(ISBLANK(INDEX(ay_OpExAOEM,MATCH(sys_KeyOperator&"Protected Body",key_AOEM,0),14)), 10^(INDEX(ay_OpExAOEM,MATCH(sys_KeyOperator&"Protected Body",key_AOEM,0),11) +(LOG(i_AmountAS3)*INDEX(ay_OpExAOEM,MATCH(sys_KeyOperator&"Protected Body",key_AOEM,0),12)) +INDEX(ay_OpExAOEM,MATCH(sys_KeyOperator&"Protected Body",key_AOEM,0),13)),MAX(INDEX(ay_OpExAOEM,MATCH(sys_KeyOperator&"Protected Body",key_AOEM,0),14),(INDEX(ay_OpExAOEM,MATCH(sys_KeyOperator&"Protected Body",key_AOEM,0),14) /1.5)*i_AmountAS3)) ->  | J21: =IF(ISBLANK(INDEX(ay_OpExAOEM,MATCH(sys_KeyOperator&"Protected Body",key_AOEM,0),10)),10^(INDEX(ay_OpExAOEM,MATCH(sys_KeyOperator&"Protected Body",key_AOEM,0),7)+(LOG(i_AmountAS4)*INDEX(ay_OpExAOEM,MATCH(sys_KeyOperator&"Protected Body",key_AOEM,0),8))+INDEX(ay_OpExAOEM,MATCH(sys_KeyOperator&"Protected Body",key_AOEM,0),9)),MAX(INDEX(ay_OpExAOEM,MATCH(sys_KeyOperator&"Protected Body",key_AOEM,0),10),(INDEX(ay_OpExAOEM,MATCH(sys_KeyOperator&"Protected Body",key_AOEM,0),10)/1.5)*i_AmountAS4)) ->  | K21: =IF(ISBLANK(INDEX(ay_OpExAOEM,MATCH(sys_KeyOperator&"Protected Body",key_AOEM,0),14)), 10^(INDEX(ay_OpExAOEM,MATCH(sys_KeyOperator&"Protected Body",key_AOEM,0),11) +(LOG(i_AmountAS4)*INDEX(ay_OpExAOEM,MATCH(sys_KeyOperator&"Protected Body",key_AOEM,0),12)) +INDEX(ay_OpExAOEM,MATCH(sys_KeyOperator&"Protected Body",key_AOEM,0),13)),MAX(INDEX(ay_OpExAOEM,MATCH(sys_KeyOperator&"Protected Body",key_AOEM,0),14),(INDEX(ay_OpExAOEM,MATCH(sys_KeyOperator&"Protected Body",key_AOEM,0),14) /1.5)*i_AmountAS4)) ->  | L21: AOEM
C22: Protected head (hood +/- face shield) | D22: =IF(ISBLANK(INDEX(ay_OpExAOEM,MATCH(sys_KeyOperator&"Head",key_AOEM,0),10)),10^(INDEX(ay_OpExAOEM,MATCH(sys_KeyOperator&"Head",key_AOEM,0),7)+(LOG(i_AmountAS1)*INDEX(ay_OpExAOEM,MATCH(sys_KeyOperator&"Head",key_AOEM,0),8))+INDEX(ay_OpExAOEM,MATCH(sys_KeyOperator&"Head",key_AOEM,0),9)+ d_head75ProtectionFactor),MAX(INDEX(ay_OpExAOEM,MATCH(sys_KeyOperator&"Head",key_AOEM,0),10),(INDEX(ay_OpExAOEM,MATCH(sys_KeyOperator&"Head",key_AOEM,0),10)/1.5)*i_AmountAS1))*IF(ISNUMBER(Hole_F25),Hole_F25,1) ->  | E22: =IF(ISBLANK(INDEX(ay_OpExAOEM,MATCH(sys_KeyOperator&"Head",key_AOEM,0),14)), 10^(INDEX(ay_OpExAOEM,MATCH(sys_KeyOperator&"Head",key_AOEM,0),11) +(LOG(i_AmountAS1)*INDEX(ay_OpExAOEM,MATCH(sys_KeyOperator&"Head",key_AOEM,0),12)) +INDEX(ay_OpExAOEM,MATCH(sys_KeyOperator&"Head",key_AOEM,0),13)+ d_head95ProtectionFactor),MAX(INDEX(ay_OpExAOEM,MATCH(sys_KeyOperator&"Head",key_AOEM,0),14),(INDEX(ay_OpExAOEM,MATCH(sys_KeyOperator&"Head",key_AOEM,0),14) /1.5)*i_AmountAS1))*IF(ISNUMBER(Hole_F25),Hole_F25,1) ->  | F22: =IF(ISBLANK(INDEX(ay_OpExAOEM,MATCH(sys_KeyOperator&"Head",key_AOEM,0),10)),10^(INDEX(ay_OpExAOEM,MATCH(sys_KeyOperator&"Head",key_AOEM,0),7)+(LOG(i_AmountAS2)*INDEX(ay_OpExAOEM,MATCH(sys_KeyOperator&"Head",key_AOEM,0),8))+INDEX(ay_OpExAOEM,MATCH(sys_KeyOperator&"Head",key_AOEM,0),9) + d_head75ProtectionFactor ),MAX(INDEX(ay_OpExAOEM,MATCH(sys_KeyOperator&"Head",key_AOEM,0),10),(INDEX(ay_OpExAOEM,MATCH(sys_KeyOperator&"Head",key_AOEM,0),10)/1.5)*i_AmountAS2))*IF(ISNUMBER(Hole_F25),Hole_F25,1) ->  | G22: =IF(ISBLANK(INDEX(ay_OpExAOEM,MATCH(sys_KeyOperator&"Head",key_AOEM,0),14)), 10^(INDEX(ay_OpExAOEM,MATCH(sys_KeyOperator&"Head",key_AOEM,0),11) +(LOG(i_AmountAS2)*INDEX(ay_OpExAOEM,MATCH(sys_KeyOperator&"Head",key_AOEM,0),12)) +INDEX(ay_OpExAOEM,MATCH(sys_KeyOperator&"Head",key_AOEM,0),13)+ d_head95ProtectionFactor),MAX(INDEX(ay_OpExAOEM,MATCH(sys_KeyOperator&"Head",key_AOEM,0),14),(INDEX(ay_OpExAOEM,MATCH(sys_KeyOperator&"Head",key_AOEM,0),14) /1.5)*i_AmountAS2))*IF(ISNUMBER(Hole_F25),Hole_F25,1) ->  | H22: =IF(ISBLANK(INDEX(ay_OpExAOEM,MATCH(sys_KeyOperator&"Head",key_AOEM,0),10)),10^(INDEX(ay_OpExAOEM,MATCH(sys_KeyOperator&"Head",key_AOEM,0),7)+(LOG(i_AmountAS3)*INDEX(ay_OpExAOEM,MATCH(sys_KeyOperator&"Head",key_AOEM,0),8))+INDEX(ay_OpExAOEM,MATCH(sys_KeyOperator&"Head",key_AOEM,0),9) + d_head75ProtectionFactor ),MAX(INDEX(ay_OpExAOEM,MATCH(sys_KeyOperator&"Head",key_AOEM,0),10),(INDEX(ay_OpExAOEM,MATCH(sys_KeyOperator&"Head",key_AOEM,0),10)/1.5)*i_AmountAS3))*IF(ISNUMBER(Hole_F25),Hole_F25,1) ->  | I22: =IF(ISBLANK(INDEX(ay_OpExAOEM,MATCH(sys_KeyOperator&"Head",key_AOEM,0),14)), 10^(INDEX(ay_OpExAOEM,MATCH(sys_KeyOperator&"Head",key_AOEM,0),11) +(LOG(i_AmountAS3)*INDEX(ay_OpExAOEM,MATCH(sys_KeyOperator&"Head",key_AOEM,0),12)) +INDEX(ay_OpExAOEM,MATCH(sys_KeyOperator&"Head",key_AOEM,0),13)+ d_head95ProtectionFactor),MAX(INDEX(ay_OpExAOEM,MATCH(sys_KeyOperator&"Head",key_AOEM,0),14),(INDEX(ay_OpExAOEM,MATCH(sys_KeyOperator&"Head",key_AOEM,0),14) /1.5)*i_AmountAS3))*IF(ISNUMBER(Hole_F25),Hole_F25,1) ->  | J22: =IF(ISBLANK(INDEX(ay_OpExAOEM,MATCH(sys_KeyOperator&"Head",key_AOEM,0),10)),10^(INDEX(ay_OpExAOEM,MATCH(sys_KeyOperator&"Head",key_AOEM,0),7)+(LOG(i_AmountAS4)*INDEX(ay_OpExAOEM,MATCH(sys_KeyOperator&"Head",key_AOEM,0),8))+INDEX(ay_OpExAOEM,MATCH(sys_KeyOperator&"Head",key_AOEM,0),9) + d_head75ProtectionFactor ),MAX(INDEX(ay_OpExAOEM,MATCH(sys_KeyOperator&"Head",key_AOEM,0),10),(INDEX(ay_OpExAOEM,MATCH(sys_KeyOperator&"Head",key_AOEM,0),10)/1.5)*i_AmountAS4))*IF(ISNUMBER(Hole_F25),Hole_F25,1) ->  | K22: =IF(ISBLANK(INDEX(ay_OpExAOEM,MATCH(sys_KeyOperator&"Head",key_AOEM,0),14)), 10^(INDEX(ay_OpExAOEM,MATCH(sys_KeyOperator&"Head",key_AOEM,0),11) +(LOG(i_AmountAS4)*INDEX(ay_OpExAOEM,MATCH(sys_KeyOperator&"Head",key_AOEM,0),12)) +INDEX(ay_OpExAOEM,MATCH(sys_KeyOperator&"Head",key_AOEM,0),13)+ d_head95ProtectionFactor),MAX(INDEX(ay_OpExAOEM,MATCH(sys_KeyOperator&"Head",key_AOEM,0),14),(INDEX(ay_OpExAOEM,MATCH(sys_KeyOperator&"Head",key_AOEM,0),14) /1.5)*i_AmountAS4))*IF(ISNUMBER(Hole_F25),Hole_F25,1) ->  | L22: AOEM
C23: Inhalation | D23: =IF(ISBLANK(INDEX(ay_OpExAOEM,MATCH(sys_KeyOperator&"Inhalation",key_AOEM,0),10)),10^(INDEX(ay_OpExAOEM,MATCH(sys_KeyOperator&"Inhalation",key_AOEM,0),7)+(LOG(i_AmountAS1)*INDEX(ay_OpExAOEM,MATCH(sys_KeyOperator&"Inhalation",key_AOEM,0),8))+INDEX(ay_OpExAOEM,MATCH(sys_KeyOperator&"Inhalation",key_AOEM,0),9)),MAX(INDEX(ay_OpExAOEM,MATCH(sys_KeyOperator&"Inhalation",key_AOEM,0),10),(INDEX(ay_OpExAOEM,MATCH(sys_KeyOperator&"Inhalation",key_AOEM,0),10)/1.5)*i_AmountAS1)) ->  | E23: =IF(ISBLANK(INDEX(ay_OpExAOEM,MATCH(sys_KeyOperator&"Inhalation",key_AOEM,0),14)), 10^(INDEX(ay_OpExAOEM,MATCH(sys_KeyOperator&"Inhalation",key_AOEM,0),11) +(LOG(i_AmountAS1)*INDEX(ay_OpExAOEM,MATCH(sys_KeyOperator&"Inhalation",key_AOEM,0),12)) +INDEX(ay_OpExAOEM,MATCH(sys_KeyOperator&"Inhalation",key_AOEM,0),13)),MAX(INDEX(ay_OpExAOEM,MATCH(sys_KeyOperator&"Inhalation",key_AOEM,0),14),(INDEX(ay_OpExAOEM,MATCH(sys_KeyOperator&"Inhalation",key_AOEM,0),14) /1.5)*i_AmountAS1)) ->  | F23: =IF(ISBLANK(INDEX(ay_OpExAOEM,MATCH(sys_KeyOperator&"Inhalation",key_AOEM,0),10)),10^(INDEX(ay_OpExAOEM,MATCH(sys_KeyOperator&"Inhalation",key_AOEM,0),7)+(LOG(i_AmountAS2)*INDEX(ay_OpExAOEM,MATCH(sys_KeyOperator&"Inhalation",key_AOEM,0),8))+INDEX(ay_OpExAOEM,MATCH(sys_KeyOperator&"Inhalation",key_AOEM,0),9)),MAX(INDEX(ay_OpExAOEM,MATCH(sys_KeyOperator&"Inhalation",key_AOEM,0),10),(INDEX(ay_OpExAOEM,MATCH(sys_KeyOperator&"Inhalation",key_AOEM,0),10)/1.5)*i_AmountAS2)) ->  | G23: =IF(ISBLANK(INDEX(ay_OpExAOEM,MATCH(sys_KeyOperator&"Inhalation",key_AOEM,0),14)), 10^(INDEX(ay_OpExAOEM,MATCH(sys_KeyOperator&"Inhalation",key_AOEM,0),11) +(LOG(i_AmountAS2)*INDEX(ay_OpExAOEM,MATCH(sys_KeyOperator&"Inhalation",key_AOEM,0),12)) +INDEX(ay_OpExAOEM,MATCH(sys_KeyOperator&"Inhalation",key_AOEM,0),13)),MAX(INDEX(ay_OpExAOEM,MATCH(sys_KeyOperator&"Inhalation",key_AOEM,0),14),(INDEX(ay_OpExAOEM,MATCH(sys_KeyOperator&"Inhalation",key_AOEM,0),14) /1.5)*i_AmountAS2)) ->  | H23: =IF(ISBLANK(INDEX(ay_OpExAOEM,MATCH(sys_KeyOperator&"Inhalation",key_AOEM,0),10)),10^(INDEX(ay_OpExAOEM,MATCH(sys_KeyOperator&"Inhalation",key_AOEM,0),7)+(LOG(i_AmountAS3)*INDEX(ay_OpExAOEM,MATCH(sys_KeyOperator&"Inhalation",key_AOEM,0),8))+INDEX(ay_OpExAOEM,MATCH(sys_KeyOperator&"Inhalation",key_AOEM,0),9)),MAX(INDEX(ay_OpExAOEM,MATCH(sys_KeyOperator&"Inhalation",key_AOEM,0),10),(INDEX(ay_OpExAOEM,MATCH(sys_KeyOperator&"Inhalation",key_AOEM,0),10)/1.5)*i_AmountAS3)) ->  | I23: =IF(ISBLANK(INDEX(ay_OpExAOEM,MATCH(sys_KeyOperator&"Inhalation",key_AOEM,0),14)), 10^(INDEX(ay_OpExAOEM,MATCH(sys_KeyOperator&"Inhalation",key_AOEM,0),11) +(LOG(i_AmountAS3)*INDEX(ay_OpExAOEM,MATCH(sys_KeyOperator&"Inhalation",key_AOEM,0),12)) +INDEX(ay_OpExAOEM,MATCH(sys_KeyOperator&"Inhalation",key_AOEM,0),13)),MAX(INDEX(ay_OpExAOEM,MATCH(sys_KeyOperator&"Inhalation",key_AOEM,0),14),(INDEX(ay_OpExAOEM,MATCH(sys_KeyOperator&"Inhalation",key_AOEM,0),14) /1.5)*i_AmountAS3)) ->  | J23: =IF(ISBLANK(INDEX(ay_OpExAOEM,MATCH(sys_KeyOperator&"Inhalation",key_AOEM,0),10)),10^(INDEX(ay_OpExAOEM,MATCH(sys_KeyOperator&"Inhalation",key_AOEM,0),7)+(LOG(i_AmountAS4)*INDEX(ay_OpExAOEM,MATCH(sys_KeyOperator&"Inhalation",key_AOEM,0),8))+INDEX(ay_OpExAOEM,MATCH(sys_KeyOperator&"Inhalation",key_AOEM,0),9)),MAX(INDEX(ay_OpExAOEM,MATCH(sys_KeyOperator&"Inhalation",key_AOEM,0),10),(INDEX(ay_OpExAOEM,MATCH(sys_KeyOperator&"Inhalation",key_AOEM,0),10)/1.5)*i_AmountAS4)) ->  | K23: =IF(ISBLANK(INDEX(ay_OpExAOEM,MATCH(sys_KeyOperator&"Inhalation",key_AOEM,0),14)), 10^(INDEX(ay_OpExAOEM,MATCH(sys_KeyOperator&"Inhalation",key_AOEM,0),11) +(LOG(i_AmountAS4)*INDEX(ay_OpExAOEM,MATCH(sys_KeyOperator&"Inhalation",key_AOEM,0),12)) +INDEX(ay_OpExAOEM,MATCH(sys_KeyOperator&"Inhalation",key_AOEM,0),13)),MAX(INDEX(ay_OpExAOEM,MATCH(sys_KeyOperator&"Inhalation",key_AOEM,0),14),(INDEX(ay_OpExAOEM,MATCH(sys_KeyOperator&"Inhalation",key_AOEM,0),14) /1.5)*i_AmountAS4)) ->  | L23: AOEM
C24: Protective Equipment | D24: Select for inclusion | L24: Penetration factor | M24: Inhalation Protection factor
C25: Gloves | D25: ='Operator Spray'!D25 -> No | L25: =IF(D25="Yes","Incl. in AOEM model","") -> 
C26: Clothing | D26: ='Operator Spray'!D26 -> Work wear - arms, body and legs covered | L26: Incl. in AOEM model
C27: Head and respiratory PPE | D27: ='Operator Spray'!D27 -> None | L27: =IF(AND(i_AppEquip="Manual-Hand held",D27="Hood and visor"),"Incl. in AOEM model",INDEX(ay_MixPPEHead,MATCH(D27,key_MixPPEHead,0),2)) -> 1 | M27: =IF(OR(D27="Hood and visor",D27="Hood"),1,INDEX(ay_MixRPE,MATCH(D27,key_MixRPE,0),2)) -> 1
C28: Water soluble bag | D28: ='Operator Spray'!D28 -> No | L28: =IF(AND(D28="Yes"),0.1,1) -> 1
B29: Application | D29: =i_SubstName1 -> 0 | F29: =i_SubstName2 -> 0 | H29: =i_SubstName3 -> 0 | J29: =i_SubstName4 -> 0
C30: Exposure values | D30: µg exposure/day applied | F30: µg exposure/day applied | H30: µg exposure/day applied | J30: µg exposure/day applied | L30: Reference | M30: Comment
D31: 75th percentile | E31: 95th percentile | F31: 75th percentile | G31: 95th percentile | H31: 75th percentile | I31: 95th percentile | J31: 75th percentile | K31: 95th percentile
C32: Hands | D32: =IF(ISBLANK(INDEX(ay_OpExAOEM,MATCH(sys_KeyOperator&"Hands",key_AOEM,0),18)),10^(INDEX(ay_OpExAOEM,MATCH(sys_KeyOperator&"Hands",key_AOEM,0),15)+(LOG(0.1*i_AmountAS1)*INDEX(ay_OpExAOEM,MATCH(sys_KeyOperator&"Hands",key_AOEM,0),16))+ IF(AND(i_AppMeth="Upward spraying",LEFT(i_AppEquip,15)="Vehicle-mounted",d_AppPfCaBfR = "Yes"),0,IF(AND(i_Season = "late (dense foliage)",i_AppMeth="Upward spraying",OR(i_AppEquip="Manual-Hand held",i_AppEquip="Manual-Knapsack")),0,INDEX(ay_OpExAOEM,MATCH(sys_KeyOperator&"Hands",key_AOEM,0),17))) ),MAX(INDEX(ay_OpExAOEM,MATCH(sys_KeyOperator&"Hands",key_AOEM,0),18),(INDEX(ay_OpExAOEM,MATCH(sys_KeyOperator&"Hands",key_AOEM,0),18)/d_PctExtrapolation)*0.1*i_AmountAS1)) ->  | E32: =IF(ISBLANK(INDEX(ay_OpExAOEM,MATCH(sys_KeyOperator&"Hands",key_AOEM,0),22)),10^(INDEX(ay_OpExAOEM,MATCH(sys_KeyOperator&"Hands",key_AOEM,0),19)+(LOG(0.1*i_AmountAS1)*INDEX(ay_OpExAOEM,MATCH(sys_KeyOperator&"Hands",key_AOEM,0),20))+ IF(AND(i_AppMeth="Upward spraying",LEFT(i_AppEquip,15)="Vehicle-mounted",d_AppPfCaBfR = "Yes"),0,IF(AND(i_Season = "late (dense foliage)",i_AppMeth="Upward spraying",OR(i_AppEquip="Manual-Hand held",i_AppEquip="Manual-Knapsack")),0,INDEX(ay_OpExAOEM,MATCH(sys_KeyOperator&"Hands",key_AOEM,0),21))) ),MAX(INDEX(ay_OpExAOEM,MATCH(sys_KeyOperator&"Hands",key_AOEM,0),22),(INDEX(ay_OpExAOEM,MATCH(sys_KeyOperator&"Hands",key_AOEM,0),22)/d_PctExtrapolation)*0.1*i_AmountAS1)) ->  | F32: =IF(ISBLANK(INDEX(ay_OpExAOEM,MATCH(sys_KeyOperator&"Hands",key_AOEM,0),18)),10^(INDEX(ay_OpExAOEM,MATCH(sys_KeyOperator&"Hands",key_AOEM,0),15)+(LOG(0.1*i_AmountAS2)*INDEX(ay_OpExAOEM,MATCH(sys_KeyOperator&"Hands",key_AOEM,0),16))+ IF(AND(i_AppMeth="Upward spraying",LEFT(i_AppEquip,15)="Vehicle-mounted",d_AppPfCaBfR = "Yes"),0,IF(AND(i_Season = "late (dense foliage)",i_AppMeth="Upward spraying",OR(i_AppEquip="Manual-Hand held",i_AppEquip="Manual-Knapsack")),0,INDEX(ay_OpExAOEM,MATCH(sys_KeyOperator&"Hands",key_AOEM,0),17))) ),MAX(INDEX(ay_OpExAOEM,MATCH(sys_KeyOperator&"Hands",key_AOEM,0),18),(INDEX(ay_OpExAOEM,MATCH(sys_KeyOperator&"Hands",key_AOEM,0),18)/d_PctExtrapolation)*0.1*i_AmountAS2)) ->  | G32: =IF(ISBLANK(INDEX(ay_OpExAOEM,MATCH(sys_KeyOperator&"Hands",key_AOEM,0),22)),10^(INDEX(ay_OpExAOEM,MATCH(sys_KeyOperator&"Hands",key_AOEM,0),19)+(LOG(0.1*i_AmountAS2)*INDEX(ay_OpExAOEM,MATCH(sys_KeyOperator&"Hands",key_AOEM,0),20))+ IF(AND(i_AppMeth="Upward spraying",LEFT(i_AppEquip,15)="Vehicle-mounted",d_AppPfCaBfR = "Yes"),0,IF(AND(i_Season = "late (dense foliage)",i_AppMeth="Upward spraying",OR(i_AppEquip="Manual-Hand held",i_AppEquip="Manual-Knapsack")),0,INDEX(ay_OpExAOEM,MATCH(sys_KeyOperator&"Hands",key_AOEM,0),21))) ),MAX(INDEX(ay_OpExAOEM,MATCH(sys_KeyOperator&"Hands",key_AOEM,0),22),(INDEX(ay_OpExAOEM,MATCH(sys_KeyOperator&"Hands",key_AOEM,0),22)/d_PctExtrapolation)*0.1*i_AmountAS2)) ->  | H32: =IF(ISBLANK(INDEX(ay_OpExAOEM,MATCH(sys_KeyOperator&"Hands",key_AOEM,0),18)),10^(INDEX(ay_OpExAOEM,MATCH(sys_KeyOperator&"Hands",key_AOEM,0),15)+(LOG(0.1*i_AmountAS3)*INDEX(ay_OpExAOEM,MATCH(sys_KeyOperator&"Hands",key_AOEM,0),16))+ IF(AND(i_AppMeth="Upward spraying",LEFT(i_AppEquip,15)="Vehicle-mounted",d_AppPfCaBfR = "Yes"),0,IF(AND(i_Season = "late (dense foliage)",i_AppMeth="Upward spraying",OR(i_AppEquip="Manual-Hand held",i_AppEquip="Manual-Knapsack")),0,INDEX(ay_OpExAOEM,MATCH(sys_KeyOperator&"Hands",key_AOEM,0),17))) ),MAX(INDEX(ay_OpExAOEM,MATCH(sys_KeyOperator&"Hands",key_AOEM,0),18),(INDEX(ay_OpExAOEM,MATCH(sys_KeyOperator&"Hands",key_AOEM,0),18)/d_PctExtrapolation)*0.1*i_AmountAS3)) ->  | I32: =IF(ISBLANK(INDEX(ay_OpExAOEM,MATCH(sys_KeyOperator&"Hands",key_AOEM,0),22)),10^(INDEX(ay_OpExAOEM,MATCH(sys_KeyOperator&"Hands",key_AOEM,0),19)+(LOG(0.1*i_AmountAS3)*INDEX(ay_OpExAOEM,MATCH(sys_KeyOperator&"Hands",key_AOEM,0),20))+ IF(AND(i_AppMeth="Upward spraying",LEFT(i_AppEquip,15)="Vehicle-mounted",d_AppPfCaBfR = "Yes"),0,IF(AND(i_Season = "late (dense foliage)",i_AppMeth="Upward spraying",OR(i_AppEquip="Manual-Hand held",i_AppEquip="Manual-Knapsack")),0,INDEX(ay_OpExAOEM,MATCH(sys_KeyOperator&"Hands",key_AOEM,0),21))) ),MAX(INDEX(ay_OpExAOEM,MATCH(sys_KeyOperator&"Hands",key_AOEM,0),22),(INDEX(ay_OpExAOEM,MATCH(sys_KeyOperator&"Hands",key_AOEM,0),22)/d_PctExtrapolation)*0.1*i_AmountAS3)) ->  | J32: =IF(ISBLANK(INDEX(ay_OpExAOEM,MATCH(sys_KeyOperator&"Hands",key_AOEM,0),18)),10^(INDEX(ay_OpExAOEM,MATCH(sys_KeyOperator&"Hands",key_AOEM,0),15)+(LOG(0.1*i_AmountAS4)*INDEX(ay_OpExAOEM,MATCH(sys_KeyOperator&"Hands",key_AOEM,0),16))+ IF(AND(i_AppMeth="Upward spraying",LEFT(i_AppEquip,15)="Vehicle-mounted",d_AppPfCaBfR = "Yes"),0,IF(AND(i_Season = "late (dense foliage)",i_AppMeth="Upward spraying",OR(i_AppEquip="Manual-Hand held",i_AppEquip="Manual-Knapsack")),0,INDEX(ay_OpExAOEM,MATCH(sys_KeyOperator&"Hands",key_AOEM,0),17))) ),MAX(INDEX(ay_OpExAOEM,MATCH(sys_KeyOperator&"Hands",key_AOEM,0),18),(INDEX(ay_OpExAOEM,MATCH(sys_KeyOperator&"Hands",key_AOEM,0),18)/d_PctExtrapolation)*0.1*i_AmountAS4)) ->  | K32: =IF(ISBLANK(INDEX(ay_OpExAOEM,MATCH(sys_KeyOperator&"Hands",key_AOEM,0),22)),10^(INDEX(ay_OpExAOEM,MATCH(sys_KeyOperator&"Hands",key_AOEM,0),19)+(LOG(0.1*i_AmountAS4)*INDEX(ay_OpExAOEM,MATCH(sys_KeyOperator&"Hands",key_AOEM,0),20))+ IF(AND(i_AppMeth="Upward spraying",LEFT(i_AppEquip,15)="Vehicle-mounted",d_AppPfCaBfR = "Yes"),0,IF(AND(i_Season = "late (dense foliage)",i_AppMeth="Upward spraying",OR(i_AppEquip="Manual-Hand held",i_AppEquip="Manual-Knapsack")),0,INDEX(ay_OpExAOEM,MATCH(sys_KeyOperator&"Hands",key_AOEM,0),21))) ),MAX(INDEX(ay_OpExAOEM,MATCH(sys_KeyOperator&"Hands",key_AOEM,0),22),(INDEX(ay_OpExAOEM,MATCH(sys_KeyOperator&"Hands",key_AOEM,0),22)/d_PctExtrapolation)*0.1*i_AmountAS4)) ->  | L32: AOEM | M32: =IF(AND(d_AreaTreated=10,i_AppMeth="Downward spraying"),IF(i_AppEquip="Vehicle-mounted-Drift Reduction","Small area equipment and drift reduction cannot be selected together - drift reduction has not been applied","This scenario assumes that small area equipment is used"),IF(i_AppMeth="Upward spraying", "No data available for a drift reduction scenario","") ) -> 
C33: Body | D33: =IF(ISBLANK(INDEX(ay_OpExAOEM,MATCH(sys_KeyOperator&"Body",key_AOEM,0),18)),10^(INDEX(ay_OpExAOEM,MATCH(sys_KeyOperator&"Body",key_AOEM,0),15)+(LOG(0.1*i_AmountAS1)*INDEX(ay_OpExAOEM,MATCH(sys_KeyOperator&"Body",key_AOEM,0),16))+ IF(AND(i_AppMeth="Upward spraying",LEFT(i_AppEquip,15)="Vehicle-mounted",d_AppPfCaBfR = "Yes"),0,IF(AND(i_Season = "late (dense foliage)",i_AppMeth="Upward spraying",OR(i_AppEquip="Manual-Hand held",i_AppEquip="Manual-Knapsack")),0,INDEX(ay_OpExAOEM,MATCH(sys_KeyOperator&"Body",key_AOEM,0),17))) ),MAX(INDEX(ay_OpExAOEM,MATCH(sys_KeyOperator&"Body",key_AOEM,0),18),(INDEX(ay_OpExAOEM,MATCH(sys_KeyOperator&"Body",key_AOEM,0),18)/d_PctExtrapolation)*0.1*i_AmountAS1)) ->  | E33: =IF(ISBLANK(INDEX(ay_OpExAOEM,MATCH(sys_KeyOperator&"Body",key_AOEM,0),22)),10^(INDEX(ay_OpExAOEM,MATCH(sys_KeyOperator&"Body",key_AOEM,0),19)+(LOG(0.1*i_AmountAS1)*INDEX(ay_OpExAOEM,MATCH(sys_KeyOperator&"Body",key_AOEM,0),20))+ IF(AND(i_AppMeth="Upward spraying",LEFT(i_AppEquip,15)="Vehicle-mounted",d_AppPfCaBfR = "Yes"),0,IF(AND(i_Season = "late (dense foliage)",i_AppMeth="Upward spraying",OR(i_AppEquip="Manual-Hand held",i_AppEquip="Manual-Knapsack")),0,INDEX(ay_OpExAOEM,MATCH(sys_KeyOperator&"Body",key_AOEM,0),21))) ),MAX(INDEX(ay_OpExAOEM,MATCH(sys_KeyOperator&"Body",key_AOEM,0),22),(INDEX(ay_OpExAOEM,MATCH(sys_KeyOperator&"Body",key_AOEM,0),22)/d_PctExtrapolation)*0.1*i_AmountAS1)) ->  | F33: =IF(ISBLANK(INDEX(ay_OpExAOEM,MATCH(sys_KeyOperator&"Body",key_AOEM,0),18)),10^(INDEX(ay_OpExAOEM,MATCH(sys_KeyOperator&"Body",key_AOEM,0),15)+(LOG(0.1*i_AmountAS2)*INDEX(ay_OpExAOEM,MATCH(sys_KeyOperator&"Body",key_AOEM,0),16))+ IF(AND(i_AppMeth="Upward spraying",LEFT(i_AppEquip,15)="Vehicle-mounted",d_AppPfCaBfR = "Yes"),0,IF(AND(i_Season = "late (dense foliage)",i_AppMeth="Upward spraying",OR(i_AppEquip="Manual-Hand held",i_AppEquip="Manual-Knapsack")),0,INDEX(ay_OpExAOEM,MATCH(sys_KeyOperator&"Body",key_AOEM,0),17))) ),MAX(INDEX(ay_OpExAOEM,MATCH(sys_KeyOperator&"Body",key_AOEM,0),18),(INDEX(ay_OpExAOEM,MATCH(sys_KeyOperator&"Body",key_AOEM,0),18)/d_PctExtrapolation)*0.1*i_AmountAS2)) ->  | G33: =IF(ISBLANK(INDEX(ay_OpExAOEM,MATCH(sys_KeyOperator&"Body",key_AOEM,0),22)),10^(INDEX(ay_OpExAOEM,MATCH(sys_KeyOperator&"Body",key_AOEM,0),19)+(LOG(0.1*i_AmountAS2)*INDEX(ay_OpExAOEM,MATCH(sys_KeyOperator&"Body",key_AOEM,0),20))+ IF(AND(i_AppMeth="Upward spraying",LEFT(i_AppEquip,15)="Vehicle-mounted",d_AppPfCaBfR = "Yes"),0,IF(AND(i_Season = "late (dense foliage)",i_AppMeth="Upward spraying",OR(i_AppEquip="Manual-Hand held",i_AppEquip="Manual-Knapsack")),0,INDEX(ay_OpExAOEM,MATCH(sys_KeyOperator&"Body",key_AOEM,0),21))) ),MAX(INDEX(ay_OpExAOEM,MATCH(sys_KeyOperator&"Body",key_AOEM,0),22),(INDEX(ay_OpExAOEM,MATCH(sys_KeyOperator&"Body",key_AOEM,0),22)/d_PctExtrapolation)*0.1*i_AmountAS2)) ->  | H33: =IF(ISBLANK(INDEX(ay_OpExAOEM,MATCH(sys_KeyOperator&"Body",key_AOEM,0),18)),10^(INDEX(ay_OpExAOEM,MATCH(sys_KeyOperator&"Body",key_AOEM,0),15)+(LOG(0.1*i_AmountAS3)*INDEX(ay_OpExAOEM,MATCH(sys_KeyOperator&"Body",key_AOEM,0),16))+ IF(AND(i_AppMeth="Upward spraying",LEFT(i_AppEquip,15)="Vehicle-mounted",d_AppPfCaBfR = "Yes"),0,IF(AND(i_Season = "late (dense foliage)",i_AppMeth="Upward spraying",OR(i_AppEquip="Manual-Hand held",i_AppEquip="Manual-Knapsack")),0,INDEX(ay_OpExAOEM,MATCH(sys_KeyOperator&"Body",key_AOEM,0),17))) ),MAX(INDEX(ay_OpExAOEM,MATCH(sys_KeyOperator&"Body",key_AOEM,0),18),(INDEX(ay_OpExAOEM,MATCH(sys_KeyOperator&"Body",key_AOEM,0),18)/d_PctExtrapolation)*0.1*i_AmountAS3)) ->  | I33: =IF(ISBLANK(INDEX(ay_OpExAOEM,MATCH(sys_KeyOperator&"Body",key_AOEM,0),22)),10^(INDEX(ay_OpExAOEM,MATCH(sys_KeyOperator&"Body",key_AOEM,0),19)+(LOG(0.1*i_AmountAS3)*INDEX(ay_OpExAOEM,MATCH(sys_KeyOperator&"Body",key_AOEM,0),20))+ IF(AND(i_AppMeth="Upward spraying",LEFT(i_AppEquip,15)="Vehicle-mounted",d_AppPfCaBfR = "Yes"),0,IF(AND(i_Season = "late (dense foliage)",i_AppMeth="Upward spraying",OR(i_AppEquip="Manual-Hand held",i_AppEquip="Manual-Knapsack")),0,INDEX(ay_OpExAOEM,MATCH(sys_KeyOperator&"Body",key_AOEM,0),21))) ),MAX(INDEX(ay_OpExAOEM,MATCH(sys_KeyOperator&"Body",key_AOEM,0),22),(INDEX(ay_OpExAOEM,MATCH(sys_KeyOperator&"Body",key_AOEM,0),22)/d_PctExtrapolation)*0.1*i_AmountAS3)) ->  | J33: =IF(ISBLANK(INDEX(ay_OpExAOEM,MATCH(sys_KeyOperator&"Body",key_AOEM,0),18)),10^(INDEX(ay_OpExAOEM,MATCH(sys_KeyOperator&"Body",key_AOEM,0),15)+(LOG(0.1*i_AmountAS4)*INDEX(ay_OpExAOEM,MATCH(sys_KeyOperator&"Body",key_AOEM,0),16))+ IF(AND(i_AppMeth="Upward spraying",LEFT(i_AppEquip,15)="Vehicle-mounted",d_AppPfCaBfR = "Yes"),0,IF(AND(i_Season = "late (dense foliage)",i_AppMeth="Upward spraying",OR(i_AppEquip="Manual-Hand held",i_AppEquip="Manual-Knapsack")),0,INDEX(ay_OpExAOEM,MATCH(sys_KeyOperator&"Body",key_AOEM,0),17))) ),MAX(INDEX(ay_OpExAOEM,MATCH(sys_KeyOperator&"Body",key_AOEM,0),18),(INDEX(ay_OpExAOEM,MATCH(sys_KeyOperator&"Body",key_AOEM,0),18)/d_PctExtrapolation)*0.1*i_AmountAS4)) ->  | K33: =IF(ISBLANK(INDEX(ay_OpExAOEM,MATCH(sys_KeyOperator&"Body",key_AOEM,0),22)),10^(INDEX(ay_OpExAOEM,MATCH(sys_KeyOperator&"Body",key_AOEM,0),19)+(LOG(0.1*i_AmountAS4)*INDEX(ay_OpExAOEM,MATCH(sys_KeyOperator&"Body",key_AOEM,0),20))+ IF(AND(i_AppMeth="Upward spraying",LEFT(i_AppEquip,15)="Vehicle-mounted",d_AppPfCaBfR = "Yes"),0,IF(AND(i_Season = "late (dense foliage)",i_AppMeth="Upward spraying",OR(i_AppEquip="Manual-Hand held",i_AppEquip="Manual-Knapsack")),0,INDEX(ay_OpExAOEM,MATCH(sys_KeyOperator&"Body",key_AOEM,0),21))) ),MAX(INDEX(ay_OpExAOEM,MATCH(sys_KeyOperator&"Body",key_AOEM,0),22),(INDEX(ay_OpExAOEM,MATCH(sys_KeyOperator&"Body",key_AOEM,0),22)/d_PctExtrapolation)*0.1*i_AmountAS4)) ->  | L33: AOEM
C34: Head | D34: =IF(ISBLANK(INDEX(ay_OpExAOEM,MATCH(sys_KeyOperator&"Head",key_AOEM,0),18)),10^(INDEX(ay_OpExAOEM,MATCH(sys_KeyOperator&"Head",key_AOEM,0),15)+(LOG(0.1*i_AmountAS1)*INDEX(ay_OpExAOEM,MATCH(sys_KeyOperator&"Head",key_AOEM,0),16))+ IF(AND(i_AppMeth="Upward spraying",LEFT(i_AppEquip,15)="Vehicle-mounted",d_AppPfCaBfR = "Yes"),0,IF(AND(i_Season = "late (dense foliage)",i_AppMeth="Upward spraying",OR(i_AppEquip="Manual-Hand held",i_AppEquip="Manual-Knapsack")),0,INDEX(ay_OpExAOEM,MATCH(sys_KeyOperator&"Head",key_AOEM,0),17))) ),MAX(INDEX(ay_OpExAOEM,MATCH(sys_KeyOperator&"Head",key_AOEM,0),18),(INDEX(ay_OpExAOEM,MATCH(sys_KeyOperator&"Head",key_AOEM,0),18)/d_PctExtrapolation)*0.1*i_AmountAS1)) ->  | E34: =IF(ISBLANK(INDEX(ay_OpExAOEM,MATCH(sys_KeyOperator&"Head",key_AOEM,0),22)),10^(INDEX(ay_OpExAOEM,MATCH(sys_KeyOperator&"Head",key_AOEM,0),19)+(LOG(0.1*i_AmountAS1)*INDEX(ay_OpExAOEM,MATCH(sys_KeyOperator&"Head",key_AOEM,0),20))+ IF(AND(i_AppMeth="Upward spraying",LEFT(i_AppEquip,15)="Vehicle-mounted",d_AppPfCaBfR = "Yes"),0,IF(AND(i_Season = "late (dense foliage)",i_AppMeth="Upward spraying",OR(i_AppEquip="Manual-Hand held",i_AppEquip="Manual-Knapsack")),0,INDEX(ay_OpExAOEM,MATCH(sys_KeyOperator&"Head",key_AOEM,0),21))) ),MAX(INDEX(ay_OpExAOEM,MATCH(sys_KeyOperator&"Head",key_AOEM,0),22),(INDEX(ay_OpExAOEM,MATCH(sys_KeyOperator&"Head",key_AOEM,0),22)/d_PctExtrapolation)*0.1*i_AmountAS1)) ->  | F34: =IF(ISBLANK(INDEX(ay_OpExAOEM,MATCH(sys_KeyOperator&"Head",key_AOEM,0),18)),10^(INDEX(ay_OpExAOEM,MATCH(sys_KeyOperator&"Head",key_AOEM,0),15)+(LOG(0.1*i_AmountAS2)*INDEX(ay_OpExAOEM,MATCH(sys_KeyOperator&"Head",key_AOEM,0),16))+ IF(AND(i_AppMeth="Upward spraying",LEFT(i_AppEquip,15)="Vehicle-mounted",d_AppPfCaBfR = "Yes"),0,IF(AND(i_Season = "late (dense foliage)",i_AppMeth="Upward spraying",OR(i_AppEquip="Manual-Hand held",i_AppEquip="Manual-Knapsack")),0,INDEX(ay_OpExAOEM,MATCH(sys_KeyOperator&"Head",key_AOEM,0),17))) ),MAX(INDEX(ay_OpExAOEM,MATCH(sys_KeyOperator&"Head",key_AOEM,0),18),(INDEX(ay_OpExAOEM,MATCH(sys_KeyOperator&"Head",key_AOEM,0),18)/d_PctExtrapolation)*0.1*i_AmountAS2)) ->  | G34: =IF(ISBLANK(INDEX(ay_OpExAOEM,MATCH(sys_KeyOperator&"Head",key_AOEM,0),22)),10^(INDEX(ay_OpExAOEM,MATCH(sys_KeyOperator&"Head",key_AOEM,0),19)+(LOG(0.1*i_AmountAS2)*INDEX(ay_OpExAOEM,MATCH(sys_KeyOperator&"Head",key_AOEM,0),20))+ IF(AND(i_AppMeth="Upward spraying",LEFT(i_AppEquip,15)="Vehicle-mounted",d_AppPfCaBfR = "Yes"),0,IF(AND(i_Season = "late (dense foliage)",i_AppMeth="Upward spraying",OR(i_AppEquip="Manual-Hand held",i_AppEquip="Manual-Knapsack")),0,INDEX(ay_OpExAOEM,MATCH(sys_KeyOperator&"Head",key_AOEM,0),21))) ),MAX(INDEX(ay_OpExAOEM,MATCH(sys_KeyOperator&"Head",key_AOEM,0),22),(INDEX(ay_OpExAOEM,MATCH(sys_KeyOperator&"Head",key_AOEM,0),22)/d_PctExtrapolation)*0.1*i_AmountAS2)) ->  | H34: =IF(ISBLANK(INDEX(ay_OpExAOEM,MATCH(sys_KeyOperator&"Head",key_AOEM,0),18)),10^(INDEX(ay_OpExAOEM,MATCH(sys_KeyOperator&"Head",key_AOEM,0),15)+(LOG(0.1*i_AmountAS3)*INDEX(ay_OpExAOEM,MATCH(sys_KeyOperator&"Head",key_AOEM,0),16))+ IF(AND(i_AppMeth="Upward spraying",LEFT(i_AppEquip,15)="Vehicle-mounted",d_AppPfCaBfR = "Yes"),0,IF(AND(i_Season = "late (dense foliage)",i_AppMeth="Upward spraying",OR(i_AppEquip="Manual-Hand held",i_AppEquip="Manual-Knapsack")),0,INDEX(ay_OpExAOEM,MATCH(sys_KeyOperator&"Head",key_AOEM,0),17))) ),MAX(INDEX(ay_OpExAOEM,MATCH(sys_KeyOperator&"Head",key_AOEM,0),18),(INDEX(ay_OpExAOEM,MATCH(sys_KeyOperator&"Head",key_AOEM,0),18)/d_PctExtrapolation)*0.1*i_AmountAS3)) ->  | I34: =IF(ISBLANK(INDEX(ay_OpExAOEM,MATCH(sys_KeyOperator&"Head",key_AOEM,0),22)),10^(INDEX(ay_OpExAOEM,MATCH(sys_KeyOperator&"Head",key_AOEM,0),19)+(LOG(0.1*i_AmountAS3)*INDEX(ay_OpExAOEM,MATCH(sys_KeyOperator&"Head",key_AOEM,0),20))+ IF(AND(i_AppMeth="Upward spraying",LEFT(i_AppEquip,15)="Vehicle-mounted",d_AppPfCaBfR = "Yes"),0,IF(AND(i_Season = "late (dense foliage)",i_AppMeth="Upward spraying",OR(i_AppEquip="Manual-Hand held",i_AppEquip="Manual-Knapsack")),0,INDEX(ay_OpExAOEM,MATCH(sys_KeyOperator&"Head",key_AOEM,0),21))) ),MAX(INDEX(ay_OpExAOEM,MATCH(sys_KeyOperator&"Head",key_AOEM,0),22),(INDEX(ay_OpExAOEM,MATCH(sys_KeyOperator&"Head",key_AOEM,0),22)/d_PctExtrapolation)*0.1*i_AmountAS3)) ->  | J34: =IF(ISBLANK(INDEX(ay_OpExAOEM,MATCH(sys_KeyOperator&"Head",key_AOEM,0),18)),10^(INDEX(ay_OpExAOEM,MATCH(sys_KeyOperator&"Head",key_AOEM,0),15)+(LOG(0.1*i_AmountAS4)*INDEX(ay_OpExAOEM,MATCH(sys_KeyOperator&"Head",key_AOEM,0),16))+ IF(AND(i_AppMeth="Upward spraying",LEFT(i_AppEquip,15)="Vehicle-mounted",d_AppPfCaBfR = "Yes"),0,IF(AND(i_Season = "late (dense foliage)",i_AppMeth="Upward spraying",OR(i_AppEquip="Manual-Hand held",i_AppEquip="Manual-Knapsack")),0,INDEX(ay_OpExAOEM,MATCH(sys_KeyOperator&"Head",key_AOEM,0),17))) ),MAX(INDEX(ay_OpExAOEM,MATCH(sys_KeyOperator&"Head",key_AOEM,0),18),(INDEX(ay_OpExAOEM,MATCH(sys_KeyOperator&"Head",key_AOEM,0),18)/d_PctExtrapolation)*0.1*i_AmountAS4)) ->  | K34: =IF(ISBLANK(INDEX(ay_OpExAOEM,MATCH(sys_KeyOperator&"Head",key_AOEM,0),22)),10^(INDEX(ay_OpExAOEM,MATCH(sys_KeyOperator&"Head",key_AOEM,0),19)+(LOG(0.1*i_AmountAS4)*INDEX(ay_OpExAOEM,MATCH(sys_KeyOperator&"Head",key_AOEM,0),20))+ IF(AND(i_AppMeth="Upward spraying",LEFT(i_AppEquip,15)="Vehicle-mounted",d_AppPfCaBfR = "Yes"),0,IF(AND(i_Season = "late (dense foliage)",i_AppMeth="Upward spraying",OR(i_AppEquip="Manual-Hand held",i_AppEquip="Manual-Knapsack")),0,INDEX(ay_OpExAOEM,MATCH(sys_KeyOperator&"Head",key_AOEM,0),21))) ),MAX(INDEX(ay_OpExAOEM,MATCH(sys_KeyOperator&"Head",key_AOEM,0),22),(INDEX(ay_OpExAOEM,MATCH(sys_KeyOperator&"Head",key_AOEM,0),22)/d_PctExtrapolation)*0.1*i_AmountAS4)) ->  | L34: AOEM
C35: Protected hands (gloves) | D35: =IF(ISBLANK(INDEX(ay_OpExAOEM,MATCH(sys_KeyOperator&"Protected Hands",key_AOEM,0),18)),10^(INDEX(ay_OpExAOEM,MATCH(sys_KeyOperator&"Protected Hands",key_AOEM,0),15)+(LOG(0.1*i_AmountAS1)*INDEX(ay_OpExAOEM,MATCH(sys_KeyOperator&"Protected Hands",key_AOEM,0),16))+ IF(AND(i_AppMeth="Upward spraying",LEFT(i_AppEquip,15)="Vehicle-mounted",d_AppPfCaBfR = "Yes"),0,IF(AND(i_Season = "late (dense foliage)",i_AppMeth="Upward spraying",OR(i_AppEquip="Manual-Hand held",i_AppEquip="Manual-Knapsack")),0,INDEX(ay_OpExAOEM,MATCH(sys_KeyOperator&"Protected Hands",key_AOEM,0),17))) ),MAX(INDEX(ay_OpExAOEM,MATCH(sys_KeyOperator&"Protected Hands",key_AOEM,0),18),(INDEX(ay_OpExAOEM,MATCH(sys_KeyOperator&"Protected Hands",key_AOEM,0),18)/d_PctExtrapolation)*0.1*i_AmountAS1)) ->  | E35: =IF(ISBLANK(INDEX(ay_OpExAOEM,MATCH(sys_KeyOperator&"Protected Hands",key_AOEM,0),22)),10^(INDEX(ay_OpExAOEM,MATCH(sys_KeyOperator&"Protected Hands",key_AOEM,0),19)+(LOG(0.1*i_AmountAS1)*INDEX(ay_OpExAOEM,MATCH(sys_KeyOperator&"Protected Hands",key_AOEM,0),20))+ IF(AND(i_AppMeth="Upward spraying",LEFT(i_AppEquip,15)="Vehicle-mounted",d_AppPfCaBfR = "Yes"),0,IF(AND(i_Season = "late (dense foliage)",i_AppMeth="Upward spraying",OR(i_AppEquip="Manual-Hand held",i_AppEquip="Manual-Knapsack")),0,INDEX(ay_OpExAOEM,MATCH(sys_KeyOperator&"Protected Hands",key_AOEM,0),21))) ),MAX(INDEX(ay_OpExAOEM,MATCH(sys_KeyOperator&"Protected Hands",key_AOEM,0),22),(INDEX(ay_OpExAOEM,MATCH(sys_KeyOperator&"Protected Hands",key_AOEM,0),22)/d_PctExtrapolation)*0.1*i_AmountAS1)) ->  | F35: =IF(ISBLANK(INDEX(ay_OpExAOEM,MATCH(sys_KeyOperator&"Protected Hands",key_AOEM,0),18)),10^(INDEX(ay_OpExAOEM,MATCH(sys_KeyOperator&"Protected Hands",key_AOEM,0),15)+(LOG(0.1*i_AmountAS2)*INDEX(ay_OpExAOEM,MATCH(sys_KeyOperator&"Protected Hands",key_AOEM,0),16))+ IF(AND(i_AppMeth="Upward spraying",LEFT(i_AppEquip,15)="Vehicle-mounted",d_AppPfCaBfR = "Yes"),0,IF(AND(i_Season = "late (dense foliage)",i_AppMeth="Upward spraying",OR(i_AppEquip="Manual-Hand held",i_AppEquip="Manual-Knapsack")),0,INDEX(ay_OpExAOEM,MATCH(sys_KeyOperator&"Protected Hands",key_AOEM,0),17))) ),MAX(INDEX(ay_OpExAOEM,MATCH(sys_KeyOperator&"Protected Hands",key_AOEM,0),18),(INDEX(ay_OpExAOEM,MATCH(sys_KeyOperator&"Protected Hands",key_AOEM,0),18)/d_PctExtrapolation)*0.1*i_AmountAS2)) ->  | G35: =IF(ISBLANK(INDEX(ay_OpExAOEM,MATCH(sys_KeyOperator&"Protected Hands",key_AOEM,0),22)),10^(INDEX(ay_OpExAOEM,MATCH(sys_KeyOperator&"Protected Hands",key_AOEM,0),19)+(LOG(0.1*i_AmountAS2)*INDEX(ay_OpExAOEM,MATCH(sys_KeyOperator&"Protected Hands",key_AOEM,0),20))+ IF(AND(i_AppMeth="Upward spraying",LEFT(i_AppEquip,15)="Vehicle-mounted",d_AppPfCaBfR = "Yes"),0,IF(AND(i_Season = "late (dense foliage)",i_AppMeth="Upward spraying",OR(i_AppEquip="Manual-Hand held",i_AppEquip="Manual-Knapsack")),0,INDEX(ay_OpExAOEM,MATCH(sys_KeyOperator&"Protected Hands",key_AOEM,0),21))) ),MAX(INDEX(ay_OpExAOEM,MATCH(sys_KeyOperator&"Protected Hands",key_AOEM,0),22),(INDEX(ay_OpExAOEM,MATCH(sys_KeyOperator&"Protected Hands",key_AOEM,0),22)/d_PctExtrapolation)*0.1*i_AmountAS2)) ->  | H35: =IF(ISBLANK(INDEX(ay_OpExAOEM,MATCH(sys_KeyOperator&"Protected Hands",key_AOEM,0),18)),10^(INDEX(ay_OpExAOEM,MATCH(sys_KeyOperator&"Protected Hands",key_AOEM,0),15)+(LOG(0.1*i_AmountAS3)*INDEX(ay_OpExAOEM,MATCH(sys_KeyOperator&"Protected Hands",key_AOEM,0),16))+ IF(AND(i_AppMeth="Upward spraying",LEFT(i_AppEquip,15)="Vehicle-mounted",d_AppPfCaBfR = "Yes"),0,IF(AND(i_Season = "late (dense foliage)",i_AppMeth="Upward spraying",OR(i_AppEquip="Manual-Hand held",i_AppEquip="Manual-Knapsack")),0,INDEX(ay_OpExAOEM,MATCH(sys_KeyOperator&"Protected Hands",key_AOEM,0),17))) ),MAX(INDEX(ay_OpExAOEM,MATCH(sys_KeyOperator&"Protected Hands",key_AOEM,0),18),(INDEX(ay_OpExAOEM,MATCH(sys_KeyOperator&"Protected Hands",key_AOEM,0),18)/d_PctExtrapolation)*0.1*i_AmountAS3)) ->  | I35: =IF(ISBLANK(INDEX(ay_OpExAOEM,MATCH(sys_KeyOperator&"Protected Hands",key_AOEM,0),22)),10^(INDEX(ay_OpExAOEM,MATCH(sys_KeyOperator&"Protected Hands",key_AOEM,0),19)+(LOG(0.1*i_AmountAS3)*INDEX(ay_OpExAOEM,MATCH(sys_KeyOperator&"Protected Hands",key_AOEM,0),20))+ IF(AND(i_AppMeth="Upward spraying",LEFT(i_AppEquip,15)="Vehicle-mounted",d_AppPfCaBfR = "Yes"),0,IF(AND(i_Season = "late (dense foliage)",i_AppMeth="Upward spraying",OR(i_AppEquip="Manual-Hand held",i_AppEquip="Manual-Knapsack")),0,INDEX(ay_OpExAOEM,MATCH(sys_KeyOperator&"Protected Hands",key_AOEM,0),21))) ),MAX(INDEX(ay_OpExAOEM,MATCH(sys_KeyOperator&"Protected Hands",key_AOEM,0),22),(INDEX(ay_OpExAOEM,MATCH(sys_KeyOperator&"Protected Hands",key_AOEM,0),22)/d_PctExtrapolation)*0.1*i_AmountAS3)) ->  | J35: =IF(ISBLANK(INDEX(ay_OpExAOEM,MATCH(sys_KeyOperator&"Protected Hands",key_AOEM,0),18)),10^(INDEX(ay_OpExAOEM,MATCH(sys_KeyOperator&"Protected Hands",key_AOEM,0),15)+(LOG(0.1*i_AmountAS4)*INDEX(ay_OpExAOEM,MATCH(sys_KeyOperator&"Protected Hands",key_AOEM,0),16))+ IF(AND(i_AppMeth="Upward spraying",LEFT(i_AppEquip,15)="Vehicle-mounted",d_AppPfCaBfR = "Yes"),0,IF(AND(i_Season = "late (dense foliage)",i_AppMeth="Upward spraying",OR(i_AppEquip="Manual-Hand held",i_AppEquip="Manual-Knapsack")),0,INDEX(ay_OpExAOEM,MATCH(sys_KeyOperator&"Protected Hands",key_AOEM,0),17))) ),MAX(INDEX(ay_OpExAOEM,MATCH(sys_KeyOperator&"Protected Hands",key_AOEM,0),18),(INDEX(ay_OpExAOEM,MATCH(sys_KeyOperator&"Protected Hands",key_AOEM,0),18)/d_PctExtrapolation)*0.1*i_AmountAS4)) ->  | K35: =IF(ISBLANK(INDEX(ay_OpExAOEM,MATCH(sys_KeyOperator&"Protected Hands",key_AOEM,0),22)),10^(INDEX(ay_OpExAOEM,MATCH(sys_KeyOperator&"Protected Hands",key_AOEM,0),19)+(LOG(0.1*i_AmountAS4)*INDEX(ay_OpExAOEM,MATCH(sys_KeyOperator&"Protected Hands",key_AOEM,0),20))+ IF(AND(i_AppMeth="Upward spraying",LEFT(i_AppEquip,15)="Vehicle-mounted",d_AppPfCaBfR = "Yes"),0,IF(AND(i_Season = "late (dense foliage)",i_AppMeth="Upward spraying",OR(i_AppEquip="Manual-Hand held",i_AppEquip="Manual-Knapsack")),0,INDEX(ay_OpExAOEM,MATCH(sys_KeyOperator&"Protected Hands",key_AOEM,0),21))) ),MAX(INDEX(ay_OpExAOEM,MATCH(sys_KeyOperator&"Protected Hands",key_AOEM,0),22),(INDEX(ay_OpExAOEM,MATCH(sys_KeyOperator&"Protected Hands",key_AOEM,0),22)/d_PctExtrapolation)*0.1*i_AmountAS4)) ->  | L35: AOEM
C36: Protected body (workwear or protective garment and sturdy footwear) | D36: =IF(ISBLANK(INDEX(ay_OpExAOEM,MATCH(sys_KeyOperator&"Protected Body",key_AOEM,0),18)),10^(INDEX(ay_OpExAOEM,MATCH(sys_KeyOperator&"Protected Body",key_AOEM,0),15)+(LOG(0.1*i_AmountAS1)*INDEX(ay_OpExAOEM,MATCH(sys_KeyOperator&"Protected Body",key_AOEM,0),16))+ IF(AND(i_AppMeth="Upward spraying",LEFT(i_AppEquip,15)="Vehicle-mounted",d_AppPfCaBfR = "Yes"),0,IF(AND(i_Season = "late (dense foliage)",i_AppMeth="Upward spraying",OR(i_AppEquip="Manual-Hand held",i_AppEquip="Manual-Knapsack")),0,INDEX(ay_OpExAOEM,MATCH(sys_KeyOperator&"Protected Body",key_AOEM,0),17))) ),MAX(INDEX(ay_OpExAOEM,MATCH(sys_KeyOperator&"Protected Body",key_AOEM,0),18),(INDEX(ay_OpExAOEM,MATCH(sys_KeyOperator&"Protected Body",key_AOEM,0),18)/d_PctExtrapolation)*0.1*i_AmountAS1)) ->  | E36: =IF(ISBLANK(INDEX(ay_OpExAOEM,MATCH(sys_KeyOperator&"Protected Body",key_AOEM,0),22)),10^(INDEX(ay_OpExAOEM,MATCH(sys_KeyOperator&"Protected Body",key_AOEM,0),19)++(LOG(0.1*i_AmountAS1)*INDEX(ay_OpExAOEM,MATCH(sys_KeyOperator&"Protected Body",key_AOEM,0),20))+ IF(AND(i_AppMeth="Upward spraying",LEFT(i_AppEquip,15)="Vehicle-mounted",d_AppPfCaBfR = "Yes"),0,IF(AND(i_Season = "late (dense foliage)",i_AppMeth="Upward spraying",OR(i_AppEquip="Manual-Hand held",i_AppEquip="Manual-Knapsack")),0,INDEX(ay_OpExAOEM,MATCH(sys_KeyOperator&"Protected Body",key_AOEM,0),21))) ),MAX(INDEX(ay_OpExAOEM,MATCH(sys_KeyOperator&"Protected Body",key_AOEM,0),22),(INDEX(ay_OpExAOEM,MATCH(sys_KeyOperator&"Protected Body",key_AOEM,0),22)/d_PctExtrapolation)*0.1*i_AmountAS1)) ->  | F36: =IF(ISBLANK(INDEX(ay_OpExAOEM,MATCH(sys_KeyOperator&"Protected Body",key_AOEM,0),18)),10^(INDEX(ay_OpExAOEM,MATCH(sys_KeyOperator&"Protected Body",key_AOEM,0),15)+(LOG(0.1*i_AmountAS2)*INDEX(ay_OpExAOEM,MATCH(sys_KeyOperator&"Protected Body",key_AOEM,0),16))+ IF(AND(i_AppMeth="Upward spraying",LEFT(i_AppEquip,15)="Vehicle-mounted",d_AppPfCaBfR = "Yes"),0,IF(AND(i_Season = "late (dense foliage)",i_AppMeth="Upward spraying",OR(i_AppEquip="Manual-Hand held",i_AppEquip="Manual-Knapsack")),0,INDEX(ay_OpExAOEM,MATCH(sys_KeyOperator&"Protected Body",key_AOEM,0),17))) ),MAX(INDEX(ay_OpExAOEM,MATCH(sys_KeyOperator&"Protected Body",key_AOEM,0),18),(INDEX(ay_OpExAOEM,MATCH(sys_KeyOperator&"Protected Body",key_AOEM,0),18)/d_PctExtrapolation)*0.1*i_AmountAS2)) ->  | G36: =IF(ISBLANK(INDEX(ay_OpExAOEM,MATCH(sys_KeyOperator&"Protected Body",key_AOEM,0),22)),10^(INDEX(ay_OpExAOEM,MATCH(sys_KeyOperator&"Protected Body",key_AOEM,0),19)++(LOG(0.1*i_AmountAS2)*INDEX(ay_OpExAOEM,MATCH(sys_KeyOperator&"Protected Body",key_AOEM,0),20))+ IF(AND(i_AppMeth="Upward spraying",LEFT(i_AppEquip,15)="Vehicle-mounted",d_AppPfCaBfR = "Yes"),0,IF(AND(i_Season = "late (dense foliage)",i_AppMeth="Upward spraying",OR(i_AppEquip="Manual-Hand held",i_AppEquip="Manual-Knapsack")),0,INDEX(ay_OpExAOEM,MATCH(sys_KeyOperator&"Protected Body",key_AOEM,0),21))) ),MAX(INDEX(ay_OpExAOEM,MATCH(sys_KeyOperator&"Protected Body",key_AOEM,0),22),(INDEX(ay_OpExAOEM,MATCH(sys_KeyOperator&"Protected Body",key_AOEM,0),22)/d_PctExtrapolation)*0.1*i_AmountAS2)) ->  | H36: =IF(ISBLANK(INDEX(ay_OpExAOEM,MATCH(sys_KeyOperator&"Protected Body",key_AOEM,0),18)),10^(INDEX(ay_OpExAOEM,MATCH(sys_KeyOperator&"Protected Body",key_AOEM,0),15)+(LOG(0.1*i_AmountAS3)*INDEX(ay_OpExAOEM,MATCH(sys_KeyOperator&"Protected Body",key_AOEM,0),16))+ IF(AND(i_AppMeth="Upward spraying",LEFT(i_AppEquip,15)="Vehicle-mounted",d_AppPfCaBfR = "Yes"),0,IF(AND(i_Season = "late (dense foliage)",i_AppMeth="Upward spraying",OR(i_AppEquip="Manual-Hand held",i_AppEquip="Manual-Knapsack")),0,INDEX(ay_OpExAOEM,MATCH(sys_KeyOperator&"Protected Body",key_AOEM,0),17))) ),MAX(INDEX(ay_OpExAOEM,MATCH(sys_KeyOperator&"Protected Body",key_AOEM,0),18),(INDEX(ay_OpExAOEM,MATCH(sys_KeyOperator&"Protected Body",key_AOEM,0),18)/d_PctExtrapolation)*0.1*i_AmountAS3)) ->  | I36: =IF(ISBLANK(INDEX(ay_OpExAOEM,MATCH(sys_KeyOperator&"Protected Body",key_AOEM,0),22)),10^(INDEX(ay_OpExAOEM,MATCH(sys_KeyOperator&"Protected Body",key_AOEM,0),19)++(LOG(0.1*i_AmountAS3)*INDEX(ay_OpExAOEM,MATCH(sys_KeyOperator&"Protected Body",key_AOEM,0),20))+ IF(AND(i_AppMeth="Upward spraying",LEFT(i_AppEquip,15)="Vehicle-mounted",d_AppPfCaBfR = "Yes"),0,IF(AND(i_Season = "late (dense foliage)",i_AppMeth="Upward spraying",OR(i_AppEquip="Manual-Hand held",i_AppEquip="Manual-Knapsack")),0,INDEX(ay_OpExAOEM,MATCH(sys_KeyOperator&"Protected Body",key_AOEM,0),21))) ),MAX(INDEX(ay_OpExAOEM,MATCH(sys_KeyOperator&"Protected Body",key_AOEM,0),22),(INDEX(ay_OpExAOEM,MATCH(sys_KeyOperator&"Protected Body",key_AOEM,0),22)/d_PctExtrapolation)*0.1*i_AmountAS3)) ->  | J36: =IF(ISBLANK(INDEX(ay_OpExAOEM,MATCH(sys_KeyOperator&"Protected Body",key_AOEM,0),18)),10^(INDEX(ay_OpExAOEM,MATCH(sys_KeyOperator&"Protected Body",key_AOEM,0),15)+(LOG(0.1*i_AmountAS4)*INDEX(ay_OpExAOEM,MATCH(sys_KeyOperator&"Protected Body",key_AOEM,0),16))+ IF(AND(i_AppMeth="Upward spraying",LEFT(i_AppEquip,15)="Vehicle-mounted",d_AppPfCaBfR = "Yes"),0,IF(AND(i_Season = "late (dense foliage)",i_AppMeth="Upward spraying",OR(i_AppEquip="Manual-Hand held",i_AppEquip="Manual-Knapsack")),0,INDEX(ay_OpExAOEM,MATCH(sys_KeyOperator&"Protected Body",key_AOEM,0),17))) ),MAX(INDEX(ay_OpExAOEM,MATCH(sys_KeyOperator&"Protected Body",key_AOEM,0),18),(INDEX(ay_OpExAOEM,MATCH(sys_KeyOperator&"Protected Body",key_AOEM,0),18)/d_PctExtrapolation)*0.1*i_AmountAS4)) ->  | K36: =IF(ISBLANK(INDEX(ay_OpExAOEM,MATCH(sys_KeyOperator&"Protected Body",key_AOEM,0),22)),10^(INDEX(ay_OpExAOEM,MATCH(sys_KeyOperator&"Protected Body",key_AOEM,0),19)++(LOG(0.1*i_AmountAS4)*INDEX(ay_OpExAOEM,MATCH(sys_KeyOperator&"Protected Body",key_AOEM,0),20))+ IF(AND(i_AppMeth="Upward spraying",LEFT(i_AppEquip,15)="Vehicle-mounted",d_AppPfCaBfR = "Yes"),0,IF(AND(i_Season = "late (dense foliage)",i_AppMeth="Upward spraying",OR(i_AppEquip="Manual-Hand held",i_AppEquip="Manual-Knapsack")),0,INDEX(ay_OpExAOEM,MATCH(sys_KeyOperator&"Protected Body",key_AOEM,0),21))) ),MAX(INDEX(ay_OpExAOEM,MATCH(sys_KeyOperator&"Protected Body",key_AOEM,0),22),(INDEX(ay_OpExAOEM,MATCH(sys_KeyOperator&"Protected Body",key_AOEM,0),22)/d_PctExtrapolation)*0.1*i_AmountAS4)) ->  | L36: AOEM
C37: Inhalation | D37: =IF(ISBLANK(INDEX(ay_OpExAOEM,MATCH(sys_KeyOperator&"Inhalation",key_AOEM,0),18)),10^(INDEX(ay_OpExAOEM,MATCH(sys_KeyOperator&"Inhalation",key_AOEM,0),15)+(LOG(0.1*i_AmountAS1)*INDEX(ay_OpExAOEM,MATCH(sys_KeyOperator&"Inhalation",key_AOEM,0),16))+ IF(AND(i_AppMeth="Upward spraying",LEFT(i_AppEquip,15)="Vehicle-mounted",d_AppPfCaBfR = "Yes"),0,IF(AND(i_Season = "late (dense foliage)",i_AppMeth="Upward spraying",OR(i_AppEquip="Manual-Hand held",i_AppEquip="Manual-Knapsack")),0,INDEX(ay_OpExAOEM,MATCH(sys_KeyOperator&"Inhalation",key_AOEM,0),17))) ),MAX(INDEX(ay_OpExAOEM,MATCH(sys_KeyOperator&"Inhalation",key_AOEM,0),18),(INDEX(ay_OpExAOEM,MATCH(sys_KeyOperator&"Inhalation",key_AOEM,0),18)/d_PctExtrapolation)*0.1*i_AmountAS1)) ->  | E37: =IF(ISBLANK(INDEX(ay_OpExAOEM,MATCH(sys_KeyOperator&"Inhalation",key_AOEM,0),22)),10^(INDEX(ay_OpExAOEM,MATCH(sys_KeyOperator&"Inhalation",key_AOEM,0),19)+(LOG(0.1*i_AmountAS1)*INDEX(ay_OpExAOEM,MATCH(sys_KeyOperator&"Inhalation",key_AOEM,0),20))+ IF(AND(i_AppMeth="Upward spraying",LEFT(i_AppEquip,15)="Vehicle-mounted",d_AppPfCaBfR = "Yes"),0,IF(AND(i_Season = "late (dense foliage)",i_AppMeth="Upward spraying",OR(i_AppEquip="Manual-Hand held",i_AppEquip="Manual-Knapsack")),0,INDEX(ay_OpExAOEM,MATCH(sys_KeyOperator&"Inhalation",key_AOEM,0),21))) ),MAX(INDEX(ay_OpExAOEM,MATCH(sys_KeyOperator&"Inhalation",key_AOEM,0),22),(INDEX(ay_OpExAOEM,MATCH(sys_KeyOperator&"Inhalation",key_AOEM,0),22)/d_PctExtrapolation)*0.1*i_AmountAS1)) ->  | F37: =IF(ISBLANK(INDEX(ay_OpExAOEM,MATCH(sys_KeyOperator&"Inhalation",key_AOEM,0),18)),10^(INDEX(ay_OpExAOEM,MATCH(sys_KeyOperator&"Inhalation",key_AOEM,0),15)+(LOG(0.1*i_AmountAS2)*INDEX(ay_OpExAOEM,MATCH(sys_KeyOperator&"Inhalation",key_AOEM,0),16))+ IF(AND(i_AppMeth="Upward spraying",LEFT(i_AppEquip,15)="Vehicle-mounted",d_AppPfCaBfR = "Yes"),0,IF(AND(i_Season = "late (dense foliage)",i_AppMeth="Upward spraying",OR(i_AppEquip="Manual-Hand held",i_AppEquip="Manual-Knapsack")),0,INDEX(ay_OpExAOEM,MATCH(sys_KeyOperator&"Inhalation",key_AOEM,0),17))) ),MAX(INDEX(ay_OpExAOEM,MATCH(sys_KeyOperator&"Inhalation",key_AOEM,0),18),(INDEX(ay_OpExAOEM,MATCH(sys_KeyOperator&"Inhalation",key_AOEM,0),18)/d_PctExtrapolation)*0.1*i_AmountAS2)) ->  | G37: =IF(ISBLANK(INDEX(ay_OpExAOEM,MATCH(sys_KeyOperator&"Inhalation",key_AOEM,0),22)),10^(INDEX(ay_OpExAOEM,MATCH(sys_KeyOperator&"Inhalation",key_AOEM,0),19)+(LOG(0.1*i_AmountAS2)*INDEX(ay_OpExAOEM,MATCH(sys_KeyOperator&"Inhalation",key_AOEM,0),20))+ IF(AND(i_AppMeth="Upward spraying",LEFT(i_AppEquip,15)="Vehicle-mounted",d_AppPfCaBfR = "Yes"),0,IF(AND(i_Season = "late (dense foliage)",i_AppMeth="Upward spraying",OR(i_AppEquip="Manual-Hand held",i_AppEquip="Manual-Knapsack")),0,INDEX(ay_OpExAOEM,MATCH(sys_KeyOperator&"Inhalation",key_AOEM,0),21))) ),MAX(INDEX(ay_OpExAOEM,MATCH(sys_KeyOperator&"Inhalation",key_AOEM,0),22),(INDEX(ay_OpExAOEM,MATCH(sys_KeyOperator&"Inhalation",key_AOEM,0),22)/d_PctExtrapolation)*0.1*i_AmountAS2)) ->  | H37: =IF(ISBLANK(INDEX(ay_OpExAOEM,MATCH(sys_KeyOperator&"Inhalation",key_AOEM,0),18)),10^(INDEX(ay_OpExAOEM,MATCH(sys_KeyOperator&"Inhalation",key_AOEM,0),15)+(LOG(0.1*i_AmountAS3)*INDEX(ay_OpExAOEM,MATCH(sys_KeyOperator&"Inhalation",key_AOEM,0),16))+ IF(AND(i_AppMeth="Upward spraying",LEFT(i_AppEquip,15)="Vehicle-mounted",d_AppPfCaBfR = "Yes"),0,IF(AND(i_Season = "late (dense foliage)",i_AppMeth="Upward spraying",OR(i_AppEquip="Manual-Hand held",i_AppEquip="Manual-Knapsack")),0,INDEX(ay_OpExAOEM,MATCH(sys_KeyOperator&"Inhalation",key_AOEM,0),17))) ),MAX(INDEX(ay_OpExAOEM,MATCH(sys_KeyOperator&"Inhalation",key_AOEM,0),18),(INDEX(ay_OpExAOEM,MATCH(sys_KeyOperator&"Inhalation",key_AOEM,0),18)/d_PctExtrapolation)*0.1*i_AmountAS3)) ->  | I37: =IF(ISBLANK(INDEX(ay_OpExAOEM,MATCH(sys_KeyOperator&"Inhalation",key_AOEM,0),22)),10^(INDEX(ay_OpExAOEM,MATCH(sys_KeyOperator&"Inhalation",key_AOEM,0),19)+(LOG(0.1*i_AmountAS3)*INDEX(ay_OpExAOEM,MATCH(sys_KeyOperator&"Inhalation",key_AOEM,0),20))+ IF(AND(i_AppMeth="Upward spraying",LEFT(i_AppEquip,15)="Vehicle-mounted",d_AppPfCaBfR = "Yes"),0,IF(AND(i_Season = "late (dense foliage)",i_AppMeth="Upward spraying",OR(i_AppEquip="Manual-Hand held",i_AppEquip="Manual-Knapsack")),0,INDEX(ay_OpExAOEM,MATCH(sys_KeyOperator&"Inhalation",key_AOEM,0),21))) ),MAX(INDEX(ay_OpExAOEM,MATCH(sys_KeyOperator&"Inhalation",key_AOEM,0),22),(INDEX(ay_OpExAOEM,MATCH(sys_KeyOperator&"Inhalation",key_AOEM,0),22)/d_PctExtrapolation)*0.1*i_AmountAS3)) ->  | J37: =IF(ISBLANK(INDEX(ay_OpExAOEM,MATCH(sys_KeyOperator&"Inhalation",key_AOEM,0),18)),10^(INDEX(ay_OpExAOEM,MATCH(sys_KeyOperator&"Inhalation",key_AOEM,0),15)+(LOG(0.1*i_AmountAS4)*INDEX(ay_OpExAOEM,MATCH(sys_KeyOperator&"Inhalation",key_AOEM,0),16))+ IF(AND(i_AppMeth="Upward spraying",LEFT(i_AppEquip,15)="Vehicle-mounted",d_AppPfCaBfR = "Yes"),0,IF(AND(i_Season = "late (dense foliage)",i_AppMeth="Upward spraying",OR(i_AppEquip="Manual-Hand held",i_AppEquip="Manual-Knapsack")),0,INDEX(ay_OpExAOEM,MATCH(sys_KeyOperator&"Inhalation",key_AOEM,0),17))) ),MAX(INDEX(ay_OpExAOEM,MATCH(sys_KeyOperator&"Inhalation",key_AOEM,0),18),(INDEX(ay_OpExAOEM,MATCH(sys_KeyOperator&"Inhalation",key_AOEM,0),18)/d_PctExtrapolation)*0.1*i_AmountAS4)) ->  | K37: =IF(ISBLANK(INDEX(ay_OpExAOEM,MATCH(sys_KeyOperator&"Inhalation",key_AOEM,0),22)),10^(INDEX(ay_OpExAOEM,MATCH(sys_KeyOperator&"Inhalation",key_AOEM,0),19)+(LOG(0.1*i_AmountAS4)*INDEX(ay_OpExAOEM,MATCH(sys_KeyOperator&"Inhalation",key_AOEM,0),20))+ IF(AND(i_AppMeth="Upward spraying",LEFT(i_AppEquip,15)="Vehicle-mounted",d_AppPfCaBfR = "Yes"),0,IF(AND(i_Season = "late (dense foliage)",i_AppMeth="Upward spraying",OR(i_AppEquip="Manual-Hand held",i_AppEquip="Manual-Knapsack")),0,INDEX(ay_OpExAOEM,MATCH(sys_KeyOperator&"Inhalation",key_AOEM,0),21))) ),MAX(INDEX(ay_OpExAOEM,MATCH(sys_KeyOperator&"Inhalation",key_AOEM,0),22),(INDEX(ay_OpExAOEM,MATCH(sys_KeyOperator&"Inhalation",key_AOEM,0),22)/d_PctExtrapolation)*0.1*i_AmountAS4)) ->  | L37: AOEM
C38: Protective Equipment | L38: Penetration factor | M38: Inhalation Protection factor
C39: Gloves | D39: ='Operator Spray'!D39 -> No | L39: =IF(D39="Yes","Incl. in AOEM model","") -> 
C40: Clothing | D40: ='Operator Spray'!D40 -> Work wear - arms, body and legs covered | L40: Incl. in AOEM model
C41: Head and respiratory PPE | D41: ='Operator Spray'!D41 -> None | L41: =INDEX(ay_MixPPEHead,MATCH(D41,key_MixPPEHead,0),2) -> 1 | M41: =IF(OR(D41="Hood and visor",D41="Hood"),1,INDEX(ay_MixRPE,MATCH(D41,key_MixRPE,0),2)) -> 1
C42: Cabin | D42: ='Operator Spray'!D42 -> Not relevant | L42: vehicle mounted upward spraying only
B44: 1. Total | D44: =i_SubstName1 -> 0 | F44: =i_SubstName2 -> 0 | H44: =i_SubstName3 -> 0 | J44: =i_SubstName4 -> 0 | L44: Combined
D45: Without RPE/PPE | E45: With RPE/PPE | F45: Without RPE/PPE | G45: With RPE/PPE | H45: Without RPE/PPE | I45: With RPE/PPE | J45: Without RPE/PPE | K45: With RPE/PPE | L45: Without RPE/PPE | M45: With RPE/PPE
B46: Short-term
B47: Total systemic exposure from mixing, loading and application (mg a.s./day) | D47: =(D63+D79) ->  | E47: =(D70+D85) ->  | F47: =(F63+F79) ->  | G47: =(F70+F85) ->  | H47: =(H63+H79) ->  | I47: =(H70+H85) ->  | J47: =(J63+J79) ->  | K47: =(J70+J85) -> 
B48: Total systemic dose from mixing, loading and application per kg body weight (mg/kg bw/day) | D48: =D47/d_BwAdult -> 
B49: % of AOEL | D49: =IFERROR(D48/i_AOEL1,0) -> 0 | E49: =IFERROR(E48/i_AOEL1,0) -> 0 | F49: =IFERROR(F48/i_AOEL2,0) -> 0 | G49: =IFERROR(G48/i_AOEL2,0) -> 0 | H49: =IFERROR(H48/i_AOEL3,0) -> 0 | I49: =IFERROR(I48/i_AOEL3,0) -> 0 | J49: =IFERROR(J48/i_AOEL4,0) -> 0 | K49: =IFERROR(K48/i_AOEL4,0) -> 0 | L49: ="Hazard index = "&FIXED(D49+F49+H49+J49,3) -> Hazard index = 0.000 | M49: ="Hazard index = "&FIXED(E49+G49+I49+K49,3) -> Hazard index = 0.000
B50: Acute
B51: Total systemic exposure from mixing, loading and application (mg a.s./day) | D51: =(D95+D111) ->  | E51: =(D102+D117) ->  | F51: =(F95+F111) ->  | G51: =(F102+F117) ->  | H51: =(H95+H111) ->  | I51: =(H102+H117) ->  | J51: =(J95+J111) ->  | K51: =(J102+J117) -> 
B52: Total systemic dose from mixing, loading and application per kg body weight (mg/kg bw/day) | D52: =D51/d_BwAdult ->  | E52: =E51/d_BwAdult -> 
B53: % of AAOEL | D53: =IFERROR(D52/i_AAOEL1,0) -> 0 | E53: =IFERROR(E52/i_AAOEL1,0) -> 0 | F53: =IFERROR(F52/i_AAOEL2,0) -> 0 | G53: =IFERROR(G52/i_AAOEL2,0) -> 0 | H53: =IFERROR(H52/i_AAOEL3,0) -> 0 | I53: =IFERROR(I52/i_AAOEL3,0) -> 0 | J53: =IFERROR(J52/i_AAOEL4,0) -> 0 | K53: =IFERROR(K52/i_AAOEL4,0) -> 0 | L53: ="Hazard index = "&FIXED(D53+F53+H53+J53,3) -> Hazard index = 0.000 | M53: ="Hazard index = "&FIXED(E53+G53+I53+K53,3) -> Hazard index = 0.000
B55: 2. Short-term exposure
B56: 2.1 Mixing and loading | D56: =i_SubstName1 -> 0 | F56: =i_SubstName2 -> 0 | H56: =i_SubstName3 -> 0 | J56: =i_SubstName4 -> 0
D57: Systemic exposure [mg a.s. /day] | E57: Systemic dose [mg a.s./kg bw/day] | F57: Systemic exposure [mg a.s. /day] | G57: Systemic dose [mg a.s./kg bw/day] | H57: Systemic exposure [mg a.s. /day] | I57: Systemic dose [mg a.s./kg bw/day] | J57: Systemic exposure [mg a.s. /day] | K57: Systemic dose [mg a.s./kg bw/day]
B58: Without RPE/PPE
B59: Hands | D59: =D17*i_AbsorpProduct1/1000 ->  | E59: =D59/d_BwAdult ->  | F59: =F17*i_AbsorpProduct2/1000 ->  | G59: =F59/d_BwAdult ->  | H59: =H17*i_AbsorpProduct3/1000 ->  | I59: =H59/d_BwAdult ->  | J59: =J17*i_AbsorpProduct4/1000 ->  | K59: =J59/d_BwAdult -> 
B60: Body | D60: =D18*i_AbsorpProduct1/1000 ->  | E60: =D60/d_BwAdult ->  | F60: =F18*i_AbsorpProduct2/1000 ->  | G60: =F60/d_BwAdult ->  | H60: =H18*i_AbsorpProduct3/1000 ->  | I60: =H60/d_BwAdult ->  | J60: =J18*i_AbsorpProduct4/1000 ->  | K60: =J60/d_BwAdult -> 
B61: Head | D61: =D19*i_AbsorpProduct1/1000 ->  | E61: =D61/d_BwAdult ->  | F61: =F19*i_AbsorpProduct2/1000 ->  | G61: =F61/d_BwAdult ->  | H61: =H19*i_AbsorpProduct3/1000 ->  | I61: =H61/d_BwAdult ->  | J61: =J19*i_AbsorpProduct4/1000 ->  | K61: =J61/d_BwAdult -> 
B62: Inhalation | D62: =D23*i_AbsorpInhalation1/1000 ->  | E62: =D62/d_BwAdult ->  | F62: =F23*i_AbsorpInhalation1/1000 ->  | G62: =F62/d_BwAdult ->  | H62: =H23*i_AbsorpInhalation1/1000 ->  | I62: =H62/d_BwAdult ->  | J62: =J23*i_AbsorpInhalation1/1000 ->  | K62: =J62/d_BwAdult -> 
B63: Sum | D63: =D59+D60+D61+D62 ->  | E63: =D63/d_BwAdult ->  | F63: =F59+F60+F61+F62 ->  | G63: =F63/d_BwAdult ->  | H63: =H59+H60+H61+H62 ->  | I63: =H63/d_BwAdult ->  | J63: =J59+J60+J61+J62 ->  | K63: =J63/d_BwAdult -> 
B64: With RPE/PPE (as selected above)
B65: Hands | D65: =IF(D25="Yes", D20,D17)*i_AbsorpProduct1/1000 ->  | E65: =D65/d_BwAdult ->  | F65: =IF(D25="Yes", F20,F17)*i_AbsorpProduct2/1000 ->  | G65: =F65/d_BwAdult ->  | H65: =IF(D25="Yes", H20,H17)*i_AbsorpProduct3/1000 ->  | I65: =H65/d_BwAdult ->  | J65: =IF(D25="Yes", J20,J17)*i_AbsorpProduct4/1000 ->  | K65: =J65/d_BwAdult -> 
B66: Body | D66: =IF(D26<>"Potential exposure",D21,D18)*i_AbsorpProduct1/1000 ->  | F66: =IF(D26<>"Potential exposure",F21,F18)*i_AbsorpProduct2/1000 ->  | H66: =IF(D26<>"Potential exposure",H21,H18)*i_AbsorpProduct3/1000 ->  | J66: =IF(D26<>"Potential exposure",J21,J18)*i_AbsorpProduct4/1000 -> 
B67: Head | D67: =IF($D27<>"None",D22*i_AbsorpProduct1,D19*i_AbsorpProduct1)/1000 ->  | F67: =IF($D27<>"None",F22*i_AbsorpProduct2,F19*i_AbsorpProduct2)/1000 ->  | H67: =IF($D27<>"None",H22*i_AbsorpProduct3,H19*i_AbsorpProduct3)/1000 ->  | J67: =IF($D27<>"None",J22*i_AbsorpProduct4,J19*i_AbsorpProduct4)/1000 -> 
B68: Inhalation | D68: =D23*i_AbsorpInhalation1*$M27/1000 ->  | F68: =F23*i_AbsorpInhalation2*$M27/1000 ->  | H68: =H23*i_AbsorpInhalation3*$M27/1000 ->  | J68: =J23*i_AbsorpInhalation4*$M27/1000 -> 
B69: Sum | D69: =SUM(D65:D68) ->  | F69: =SUM(F65:F68) ->  | H69: =SUM(H65:H68) ->  | J69: =SUM(J65:J68) -> 
B70: Water soluble bag | D70: =D69*$L28 ->  | F70: =F69*$L28 ->  | H70: =H69*$L28 ->  | J70: =J69*$L28 -> 
B72: 2.2 Application | D72: =i_SubstName1 -> 0 | F72: =i_SubstName2 -> 0 | H72: =i_SubstName3 -> 0 | J72: =i_SubstName4 -> 0
D73: Systemic exposure [mg a.s. /day] | E73: Systemic dose [mg a.s./kg bw/day] | F73: Systemic exposure [mg a.s. /day] | G73: Systemic dose [mg a.s./kg bw/day] | H73: Systemic exposure [mg a.s. /day] | I73: Systemic dose [mg a.s./kg bw/day] | J73: Systemic exposure [mg a.s. /day] | K73: Systemic dose [mg a.s./kg bw/day]
B74: Without RPE/PPE
B75: Hands | D75: =D32*i_AbsorpInuse1/1000 ->  | E75: =D75/d_BwAdult ->  | F75: =F32*i_AbsorpInuse2/1000 ->  | G75: =F75/d_BwAdult ->  | H75: =H32*i_AbsorpInuse3/1000 ->  | I75: =H75/d_BwAdult ->  | J75: =J32*i_AbsorpInuse4/1000 ->  | K75: =J75/d_BwAdult -> 
B76: Body | D76: =D33*i_AbsorpInuse1/1000 ->  | E76: =D76/d_BwAdult ->  | F76: =F33*i_AbsorpInuse2/1000 ->  | G76: =F76/d_BwAdult ->  | H76: =H33*i_AbsorpInuse3/1000 ->  | I76: =H76/d_BwAdult ->  | J76: =J33*i_AbsorpInuse4/1000 ->  | K76: =J76/d_BwAdult -> 
B77: Head | D77: =D34*i_AbsorpInuse1/1000 ->  | E77: =D77/d_BwAdult ->  | F77: =F34*i_AbsorpInuse2/1000 ->  | G77: =F77/d_BwAdult ->  | H77: =H34*i_AbsorpInuse3/1000 ->  | I77: =H77/d_BwAdult ->  | J77: =J34*i_AbsorpInuse4/1000 ->  | K77: =J77/d_BwAdult -> 
B78: Inhalation | D78: =D37*i_AbsorpInhalation1/1000 ->  | E78: =D78/d_BwAdult ->  | F78: =F37*i_AbsorpInhalation1/1000 ->  | G78: =F78/d_BwAdult ->  | H78: =H37*i_AbsorpInhalation1/1000 ->  | I78: =H78/d_BwAdult ->  | J78: =J37*i_AbsorpInhalation1/1000 ->  | K78: =J78/d_BwAdult -> 
B79: Sum | D79: =D75+D76+D77+D78 ->  | E79: =D79/d_BwAdult ->  | F79: =F75+F76+F77+F78 ->  | G79: =F79/d_BwAdult ->  | H79: =H75+H76+H77+H78 ->  | I79: =H79/d_BwAdult ->  | J79: =J75+J76+J77+J78 ->  | K79: =J79/d_BwAdult -> 
B80: With RPE/PPE (as selected above)
B81: Hands | D81: =IF(D39="Yes", D35,D32)*i_AbsorpInuse1/1000 ->  | E81: =D81/d_BwAdult ->  | F81: =IF(D39="Yes", F35,F32)*i_AbsorpInuse2/1000 ->  | G81: =F81/d_BwAdult ->  | H81: =IF(D39="Yes", H35,H32)*i_AbsorpInuse3/1000 ->  | I81: =H81/d_BwAdult ->  | J81: =IF(D39="Yes", J35,J32)*i_AbsorpInuse4/1000 ->  | K81: =J81/d_BwAdult -> 
B82: Body | D82: =IF(D40<>"Potential exposure",D36,D33)*i_AbsorpInuse1/1000 ->  | E82: =D82/d_BwAdult ->  | F82: =IF(D40<>"Potential exposure",F36,F33)*i_AbsorpInuse2/1000 ->  | G82: =F82/d_BwAdult ->  | H82: =IF(D40<>"Potential exposure",H36,H33)*i_AbsorpInuse3/1000 ->  | I82: =H82/d_BwAdult ->  | J82: =IF(D40<>"Potential exposure",J36,J33)*i_AbsorpInuse4/1000 ->  | K82: =J82/d_BwAdult -> 
B83: Head | D83: =D34*i_AbsorpInuse1*$L41/1000 ->  | E83: =D83/d_BwAdult ->  | F83: =F34*i_AbsorpInuse2*L41/1000 ->  | G83: =F83/d_BwAdult ->  | H83: =H34*i_AbsorpInuse3*L41/1000 ->  | I83: =H83/d_BwAdult ->  | J83: =J34*i_AbsorpInuse4*L41/1000 ->  | K83: =J83/d_BwAdult -> 
B84: Inhalation | D84: =D37*i_AbsorpInhalation1*$M41/1000 ->  | E84: =D84/d_BwAdult ->  | F84: =F37*i_AbsorpInhalation2*$M41/1000 ->  | G84: =F84/d_BwAdult ->  | H84: =H37*i_AbsorpInhalation3*$M41/1000 ->  | I84: =H84/d_BwAdult ->  | J84: =J37*i_AbsorpInhalation4*$M41/1000 ->  | K84: =J84/d_BwAdult -> 
B85: Sum | D85: =SUM(D81:D84) ->  | E85: =D85/d_BwAdult ->  | F85: =SUM(F81:F84) ->  | G85: =F85/d_BwAdult ->  | H85: =SUM(H81:H84) ->  | I85: =H85/d_BwAdult ->  | J85: =SUM(J81:J84) ->  | K85: =J85/d_BwAdult -> 
B87: 3. Acute exposure
B88: 3.1 Mixing and loading | D88: =i_SubstName1 -> 0 | F88: =i_SubstName2 -> 0 | H88: =i_SubstName3 -> 0 | J88: =i_SubstName4 -> 0
D89: Systemic exposure [mg a.s. /day] | E89: Systemic dose [mg a.s./kg bw/day] | F89: Systemic exposure [mg a.s. /day] | G89: Systemic dose [mg a.s./kg bw/day] | H89: Systemic exposure [mg a.s. /day] | I89: Systemic dose [mg a.s./kg bw/day] | J89: Systemic exposure [mg a.s. /day] | K89: Systemic dose [mg a.s./kg bw/day]
B90: Without RPE/PPE
B91: Hands | D91: =E17*i_AbsorpProduct1/1000 ->  | E91: =D91/d_BwAdult ->  | F91: =G17*i_AbsorpProduct2/1000 ->  | G91: =F91/d_BwAdult ->  | H91: =I17*i_AbsorpProduct3/1000 ->  | I91: =H91/d_BwAdult ->  | J91: =K17*i_AbsorpProduct4/1000 ->  | K91: =J91/d_BwAdult -> 
B92: Body | D92: =E18*i_AbsorpProduct1/1000 ->  | E92: =D92/d_BwAdult ->  | F92: =G18*i_AbsorpProduct2/1000 ->  | G92: =F92/d_BwAdult ->  | H92: =I18*i_AbsorpProduct3/1000 ->  | I92: =H92/d_BwAdult ->  | J92: =K18*i_AbsorpProduct4/1000 ->  | K92: =J92/d_BwAdult -> 
B93: Head | D93: =E19*i_AbsorpProduct1/1000 ->  | E93: =D93/d_BwAdult ->  | F93: =G19*i_AbsorpProduct2/1000 ->  | G93: =F93/d_BwAdult ->  | H93: =I19*i_AbsorpProduct3/1000 ->  | I93: =H93/d_BwAdult ->  | J93: =K19*i_AbsorpProduct4/1000 ->  | K93: =J93/d_BwAdult -> 
B94: Inhalation | D94: =E23*i_AbsorpInhalation1/1000 ->  | E94: =D94/d_BwAdult ->  | F94: =G23*i_AbsorpInhalation1/1000 ->  | G94: =F94/d_BwAdult ->  | H94: =I23*i_AbsorpInhalation1/1000 ->  | I94: =H94/d_BwAdult ->  | J94: =K23*i_AbsorpInhalation1/1000 ->  | K94: =J94/d_BwAdult -> 
B95: Sum | D95: =D91+D92+D93+D94 ->  | E95: =D95/d_BwAdult ->  | F95: =F91+F92+F93+F94 ->  | G95: =F95/d_BwAdult ->  | H95: =H91+H92+H93+H94 ->  | I95: =H95/d_BwAdult ->  | J95: =J91+J92+J93+J94 ->  | K95: =J95/d_BwAdult -> 
B96: With RPE/PPE (as selected above)
B97: Hands | D97: =IF(D25="Yes", E20,E17)*i_AbsorpProduct1/1000 ->  | E97: =D97/d_BwAdult ->  | F97: =IF(D25="Yes", G20,G17)*i_AbsorpProduct2/1000 ->  | G97: =F97/d_BwAdult ->  | H97: =IF(D25="Yes", I20,I17)*i_AbsorpProduct3/1000 ->  | I97: =H97/d_BwAdult ->  | J97: =IF(D25="Yes", K20,K17)*i_AbsorpProduct4/1000 ->  | K97: =J97/d_BwAdult -> 
B98: Body | D98: =IF(D26="Work wear - arms, body and legs covered",E21,E18)*i_AbsorpProduct1/1000 ->  | F98: =IF(D26="Work wear - arms, body and legs covered",G21,G18)*i_AbsorpProduct2/1000 ->  | H98: =IF(D26="Work wear - arms, body and legs covered",I21,I18)*i_AbsorpProduct3/1000 ->  | J98: =IF(D26="Work wear - arms, body and legs covered",K21,K18)*i_AbsorpProduct4/1000 -> 
B99: Head | D99: =IF($D27<>"None",E22*i_AbsorpProduct1,E19*i_AbsorpProduct1)/1000 ->  | F99: =IF($D27<>"None",G22*i_AbsorpProduct2,G19*i_AbsorpProduct2)/1000 ->  | H99: =IF($D27<>"None",I22*i_AbsorpProduct3,I19*i_AbsorpProduct3)/1000 ->  | J99: =IF($D27<>"None",K22*i_AbsorpProduct4,K19*i_AbsorpProduct4)/1000 -> 
B100: Inhalation | D100: =E23*i_AbsorpInhalation1*$M27/1000 ->  | F100: =G23*i_AbsorpInhalation2*$M27/1000 ->  | H100: =I23*i_AbsorpInhalation3*$M27/1000 ->  | J100: =K23*i_AbsorpInhalation4*$M27/1000 -> 
B101: Sum | D101: =SUM(D97:D100) ->  | F101: =SUM(F97:F100) ->  | H101: =SUM(H97:H100) ->  | J101: =SUM(J97:J100) -> 
B102: Water soluble bag | D102: =D101*$L28 ->  | F102: =F101*$L28 ->  | H102: =H101*$L28 ->  | J102: =J101*$L28 -> 
B104: 2.2 Application | D104: =i_SubstName1 -> 0 | F104: =i_SubstName2 -> 0 | H104: =i_SubstName3 -> 0 | J104: =i_SubstName4 -> 0
D105: Systemic exposure [mg a.s. /day] | E105: Systemic dose [mg a.s./kg bw/day] | F105: Systemic exposure [mg a.s. /day] | G105: Systemic dose [mg a.s./kg bw/day] | H105: Systemic exposure [mg a.s. /day] | I105: Systemic dose [mg a.s./kg bw/day] | J105: Systemic exposure [mg a.s. /day] | K105: Systemic dose [mg a.s./kg bw/day]
B106: Without RPE/PPE
B107: Hands | D107: =E32*i_AbsorpInuse1/1000 ->  | E107: =D107/d_BwAdult ->  | F107: =G32*i_AbsorpInuse2/1000 ->  | G107: =F107/d_BwAdult ->  | H107: =I32*i_AbsorpInuse3/1000 ->  | I107: =H107/d_BwAdult ->  | J107: =K32*i_AbsorpInuse4/1000 ->  | K107: =J107/d_BwAdult -> 
B108: Body | D108: =E33*i_AbsorpInuse1/1000 ->  | E108: =D108/d_BwAdult ->  | F108: =G33*i_AbsorpInuse2/1000 ->  | G108: =F108/d_BwAdult ->  | H108: =I33*i_AbsorpInuse3/1000 ->  | I108: =H108/d_BwAdult ->  | J108: =K33*i_AbsorpInuse4/1000 ->  | K108: =J108/d_BwAdult -> 
B109: Head | D109: =E34*i_AbsorpInuse1/1000 ->  | E109: =D109/d_BwAdult ->  | F109: =G34*i_AbsorpInuse2/1000 ->  | G109: =F109/d_BwAdult ->  | H109: =I34*i_AbsorpInuse3/1000 ->  | I109: =H109/d_BwAdult ->  | J109: =K34*i_AbsorpInuse4/1000 ->  | K109: =J109/d_BwAdult -> 
B110: Inhalation | D110: =E37*i_AbsorpInhalation1/1000 ->  | E110: =D110/d_BwAdult ->  | F110: =G37*i_AbsorpInhalation2/1000 ->  | G110: =F110/d_BwAdult ->  | H110: =I37*i_AbsorpInhalation3/1000 ->  | I110: =H110/d_BwAdult ->  | J110: =K37*i_AbsorpInhalation4/1000 ->  | K110: =J110/d_BwAdult -> 
B111: Sum | D111: =D107+D108+D109+D110 ->  | E111: =D111/d_BwAdult ->  | F111: =F107+F108+F109+F110 ->  | G111: =F111/d_BwAdult ->  | H111: =H107+H108+H109+H110 ->  | I111: =H111/d_BwAdult ->  | J111: =J107+J108+J109+J110 ->  | K111: =J111/d_BwAdult -> 
B112: With RPE/PPE (as selected above)
B113: Hands | D113: =IF(D39="Yes",E35,E32)*i_AbsorpInuse1/1000 ->  | E113: =D113/d_BwAdult ->  | F113: =IF(D39="Yes",G35,G32)*i_AbsorpInuse2/1000 ->  | G113: =F113/d_BwAdult ->  | H113: =IF(D39="Yes",I35,I32)*i_AbsorpInuse3/1000 ->  | I113: =H113/d_BwAdult ->  | J113: =IF(D39="Yes",K35,K32)*i_AbsorpInuse4/1000 ->  | K113: =J113/d_BwAdult -> 
B114: Body | D114: =IF(D40="Work wear - arms, body and legs covered",E36,E33)*i_AbsorpInuse1/1000 ->  | E114: =D114/d_BwAdult ->  | F114: =IF(D40="Work wear - arms, body and legs covered",G36,G33)*i_AbsorpInuse2/1000 ->  | G114: =F114/d_BwAdult ->  | H114: =IF(D40="Work wear - arms, body and legs covered",I36,I33)*i_AbsorpInuse3/1000 ->  | I114: =H114/d_BwAdult ->  | J114: =IF(D40="Work wear - arms, body and legs covered",K36,K33)*i_AbsorpInuse4/1000 ->  | K114: =J114/d_BwAdult -> 
B115: Head | D115: =E34*i_AbsorpInuse1*$L41/1000 ->  | E115: =D115/d_BwAdult ->  | F115: =G34*i_AbsorpInuse2*$L41/1000 ->  | G115: =F115/d_BwAdult ->  | H115: =I34*i_AbsorpInuse3*$L41/1000 ->  | I115: =H115/d_BwAdult ->  | J115: =K34*i_AbsorpInuse4*$L41/1000 ->  | K115: =J115/d_BwAdult -> 
B116: Inhalation | D116: =E37*i_AbsorpInhalation1*$M41/1000 ->  | E116: =D116/d_BwAdult ->  | F116: =G37*i_AbsorpInhalation2*$M41/1000 ->  | G116: =F116/d_BwAdult ->  | H116: =I37*i_AbsorpInhalation3*$M41/1000 ->  | I116: =H116/d_BwAdult ->  | J116: =K37*i_AbsorpInhalation4*$M41/1000 ->  | K116: =J116/d_BwAdult -> 
B117: Sum | D117: =SUM(D113:D116) ->  | E117: =D117/d_BwAdult ->  | F117: =SUM(F113:F116) ->  | G117: =F117/d_BwAdult ->  | H117: =SUM(H113:H116) ->  | I117: =H117/d_BwAdult ->  | J117: =SUM(J113:J116) ->  | K117: =J117/d_BwAdult -> 

Sheet Operator Spray
B1: ="Operator exposure for "&i_ProductName & " spray applications" -> Operator exposure for spray applications | F1: =IF(i_FormVal <> "Granules, fine granules","","This sheet is only for spray applications") -> 
D2: =i_SubstName1 -> 0 | F2: =i_SubstName2 -> 0 | H2: =i_SubstName3 -> 0 | J2: =i_SubstName4 -> 0
B3: Application rate of active substance | D3: =i_AppRateAS1 -> 0 | F3: =i_AppRateAS2 -> 0 | H3: =i_AppRateAS3 -> 0 | J3: =i_AppRateAS4 -> 0 | L3: kg a.s./ha | M3: i_AppRateAS
B4: Amount of active substance applied | D4: =d_AreaTreated*i_AppRateAS1 -> 0 | F4: =d_AreaTreated*i_AppRateAS2 -> 0 | H4: =d_AreaTreated*i_AppRateAS3 -> 0 | J4: =d_AreaTreated*i_AppRateAS4 -> 0 | L4: kg a.s./day | M4: i_AmountAS
B5: Dermal absorption of the product | D5: =i_AbsorpProduct1 -> 0 | F5: =i_AbsorpProduct2 -> 0 | H5: =i_AbsorpProduct3 -> 0 | J5: =i_AbsorpProduct4 -> 0 | M5: i_AbsorpProduct
B6: Dermal absorption of in-use dilution | D6: =i_AbsorpInuse1 -> 0 | F6: =i_AbsorpInuse2 -> 0 | H6: =i_AbsorpInuse3 -> 0 | J6: =i_AbsorpInuse4 -> 0 | M6: i_AbsorInuse
B7: Formulation type | D7: =i_FormVal -> 0
B8: Indoor or Outdoor application | D8: ='Data entry'!D8 -> 0
B9: Application method | D9: =i_AppMeth -> 0
B10: Application equipment | D10: =i_AppEquip -> 0
B11: Assumed area treated | D11: =d_AreaTreated -> 1 | L11: ha/day | M11: d_AreaTreated
B12: Season | D12: =i_Season -> not relevant
B13: =i_IndoorOutdoor&i_FormVal&i_AppMeth&i_AppEquip&IF(AND(i_AppMeth="Downward spraying",i_AppEquip="Vehicle-mounted",Driftreduction=0.5),"-Drift Reduction","") -> 
D14: =i_SubstName1 -> 0 | F14: =i_SubstName2 -> 0 | H14: =i_SubstName3 -> 0 | J14: =i_SubstName4 -> 0
B15: Mixing and loading | C15: Exposure values | D15: µg exposure/day mixed and loaded | F15: µg exposure/day mixed and loaded | H15: µg exposure/day mixed and loaded | J15: µg exposure/day mixed and loaded | L15: Reference | M15: Comment
D16: 75th percentile | E16: 95th percentile | F16: 75th percentile | G16: 95th percentile | H16: 75th percentile | I16: 95th percentile | J16: 75th percentile | K16: 95th percentile
C17: Hands | D17: =IF(ISBLANK(INDEX(ay_OpExAOEM,MATCH(sys_KeyOperator&"Hands",key_AOEM,0),10)),10^(INDEX(ay_OpExAOEM,MATCH(sys_KeyOperator&"Hands",key_AOEM,0),7)+(LOG(i_AmountAS1)*INDEX(ay_OpExAOEM,MATCH(sys_KeyOperator&"Hands",key_AOEM,0),8))+INDEX(ay_OpExAOEM,MATCH(sys_KeyOperator&"Hands",key_AOEM,0),9)),MAX(INDEX(ay_OpExAOEM,MATCH(sys_KeyOperator&"Hands",key_AOEM,0),10),(INDEX(ay_OpExAOEM,MATCH(sys_KeyOperator&"Hands",key_AOEM,0),10)/1.5)*i_AmountAS1)) ->  | E17: =IF(ISBLANK(INDEX(ay_OpExAOEM,MATCH(sys_KeyOperator&"Hands",key_AOEM,0),14)),10^(INDEX(ay_OpExAOEM,MATCH(sys_KeyOperator&"Hands",key_AOEM,0),11)+(LOG(i_AmountAS1)*INDEX(ay_OpExAOEM,MATCH(sys_KeyOperator&"Hands",key_AOEM,0),12))+INDEX(ay_OpExAOEM,MATCH(sys_KeyOperator&"Hands",key_AOEM,0),13)),MAX(INDEX(ay_OpExAOEM,MATCH(sys_KeyOperator&"Hands",key_AOEM,0),14),(INDEX(ay_OpExAOEM,MATCH(sys_KeyOperator&"Hands",key_AOEM,0),14)/1.5)*i_AmountAS1)) ->  | F17: =IF(ISBLANK(INDEX(ay_OpExAOEM,MATCH(sys_KeyOperator&"Hands",key_AOEM,0),10)),10^(INDEX(ay_OpExAOEM,MATCH(sys_KeyOperator&"Hands",key_AOEM,0),7)+(LOG(i_AmountAS2)*INDEX(ay_OpExAOEM,MATCH(sys_KeyOperator&"Hands",key_AOEM,0),8))+INDEX(ay_OpExAOEM,MATCH(sys_KeyOperator&"Hands",key_AOEM,0),9)),MAX(INDEX(ay_OpExAOEM,MATCH(sys_KeyOperator&"Hands",key_AOEM,0),10),(INDEX(ay_OpExAOEM,MATCH(sys_KeyOperator&"Hands",key_AOEM,0),10)/1.5)*i_AmountAS2)) ->  | G17: =IF(ISBLANK(INDEX(ay_OpExAOEM,MATCH(sys_KeyOperator&"Hands",key_AOEM,0),14)),10^(INDEX(ay_OpExAOEM,MATCH(sys_KeyOperator&"Hands",key_AOEM,0),11)+(LOG(i_AmountAS2)*INDEX(ay_OpExAOEM,MATCH(sys_KeyOperator&"Hands",key_AOEM,0),12))+INDEX(ay_OpExAOEM,MATCH(sys_KeyOperator&"Hands",key_AOEM,0),13)),MAX(INDEX(ay_OpExAOEM,MATCH(sys_KeyOperator&"Hands",key_AOEM,0),14),(INDEX(ay_OpExAOEM,MATCH(sys_KeyOperator&"Hands",key_AOEM,0),14)/1.5)*i_AmountAS2)) ->  | H17: =IF(ISBLANK(INDEX(ay_OpExAOEM,MATCH(sys_KeyOperator&"Hands",key_AOEM,0),10)),10^(INDEX(ay_OpExAOEM,MATCH(sys_KeyOperator&"Hands",key_AOEM,0),7)+(LOG(i_AmountAS3)*INDEX(ay_OpExAOEM,MATCH(sys_KeyOperator&"Hands",key_AOEM,0),8))+INDEX(ay_OpExAOEM,MATCH(sys_KeyOperator&"Hands",key_AOEM,0),9)),MAX(INDEX(ay_OpExAOEM,MATCH(sys_KeyOperator&"Hands",key_AOEM,0),10),(INDEX(ay_OpExAOEM,MATCH(sys_KeyOperator&"Hands",key_AOEM,0),10)/1.5)*i_AmountAS3)) ->  | I17: =IF(ISBLANK(INDEX(ay_OpExAOEM,MATCH(sys_KeyOperator&"Hands",key_AOEM,0),14)), 10^(INDEX(ay_OpExAOEM,MATCH(sys_KeyOperator&"Hands",key_AOEM,0),11) +(LOG(i_AmountAS3)*INDEX(ay_OpExAOEM,MATCH(sys_KeyOperator&"Hands",key_AOEM,0),12)) +INDEX(ay_OpExAOEM,MATCH(sys_KeyOperator&"Hands",key_AOEM,0),13)),MAX(INDEX(ay_OpExAOEM,MATCH(sys_KeyOperator&"Hands",key_AOEM,0),14),(INDEX(ay_OpExAOEM,MATCH(sys_KeyOperator&"Hands",key_AOEM,0),14) /1.5)*i_AmountAS3)) ->  | J17: =IF(ISBLANK(INDEX(ay_OpExAOEM,MATCH(sys_KeyOperator&"Hands",key_AOEM,0),10)),10^(INDEX(ay_OpExAOEM,MATCH(sys_KeyOperator&"Hands",key_AOEM,0),7)+(LOG(i_AmountAS4)*INDEX(ay_OpExAOEM,MATCH(sys_KeyOperator&"Hands",key_AOEM,0),8))+INDEX(ay_OpExAOEM,MATCH(sys_KeyOperator&"Hands",key_AOEM,0),9)),MAX(INDEX(ay_OpExAOEM,MATCH(sys_KeyOperator&"Hands",key_AOEM,0),10),(INDEX(ay_OpExAOEM,MATCH(sys_KeyOperator&"Hands",key_AOEM,0),10)/1.5)*i_AmountAS4)) ->  | K17: =IF(ISBLANK(INDEX(ay_OpExAOEM,MATCH(sys_KeyOperator&"Hands",key_AOEM,0),14)),10^(INDEX(ay_OpExAOEM,MATCH(sys_KeyOperator&"Hands",key_AOEM,0),11)+(LOG(i_AmountAS4)*INDEX(ay_OpExAOEM,MATCH(sys_KeyOperator&"Hands",key_AOEM,0),12))+INDEX(ay_OpExAOEM,MATCH(sys_KeyOperator&"Hands",key_AOEM,0),13)),MAX(INDEX(ay_OpExAOEM,MATCH(sys_KeyOperator&"Hands",key_AOEM,0),14),(INDEX(ay_OpExAOEM,MATCH(sys_KeyOperator&"Hands",key_AOEM,0),14)/1.5)*i_AmountAS4)) ->  | L17: AOEM
C18: Body | D18: =IF(ISBLANK(INDEX(ay_OpExAOEM,MATCH(sys_KeyOperator&"Body",key_AOEM,0),10)),10^(INDEX(ay_OpExAOEM,MATCH(sys_KeyOperator&"Body",key_AOEM,0),7)+(LOG(i_AmountAS1)*INDEX(ay_OpExAOEM,MATCH(sys_KeyOperator&"Body",key_AOEM,0),8))+INDEX(ay_OpExAOEM,MATCH(sys_KeyOperator&"Body",key_AOEM,0),9)),MAX(INDEX(ay_OpExAOEM,MATCH(sys_KeyOperator&"Body",key_AOEM,0),10),(INDEX(ay_OpExAOEM,MATCH(sys_KeyOperator&"Body",key_AOEM,0),10)/1.5)*i_AmountAS1)) ->  | E18: =IF(ISBLANK(INDEX(ay_OpExAOEM,MATCH(sys_KeyOperator&"Body",key_AOEM,0),14)), 10^(INDEX(ay_OpExAOEM,MATCH(sys_KeyOperator&"Body",key_AOEM,0),11) +(LOG(i_AmountAS1)*INDEX(ay_OpExAOEM,MATCH(sys_KeyOperator&"Body",key_AOEM,0),12)) +INDEX(ay_OpExAOEM,MATCH(sys_KeyOperator&"Body",key_AOEM,0),13)),MAX(INDEX(ay_OpExAOEM,MATCH(sys_KeyOperator&"Body",key_AOEM,0),14),(INDEX(ay_OpExAOEM,MATCH(sys_KeyOperator&"Body",key_AOEM,0),14) /1.5)*i_AmountAS1)) ->  | F18: =IF(ISBLANK(INDEX(ay_OpExAOEM,MATCH(sys_KeyOperator&"Body",key_AOEM,0),10)),10^(INDEX(ay_OpExAOEM,MATCH(sys_KeyOperator&"Body",key_AOEM,0),7)+(LOG(i_AmountAS2)*INDEX(ay_OpExAOEM,MATCH(sys_KeyOperator&"Body",key_AOEM,0),8))+INDEX(ay_OpExAOEM,MATCH(sys_KeyOperator&"Body",key_AOEM,0),9)),MAX(INDEX(ay_OpExAOEM,MATCH(sys_KeyOperator&"Body",key_AOEM,0),10),(INDEX(ay_OpExAOEM,MATCH(sys_KeyOperator&"Body",key_AOEM,0),10)/1.5)*i_AmountAS2)) ->  | G18: =IF(ISBLANK(INDEX(ay_OpExAOEM,MATCH(sys_KeyOperator&"Body",key_AOEM,0),14)), 10^(INDEX(ay_OpExAOEM,MATCH(sys_KeyOperator&"Body",key_AOEM,0),11) +(LOG(i_AmountAS2)*INDEX(ay_OpExAOEM,MATCH(sys_KeyOperator&"Body",key_AOEM,0),12)) +INDEX(ay_OpExAOEM,MATCH(sys_KeyOperator&"Body",key_AOEM,0),13)),MAX(INDEX(ay_OpExAOEM,MATCH(sys_KeyOperator&"Body",key_AOEM,0),14),(INDEX(ay_OpExAOEM,MATCH(sys_KeyOperator&"Body",key_AOEM,0),14) /1.5)*i_AmountAS2)) ->  | H18: =IF(ISBLANK(INDEX(ay_OpExAOEM,MATCH(sys_KeyOperator&"Body",key_AOEM,0),10)),10^(INDEX(ay_OpExAOEM,MATCH(sys_KeyOperator&"Body",key_AOEM,0),7)+(LOG(i_AmountAS3)*INDEX(ay_OpExAOEM,MATCH(sys_KeyOperator&"Body",key_AOEM,0),8))+INDEX(ay_OpExAOEM,MATCH(sys_KeyOperator&"Body",key_AOEM,0),9)),MAX(INDEX(ay_OpExAOEM,MATCH(sys_KeyOperator&"Body",key_AOEM,0),10),(INDEX(ay_OpExAOEM,MATCH(sys_KeyOperator&"Body",key_AOEM,0),10)/1.5)*i_AmountAS3)) ->  | I18: =IF(ISBLANK(INDEX(ay_OpExAOEM,MATCH(sys_KeyOperator&"Body",key_AOEM,0),14)), 10^(INDEX(ay_OpExAOEM,MATCH(sys_KeyOperator&"Body",key_AOEM,0),11) +(LOG(i_AmountAS3)*INDEX(ay_OpExAOEM,MATCH(sys_KeyOperator&"Body",key_AOEM,0),12)) +INDEX(ay_OpExAOEM,MATCH(sys_KeyOperator&"Body",key_AOEM,0),13)),MAX(INDEX(ay_OpExAOEM,MATCH(sys_KeyOperator&"Body",key_AOEM,0),14),(INDEX(ay_OpExAOEM,MATCH(sys_KeyOperator&"Body",key_AOEM,0),14) /1.5)*i_AmountAS3)) ->  | J18: =IF(ISBLANK(INDEX(ay_OpExAOEM,MATCH(sys_KeyOperator&"Body",key_AOEM,0),10)),10^(INDEX(ay_OpExAOEM,MATCH(sys_KeyOperator&"Body",key_AOEM,0),7)+(LOG(i_AmountAS4)*INDEX(ay_OpExAOEM,MATCH(sys_KeyOperator&"Body",key_AOEM,0),8))+INDEX(ay_OpExAOEM,MATCH(sys_KeyOperator&"Body",key_AOEM,0),9)),MAX(INDEX(ay_OpExAOEM,MATCH(sys_KeyOperator&"Body",key_AOEM,0),10),(INDEX(ay_OpExAOEM,MATCH(sys_KeyOperator&"Body",key_AOEM,0),10)/1.5)*i_AmountAS4)) ->  | K18: =IF(ISBLANK(INDEX(ay_OpExAOEM,MATCH(sys_KeyOperator&"Body",key_AOEM,0),14)), 10^(INDEX(ay_OpExAOEM,MATCH(sys_KeyOperator&"Body",key_AOEM,0),11) +(LOG(i_AmountAS4)*INDEX(ay_OpExAOEM,MATCH(sys_KeyOperator&"Body",key_AOEM,0),12)) +INDEX(ay_OpExAOEM,MATCH(sys_KeyOperator&"Body",key_AOEM,0),13)),MAX(INDEX(ay_OpExAOEM,MATCH(sys_KeyOperator&"Body",key_AOEM,0),14),(INDEX(ay_OpExAOEM,MATCH(sys_KeyOperator&"Body",key_AOEM,0),14) /1.5)*i_AmountAS4)) ->  | L18: AOEM
C19: Head | D19: =IF(ISBLANK(INDEX(ay_OpExAOEM,MATCH(sys_KeyOperator&"Head",key_AOEM,0),10)),10^(INDEX(ay_OpExAOEM,MATCH(sys_KeyOperator&"Head",key_AOEM,0),7)+(LOG(i_AmountAS1)*INDEX(ay_OpExAOEM,MATCH(sys_KeyOperator&"Head",key_AOEM,0),8))+INDEX(ay_OpExAOEM,MATCH(sys_KeyOperator&"Head",key_AOEM,0),9)),MAX(INDEX(ay_OpExAOEM,MATCH(sys_KeyOperator&"Head",key_AOEM,0),10),(INDEX(ay_OpExAOEM,MATCH(sys_KeyOperator&"Head",key_AOEM,0),10)/1.5)*i_AmountAS1)) ->  | E19: =IF(ISBLANK(INDEX(ay_OpExAOEM,MATCH(sys_KeyOperator&"Head",key_AOEM,0),14)), 10^(INDEX(ay_OpExAOEM,MATCH(sys_KeyOperator&"Head",key_AOEM,0),11) +(LOG(i_AmountAS1)*INDEX(ay_OpExAOEM,MATCH(sys_KeyOperator&"Head",key_AOEM,0),12)) +INDEX(ay_OpExAOEM,MATCH(sys_KeyOperator&"Head",key_AOEM,0),13)),MAX(INDEX(ay_OpExAOEM,MATCH(sys_KeyOperator&"Head",key_AOEM,0),14),(INDEX(ay_OpExAOEM,MATCH(sys_KeyOperator&"Head",key_AOEM,0),14) /1.5)*i_AmountAS1)) ->  | F19: =IF(ISBLANK(INDEX(ay_OpExAOEM,MATCH(sys_KeyOperator&"Head",key_AOEM,0),10)),10^(INDEX(ay_OpExAOEM,MATCH(sys_KeyOperator&"Head",key_AOEM,0),7)+(LOG(i_AmountAS2)*INDEX(ay_OpExAOEM,MATCH(sys_KeyOperator&"Head",key_AOEM,0),8))+INDEX(ay_OpExAOEM,MATCH(sys_KeyOperator&"Head",key_AOEM,0),9)),MAX(INDEX(ay_OpExAOEM,MATCH(sys_KeyOperator&"Head",key_AOEM,0),10),(INDEX(ay_OpExAOEM,MATCH(sys_KeyOperator&"Head",key_AOEM,0),10)/1.5)*i_AmountAS2)) ->  | G19: =IF(ISBLANK(INDEX(ay_OpExAOEM,MATCH(sys_KeyOperator&"Head",key_AOEM,0),14)), 10^(INDEX(ay_OpExAOEM,MATCH(sys_KeyOperator&"Head",key_AOEM,0),11) +(LOG(i_AmountAS2)*INDEX(ay_OpExAOEM,MATCH(sys_KeyOperator&"Head",key_AOEM,0),12)) +INDEX(ay_OpExAOEM,MATCH(sys_KeyOperator&"Head",key_AOEM,0),13)),MAX(INDEX(ay_OpExAOEM,MATCH(sys_KeyOperator&"Head",key_AOEM,0),14),(INDEX(ay_OpExAOEM,MATCH(sys_KeyOperator&"Head",key_AOEM,0),14) /1.5)*i_AmountAS2)) ->  | H19: =IF(ISBLANK(INDEX(ay_OpExAOEM,MATCH(sys_KeyOperator&"Head",key_AOEM,0),10)),10^(INDEX(ay_OpExAOEM,MATCH(sys_KeyOperator&"Head",key_AOEM,0),7)+(LOG(i_AmountAS3)*INDEX(ay_OpExAOEM,MATCH(sys_KeyOperator&"Head",key_AOEM,0),8))+INDEX(ay_OpExAOEM,MATCH(sys_KeyOperator&"Head",key_AOEM,0),9)),MAX(INDEX(ay_OpExAOEM,MATCH(sys_KeyOperator&"Head",key_AOEM,0),10),(INDEX(ay_OpExAOEM,MATCH(sys_KeyOperator&"Head",key_AOEM,0),10)/1.5)*i_AmountAS3)) ->  | I19: =IF(ISBLANK(INDEX(ay_OpExAOEM,MATCH(sys_KeyOperator&"Head",key_AOEM,0),14)), 10^(INDEX(ay_OpExAOEM,MATCH(sys_KeyOperator&"Head",key_AOEM,0),11) +(LOG(i_AmountAS3)*INDEX(ay_OpExAOEM,MATCH(sys_KeyOperator&"Head",key_AOEM,0),12)) +INDEX(ay_OpExAOEM,MATCH(sys_KeyOperator&"Head",key_AOEM,0),13)),MAX(INDEX(ay_OpExAOEM,MATCH(sys_KeyOperator&"Head",key_AOEM,0),14),(INDEX(ay_OpExAOEM,MATCH(sys_KeyOperator&"Head",key_AOEM,0),14) /1.5)*i_AmountAS3)) ->  | J19: =IF(ISBLANK(INDEX(ay_OpExAOEM,MATCH(sys_KeyOperator&"Head",key_AOEM,0),10)),10^(INDEX(ay_OpExAOEM,MATCH(sys_KeyOperator&"Head",key_AOEM,0),7)+(LOG(i_AmountAS4)*INDEX(ay_OpExAOEM,MATCH(sys_KeyOperator&"Head",key_AOEM,0),8))+INDEX(ay_OpExAOEM,MATCH(sys_KeyOperator&"Head",key_AOEM,0),9)),MAX(INDEX(ay_OpExAOEM,MATCH(sys_KeyOperator&"Head",key_AOEM,0),10),(INDEX(ay_OpExAOEM,MATCH(sys_KeyOperator&"Head",key_AOEM,0),10)/1.5)*i_AmountAS4)) ->  | K19: =IF(ISBLANK(INDEX(ay_OpExAOEM,MATCH(sys_KeyOperator&"Head",key_AOEM,0),14)), 10^(INDEX(ay_OpExAOEM,MATCH(sys_KeyOperator&"Head",key_AOEM,0),11) +(LOG(i_AmountAS4)*INDEX(ay_OpExAOEM,MATCH(sys_KeyOperator&"Head",key_AOEM,0),12)) +INDEX(ay_OpExAOEM,MATCH(sys_KeyOperator&"Head",key_AOEM,0),13)),MAX(INDEX(ay_OpExAOEM,MATCH(sys_KeyOperator&"Head",key_AOEM,0),14),(INDEX(ay_OpExAOEM,MATCH(sys_KeyOperator&"Head",key_AOEM,0),14) /1.5)*i_AmountAS4)) ->  | L19: AOEM
C20: Protected hands | D20: =IF(ISBLANK(INDEX(ay_OpExAOEM,MATCH(sys_KeyOperator&"Protected hands",key_AOEM,0),10)),10^(INDEX(ay_OpExAOEM,MATCH(sys_KeyOperator&"Protected hands",key_AOEM,0),7)+(LOG(i_AmountAS1)*INDEX(ay_OpExAOEM,MATCH(sys_KeyOperator&"Protected hands",key_AOEM,0),8))+INDEX(ay_OpExAOEM,MATCH(sys_KeyOperator&"Protected hands",key_AOEM,0),9)),MAX(INDEX(ay_OpExAOEM,MATCH(sys_KeyOperator&"Protected hands",key_AOEM,0),10),(INDEX(ay_OpExAOEM,MATCH(sys_KeyOperator&"Protected hands",key_AOEM,0),10)/1.5)*i_AmountAS1)) ->  | E20: =IF(ISBLANK(INDEX(ay_OpExAOEM,MATCH(sys_KeyOperator&"Protected Hands",key_AOEM,0),14)), 10^(INDEX(ay_OpExAOEM,MATCH(sys_KeyOperator&"Protected Hands",key_AOEM,0),11) +(LOG(i_AmountAS1)*INDEX(ay_OpExAOEM,MATCH(sys_KeyOperator&"Protected Hands",key_AOEM,0),12)) +INDEX(ay_OpExAOEM,MATCH(sys_KeyOperator&"Protected Hands",key_AOEM,0),13)),MAX(INDEX(ay_OpExAOEM,MATCH(sys_KeyOperator&"Protected Hands",key_AOEM,0),14),(INDEX(ay_OpExAOEM,MATCH(sys_KeyOperator&"Protected Hands",key_AOEM,0),14) /1.5)*i_AmountAS1)) ->  | F20: =IF(ISBLANK(INDEX(ay_OpExAOEM,MATCH(sys_KeyOperator&"Protected hands",key_AOEM,0),10)),10^(INDEX(ay_OpExAOEM,MATCH(sys_KeyOperator&"Protected hands",key_AOEM,0),7)+(LOG(i_AmountAS2)*INDEX(ay_OpExAOEM,MATCH(sys_KeyOperator&"Protected hands",key_AOEM,0),8))+INDEX(ay_OpExAOEM,MATCH(sys_KeyOperator&"Protected hands",key_AOEM,0),9)),MAX(INDEX(ay_OpExAOEM,MATCH(sys_KeyOperator&"Protected hands",key_AOEM,0),10),(INDEX(ay_OpExAOEM,MATCH(sys_KeyOperator&"Protected hands",key_AOEM,0),10)/1.5)*i_AmountAS2)) ->  | G20: =IF(ISBLANK(INDEX(ay_OpExAOEM,MATCH(sys_KeyOperator&"Protected Hands",key_AOEM,0),14)), 10^(INDEX(ay_OpExAOEM,MATCH(sys_KeyOperator&"Protected Hands",key_AOEM,0),11) +(LOG(i_AmountAS2)*INDEX(ay_OpExAOEM,MATCH(sys_KeyOperator&"Protected Hands",key_AOEM,0),12)) +INDEX(ay_OpExAOEM,MATCH(sys_KeyOperator&"Protected Hands",key_AOEM,0),13)),MAX(INDEX(ay_OpExAOEM,MATCH(sys_KeyOperator&"Protected Hands",key_AOEM,0),14),(INDEX(ay_OpExAOEM,MATCH(sys_KeyOperator&"Protected Hands",key_AOEM,0),14) /1.5)*i_AmountAS2)) ->  | H20: =IF(ISBLANK(INDEX(ay_OpExAOEM,MATCH(sys_KeyOperator&"Protected hands",key_AOEM,0),10)),10^(INDEX(ay_OpExAOEM,MATCH(sys_KeyOperator&"Protected hands",key_AOEM,0),7)+(LOG(i_AmountAS3)*INDEX(ay_OpExAOEM,MATCH(sys_KeyOperator&"Protected hands",key_AOEM,0),8))+INDEX(ay_OpExAOEM,MATCH(sys_KeyOperator&"Protected hands",key_AOEM,0),9)),MAX(INDEX(ay_OpExAOEM,MATCH(sys_KeyOperator&"Protected hands",key_AOEM,0),10),(INDEX(ay_OpExAOEM,MATCH(sys_KeyOperator&"Protected hands",key_AOEM,0),10)/1.5)*i_AmountAS3)) ->  | I20: =IF(ISBLANK(INDEX(ay_OpExAOEM,MATCH(sys_KeyOperator&"Protected Hands",key_AOEM,0),14)), 10^(INDEX(ay_OpExAOEM,MATCH(sys_KeyOperator&"Protected Hands",key_AOEM,0),11) +(LOG(i_AmountAS3)*INDEX(ay_OpExAOEM,MATCH(sys_KeyOperator&"Protected Hands",key_AOEM,0),12)) +INDEX(ay_OpExAOEM,MATCH(sys_KeyOperator&"Protected Hands",key_AOEM,0),13)),MAX(INDEX(ay_OpExAOEM,MATCH(sys_KeyOperator&"Protected Hands",key_AOEM,0),14),(INDEX(ay_OpExAOEM,MATCH(sys_KeyOperator&"Protected Hands",key_AOEM,0),14) /1.5)*i_AmountAS3)) ->  | J20: =IF(ISBLANK(INDEX(ay_OpExAOEM,MATCH(sys_KeyOperator&"Protected hands",key_AOEM,0),10)),10^(INDEX(ay_OpExAOEM,MATCH(sys_KeyOperator&"Protected hands",key_AOEM,0),7)+(LOG(i_AmountAS4)*INDEX(ay_OpExAOEM,MATCH(sys_KeyOperator&"Protected hands",key_AOEM,0),8))+INDEX(ay_OpExAOEM,MATCH(sys_KeyOperator&"Protected hands",key_AOEM,0),9)),MAX(INDEX(ay_OpExAOEM,MATCH(sys_KeyOperator&"Protected hands",key_AOEM,0),10),(INDEX(ay_OpExAOEM,MATCH(sys_KeyOperator&"Protected hands",key_AOEM,0),10)/1.5)*i_AmountAS4)) ->  | K20: =IF(ISBLANK(INDEX(ay_OpExAOEM,MATCH(sys_KeyOperator&"Protected Hands",key_AOEM,0),14)), 10^(INDEX(ay_OpExAOEM,MATCH(sys_KeyOperator&"Protected Hands",key_AOEM,0),11) +(LOG(i_AmountAS4)*INDEX(ay_OpExAOEM,MATCH(sys_KeyOperator&"Protected Hands",key_AOEM,0),12)) +INDEX(ay_OpExAOEM,MATCH(sys_KeyOperator&"Protected Hands",key_AOEM,0),13)),MAX(INDEX(ay_OpExAOEM,MATCH(sys_KeyOperator&"Protected Hands",key_AOEM,0),14),(INDEX(ay_OpExAOEM,MATCH(sys_KeyOperator&"Protected Hands",key_AOEM,0),14) /1.5)*i_AmountAS4)) ->  | L20: AOEM
C21: Protected body | D21: =IF(ISBLANK(INDEX(ay_OpExAOEM,MATCH(sys_KeyOperator&"Protected Body",key_AOEM,0),10)),10^(INDEX(ay_OpExAOEM,MATCH(sys_KeyOperator&"Protected Body",key_AOEM,0),7)+(LOG(i_AmountAS1)*INDEX(ay_OpExAOEM,MATCH(sys_KeyOperator&"Protected Body",key_AOEM,0),8))+INDEX(ay_OpExAOEM,MATCH(sys_KeyOperator&"Protected Body",key_AOEM,0),9)),MAX(INDEX(ay_OpExAOEM,MATCH(sys_KeyOperator&"Protected Body",key_AOEM,0),10),(INDEX(ay_OpExAOEM,MATCH(sys_KeyOperator&"Protected Body",key_AOEM,0),10)/1.5)*i_AmountAS1)) ->  | E21: =IF(ISBLANK(INDEX(ay_OpExAOEM,MATCH(sys_KeyOperator&"Protected Body",key_AOEM,0),14)), 10^(INDEX(ay_OpExAOEM,MATCH(sys_KeyOperator&"Protected Body",key_AOEM,0),11) +(LOG(i_AmountAS1)*INDEX(ay_OpExAOEM,MATCH(sys_KeyOperator&"Protected Body",key_AOEM,0),12)) +INDEX(ay_OpExAOEM,MATCH(sys_KeyOperator&"Protected Body",key_AOEM,0),13)),MAX(INDEX(ay_OpExAOEM,MATCH(sys_KeyOperator&"Protected Body",key_AOEM,0),14),(INDEX(ay_OpExAOEM,MATCH(sys_KeyOperator&"Protected Body",key_AOEM,0),14) /1.5)*i_AmountAS1)) ->  | F21: =IF(ISBLANK(INDEX(ay_OpExAOEM,MATCH(sys_KeyOperator&"Protected Body",key_AOEM,0),10)),10^(INDEX(ay_OpExAOEM,MATCH(sys_KeyOperator&"Protected Body",key_AOEM,0),7)+(LOG(i_AmountAS2)*INDEX(ay_OpExAOEM,MATCH(sys_KeyOperator&"Protected Body",key_AOEM,0),8))+INDEX(ay_OpExAOEM,MATCH(sys_KeyOperator&"Protected Body",key_AOEM,0),9)),MAX(INDEX(ay_OpExAOEM,MATCH(sys_KeyOperator&"Protected Body",key_AOEM,0),10),(INDEX(ay_OpExAOEM,MATCH(sys_KeyOperator&"Protected Body",key_AOEM,0),10)/1.5)*i_AmountAS2)) ->  | G21: =IF(ISBLANK(INDEX(ay_OpExAOEM,MATCH(sys_KeyOperator&"Protected Body",key_AOEM,0),14)), 10^(INDEX(ay_OpExAOEM,MATCH(sys_KeyOperator&"Protected Body",key_AOEM,0),11) +(LOG(i_AmountAS2)*INDEX(ay_OpExAOEM,MATCH(sys_KeyOperator&"Protected Body",key_AOEM,0),12)) +INDEX(ay_OpExAOEM,MATCH(sys_KeyOperator&"Protected Body",key_AOEM,0),13)),MAX(INDEX(ay_OpExAOEM,MATCH(sys_KeyOperator&"Protected Body",key_AOEM,0),14),(INDEX(ay_OpExAOEM,MATCH(sys_KeyOperator&"Protected Body",key_AOEM,0),14) /1.5)*i_AmountAS2)) ->  | H21: =IF(ISBLANK(INDEX(ay_OpExAOEM,MATCH(sys_KeyOperator&"Protected Body",key_AOEM,0),10)),10^(INDEX(ay_OpExAOEM,MATCH(sys_KeyOperator&"Protected Body",key_AOEM,0),7)+(LOG(i_AmountAS3)*INDEX(ay_OpExAOEM,MATCH(sys_KeyOperator&"Protected Body",key_AOEM,0),8))+INDEX(ay_OpExAOEM,MATCH(sys_KeyOperator&"Protected Body",key_AOEM,0),9)),MAX(INDEX(ay_OpExAOEM,MATCH(sys_KeyOperator&"Protected Body",key_AOEM,0),10),(INDEX(ay_OpExAOEM,MATCH(sys_KeyOperator&"Protected Body",key_AOEM,0),10)/1.5)*i_AmountAS3)) ->  | I21: =IF(ISBLANK(INDEX(ay_OpExAOEM,MATCH(sys_KeyOperator&"Protected Body",key_AOEM,0),14)), 10^(INDEX(ay_OpExAOEM,MATCH(sys_KeyOperator&"Protected Body",key_AOEM,0),11) +(LOG(i_AmountAS3)*INDEX(ay_OpExAOEM,MATCH(sys_KeyOperator&"Protected Body",key_AOEM,0),12)) +INDEX(ay_OpExAOEM,MATCH(sys_KeyOperator&"Protected Body",key_AOEM,0),13)),MAX(INDEX(ay_OpExAOEM,MATCH(sys_KeyOperator&"Protected Body",key_AOEM,0),14),(INDEX(ay_OpExAOEM,MATCH(sys_KeyOperator&"Protected Body",key_AOEM,0),14) /1.5)*i_AmountAS3)) ->  | J21: =IF(ISBLANK(INDEX(ay_OpExAOEM,MATCH(sys_KeyOperator&"Protected Body",key_AOEM,0),10)),10^(INDEX(ay_OpExAOEM,MATCH(sys_KeyOperator&"Protected Body",key_AOEM,0),7)+(LOG(i_AmountAS4)*INDEX(ay_OpExAOEM,MATCH(sys_KeyOperator&"Protected Body",key_AOEM,0),8))+INDEX(ay_OpExAOEM,MATCH(sys_KeyOperator&"Protected Body",key_AOEM,0),9)),MAX(INDEX(ay_OpExAOEM,MATCH(sys_KeyOperator&"Protected Body",key_AOEM,0),10),(INDEX(ay_OpExAOEM,MATCH(sys_KeyOperator&"Protected Body",key_AOEM,0),10)/1.5)*i_AmountAS4)) ->  | K21: =IF(ISBLANK(INDEX(ay_OpExAOEM,MATCH(sys_KeyOperator&"Protected Body",key_AOEM,0),14)), 10^(INDEX(ay_OpExAOEM,MATCH(sys_KeyOperator&"Protected Body",key_AOEM,0),11) +(LOG(i_AmountAS4)*INDEX(ay_OpExAOEM,MATCH(sys_KeyOperator&"Protected Body",key_AOEM,0),12)) +INDEX(ay_OpExAOEM,MATCH(sys_KeyOperator&"Protected Body",key_AOEM,0),13)),MAX(INDEX(ay_OpExAOEM,MATCH(sys_KeyOperator&"Protected Body",key_AOEM,0),14),(INDEX(ay_OpExAOEM,MATCH(sys_KeyOperator&"Protected Body",key_AOEM,0),14) /1.5)*i_AmountAS4)) ->  | L21: AOEM
C22: Protected head | D22: =IF(ISBLANK(INDEX(ay_OpExAOEM,MATCH(sys_KeyOperator&"Head",key_AOEM,0),10)),10^(INDEX(ay_OpExAOEM,MATCH(sys_KeyOperator&"Head",key_AOEM,0),7)+(LOG(i_AmountAS1)*INDEX(ay_OpExAOEM,MATCH(sys_KeyOperator&"Head",key_AOEM,0),8))+INDEX(ay_OpExAOEM,MATCH(sys_KeyOperator&"Head",key_AOEM,0),9)+ d_head75ProtectionFactor),MAX(INDEX(ay_OpExAOEM,MATCH(sys_KeyOperator&"Head",key_AOEM,0),10),(INDEX(ay_OpExAOEM,MATCH(sys_KeyOperator&"Head",key_AOEM,0),10)/1.5)*i_AmountAS1))*IF(ISNUMBER(Hole_F25),Hole_F25,1) ->  | E22: =IF(ISBLANK(INDEX(ay_OpExAOEM,MATCH(sys_KeyOperator&"Head",key_AOEM,0),14)), 10^(INDEX(ay_OpExAOEM,MATCH(sys_KeyOperator&"Head",key_AOEM,0),11) +(LOG(i_AmountAS1)*INDEX(ay_OpExAOEM,MATCH(sys_KeyOperator&"Head",key_AOEM,0),12)) +INDEX(ay_OpExAOEM,MATCH(sys_KeyOperator&"Head",key_AOEM,0),13)+ d_head95ProtectionFactor),MAX(INDEX(ay_OpExAOEM,MATCH(sys_KeyOperator&"Head",key_AOEM,0),14),(INDEX(ay_OpExAOEM,MATCH(sys_KeyOperator&"Head",key_AOEM,0),14) /1.5)*i_AmountAS1))*IF(ISNUMBER(Hole_F25),Hole_F25,1) ->  | F22: =IF(ISBLANK(INDEX(ay_OpExAOEM,MATCH(sys_KeyOperator&"Head",key_AOEM,0),10)),10^(INDEX(ay_OpExAOEM,MATCH(sys_KeyOperator&"Head",key_AOEM,0),7)+(LOG(i_AmountAS2)*INDEX(ay_OpExAOEM,MATCH(sys_KeyOperator&"Head",key_AOEM,0),8))+INDEX(ay_OpExAOEM,MATCH(sys_KeyOperator&"Head",key_AOEM,0),9) + d_head75ProtectionFactor ),MAX(INDEX(ay_OpExAOEM,MATCH(sys_KeyOperator&"Head",key_AOEM,0),10),(INDEX(ay_OpExAOEM,MATCH(sys_KeyOperator&"Head",key_AOEM,0),10)/1.5)*i_AmountAS2))*IF(ISNUMBER(Hole_F25),Hole_F25,1) ->  | G22: =IF(ISBLANK(INDEX(ay_OpExAOEM,MATCH(sys_KeyOperator&"Head",key_AOEM,0),14)), 10^(INDEX(ay_OpExAOEM,MATCH(sys_KeyOperator&"Head",key_AOEM,0),11) +(LOG(i_AmountAS2)*INDEX(ay_OpExAOEM,MATCH(sys_KeyOperator&"Head",key_AOEM,0),12)) +INDEX(ay_OpExAOEM,MATCH(sys_KeyOperator&"Head",key_AOEM,0),13)+ d_head95ProtectionFactor),MAX(INDEX(ay_OpExAOEM,MATCH(sys_KeyOperator&"Head",key_AOEM,0),14),(INDEX(ay_OpExAOEM,MATCH(sys_KeyOperator&"Head",key_AOEM,0),14) /1.5)*i_AmountAS2))*IF(ISNUMBER(Hole_F25),Hole_F25,1) ->  | H22: =IF(ISBLANK(INDEX(ay_OpExAOEM,MATCH(sys_KeyOperator&"Head",key_AOEM,0),10)),10^(INDEX(ay_OpExAOEM,MATCH(sys_KeyOperator&"Head",key_AOEM,0),7)+(LOG(i_AmountAS3)*INDEX(ay_OpExAOEM,MATCH(sys_KeyOperator&"Head",key_AOEM,0),8))+INDEX(ay_OpExAOEM,MATCH(sys_KeyOperator&"Head",key_AOEM,0),9) + d_head75ProtectionFactor ),MAX(INDEX(ay_OpExAOEM,MATCH(sys_KeyOperator&"Head",key_AOEM,0),10),(INDEX(ay_OpExAOEM,MATCH(sys_KeyOperator&"Head",key_AOEM,0),10)/1.5)*i_AmountAS3))*IF(ISNUMBER(Hole_F25),Hole_F25,1) ->  | I22: =IF(ISBLANK(INDEX(ay_OpExAOEM,MATCH(sys_KeyOperator&"Head",key_AOEM,0),14)), 10^(INDEX(ay_OpExAOEM,MATCH(sys_KeyOperator&"Head",key_AOEM,0),11) +(LOG(i_AmountAS3)*INDEX(ay_OpExAOEM,MATCH(sys_KeyOperator&"Head",key_AOEM,0),12)) +INDEX(ay_OpExAOEM,MATCH(sys_KeyOperator&"Head",key_AOEM,0),13)+ d_head95ProtectionFactor),MAX(INDEX(ay_OpExAOEM,MATCH(sys_KeyOperator&"Head",key_AOEM,0),14),(INDEX(ay_OpExAOEM,MATCH(sys_KeyOperator&"Head",key_AOEM,0),14) /1.5)*i_AmountAS3))*IF(ISNUMBER(Hole_F25),Hole_F25,1) ->  | J22: =IF(ISBLANK(INDEX(ay_OpExAOEM,MATCH(sys_KeyOperator&"Head",key_AOEM,0),10)),10^(INDEX(ay_OpExAOEM,MATCH(sys_KeyOperator&"Head",key_AOEM,0),7)+(LOG(i_AmountAS4)*INDEX(ay_OpExAOEM,MATCH(sys_KeyOperator&"Head",key_AOEM,0),8))+INDEX(ay_OpExAOEM,MATCH(sys_KeyOperator&"Head",key_AOEM,0),9) + d_head75ProtectionFactor ),MAX(INDEX(ay_OpExAOEM,MATCH(sys_KeyOperator&"Head",key_AOEM,0),10),(INDEX(ay_OpExAOEM,MATCH(sys_KeyOperator&"Head",key_AOEM,0),10)/1.5)*i_AmountAS4))*IF(ISNUMBER(Hole_F25),Hole_F25,1) ->  | K22: =IF(ISBLANK(INDEX(ay_OpExAOEM,MATCH(sys_KeyOperator&"Head",key_AOEM,0),14)), 10^(INDEX(ay_OpExAOEM,MATCH(sys_KeyOperator&"Head",key_AOEM,0),11) +(LOG(i_AmountAS4)*INDEX(ay_OpExAOEM,MATCH(sys_KeyOperator&"Head",key_AOEM,0),12)) +INDEX(ay_OpExAOEM,MATCH(sys_KeyOperator&"Head",key_AOEM,0),13)+ d_head95ProtectionFactor),MAX(INDEX(ay_OpExAOEM,MATCH(sys_KeyOperator&"Head",key_AOEM,0),14),(INDEX(ay_OpExAOEM,MATCH(sys_KeyOperator&"Head",key_AOEM,0),14) /1.5)*i_AmountAS4))*IF(ISNUMBER(Hole_F25),Hole_F25,1) ->  | L22: AOEM
C23: Inhalation | D23: =IF(ISBLANK(INDEX(ay_OpExAOEM,MATCH(sys_KeyOperator&"Inhalation",key_AOEM,0),10)),10^(INDEX(ay_OpExAOEM,MATCH(sys_KeyOperator&"Inhalation",key_AOEM,0),7)+(LOG(i_AmountAS1)*INDEX(ay_OpExAOEM,MATCH(sys_KeyOperator&"Inhalation",key_AOEM,0),8))+INDEX(ay_OpExAOEM,MATCH(sys_KeyOperator&"Inhalation",key_AOEM,0),9)),MAX(INDEX(ay_OpExAOEM,MATCH(sys_KeyOperator&"Inhalation",key_AOEM,0),10),(INDEX(ay_OpExAOEM,MATCH(sys_KeyOperator&"Inhalation",key_AOEM,0),10)/1.5)*i_AmountAS1)) ->  | E23: =IF(ISBLANK(INDEX(ay_OpExAOEM,MATCH(sys_KeyOperator&"Inhalation",key_AOEM,0),14)), 10^(INDEX(ay_OpExAOEM,MATCH(sys_KeyOperator&"Inhalation",key_AOEM,0),11) +(LOG(i_AmountAS1)*INDEX(ay_OpExAOEM,MATCH(sys_KeyOperator&"Inhalation",key_AOEM,0),12)) +INDEX(ay_OpExAOEM,MATCH(sys_KeyOperator&"Inhalation",key_AOEM,0),13)),MAX(INDEX(ay_OpExAOEM,MATCH(sys_KeyOperator&"Inhalation",key_AOEM,0),14),(INDEX(ay_OpExAOEM,MATCH(sys_KeyOperator&"Inhalation",key_AOEM,0),14) /1.5)*i_AmountAS1)) ->  | F23: =IF(ISBLANK(INDEX(ay_OpExAOEM,MATCH(sys_KeyOperator&"Inhalation",key_AOEM,0),10)),10^(INDEX(ay_OpExAOEM,MATCH(sys_KeyOperator&"Inhalation",key_AOEM,0),7)+(LOG(i_AmountAS2)*INDEX(ay_OpExAOEM,MATCH(sys_KeyOperator&"Inhalation",key_AOEM,0),8))+INDEX(ay_OpExAOEM,MATCH(sys_KeyOperator&"Inhalation",key_AOEM,0),9)),MAX(INDEX(ay_OpExAOEM,MATCH(sys_KeyOperator&"Inhalation",key_AOEM,0),10),(INDEX(ay_OpExAOEM,MATCH(sys_KeyOperator&"Inhalation",key_AOEM,0),10)/1.5)*i_AmountAS2)) ->  | G23: =IF(ISBLANK(INDEX(ay_OpExAOEM,MATCH(sys_KeyOperator&"Inhalation",key_AOEM,0),14)), 10^(INDEX(ay_OpExAOEM,MATCH(sys_KeyOperator&"Inhalation",key_AOEM,0),11) +(LOG(i_AmountAS2)*INDEX(ay_OpExAOEM,MATCH(sys_KeyOperator&"Inhalation",key_AOEM,0),12)) +INDEX(ay_OpExAOEM,MATCH(sys_KeyOperator&"Inhalation",key_AOEM,0),13)),MAX(INDEX(ay_OpExAOEM,MATCH(sys_KeyOperator&"Inhalation",key_AOEM,0),14),(INDEX(ay_OpExAOEM,MATCH(sys_KeyOperator&"Inhalation",key_AOEM,0),14) /1.5)*i_AmountAS2)) ->  | H23: =IF(ISBLANK(INDEX(ay_OpExAOEM,MATCH(sys_KeyOperator&"Inhalation",key_AOEM,0),10)),10^(INDEX(ay_OpExAOEM,MATCH(sys_KeyOperator&"Inhalation",key_AOEM,0),7)+(LOG(i_AmountAS3)*INDEX(ay_OpExAOEM,MATCH(sys_KeyOperator&"Inhalation",key_AOEM,0),8))+INDEX(ay_OpExAOEM,MATCH(sys_KeyOperator&"Inhalation",key_AOEM,0),9)),MAX(INDEX(ay_OpExAOEM,MATCH(sys_KeyOperator&"Inhalation",key_AOEM,0),10),(INDEX(ay_OpExAOEM,MATCH(sys_KeyOperator&"Inhalation",key_AOEM,0),10)/1.5)*i_AmountAS3)) ->  | I23: =IF(ISBLANK(INDEX(ay_OpExAOEM,MATCH(sys_KeyOperator&"Inhalation",key_AOEM,0),14)), 10^(INDEX(ay_OpExAOEM,MATCH(sys_KeyOperator&"Inhalation",key_AOEM,0),11) +(LOG(i_AmountAS3)*INDEX(ay_OpExAOEM,MATCH(sys_KeyOperator&"Inhalation",key_AOEM,0),12)) +INDEX(ay_OpExAOEM,MATCH(sys_KeyOperator&"Inhalation",key_AOEM,0),13)),MAX(INDEX(ay_OpExAOEM,MATCH(sys_KeyOperator&"Inhalation",key_AOEM,0),14),(INDEX(ay_OpExAOEM,MATCH(sys_KeyOperator&"Inhalation",key_AOEM,0),14) /1.5)*i_AmountAS3)) ->  | J23: =IF(ISBLANK(INDEX(ay_OpExAOEM,MATCH(sys_KeyOperator&"Inhalation",key_AOEM,0),10)),10^(INDEX(ay_OpExAOEM,MATCH(sys_KeyOperator&"Inhalation",key_AOEM,0),7)+(LOG(i_AmountAS4)*INDEX(ay_OpExAOEM,MATCH(sys_KeyOperator&"Inhalation",key_AOEM,0),8))+INDEX(ay_OpExAOEM,MATCH(sys_KeyOperator&"Inhalation",key_AOEM,0),9)),MAX(INDEX(ay_OpExAOEM,MATCH(sys_KeyOperator&"Inhalation",key_AOEM,0),10),(INDEX(ay_OpExAOEM,MATCH(sys_KeyOperator&"Inhalation",key_AOEM,0),10)/1.5)*i_AmountAS4)) ->  | K23: =IF(ISBLANK(INDEX(ay_OpExAOEM,MATCH(sys_KeyOperator&"Inhalation",key_AOEM,0),14)), 10^(INDEX(ay_OpExAOEM,MATCH(sys_KeyOperator&"Inhalation",key_AOEM,0),11) +(LOG(i_AmountAS4)*INDEX(ay_OpExAOEM,MATCH(sys_KeyOperator&"Inhalation",key_AOEM,0),12)) +INDEX(ay_OpExAOEM,MATCH(sys_KeyOperator&"Inhalation",key_AOEM,0),13)),MAX(INDEX(ay_OpExAOEM,MATCH(sys_KeyOperator&"Inhalation",key_AOEM,0),14),(INDEX(ay_OpExAOEM,MATCH(sys_KeyOperator&"Inhalation",key_AOEM,0),14) /1.5)*i_AmountAS4)) ->  | L23: AOEM
C24: Protective Equipment | D24: Select for inclusion | L24: Penetration factor | M24: Inhalation Protection factor
C25: Gloves | D25: No | L25: =IF(D25="Yes","Incl. in AOEM model","") -> 
C26: Clothing | D26: Work wear - arms, body and legs covered | L26: Incl. in AOEM model
C27: Head and respiratory PPE | D27: None | L27: =IF(AND(i_AppEquip<>"Manual-Knapsack",D27="Face shield"),"Incl. in AOEM model",INDEX(ay_MixPPEHead,MATCH(D27,key_MixPPEHead,0),2)) -> 1 | M27: =IF(OR(D27="Hood and face shield",D27="Hood",D27="Face shield"),1,INDEX(ay_MixRPE,MATCH(D27,key_MixRPE,0),2)) -> 1
C28: Water soluble bag | D28: No | L28: =IF(AND(D28="Yes"),0.1,1) -> 1
B29: Application | D29: =i_SubstName1 -> 0 | F29: =i_SubstName2 -> 0 | H29: =i_SubstName3 -> 0 | J29: =i_SubstName4 -> 0
C30: Exposure values | D30: µg exposure/day applied | F30: µg exposure/day applied | H30: µg exposure/day applied | J30: µg exposure/day applied | L30: Reference | M30: Comment
D31: 75th percentile | E31: 95th percentile | F31: 75th percentile | G31: 95th percentile | H31: 75th percentile | I31: 95th percentile | J31: 75th percentile | K31: 95th percentile
C32: Hands | D32: =IF(i_AppEquip="Manual-Trolley",Trolley!D35+MHH!D35,IF(ISBLANK(INDEX(ay_OpExAOEM,MATCH(sys_KeyOperator&"Hands",key_AOEM,0),18)),10^(INDEX(ay_OpExAOEM,MATCH(sys_KeyOperator&"Hands",key_AOEM,0),15)+(LOG(i_AmountAS1)*INDEX(ay_OpExAOEM,MATCH(sys_KeyOperator&"Hands",key_AOEM,0),16))+ IF(AND(i_AppMeth="Upward spraying",LEFT(i_AppEquip,15)="Vehicle-mounted",d_AppPfCaBfR = "Yes"),0,IF(AND(i_Season = "late (dense foliage)",i_AppMeth="Upward spraying",OR(i_AppEquip="Manual-Hand held",i_AppEquip="Manual-Knapsack")),0,INDEX(ay_OpExAOEM,MATCH(sys_KeyOperator&"Hands",key_AOEM,0),17)))),MAX(INDEX(ay_OpExAOEM,MATCH(sys_KeyOperator&"Hands",key_AOEM,0),18),(INDEX(ay_OpExAOEM,MATCH(sys_KeyOperator&"Hands",key_AOEM,0),18)/d_PctExtrapolation)*i_AmountAS1))) ->  | E32: =IF(i_AppEquip="Manual-Trolley",Trolley!E32+MHH!E32,IF(ISBLANK(INDEX(ay_OpExAOEM,MATCH(sys_KeyOperator&"Hands",key_AOEM,0),22)),10^(INDEX(ay_OpExAOEM,MATCH(sys_KeyOperator&"Hands",key_AOEM,0),19)+(LOG(i_AmountAS1)*INDEX(ay_OpExAOEM,MATCH(sys_KeyOperator&"Hands",key_AOEM,0),20))+IF(AND(i_AppMeth="Upward spraying",LEFT(i_AppEquip,15)="Vehicle-mounted",d_AppPfCaBfR="Yes"),0,IF(AND(i_Season="late (dense foliage)",i_AppMeth="Upward spraying",OR(i_AppEquip="Manual-Hand held",i_AppEquip="Manual-Knapsack")),0,INDEX(ay_OpExAOEM,MATCH(sys_KeyOperator&"Hands",key_AOEM,0),21)))),MAX(INDEX(ay_OpExAOEM,MATCH(sys_KeyOperator&"Hands",key_AOEM,0),22),(INDEX(ay_OpExAOEM,MATCH(sys_KeyOperator&"Hands",key_AOEM,0),22)/d_PctExtrapolation)*i_AmountAS1))) ->  | F32: =IF(i_AppEquip="Manual-Trolley",Trolley!F32+MHH!F32,IF(ISBLANK(INDEX(ay_OpExAOEM,MATCH(sys_KeyOperator&"Hands",key_AOEM,0),18)),10^(INDEX(ay_OpExAOEM,MATCH(sys_KeyOperator&"Hands",key_AOEM,0),15)+(LOG(i_AmountAS2)*INDEX(ay_OpExAOEM,MATCH(sys_KeyOperator&"Hands",key_AOEM,0),16))+ IF(AND(i_AppMeth="Upward spraying",LEFT(i_AppEquip,15)="Vehicle-mounted",d_AppPfCaBfR = "Yes"),0,IF(AND(i_Season = "late (dense foliage)",i_AppMeth="Upward spraying",OR(i_AppEquip="Manual-Hand held",i_AppEquip="Manual-Knapsack")),0,INDEX(ay_OpExAOEM,MATCH(sys_KeyOperator&"Hands",key_AOEM,0),17))) ),MAX(INDEX(ay_OpExAOEM,MATCH(sys_KeyOperator&"Hands",key_AOEM,0),18),(INDEX(ay_OpExAOEM,MATCH(sys_KeyOperator&"Hands",key_AOEM,0),18)/d_PctExtrapolation)*i_AmountAS2))) ->  | G32: =IF(i_AppEquip="Manual-Trolley",Trolley!G32+MHH!G32,IF(ISBLANK(INDEX(ay_OpExAOEM,MATCH(sys_KeyOperator&"Hands",key_AOEM,0),22)),10^(INDEX(ay_OpExAOEM,MATCH(sys_KeyOperator&"Hands",key_AOEM,0),19)+(LOG(i_AmountAS2)*INDEX(ay_OpExAOEM,MATCH(sys_KeyOperator&"Hands",key_AOEM,0),20))+ IF(AND(i_AppMeth="Upward spraying",LEFT(i_AppEquip,15)="Vehicle-mounted",d_AppPfCaBfR = "Yes"),0,IF(AND(i_Season = "late (dense foliage)",i_AppMeth="Upward spraying",OR(i_AppEquip="Manual-Hand held",i_AppEquip="Manual-Knapsack")),0,INDEX(ay_OpExAOEM,MATCH(sys_KeyOperator&"Hands",key_AOEM,0),21))) ),MAX(INDEX(ay_OpExAOEM,MATCH(sys_KeyOperator&"Hands",key_AOEM,0),22),(INDEX(ay_OpExAOEM,MATCH(sys_KeyOperator&"Hands",key_AOEM,0),22)/d_PctExtrapolation)*i_AmountAS2))) ->  | H32: =IF(i_AppEquip="Manual-Trolley",Trolley!H32+MHH!H32,IF(ISBLANK(INDEX(ay_OpExAOEM,MATCH(sys_KeyOperator&"Hands",key_AOEM,0),18)),10^(INDEX(ay_OpExAOEM,MATCH(sys_KeyOperator&"Hands",key_AOEM,0),15)+(LOG(i_AmountAS3)*INDEX(ay_OpExAOEM,MATCH(sys_KeyOperator&"Hands",key_AOEM,0),16))+ IF(AND(i_AppMeth="Upward spraying",LEFT(i_AppEquip,15)="Vehicle-mounted",d_AppPfCaBfR = "Yes"),0,IF(AND(i_Season = "late (dense foliage)",i_AppMeth="Upward spraying",OR(i_AppEquip="Manual-Hand held",i_AppEquip="Manual-Knapsack")),0,INDEX(ay_OpExAOEM,MATCH(sys_KeyOperator&"Hands",key_AOEM,0),17))) ),MAX(INDEX(ay_OpExAOEM,MATCH(sys_KeyOperator&"Hands",key_AOEM,0),18),(INDEX(ay_OpExAOEM,MATCH(sys_KeyOperator&"Hands",key_AOEM,0),18)/d_PctExtrapolation)*i_AmountAS3))) ->  | I32: =IF(i_AppEquip="Manual-Trolley",Trolley!I32+MHH!I32,IF(ISBLANK(INDEX(ay_OpExAOEM,MATCH(sys_KeyOperator&"Hands",key_AOEM,0),22)),10^(INDEX(ay_OpExAOEM,MATCH(sys_KeyOperator&"Hands",key_AOEM,0),19)+(LOG(i_AmountAS3)*INDEX(ay_OpExAOEM,MATCH(sys_KeyOperator&"Hands",key_AOEM,0),20))+IF(AND(i_AppMeth="Upward spraying",LEFT(i_AppEquip,15)="Vehicle-mounted",d_AppPfCaBfR="Yes"),0,IF(AND(i_Season="late (dense foliage)",i_AppMeth="Upward spraying",OR(i_AppEquip="Manual-Hand held",i_AppEquip="Manual-Knapsack")),0,INDEX(ay_OpExAOEM,MATCH(sys_KeyOperator&"Hands",key_AOEM,0),21)))),MAX(INDEX(ay_OpExAOEM,MATCH(sys_KeyOperator&"Hands",key_AOEM,0),22),(INDEX(ay_OpExAOEM,MATCH(sys_KeyOperator&"Hands",key_AOEM,0),22)/d_PctExtrapolation)*i_AmountAS3))) ->  | J32: =IF(i_AppEquip="Manual-Trolley",Trolley!J32+MHH!J32,IF(ISBLANK(INDEX(ay_OpExAOEM,MATCH(sys_KeyOperator&"Hands",key_AOEM,0),18)),10^(INDEX(ay_OpExAOEM,MATCH(sys_KeyOperator&"Hands",key_AOEM,0),15)+(LOG(i_AmountAS4)*INDEX(ay_OpExAOEM,MATCH(sys_KeyOperator&"Hands",key_AOEM,0),16))+ IF(AND(i_AppMeth="Upward spraying",LEFT(i_AppEquip,15)="Vehicle-mounted",d_AppPfCaBfR = "Yes"),0,IF(AND(i_Season = "late (dense foliage)",i_AppMeth="Upward spraying",OR(i_AppEquip="Manual-Hand held",i_AppEquip="Manual-Knapsack")),0,INDEX(ay_OpExAOEM,MATCH(sys_KeyOperator&"Hands",key_AOEM,0),17))) ),MAX(INDEX(ay_OpExAOEM,MATCH(sys_KeyOperator&"Hands",key_AOEM,0),18),(INDEX(ay_OpExAOEM,MATCH(sys_KeyOperator&"Hands",key_AOEM,0),18)/d_PctExtrapolation)*i_AmountAS4))) ->  | K32: =IF(i_AppEquip="Manual-Trolley",Trolley!K32+MHH!K32,IF(ISBLANK(INDEX(ay_OpExAOEM,MATCH(sys_KeyOperator&"Hands",key_AOEM,0),22)),10^(INDEX(ay_OpExAOEM,MATCH(sys_KeyOperator&"Hands",key_AOEM,0),19)+(LOG(i_AmountAS4)*INDEX(ay_OpExAOEM,MATCH(sys_KeyOperator&"Hands",key_AOEM,0),20))+IF(AND(i_AppMeth="Upward spraying",LEFT(i_AppEquip,15)="Vehicle-mounted",d_AppPfCaBfR="Yes"),0,IF(AND(i_Season="late (dense foliage)",i_AppMeth="Upward spraying",OR(i_AppEquip="Manual-Hand held",i_AppEquip="Manual-Knapsack")),0,INDEX(ay_OpExAOEM,MATCH(sys_KeyOperator&"Hands",key_AOEM,0),21)))),MAX(INDEX(ay_OpExAOEM,MATCH(sys_KeyOperator&"Hands",key_AOEM,0),22),(INDEX(ay_OpExAOEM,MATCH(sys_KeyOperator&"Hands",key_AOEM,0),22)/d_PctExtrapolation)*i_AmountAS4))) ->  | L32: AOEM | M32: =IF(AND(d_AreaTreated=10,i_AppMeth="Downward spraying"),IF(i_AppEquip="Vehicle-mounted-Drift Reduction","Small area equipment and drift reduction cannot be selected together - drift reduction has not been applied","This scenario assumes that small area equipment is used"),IF(i_AppMeth="Upward spraying", "No data available for a drift reduction scenario","") ) -> 
C33: Body | D33: =IF(i_AppEquip="Manual-Trolley",Trolley!D33+MHH!D33,IF(ISBLANK(INDEX(ay_OpExAOEM,MATCH(sys_KeyOperator&"Body",key_AOEM,0),18)),10^(INDEX(ay_OpExAOEM,MATCH(sys_KeyOperator&"Body",key_AOEM,0),15)+(LOG(i_AmountAS1)*INDEX(ay_OpExAOEM,MATCH(sys_KeyOperator&"Body",key_AOEM,0),16))+ IF(AND(i_AppMeth="Upward spraying",LEFT(i_AppEquip,15)="Vehicle-mounted",d_AppPfCaBfR = "Yes"),0,IF(AND(i_Season = "late (dense foliage)",i_AppMeth="Upward spraying",OR(i_AppEquip="Manual-Hand held",i_AppEquip="Manual-Knapsack")),0,INDEX(ay_OpExAOEM,MATCH(sys_KeyOperator&"Body",key_AOEM,0),17))) ),MAX(INDEX(ay_OpExAOEM,MATCH(sys_KeyOperator&"Body",key_AOEM,0),18),(INDEX(ay_OpExAOEM,MATCH(sys_KeyOperator&"Body",key_AOEM,0),18)/d_PctExtrapolation)*i_AmountAS1))) ->  | E33: =IF(i_AppEquip="Manual-Trolley",Trolley!E33+MHH!E33,IF(ISBLANK(INDEX(ay_OpExAOEM,MATCH(sys_KeyOperator&"Body",key_AOEM,0),22)),10^(INDEX(ay_OpExAOEM,MATCH(sys_KeyOperator&"Body",key_AOEM,0),19)+(LOG(i_AmountAS1)*INDEX(ay_OpExAOEM,MATCH(sys_KeyOperator&"Body",key_AOEM,0),20))+ IF(AND(i_AppMeth="Upward spraying",LEFT(i_AppEquip,15)="Vehicle-mounted",d_AppPfCaBfR = "Yes"),0,IF(AND(i_Season = "late (dense foliage)",i_AppMeth="Upward spraying",OR(i_AppEquip="Manual-Hand held",i_AppEquip="Manual-Knapsack")),0,INDEX(ay_OpExAOEM,MATCH(sys_KeyOperator&"Body",key_AOEM,0),21))) ),MAX(INDEX(ay_OpExAOEM,MATCH(sys_KeyOperator&"Body",key_AOEM,0),22),(INDEX(ay_OpExAOEM,MATCH(sys_KeyOperator&"Body",key_AOEM,0),22)/d_PctExtrapolation)*i_AmountAS1))) ->  | F33: =IF(i_AppEquip="Manual-Trolley",Trolley!F33+MHH!F33,IF(ISBLANK(INDEX(ay_OpExAOEM,MATCH(sys_KeyOperator&"Body",key_AOEM,0),18)),10^(INDEX(ay_OpExAOEM,MATCH(sys_KeyOperator&"Body",key_AOEM,0),15)+(LOG(i_AmountAS2)*INDEX(ay_OpExAOEM,MATCH(sys_KeyOperator&"Body",key_AOEM,0),16))+IF(AND(i_AppMeth="Upward spraying",LEFT(i_AppEquip,15)="Vehicle-mounted",d_AppPfCaBfR="Yes"),0,IF(AND(i_Season="late (dense foliage)",i_AppMeth="Upward spraying",OR(i_AppEquip="Manual-Hand held",i_AppEquip="Manual-Knapsack")),0,INDEX(ay_OpExAOEM,MATCH(sys_KeyOperator&"Body",key_AOEM,0),17)))),MAX(INDEX(ay_OpExAOEM,MATCH(sys_KeyOperator&"Body",key_AOEM,0),18),(INDEX(ay_OpExAOEM,MATCH(sys_KeyOperator&"Body",key_AOEM,0),18)/d_PctExtrapolation)*i_AmountAS2))) ->  | G33: =IF(i_AppEquip="Manual-Trolley",Trolley!G33+MHH!G33,IF(ISBLANK(INDEX(ay_OpExAOEM,MATCH(sys_KeyOperator&"Body",key_AOEM,0),22)),10^(INDEX(ay_OpExAOEM,MATCH(sys_KeyOperator&"Body",key_AOEM,0),19)+(LOG(i_AmountAS2)*INDEX(ay_OpExAOEM,MATCH(sys_KeyOperator&"Body",key_AOEM,0),20))+IF(AND(i_AppMeth="Upward spraying",LEFT(i_AppEquip,15)="Vehicle-mounted",d_AppPfCaBfR="Yes"),0,IF(AND(i_Season="late (dense foliage)",i_AppMeth="Upward spraying",OR(i_AppEquip="Manual-Hand held",i_AppEquip="Manual-Knapsack")),0,INDEX(ay_OpExAOEM,MATCH(sys_KeyOperator&"Body",key_AOEM,0),21)))),MAX(INDEX(ay_OpExAOEM,MATCH(sys_KeyOperator&"Body",key_AOEM,0),22),(INDEX(ay_OpExAOEM,MATCH(sys_KeyOperator&"Body",key_AOEM,0),22)/d_PctExtrapolation)*i_AmountAS2))) ->  | H33: =IF(i_AppEquip="Manual-Trolley",Trolley!H33+MHH!H33,IF(ISBLANK(INDEX(ay_OpExAOEM,MATCH(sys_KeyOperator&"Body",key_AOEM,0),18)),10^(INDEX(ay_OpExAOEM,MATCH(sys_KeyOperator&"Body",key_AOEM,0),15)+(LOG(i_AmountAS3)*INDEX(ay_OpExAOEM,MATCH(sys_KeyOperator&"Body",key_AOEM,0),16))+IF(AND(i_AppMeth="Upward spraying",LEFT(i_AppEquip,15)="Vehicle-mounted",d_AppPfCaBfR="Yes"),0,IF(AND(i_Season="late (dense foliage)",i_AppMeth="Upward spraying",OR(i_AppEquip="Manual-Hand held",i_AppEquip="Manual-Knapsack")),0,INDEX(ay_OpExAOEM,MATCH(sys_KeyOperator&"Body",key_AOEM,0),17)))),MAX(INDEX(ay_OpExAOEM,MATCH(sys_KeyOperator&"Body",key_AOEM,0),18),(INDEX(ay_OpExAOEM,MATCH(sys_KeyOperator&"Body",key_AOEM,0),18)/d_PctExtrapolation)*i_AmountAS3))) ->  | I33: =IF(i_AppEquip="Manual-Trolley",Trolley!I33+MHH!I33,IF(ISBLANK(INDEX(ay_OpExAOEM,MATCH(sys_KeyOperator&"Body",key_AOEM,0),22)),10^(INDEX(ay_OpExAOEM,MATCH(sys_KeyOperator&"Body",key_AOEM,0),19)+(LOG(i_AmountAS3)*INDEX(ay_OpExAOEM,MATCH(sys_KeyOperator&"Body",key_AOEM,0),20))+IF(AND(i_AppMeth="Upward spraying",LEFT(i_AppEquip,15)="Vehicle-mounted",d_AppPfCaBfR="Yes"),0,IF(AND(i_Season="late (dense foliage)",i_AppMeth="Upward spraying",OR(i_AppEquip="Manual-Hand held",i_AppEquip="Manual-Knapsack")),0,INDEX(ay_OpExAOEM,MATCH(sys_KeyOperator&"Body",key_AOEM,0),21)))),MAX(INDEX(ay_OpExAOEM,MATCH(sys_KeyOperator&"Body",key_AOEM,0),22),(INDEX(ay_OpExAOEM,MATCH(sys_KeyOperator&"Body",key_AOEM,0),22)/d_PctExtrapolation)*i_AmountAS3))) ->  | J33: =IF(i_AppEquip="Manual-Trolley",Trolley!J33+MHH!J33,IF(ISBLANK(INDEX(ay_OpExAOEM,MATCH(sys_KeyOperator&"Body",key_AOEM,0),18)),10^(INDEX(ay_OpExAOEM,MATCH(sys_KeyOperator&"Body",key_AOEM,0),15)+(LOG(i_AmountAS4)*INDEX(ay_OpExAOEM,MATCH(sys_KeyOperator&"Body",key_AOEM,0),16))+IF(AND(i_AppMeth="Upward spraying",LEFT(i_AppEquip,15)="Vehicle-mounted",d_AppPfCaBfR="Yes"),0,IF(AND(i_Season="late (dense foliage)",i_AppMeth="Upward spraying",OR(i_AppEquip="Manual-Hand held",i_AppEquip="Manual-Knapsack")),0,INDEX(ay_OpExAOEM,MATCH(sys_KeyOperator&"Body",key_AOEM,0),17)))),MAX(INDEX(ay_OpExAOEM,MATCH(sys_KeyOperator&"Body",key_AOEM,0),18),(INDEX(ay_OpExAOEM,MATCH(sys_KeyOperator&"Body",key_AOEM,0),18)/d_PctExtrapolation)*i_AmountAS4))) ->  | K33: =IF(i_AppEquip="Manual-Trolley",Trolley!K33+MHH!K33,IF(ISBLANK(INDEX(ay_OpExAOEM,MATCH(sys_KeyOperator&"Body",key_AOEM,0),22)),10^(INDEX(ay_OpExAOEM,MATCH(sys_KeyOperator&"Body",key_AOEM,0),19)+(LOG(i_AmountAS4)*INDEX(ay_OpExAOEM,MATCH(sys_KeyOperator&"Body",key_AOEM,0),20))+IF(AND(i_AppMeth="Upward spraying",LEFT(i_AppEquip,15)="Vehicle-mounted",d_AppPfCaBfR="Yes"),0,IF(AND(i_Season="late (dense foliage)",i_AppMeth="Upward spraying",OR(i_AppEquip="Manual-Hand held",i_AppEquip="Manual-Knapsack")),0,INDEX(ay_OpExAOEM,MATCH(sys_KeyOperator&"Body",key_AOEM,0),21)))),MAX(INDEX(ay_OpExAOEM,MATCH(sys_KeyOperator&"Body",key_AOEM,0),22),(INDEX(ay_OpExAOEM,MATCH(sys_KeyOperator&"Body",key_AOEM,0),22)/d_PctExtrapolation)*i_AmountAS4))) ->  | L33: AOEM
C34: Head | D34: =IF(i_AppEquip="Manual-Trolley",Trolley!D34+MHH!D34,IF(ISBLANK(INDEX(ay_OpExAOEM,MATCH(sys_KeyOperator&"Head",key_AOEM,0),18)),10^(INDEX(ay_OpExAOEM,MATCH(sys_KeyOperator&"Head",key_AOEM,0),15)+(LOG(i_AmountAS1)*INDEX(ay_OpExAOEM,MATCH(sys_KeyOperator&"Head",key_AOEM,0),16))+ IF(AND(i_AppMeth="Upward spraying",LEFT(i_AppEquip,15)="Vehicle-mounted",d_AppPfCaBfR = "Yes"),0,IF(AND(i_Season = "late (dense foliage)",i_AppMeth="Upward spraying",OR(i_AppEquip="Manual-Hand held",i_AppEquip="Manual-Knapsack")),0,INDEX(ay_OpExAOEM,MATCH(sys_KeyOperator&"Head",key_AOEM,0),17))) ),MAX(INDEX(ay_OpExAOEM,MATCH(sys_KeyOperator&"Head",key_AOEM,0),18),(INDEX(ay_OpExAOEM,MATCH(sys_KeyOperator&"Head",key_AOEM,0),18)/d_PctExtrapolation)*i_AmountAS1))) ->  | E34: =IF(i_AppEquip="Manual-Trolley",Trolley!E34+MHH!E34,IF(ISBLANK(INDEX(ay_OpExAOEM,MATCH(sys_KeyOperator&"Head",key_AOEM,0),22)),10^(INDEX(ay_OpExAOEM,MATCH(sys_KeyOperator&"Head",key_AOEM,0),19)+(LOG(i_AmountAS1)*INDEX(ay_OpExAOEM,MATCH(sys_KeyOperator&"Head",key_AOEM,0),20))+ IF(AND(i_AppMeth="Upward spraying",LEFT(i_AppEquip,15)="Vehicle-mounted",d_AppPfCaBfR = "Yes"),0,IF(AND(i_Season = "late (dense foliage)",i_AppMeth="Upward spraying",OR(i_AppEquip="Manual-Hand held",i_AppEquip="Manual-Knapsack")),0,INDEX(ay_OpExAOEM,MATCH(sys_KeyOperator&"Head",key_AOEM,0),21))) ),MAX(INDEX(ay_OpExAOEM,MATCH(sys_KeyOperator&"Head",key_AOEM,0),22),(INDEX(ay_OpExAOEM,MATCH(sys_KeyOperator&"Head",key_AOEM,0),22)/d_PctExtrapolation)*i_AmountAS1))) ->  | F34: =IF(i_AppEquip="Manual-Trolley",Trolley!F34+MHH!F34,IF(ISBLANK(INDEX(ay_OpExAOEM,MATCH(sys_KeyOperator&"Head",key_AOEM,0),18)),10^(INDEX(ay_OpExAOEM,MATCH(sys_KeyOperator&"Head",key_AOEM,0),15)+(LOG(i_AmountAS2)*INDEX(ay_OpExAOEM,MATCH(sys_KeyOperator&"Head",key_AOEM,0),16))+ IF(AND(i_AppMeth="Upward spraying",LEFT(i_AppEquip,15)="Vehicle-mounted",d_AppPfCaBfR = "Yes"),0,IF(AND(i_Season = "late (dense foliage)",i_AppMeth="Upward spraying",OR(i_AppEquip="Manual-Hand held",i_AppEquip="Manual-Knapsack")),0,INDEX(ay_OpExAOEM,MATCH(sys_KeyOperator&"Head",key_AOEM,0),17))) ),MAX(INDEX(ay_OpExAOEM,MATCH(sys_KeyOperator&"Head",key_AOEM,0),18),(INDEX(ay_OpExAOEM,MATCH(sys_KeyOperator&"Head",key_AOEM,0),18)/d_PctExtrapolation)*i_AmountAS2))) ->  | G34: =IF(i_AppEquip="Manual-Trolley",Trolley!G34+MHH!G34,IF(ISBLANK(INDEX(ay_OpExAOEM,MATCH(sys_KeyOperator&"Head",key_AOEM,0),22)),10^(INDEX(ay_OpExAOEM,MATCH(sys_KeyOperator&"Head",key_AOEM,0),19)+(LOG(i_AmountAS2)*INDEX(ay_OpExAOEM,MATCH(sys_KeyOperator&"Head",key_AOEM,0),20))+ IF(AND(i_AppMeth="Upward spraying",LEFT(i_AppEquip,15)="Vehicle-mounted",d_AppPfCaBfR = "Yes"),0,IF(AND(i_Season = "late (dense foliage)",i_AppMeth="Upward spraying",OR(i_AppEquip="Manual-Hand held",i_AppEquip="Manual-Knapsack")),0,INDEX(ay_OpExAOEM,MATCH(sys_KeyOperator&"Head",key_AOEM,0),21))) ),MAX(INDEX(ay_OpExAOEM,MATCH(sys_KeyOperator&"Head",key_AOEM,0),22),(INDEX(ay_OpExAOEM,MATCH(sys_KeyOperator&"Head",key_AOEM,0),22)/d_PctExtrapolation)*i_AmountAS2))) ->  | H34: =IF(i_AppEquip="Manual-Trolley",Trolley!H34+MHH!H34,IF(ISBLANK(INDEX(ay_OpExAOEM,MATCH(sys_KeyOperator&"Head",key_AOEM,0),18)),10^(INDEX(ay_OpExAOEM,MATCH(sys_KeyOperator&"Head",key_AOEM,0),15)+(LOG(i_AmountAS3)*INDEX(ay_OpExAOEM,MATCH(sys_KeyOperator&"Head",key_AOEM,0),16))+ IF(AND(i_AppMeth="Upward spraying",LEFT(i_AppEquip,15)="Vehicle-mounted",d_AppPfCaBfR = "Yes"),0,IF(AND(i_Season = "late (dense foliage)",i_AppMeth="Upward spraying",OR(i_AppEquip="Manual-Hand held",i_AppEquip="Manual-Knapsack")),0,INDEX(ay_OpExAOEM,MATCH(sys_KeyOperator&"Head",key_AOEM,0),17))) ),MAX(INDEX(ay_OpExAOEM,MATCH(sys_KeyOperator&"Head",key_AOEM,0),18),(INDEX(ay_OpExAOEM,MATCH(sys_KeyOperator&"Head",key_AOEM,0),18)/d_PctExtrapolation)*i_AmountAS3))) ->  | I34: =IF(i_AppEquip="Manual-Trolley",Trolley!I34+MHH!I34,IF(ISBLANK(INDEX(ay_OpExAOEM,MATCH(sys_KeyOperator&"Head",key_AOEM,0),22)),10^(INDEX(ay_OpExAOEM,MATCH(sys_KeyOperator&"Head",key_AOEM,0),19)+(LOG(i_AmountAS3)*INDEX(ay_OpExAOEM,MATCH(sys_KeyOperator&"Head",key_AOEM,0),20))+IF(AND(i_AppMeth="Upward spraying",LEFT(i_AppEquip,15)="Vehicle-mounted",d_AppPfCaBfR="Yes"),0,IF(AND(i_Season="late (dense foliage)",i_AppMeth="Upward spraying",OR(i_AppEquip="Manual-Hand held",i_AppEquip="Manual-Knapsack")),0,INDEX(ay_OpExAOEM,MATCH(sys_KeyOperator&"Head",key_AOEM,0),21)))),MAX(INDEX(ay_OpExAOEM,MATCH(sys_KeyOperator&"Head",key_AOEM,0),22),(INDEX(ay_OpExAOEM,MATCH(sys_KeyOperator&"Head",key_AOEM,0),22)/d_PctExtrapolation)*i_AmountAS3))) ->  | J34: =IF(i_AppEquip="Manual-Trolley",Trolley!J34+MHH!J34,IF(ISBLANK(INDEX(ay_OpExAOEM,MATCH(sys_KeyOperator&"Head",key_AOEM,0),18)),10^(INDEX(ay_OpExAOEM,MATCH(sys_KeyOperator&"Head",key_AOEM,0),15)+(LOG(i_AmountAS4)*INDEX(ay_OpExAOEM,MATCH(sys_KeyOperator&"Head",key_AOEM,0),16))+IF(AND(i_AppMeth="Upward spraying",LEFT(i_AppEquip,15)="Vehicle-mounted",d_AppPfCaBfR="Yes"),0,IF(AND(i_Season="late (dense foliage)",i_AppMeth="Upward spraying",OR(i_AppEquip="Manual-Hand held",i_AppEquip="Manual-Knapsack")),0,INDEX(ay_OpExAOEM,MATCH(sys_KeyOperator&"Head",key_AOEM,0),17)))),MAX(INDEX(ay_OpExAOEM,MATCH(sys_KeyOperator&"Head",key_AOEM,0),18),(INDEX(ay_OpExAOEM,MATCH(sys_KeyOperator&"Head",key_AOEM,0),18)/d_PctExtrapolation)*i_AmountAS4))) ->  | K34: =IF(i_AppEquip="Manual-Trolley",Trolley!K34+MHH!K34,IF(ISBLANK(INDEX(ay_OpExAOEM,MATCH(sys_KeyOperator&"Head",key_AOEM,0),22)),10^(INDEX(ay_OpExAOEM,MATCH(sys_KeyOperator&"Head",key_AOEM,0),19)+(LOG(i_AmountAS4)*INDEX(ay_OpExAOEM,MATCH(sys_KeyOperator&"Head",key_AOEM,0),20))+IF(AND(i_AppMeth="Upward spraying",LEFT(i_AppEquip,15)="Vehicle-mounted",d_AppPfCaBfR="Yes"),0,IF(AND(i_Season="late (dense foliage)",i_AppMeth="Upward spraying",OR(i_AppEquip="Manual-Hand held",i_AppEquip="Manual-Knapsack")),0,INDEX(ay_OpExAOEM,MATCH(sys_KeyOperator&"Head",key_AOEM,0),21)))),MAX(INDEX(ay_OpExAOEM,MATCH(sys_KeyOperator&"Head",key_AOEM,0),22),(INDEX(ay_OpExAOEM,MATCH(sys_KeyOperator&"Head",key_AOEM,0),22)/d_PctExtrapolation)*i_AmountAS4))) ->  | L34: AOEM
C35: Protected hands | D35: =IF(i_AppEquip="Manual-Trolley",Trolley!D35+MHH!D35,IF(ISBLANK(INDEX(ay_OpExAOEM,MATCH(sys_KeyOperator&"Protected Hands",key_AOEM,0),18)),10^(INDEX(ay_OpExAOEM,MATCH(sys_KeyOperator&"Protected Hands",key_AOEM,0),15)+(LOG(i_AmountAS1)*INDEX(ay_OpExAOEM,MATCH(sys_KeyOperator&"Protected Hands",key_AOEM,0),16))+ IF(AND(i_AppMeth="Upward spraying",LEFT(i_AppEquip,15)="Vehicle-mounted",d_AppPfCaBfR = "Yes"),0,IF(AND(i_Season = "late (dense foliage)",i_AppMeth="Upward spraying",OR(i_AppEquip="Manual-Hand held",i_AppEquip="Manual-Knapsack")),0,INDEX(ay_OpExAOEM,MATCH(sys_KeyOperator&"Protected Hands",key_AOEM,0),17))) ),MAX(INDEX(ay_OpExAOEM,MATCH(sys_KeyOperator&"Protected Hands",key_AOEM,0),18),(INDEX(ay_OpExAOEM,MATCH(sys_KeyOperator&"Protected Hands",key_AOEM,0),18)/d_PctExtrapolation)*i_AmountAS1))) ->  | E35: =IF(i_AppEquip="Manual-Trolley",Trolley!E35+MHH!E35,IF(ISBLANK(INDEX(ay_OpExAOEM,MATCH(sys_KeyOperator&"Protected Hands",key_AOEM,0),22)),10^(INDEX(ay_OpExAOEM,MATCH(sys_KeyOperator&"Protected Hands",key_AOEM,0),19)+(LOG(i_AmountAS1)*INDEX(ay_OpExAOEM,MATCH(sys_KeyOperator&"Protected Hands",key_AOEM,0),20))+IF(AND(i_AppMeth="Upward spraying",LEFT(i_AppEquip,15)="Vehicle-mounted",d_AppPfCaBfR="Yes"),0,IF(AND(i_Season="late (dense foliage)",i_AppMeth="Upward spraying",OR(i_AppEquip="Manual-Hand held",i_AppEquip="Manual-Knapsack")),0,INDEX(ay_OpExAOEM,MATCH(sys_KeyOperator&"Protected Hands",key_AOEM,0),21)))),MAX(INDEX(ay_OpExAOEM,MATCH(sys_KeyOperator&"Protected Hands",key_AOEM,0),22),(INDEX(ay_OpExAOEM,MATCH(sys_KeyOperator&"Protected Hands",key_AOEM,0),22)/d_PctExtrapolation)*i_AmountAS1))) ->  | F35: =IF(i_AppEquip="Manual-Trolley",Trolley!F35+MHH!F35,IF(ISBLANK(INDEX(ay_OpExAOEM,MATCH(sys_KeyOperator&"Protected Hands",key_AOEM,0),18)),10^(INDEX(ay_OpExAOEM,MATCH(sys_KeyOperator&"Protected Hands",key_AOEM,0),15)+(LOG(i_AmountAS2)*INDEX(ay_OpExAOEM,MATCH(sys_KeyOperator&"Protected Hands",key_AOEM,0),16))+IF(AND(i_AppMeth="Upward spraying",LEFT(i_AppEquip,15)="Vehicle-mounted",d_AppPfCaBfR="Yes"),0,IF(AND(i_Season="late (dense foliage)",i_AppMeth="Upward spraying",OR(i_AppEquip="Manual-Hand held",i_AppEquip="Manual-Knapsack")),0,INDEX(ay_OpExAOEM,MATCH(sys_KeyOperator&"Protected Hands",key_AOEM,0),17)))),MAX(INDEX(ay_OpExAOEM,MATCH(sys_KeyOperator&"Protected Hands",key_AOEM,0),18),(INDEX(ay_OpExAOEM,MATCH(sys_KeyOperator&"Protected Hands",key_AOEM,0),18)/d_PctExtrapolation)*i_AmountAS2))) ->  | G35: =IF(i_AppEquip="Manual-Trolley",Trolley!G35+MHH!G35,IF(ISBLANK(INDEX(ay_OpExAOEM,MATCH(sys_KeyOperator&"Protected Hands",key_AOEM,0),22)),10^(INDEX(ay_OpExAOEM,MATCH(sys_KeyOperator&"Protected Hands",key_AOEM,0),19)+(LOG(i_AmountAS2)*INDEX(ay_OpExAOEM,MATCH(sys_KeyOperator&"Protected Hands",key_AOEM,0),20))+IF(AND(i_AppMeth="Upward spraying",LEFT(i_AppEquip,15)="Vehicle-mounted",d_AppPfCaBfR="Yes"),0,IF(AND(i_Season="late (dense foliage)",i_AppMeth="Upward spraying",OR(i_AppEquip="Manual-Hand held",i_AppEquip="Manual-Knapsack")),0,INDEX(ay_OpExAOEM,MATCH(sys_KeyOperator&"Protected Hands",key_AOEM,0),21)))),MAX(INDEX(ay_OpExAOEM,MATCH(sys_KeyOperator&"Protected Hands",key_AOEM,0),22),(INDEX(ay_OpExAOEM,MATCH(sys_KeyOperator&"Protected Hands",key_AOEM,0),22)/d_PctExtrapolation)*i_AmountAS2))) ->  | H35: =IF(i_AppEquip="Manual-Trolley",Trolley!H35+MHH!H35,IF(ISBLANK(INDEX(ay_OpExAOEM,MATCH(sys_KeyOperator&"Protected Hands",key_AOEM,0),18)),10^(INDEX(ay_OpExAOEM,MATCH(sys_KeyOperator&"Protected Hands",key_AOEM,0),15)+(LOG(i_AmountAS3)*INDEX(ay_OpExAOEM,MATCH(sys_KeyOperator&"Protected Hands",key_AOEM,0),16))+IF(AND(i_AppMeth="Upward spraying",LEFT(i_AppEquip,15)="Vehicle-mounted",d_AppPfCaBfR="Yes"),0,IF(AND(i_Season="late (dense foliage)",i_AppMeth="Upward spraying",OR(i_AppEquip="Manual-Hand held",i_AppEquip="Manual-Knapsack")),0,INDEX(ay_OpExAOEM,MATCH(sys_KeyOperator&"Protected Hands",key_AOEM,0),17)))),MAX(INDEX(ay_OpExAOEM,MATCH(sys_KeyOperator&"Protected Hands",key_AOEM,0),18),(INDEX(ay_OpExAOEM,MATCH(sys_KeyOperator&"Protected Hands",key_AOEM,0),18)/d_PctExtrapolation)*i_AmountAS3))) ->  | I35: =IF(i_AppEquip="Manual-Trolley",Trolley!I35+MHH!I35,IF(ISBLANK(INDEX(ay_OpExAOEM,MATCH(sys_KeyOperator&"Protected Hands",key_AOEM,0),22)),10^(INDEX(ay_OpExAOEM,MATCH(sys_KeyOperator&"Protected Hands",key_AOEM,0),19)+(LOG(i_AmountAS3)*INDEX(ay_OpExAOEM,MATCH(sys_KeyOperator&"Protected Hands",key_AOEM,0),20))+IF(AND(i_AppMeth="Upward spraying",LEFT(i_AppEquip,15)="Vehicle-mounted",d_AppPfCaBfR="Yes"),0,IF(AND(i_Season="late (dense foliage)",i_AppMeth="Upward spraying",OR(i_AppEquip="Manual-Hand held",i_AppEquip="Manual-Knapsack")),0,INDEX(ay_OpExAOEM,MATCH(sys_KeyOperator&"Protected Hands",key_AOEM,0),21)))),MAX(INDEX(ay_OpExAOEM,MATCH(sys_KeyOperator&"Protected Hands",key_AOEM,0),22),(INDEX(ay_OpExAOEM,MATCH(sys_KeyOperator&"Protected Hands",key_AOEM,0),22)/d_PctExtrapolation)*i_AmountAS3))) ->  | J35: =IF(i_AppEquip="Manual-Trolley",Trolley!J35+MHH!J35,IF(ISBLANK(INDEX(ay_OpExAOEM,MATCH(sys_KeyOperator&"Protected Hands",key_AOEM,0),18)),10^(INDEX(ay_OpExAOEM,MATCH(sys_KeyOperator&"Protected Hands",key_AOEM,0),15)+(LOG(i_AmountAS4)*INDEX(ay_OpExAOEM,MATCH(sys_KeyOperator&"Protected Hands",key_AOEM,0),16))+IF(AND(i_AppMeth="Upward spraying",LEFT(i_AppEquip,15)="Vehicle-mounted",d_AppPfCaBfR="Yes"),0,IF(AND(i_Season="late (dense foliage)",i_AppMeth="Upward spraying",OR(i_AppEquip="Manual-Hand held",i_AppEquip="Manual-Knapsack")),0,INDEX(ay_OpExAOEM,MATCH(sys_KeyOperator&"Protected Hands",key_AOEM,0),17)))),MAX(INDEX(ay_OpExAOEM,MATCH(sys_KeyOperator&"Protected Hands",key_AOEM,0),18),(INDEX(ay_OpExAOEM,MATCH(sys_KeyOperator&"Protected Hands",key_AOEM,0),18)/d_PctExtrapolation)*i_AmountAS4))) ->  | K35: =IF(i_AppEquip="Manual-Trolley",Trolley!K35+MHH!K35,IF(ISBLANK(INDEX(ay_OpExAOEM,MATCH(sys_KeyOperator&"Protected Hands",key_AOEM,0),22)),10^(INDEX(ay_OpExAOEM,MATCH(sys_KeyOperator&"Protected Hands",key_AOEM,0),19)+(LOG(i_AmountAS4)*INDEX(ay_OpExAOEM,MATCH(sys_KeyOperator&"Protected Hands",key_AOEM,0),20))+IF(AND(i_AppMeth="Upward spraying",LEFT(i_AppEquip,15)="Vehicle-mounted",d_AppPfCaBfR="Yes"),0,IF(AND(i_Season="late (dense foliage)",i_AppMeth="Upward spraying",OR(i_AppEquip="Manual-Hand held",i_AppEquip="Manual-Knapsack")),0,INDEX(ay_OpExAOEM,MATCH(sys_KeyOperator&"Protected Hands",key_AOEM,0),21)))),MAX(INDEX(ay_OpExAOEM,MATCH(sys_KeyOperator&"Protected Hands",key_AOEM,0),22),(INDEX(ay_OpExAOEM,MATCH(sys_KeyOperator&"Protected Hands",key_AOEM,0),22)/d_PctExtrapolation)*i_AmountAS4))) ->  | L35: AOEM
C36: Protected body | D36: =IF(i_AppEquip="Manual-Trolley",Trolley!D36+MHH!D36,IF(ISBLANK(INDEX(ay_OpExAOEM,MATCH(sys_KeyOperator&"Protected Body",key_AOEM,0),18)),10^(INDEX(ay_OpExAOEM,MATCH(sys_KeyOperator&"Protected Body",key_AOEM,0),15)+(LOG(i_AmountAS1)*INDEX(ay_OpExAOEM,MATCH(sys_KeyOperator&"Protected Body",key_AOEM,0),16))+IF(AND(i_AppMeth="Upward spraying",LEFT(i_AppEquip,15)="Vehicle-mounted",d_AppPfCaBfR="Yes"),0,IF(AND(i_Season="late (dense foliage)",i_AppMeth="Upward spraying",OR(i_AppEquip="Manual-Hand held",i_AppEquip="Manual-Knapsack")),0,INDEX(ay_OpExAOEM,MATCH(sys_KeyOperator&"Protected Body",key_AOEM,0),17)))),MAX(INDEX(ay_OpExAOEM,MATCH(sys_KeyOperator&"Protected Body",key_AOEM,0),18),(INDEX(ay_OpExAOEM,MATCH(sys_KeyOperator&"Protected Body",key_AOEM,0),18)/IF(I_PPE_appl="Rain trousers",0.086,d_PctExtrapolation)*i_AmountAS1)))) ->  | E36: =IF(i_AppEquip="Manual-Trolley",Trolley!E36+MHH!E36,IF(ISBLANK(INDEX(ay_OpExAOEM,MATCH(sys_KeyOperator&"Protected Body",key_AOEM,0),22)),10^(INDEX(ay_OpExAOEM,MATCH(sys_KeyOperator&"Protected Body",key_AOEM,0),19)++(LOG(i_AmountAS1)*INDEX(ay_OpExAOEM,MATCH(sys_KeyOperator&"Protected Body",key_AOEM,0),20))+IF(AND(i_AppMeth="Upward spraying",LEFT(i_AppEquip,15)="Vehicle-mounted",d_AppPfCaBfR="Yes"),0,IF(AND(i_Season="late (dense foliage)",i_AppMeth="Upward spraying",OR(i_AppEquip="Manual-Hand held",i_AppEquip="Manual-Knapsack")),0,INDEX(ay_OpExAOEM,MATCH(sys_KeyOperator&"Protected Body",key_AOEM,0),21)))),MAX(INDEX(ay_OpExAOEM,MATCH(sys_KeyOperator&"Protected Body",key_AOEM,0),22),(INDEX(ay_OpExAOEM,MATCH(sys_KeyOperator&"Protected Body",key_AOEM,0),22)/IF(I_PPE_appl="Rain trousers",0.086,d_PctExtrapolation))*i_AmountAS1))) ->  | F36: =IF(i_AppEquip="Manual-Trolley",Trolley!F36+MHH!F36,IF(ISBLANK(INDEX(ay_OpExAOEM,MATCH(sys_KeyOperator&"Protected Body",key_AOEM,0),18)),10^(INDEX(ay_OpExAOEM,MATCH(sys_KeyOperator&"Protected Body",key_AOEM,0),15)+(LOG(i_AmountAS2)*INDEX(ay_OpExAOEM,MATCH(sys_KeyOperator&"Protected Body",key_AOEM,0),16))+IF(AND(i_AppMeth="Upward spraying",LEFT(i_AppEquip,15)="Vehicle-mounted",d_AppPfCaBfR="Yes"),0,IF(AND(i_Season="late (dense foliage)",i_AppMeth="Upward spraying",OR(i_AppEquip="Manual-Hand held",i_AppEquip="Manual-Knapsack")),0,INDEX(ay_OpExAOEM,MATCH(sys_KeyOperator&"Protected Body",key_AOEM,0),17)))),MAX(INDEX(ay_OpExAOEM,MATCH(sys_KeyOperator&"Protected Body",key_AOEM,0),18),(INDEX(ay_OpExAOEM,MATCH(sys_KeyOperator&"Protected Body",key_AOEM,0),18)/IF(I_PPE_appl="Rain trousers",0.086,d_PctExtrapolation))*i_AmountAS2))) ->  | G36: =IF(i_AppEquip="Manual-Trolley",Trolley!G36+MHH!G36,IF(ISBLANK(INDEX(ay_OpExAOEM,MATCH(sys_KeyOperator&"Protected Body",key_AOEM,0),22)),10^(INDEX(ay_OpExAOEM,MATCH(sys_KeyOperator&"Protected Body",key_AOEM,0),19)++(LOG(i_AmountAS2)*INDEX(ay_OpExAOEM,MATCH(sys_KeyOperator&"Protected Body",key_AOEM,0),20))+IF(AND(i_AppMeth="Upward spraying",LEFT(i_AppEquip,15)="Vehicle-mounted",d_AppPfCaBfR="Yes"),0,IF(AND(i_Season="late (dense foliage)",i_AppMeth="Upward spraying",OR(i_AppEquip="Manual-Hand held",i_AppEquip="Manual-Knapsack")),0,INDEX(ay_OpExAOEM,MATCH(sys_KeyOperator&"Protected Body",key_AOEM,0),21)))),MAX(INDEX(ay_OpExAOEM,MATCH(sys_KeyOperator&"Protected Body",key_AOEM,0),22),(INDEX(ay_OpExAOEM,MATCH(sys_KeyOperator&"Protected Body",key_AOEM,0),22)/IF(I_PPE_appl="Rain trousers",0.086,d_PctExtrapolation))*i_AmountAS2))) ->  | H36: =IF(i_AppEquip="Manual-Trolley",Trolley!H36+MHH!H36,IF(ISBLANK(INDEX(ay_OpExAOEM,MATCH(sys_KeyOperator&"Protected Body",key_AOEM,0),18)),10^(INDEX(ay_OpExAOEM,MATCH(sys_KeyOperator&"Protected Body",key_AOEM,0),15)+(LOG(i_AmountAS3)*INDEX(ay_OpExAOEM,MATCH(sys_KeyOperator&"Protected Body",key_AOEM,0),16))+IF(AND(i_AppMeth="Upward spraying",LEFT(i_AppEquip,15)="Vehicle-mounted",d_AppPfCaBfR="Yes"),0,IF(AND(i_Season="late (dense foliage)",i_AppMeth="Upward spraying",OR(i_AppEquip="Manual-Hand held",i_AppEquip="Manual-Knapsack")),0,INDEX(ay_OpExAOEM,MATCH(sys_KeyOperator&"Protected Body",key_AOEM,0),17)))),MAX(INDEX(ay_OpExAOEM,MATCH(sys_KeyOperator&"Protected Body",key_AOEM,0),18),(INDEX(ay_OpExAOEM,MATCH(sys_KeyOperator&"Protected Body",key_AOEM,0),18)/IF(I_PPE_appl="Rain trousers",0.086,d_PctExtrapolation))*i_AmountAS3))) ->  | I36: =IF(i_AppEquip="Manual-Trolley",Trolley!I36+MHH!I36,IF(ISBLANK(INDEX(ay_OpExAOEM,MATCH(sys_KeyOperator&"Protected Body",key_AOEM,0),22)),10^(INDEX(ay_OpExAOEM,MATCH(sys_KeyOperator&"Protected Body",key_AOEM,0),19)++(LOG(i_AmountAS3)*INDEX(ay_OpExAOEM,MATCH(sys_KeyOperator&"Protected Body",key_AOEM,0),20))+IF(AND(i_AppMeth="Upward spraying",LEFT(i_AppEquip,15)="Vehicle-mounted",d_AppPfCaBfR="Yes"),0,IF(AND(i_Season="late (dense foliage)",i_AppMeth="Upward spraying",OR(i_AppEquip="Manual-Hand held",i_AppEquip="Manual-Knapsack")),0,INDEX(ay_OpExAOEM,MATCH(sys_KeyOperator&"Protected Body",key_AOEM,0),21)))),MAX(INDEX(ay_OpExAOEM,MATCH(sys_KeyOperator&"Protected Body",key_AOEM,0),22),(INDEX(ay_OpExAOEM,MATCH(sys_KeyOperator&"Protected Body",key_AOEM,0),22)/IF(I_PPE_appl="Rain trousers",0.086,d_PctExtrapolation))*i_AmountAS3))) ->  | J36: =IF(i_AppEquip="Manual-Trolley",Trolley!J36+MHH!J36,IF(ISBLANK(INDEX(ay_OpExAOEM,MATCH(sys_KeyOperator&"Protected Body",key_AOEM,0),18)),10^(INDEX(ay_OpExAOEM,MATCH(sys_KeyOperator&"Protected Body",key_AOEM,0),15)+(LOG(i_AmountAS4)*INDEX(ay_OpExAOEM,MATCH(sys_KeyOperator&"Protected Body",key_AOEM,0),16))+IF(AND(i_AppMeth="Upward spraying",LEFT(i_AppEquip,15)="Vehicle-mounted",d_AppPfCaBfR="Yes"),0,IF(AND(i_Season="late (dense foliage)",i_AppMeth="Upward spraying",OR(i_AppEquip="Manual-Hand held",i_AppEquip="Manual-Knapsack")),0,INDEX(ay_OpExAOEM,MATCH(sys_KeyOperator&"Protected Body",key_AOEM,0),17)))),MAX(INDEX(ay_OpExAOEM,MATCH(sys_KeyOperator&"Protected Body",key_AOEM,0),18),(INDEX(ay_OpExAOEM,MATCH(sys_KeyOperator&"Protected Body",key_AOEM,0),18)/IF(I_PPE_appl="Rain trousers",0.086,d_PctExtrapolation))*i_AmountAS4))) ->  | K36: =IF(i_AppEquip="Manual-Trolley",Trolley!K36+MHH!K36,IF(ISBLANK(INDEX(ay_OpExAOEM,MATCH(sys_KeyOperator&"Protected Body",key_AOEM,0),22)),10^(INDEX(ay_OpExAOEM,MATCH(sys_KeyOperator&"Protected Body",key_AOEM,0),19)++(LOG(i_AmountAS4)*INDEX(ay_OpExAOEM,MATCH(sys_KeyOperator&"Protected Body",key_AOEM,0),20))+IF(AND(i_AppMeth="Upward spraying",LEFT(i_AppEquip,15)="Vehicle-mounted",d_AppPfCaBfR="Yes"),0,IF(AND(i_Season="late (dense foliage)",i_AppMeth="Upward spraying",OR(i_AppEquip="Manual-Hand held",i_AppEquip="Manual-Knapsack")),0,INDEX(ay_OpExAOEM,MATCH(sys_KeyOperator&"Protected Body",key_AOEM,0),21)))),MAX(INDEX(ay_OpExAOEM,MATCH(sys_KeyOperator&"Protected Body",key_AOEM,0),22),(INDEX(ay_OpExAOEM,MATCH(sys_KeyOperator&"Protected Body",key_AOEM,0),22)/IF(I_PPE_appl="Rain trousers",0.086,d_PctExtrapolation))*i_AmountAS4))) ->  | L36: AOEM
C37: Inhalation | D37: =IF(i_AppEquip="Manual-Trolley",Trolley!D37+MHH!D37,IF(ISBLANK(INDEX(ay_OpExAOEM,MATCH(sys_KeyOperator&"Inhalation",key_AOEM,0),18)),10^(INDEX(ay_OpExAOEM,MATCH(sys_KeyOperator&"Inhalation",key_AOEM,0),15)+(LOG(i_AmountAS1)*INDEX(ay_OpExAOEM,MATCH(sys_KeyOperator&"Inhalation",key_AOEM,0),16))+IF(AND(i_AppMeth="Upward spraying",LEFT(i_AppEquip,15)="Vehicle-mounted",d_AppPfCaBfR="Yes"),0,IF(AND(i_Season="late (dense foliage)",i_AppMeth="Upward spraying",OR(i_AppEquip="Manual-Hand held",i_AppEquip="Manual-Knapsack")),0,INDEX(ay_OpExAOEM,MATCH(sys_KeyOperator&"Inhalation",key_AOEM,0),17)))),MAX(INDEX(ay_OpExAOEM,MATCH(sys_KeyOperator&"Inhalation",key_AOEM,0),18),(INDEX(ay_OpExAOEM,MATCH(sys_KeyOperator&"Inhalation",key_AOEM,0),18)/d_PctExtrapolation)*i_AmountAS1))) ->  | E37: =IF(i_AppEquip="Manual-Trolley",Trolley!E37+MHH!E37,IF(ISBLANK(INDEX(ay_OpExAOEM,MATCH(sys_KeyOperator&"Inhalation",key_AOEM,0),22)),10^(INDEX(ay_OpExAOEM,MATCH(sys_KeyOperator&"Inhalation",key_AOEM,0),19)+(LOG(i_AmountAS1)*INDEX(ay_OpExAOEM,MATCH(sys_KeyOperator&"Inhalation",key_AOEM,0),20))+IF(AND(i_AppMeth="Upward spraying",LEFT(i_AppEquip,15)="Vehicle-mounted",d_AppPfCaBfR="Yes"),0,IF(AND(i_Season="late (dense foliage)",i_AppMeth="Upward spraying",OR(i_AppEquip="Manual-Hand held",i_AppEquip="Manual-Knapsack")),0,INDEX(ay_OpExAOEM,MATCH(sys_KeyOperator&"Inhalation",key_AOEM,0),21)))),MAX(INDEX(ay_OpExAOEM,MATCH(sys_KeyOperator&"Inhalation",key_AOEM,0),22),(INDEX(ay_OpExAOEM,MATCH(sys_KeyOperator&"Inhalation",key_AOEM,0),22)/d_PctExtrapolation)*i_AmountAS1))) ->  | F37: =IF(i_AppEquip="Manual-Trolley",Trolley!F37+MHH!F37,IF(ISBLANK(INDEX(ay_OpExAOEM,MATCH(sys_KeyOperator&"Inhalation",key_AOEM,0),18)),10^(INDEX(ay_OpExAOEM,MATCH(sys_KeyOperator&"Inhalation",key_AOEM,0),15)+(LOG(i_AmountAS2)*INDEX(ay_OpExAOEM,MATCH(sys_KeyOperator&"Inhalation",key_AOEM,0),16))+IF(AND(i_AppMeth="Upward spraying",LEFT(i_AppEquip,15)="Vehicle-mounted",d_AppPfCaBfR="Yes"),0,IF(AND(i_Season="late (dense foliage)",i_AppMeth="Upward spraying",OR(i_AppEquip="Manual-Hand held",i_AppEquip="Manual-Knapsack")),0,INDEX(ay_OpExAOEM,MATCH(sys_KeyOperator&"Inhalation",key_AOEM,0),17)))),MAX(INDEX(ay_OpExAOEM,MATCH(sys_KeyOperator&"Inhalation",key_AOEM,0),18),(INDEX(ay_OpExAOEM,MATCH(sys_KeyOperator&"Inhalation",key_AOEM,0),18)/d_PctExtrapolation)*i_AmountAS2))) ->  | G37: =IF(i_AppEquip="Manual-Trolley",Trolley!G37+MHH!G37,IF(ISBLANK(INDEX(ay_OpExAOEM,MATCH(sys_KeyOperator&"Inhalation",key_AOEM,0),22)),10^(INDEX(ay_OpExAOEM,MATCH(sys_KeyOperator&"Inhalation",key_AOEM,0),19)+(LOG(i_AmountAS2)*INDEX(ay_OpExAOEM,MATCH(sys_KeyOperator&"Inhalation",key_AOEM,0),20))+IF(AND(i_AppMeth="Upward spraying",LEFT(i_AppEquip,15)="Vehicle-mounted",d_AppPfCaBfR="Yes"),0,IF(AND(i_Season="late (dense foliage)",i_AppMeth="Upward spraying",OR(i_AppEquip="Manual-Hand held",i_AppEquip="Manual-Knapsack")),0,INDEX(ay_OpExAOEM,MATCH(sys_KeyOperator&"Inhalation",key_AOEM,0),21)))),MAX(INDEX(ay_OpExAOEM,MATCH(sys_KeyOperator&"Inhalation",key_AOEM,0),22),(INDEX(ay_OpExAOEM,MATCH(sys_KeyOperator&"Inhalation",key_AOEM,0),22)/d_PctExtrapolation)*i_AmountAS2))) ->  | H37: =IF(i_AppEquip="Manual-Trolley",Trolley!H37+MHH!H37,IF(ISBLANK(INDEX(ay_OpExAOEM,MATCH(sys_KeyOperator&"Inhalation",key_AOEM,0),18)),10^(INDEX(ay_OpExAOEM,MATCH(sys_KeyOperator&"Inhalation",key_AOEM,0),15)+(LOG(i_AmountAS3)*INDEX(ay_OpExAOEM,MATCH(sys_KeyOperator&"Inhalation",key_AOEM,0),16))+IF(AND(i_AppMeth="Upward spraying",LEFT(i_AppEquip,15)="Vehicle-mounted",d_AppPfCaBfR="Yes"),0,IF(AND(i_Season="late (dense foliage)",i_AppMeth="Upward spraying",OR(i_AppEquip="Manual-Hand held",i_AppEquip="Manual-Knapsack")),0,INDEX(ay_OpExAOEM,MATCH(sys_KeyOperator&"Inhalation",key_AOEM,0),17)))),MAX(INDEX(ay_OpExAOEM,MATCH(sys_KeyOperator&"Inhalation",key_AOEM,0),18),(INDEX(ay_OpExAOEM,MATCH(sys_KeyOperator&"Inhalation",key_AOEM,0),18)/d_PctExtrapolation)*i_AmountAS3))) ->  | I37: =IF(i_AppEquip="Manual-Trolley",Trolley!I37+MHH!I37,IF(ISBLANK(INDEX(ay_OpExAOEM,MATCH(sys_KeyOperator&"Inhalation",key_AOEM,0),22)),10^(INDEX(ay_OpExAOEM,MATCH(sys_KeyOperator&"Inhalation",key_AOEM,0),19)+(LOG(i_AmountAS3)*INDEX(ay_OpExAOEM,MATCH(sys_KeyOperator&"Inhalation",key_AOEM,0),20))+IF(AND(i_AppMeth="Upward spraying",LEFT(i_AppEquip,15)="Vehicle-mounted",d_AppPfCaBfR="Yes"),0,IF(AND(i_Season="late (dense foliage)",i_AppMeth="Upward spraying",OR(i_AppEquip="Manual-Hand held",i_AppEquip="Manual-Knapsack")),0,INDEX(ay_OpExAOEM,MATCH(sys_KeyOperator&"Inhalation",key_AOEM,0),21)))),MAX(INDEX(ay_OpExAOEM,MATCH(sys_KeyOperator&"Inhalation",key_AOEM,0),22),(INDEX(ay_OpExAOEM,MATCH(sys_KeyOperator&"Inhalation",key_AOEM,0),22)/d_PctExtrapolation)*i_AmountAS3))) ->  | J37: =IF(i_AppEquip="Manual-Trolley",Trolley!J37+MHH!J37,IF(ISBLANK(INDEX(ay_OpExAOEM,MATCH(sys_KeyOperator&"Inhalation",key_AOEM,0),18)),10^(INDEX(ay_OpExAOEM,MATCH(sys_KeyOperator&"Inhalation",key_AOEM,0),15)+(LOG(i_AmountAS4)*INDEX(ay_OpExAOEM,MATCH(sys_KeyOperator&"Inhalation",key_AOEM,0),16))+IF(AND(i_AppMeth="Upward spraying",LEFT(i_AppEquip,15)="Vehicle-mounted",d_AppPfCaBfR="Yes"),0,IF(AND(i_Season="late (dense foliage)",i_AppMeth="Upward spraying",OR(i_AppEquip="Manual-Hand held",i_AppEquip="Manual-Knapsack")),0,INDEX(ay_OpExAOEM,MATCH(sys_KeyOperator&"Inhalation",key_AOEM,0),17)))),MAX(INDEX(ay_OpExAOEM,MATCH(sys_KeyOperator&"Inhalation",key_AOEM,0),18),(INDEX(ay_OpExAOEM,MATCH(sys_KeyOperator&"Inhalation",key_AOEM,0),18)/d_PctExtrapolation)*i_AmountAS4))) ->  | K37: =IF(i_AppEquip="Manual-Trolley",Trolley!K37+MHH!K37,IF(ISBLANK(INDEX(ay_OpExAOEM,MATCH(sys_KeyOperator&"Inhalation",key_AOEM,0),22)),10^(INDEX(ay_OpExAOEM,MATCH(sys_KeyOperator&"Inhalation",key_AOEM,0),19)+(LOG(i_AmountAS4)*INDEX(ay_OpExAOEM,MATCH(sys_KeyOperator&"Inhalation",key_AOEM,0),20))+IF(AND(i_AppMeth="Upward spraying",LEFT(i_AppEquip,15)="Vehicle-mounted",d_AppPfCaBfR="Yes"),0,IF(AND(i_Season="late (dense foliage)",i_AppMeth="Upward spraying",OR(i_AppEquip="Manual-Hand held",i_AppEquip="Manual-Knapsack")),0,INDEX(ay_OpExAOEM,MATCH(sys_KeyOperator&"Inhalation",key_AOEM,0),21)))),MAX(INDEX(ay_OpExAOEM,MATCH(sys_KeyOperator&"Inhalation",key_AOEM,0),22),(INDEX(ay_OpExAOEM,MATCH(sys_KeyOperator&"Inhalation",key_AOEM,0),22)/d_PctExtrapolation)*i_AmountAS4))) ->  | L37: AOEM
C38: Protective Equipment | D38: Select for inclusion | L38: Penetration factor | M38: Inhalation Protection factor
C39: Gloves | D39: No | L39: =IF(D39="Yes","Incl. in AOEM model","") -> 
C40: Clothing | D40: Work wear - arms, body and legs covered | L40: Incl. in AOEM model
C41: Head and respiratory PPE | D41: None | L41: =INDEX(ay_MixPPEHead,MATCH(D41,key_MixPPEHead,0),2) -> 1 | M41: =IF(OR(D41="Hood and face shield",D41="Hood"),1,INDEX(ay_MixRPE,MATCH(D41,key_MixRPE,0),2)) -> 1
C42: Cabin | D42: Not relevant | L42: =IF(i_AppEquip&i_AppMeth<>"Vehicle-mountedUpward spraying","Vehicle-mounted upward spraying only","") -> Vehicle-mounted upward spraying only
B44: 1. Total | D44: =i_SubstName1 -> 0 | F44: =i_SubstName2 -> 0 | H44: =i_SubstName3 -> 0 | J44: =i_SubstName4 -> 0 | L44: Combined
D45: Without RPE/PPE | E45: With RPE/PPE | F45: Without RPE/PPE | G45: With RPE/PPE | H45: Without RPE/PPE | I45: With RPE/PPE | J45: Without RPE/PPE | K45: With RPE/PPE | L45: Without RPE/PPE | M45: With RPE/PPE
B46: Short-term
B47: Total systemic exposure from ML and application (mg a.s./day) | D47: =(D63+D79) ->  | E47: =(D70+D85) ->  | F47: =(F63+F79) ->  | G47: =(F70+F85) ->  | H47: =(H63+H79) ->  | I47: =(H70+H85) ->  | J47: =(J63+J79) ->  | K47: =(J70+J85) -> 
B48: Total systemic dose from ML and application per kg body weight (mg/kg bw/day) | D48: =D47/d_BwAdult ->  | L48: Hazard index
B49: % of AOEL | D49: =IFERROR(D48/i_AOEL1,0) -> 0 | E49: =IFERROR(E48/i_AOEL1,0) -> 0 | F49: =IFERROR(F48/i_AOEL2,0) -> 0 | G49: =IFERROR(G48/i_AOEL2,0) -> 0 | H49: =IFERROR(H48/i_AOEL3,0) -> 0 | I49: =IFERROR(I48/i_AOEL3,0) -> 0 | J49: =IFERROR(J48/i_AOEL4,0) -> 0 | K49: =IFERROR(K48/i_AOEL4,0) -> 0 | L49: =IF(COUNTA('Data entry'!D26:G26)<2,"N/A",FIXED(D49+F49+H49+J49,3)) -> N/A | M49: =IF(COUNTA('Data entry'!D26:G26)<2,"N/A",FIXED(E49+G49+I49+K49,3)) -> N/A
B50: Acute
B51: Total systemic exposure from ML and application (mg a.s./day) | D51: =(D95+D111) ->  | E51: =(D102+D117) ->  | F51: =(F95+F111) ->  | G51: =(F102+F117) ->  | H51: =(H95+H111) ->  | I51: =(H102+H117) ->  | J51: =(J95+J111) ->  | K51: =(J102+J117) -> 
B52: Total systemic dose from ML and application per kg body weight (mg/kg bw/day) | D52: =D51/d_BwAdult ->  | L52: Hazard index
B53: % of AAOEL | D53: =IFERROR(D52/i_AAOEL1,0) -> 0 | E53: =IFERROR(E52/i_AAOEL1,0) -> 0 | F53: =IFERROR(F52/i_AAOEL2,0) -> 0 | G53: =IFERROR(G52/i_AAOEL2,0) -> 0 | H53: =IFERROR(H52/i_AAOEL3,0) -> 0 | I53: =IFERROR(I52/i_AAOEL3,0) -> 0 | J53: =IFERROR(J52/i_AAOEL4,0) -> 0 | K53: =IFERROR(K52/i_AAOEL4,0) -> 0 | L53: =IF(COUNTA('Data entry'!D27:G27)<2,"N/A",FIXED(D53+F53+H53+J53,3)) -> N/A | M53: =IF(COUNTA('Data entry'!D27:G28)<2,"N/A",FIXED(E53+G53+I53+K53,3)) -> N/A
B55: 2. Short-term exposure
B56: 2.1 Mixing and loading | D56: =i_SubstName1 -> 0 | F56: =i_SubstName2 -> 0 | H56: =i_SubstName3 -> 0 | J56: =i_SubstName4 -> 0
D57: Systemic exposure [mg a.s. /day] | E57: Systemic dose [mg a.s./kg bw/day] | F57: Systemic exposure [mg a.s. /day] | G57: Systemic dose [mg a.s./kg bw/day] | H57: Systemic exposure [mg a.s. /day] | I57: Systemic dose [mg a.s./kg bw/day] | J57: Systemic exposure [mg a.s. /day] | K57: Systemic dose [mg a.s./kg bw/day]
B58: Without RPE/PPE
B59: Hands | D59: =D17*i_AbsorpProduct1/1000 ->  | E59: =D59/d_BwAdult ->  | F59: =F17*i_AbsorpProduct2/1000 ->  | G59: =F59/d_BwAdult ->  | H59: =H17*i_AbsorpProduct3/1000 ->  | I59: =H59/d_BwAdult ->  | J59: =J17*i_AbsorpProduct4/1000 ->  | K59: =J59/d_BwAdult ->  | N59: =E59*1000 ->  | P59: =G59*1000 -> 
B60: Body | D60: =D18*i_AbsorpProduct1/1000 ->  | E60: =D60/d_BwAdult ->  | F60: =F18*i_AbsorpProduct2/1000 ->  | G60: =F60/d_BwAdult ->  | H60: =H18*i_AbsorpProduct3/1000 ->  | I60: =H60/d_BwAdult ->  | J60: =J18*i_AbsorpProduct4/1000 ->  | K60: =J60/d_BwAdult ->  | N60: =E60*1000 ->  | P60: =G60*1000 -> 
B61: Head | D61: =D19*i_AbsorpProduct1/1000 ->  | E61: =D61/d_BwAdult ->  | F61: =F19*i_AbsorpProduct2/1000 ->  | G61: =F61/d_BwAdult ->  | H61: =H19*i_AbsorpProduct3/1000 ->  | I61: =H61/d_BwAdult ->  | J61: =J19*i_AbsorpProduct4/1000 ->  | K61: =J61/d_BwAdult ->  | N61: =E61*1000 ->  | P61: =G61*1000 -> 
B62: Inhalation | D62: =D23*i_AbsorpInhalation1/1000 ->  | E62: =D62/d_BwAdult ->  | F62: =F23*i_AbsorpInhalation2/1000 ->  | G62: =F62/d_BwAdult ->  | H62: =H23*i_AbsorpInhalation3/1000 ->  | I62: =H62/d_BwAdult ->  | J62: =J23*i_AbsorpInhalation4/1000 ->  | K62: =J62/d_BwAdult ->  | N62: =E62*1000 ->  | P62: =G62*1000 -> 
B63: Sum | D63: =D59+D60+D61+D62 ->  | E63: =D63/d_BwAdult ->  | F63: =F59+F60+F61+F62 ->  | G63: =F63/d_BwAdult ->  | H63: =H59+H60+H61+H62 ->  | I63: =H63/d_BwAdult ->  | J63: =J59+J60+J61+J62 ->  | K63: =J63/d_BwAdult ->  | N63: =E63*1000 ->  | P63: =G63*1000 -> 
B64: With RPE/PPE (as selected above)
B65: Hands | D65: =IF(D25="Yes", D20,D17)*i_AbsorpProduct1/1000 ->  | E65: =D65/d_BwAdult ->  | F65: =IF(D25="Yes", F20,F17)*i_AbsorpProduct2/1000 ->  | G65: =F65/d_BwAdult ->  | H65: =IF(D25="Yes", H20,H17)*i_AbsorpProduct3/1000 ->  | I65: =H65/d_BwAdult ->  | J65: =IF(D25="Yes", J20,J17)*i_AbsorpProduct4/1000 ->  | K65: =J65/d_BwAdult ->  | N65: =E65*1000 ->  | P65: =G65*1000 -> 
B66: Body | D66: =IF($D$26<>"Potential exposure",D21,D18)*i_AbsorpProduct1/1000 ->  | F66: =IF(D26<>"Potential exposure",F21,F18)*i_AbsorpProduct2/1000 ->  | H66: =IF(D26<>"Potential exposure",H21,H18)*i_AbsorpProduct3/1000 ->  | J66: =IF(D26<>"Potential exposure",J21,J18)*i_AbsorpProduct4/1000 ->  | N66: =E66*1000 ->  | P66: =G66*1000 -> 
B67: Head | D67: =IF($D27<>"None",D22*i_AbsorpProduct1,D19*i_AbsorpProduct1)/1000 ->  | F67: =IF($D27<>"None",F22*i_AbsorpProduct2,F19*i_AbsorpProduct2)/1000 ->  | H67: =IF($D27<>"None",H22*i_AbsorpProduct3,H19*i_AbsorpProduct3)/1000 ->  | J67: =IF($D27<>"None",J22*i_AbsorpProduct4,J19*i_AbsorpProduct4)/1000 ->  | N67: =E67*1000 ->  | P67: =G67*1000 -> 
B68: Inhalation | D68: =D23*i_AbsorpInhalation1*$M27/1000 ->  | F68: =F23*i_AbsorpInhalation2*$M27/1000 ->  | H68: =H23*i_AbsorpInhalation3*$M27/1000 ->  | J68: =J23*i_AbsorpInhalation4*$M27/1000 ->  | N68: =E68*1000 ->  | P68: =G68*1000 -> 
B69: Sum | D69: =SUM(D65:D68) ->  | F69: =SUM(F65:F68) ->  | H69: =SUM(H65:H68) ->  | J69: =SUM(J65:J68) ->  | N69: =E69*1000 ->  | P69: =G69*1000 -> 
B70: Water soluble bag | D70: =D69*$L28 ->  | F70: =F69*$L28 ->  | H70: =H69*$L28 ->  | J70: =J69*$L28 -> 
B72: 2.2 Application | D72: =i_SubstName1 -> 0 | F72: =i_SubstName2 -> 0 | H72: =i_SubstName3 -> 0 | J72: =i_SubstName4 -> 0
D73: Systemic exposure [mg a.s. /day] | E73: Systemic dose [mg a.s./kg bw/day] | F73: Systemic exposure [mg a.s. /day] | G73: Systemic dose [mg a.s./kg bw/day] | H73: Systemic exposure [mg a.s. /day] | I73: Systemic dose [mg a.s./kg bw/day] | J73: Systemic exposure [mg a.s. /day] | K73: Systemic dose [mg a.s./kg bw/day]
B74: Without RPE/PPE
B75: Hands | D75: =D32*i_AbsorpInuse1/1000 ->  | E75: =D75/d_BwAdult ->  | F75: =F32*i_AbsorpInuse2/1000 ->  | G75: =F75/d_BwAdult ->  | H75: =H32*i_AbsorpInuse3/1000 ->  | I75: =H75/d_BwAdult ->  | J75: =J32*i_AbsorpInuse4/1000 ->  | K75: =J75/d_BwAdult ->  | N75: =E75*1000 ->  | P75: =G75*1000 -> 
B76: Body | D76: =D33*i_AbsorpInuse1/1000 ->  | E76: =D76/d_BwAdult ->  | F76: =F33*i_AbsorpInuse2/1000 ->  | G76: =F76/d_BwAdult ->  | H76: =H33*i_AbsorpInuse3/1000 ->  | I76: =H76/d_BwAdult ->  | J76: =J33*i_AbsorpInuse4/1000 ->  | K76: =J76/d_BwAdult ->  | N76: =E76*1000 ->  | P76: =G76*1000 -> 
B77: Head | D77: =D34*i_AbsorpInuse1/1000 ->  | E77: =D77/d_BwAdult ->  | F77: =F34*i_AbsorpInuse2/1000 ->  | G77: =F77/d_BwAdult ->  | H77: =H34*i_AbsorpInuse3/1000 ->  | I77: =H77/d_BwAdult ->  | J77: =J34*i_AbsorpInuse4/1000 ->  | K77: =J77/d_BwAdult ->  | N77: =E77*1000 ->  | P77: =G77*1000 -> 
B78: Inhalation | D78: =D37*i_AbsorpInhalation1/1000 ->  | E78: =D78/d_BwAdult ->  | F78: =F37*i_AbsorpInhalation2/1000 ->  | G78: =F78/d_BwAdult ->  | H78: =H37*i_AbsorpInhalation3/1000 ->  | I78: =H78/d_BwAdult ->  | J78: =J37*i_AbsorpInhalation4/1000 ->  | K78: =J78/d_BwAdult ->  | N78: =E78*1000 ->  | P78: =G78*1000 -> 
B79: Sum | D79: =D75+D76+D77+D78 ->  | E79: =D79/d_BwAdult ->  | F79: =F75+F76+F77+F78 ->  | G79: =F79/d_BwAdult ->  | H79: =H75+H76+H77+H78 ->  | I79: =H79/d_BwAdult ->  | J79: =J75+J76+J77+J78 ->  | K79: =J79/d_BwAdult ->  | N79: =E79*1000 ->  | P79: =G79*1000 -> 
B80: With RPE/PPE (as selected above)
B81: Hands | D81: =IF(D39="Yes", D35,D32)*i_AbsorpInuse1/1000 ->  | E81: =D81/d_BwAdult ->  | F81: =IF(D39="Yes", F35,F32)*i_AbsorpInuse2/1000 ->  | G81: =F81/d_BwAdult ->  | H81: =IF(D39="Yes", H35,H32)*i_AbsorpInuse3/1000 ->  | I81: =H81/d_BwAdult ->  | J81: =IF(D39="Yes", J35,J32)*i_AbsorpInuse4/1000 ->  | K81: =J81/d_BwAdult ->  | N81: =E81*1000 ->  | P81: =G81*1000 -> 
B82: Body | D82: =IF(D40<>"Potential exposure",D36,D33)*i_AbsorpInuse1/1000 ->  | E82: =D82/d_BwAdult ->  | F82: =IF(D40<>"Potential exposure",F36,F33)*i_AbsorpInuse2/1000 ->  | G82: =F82/d_BwAdult ->  | H82: =IF(D40<>"Potential exposure",H36,H33)*i_AbsorpInuse3/1000 ->  | I82: =H82/d_BwAdult ->  | J82: =IF(D40<>"Potential exposure",J36,J33)*i_AbsorpInuse4/1000 ->  | K82: =J82/d_BwAdult ->  | N82: =E82*1000 ->  | P82: =G82*1000 -> 
B83: Head | D83: =D34*i_AbsorpInuse1*$L41/1000 ->  | E83: =D83/d_BwAdult ->  | F83: =F34*i_AbsorpInuse2*L41/1000 ->  | G83: =F83/d_BwAdult ->  | H83: =H34*i_AbsorpInuse3*L41/1000 ->  | I83: =H83/d_BwAdult ->  | J83: =J34*i_AbsorpInuse4*L41/1000 ->  | K83: =J83/d_BwAdult ->  | N83: =E83*1000 ->  | P83: =G83*1000 -> 
B84: Inhalation | D84: =D37*i_AbsorpInhalation1*$M41/1000 ->  | E84: =D84/d_BwAdult ->  | F84: =F37*i_AbsorpInhalation2*$M41/1000 ->  | G84: =F84/d_BwAdult ->  | H84: =H37*i_AbsorpInhalation3*$M41/1000 ->  | I84: =H84/d_BwAdult ->  | J84: =J37*i_AbsorpInhalation4*$M41/1000 ->  | K84: =J84/d_BwAdult ->  | N84: =E84*1000 ->  | P84: =G84*1000 -> 
B85: Sum | D85: =SUM(D81:D84) ->  | E85: =D85/d_BwAdult ->  | F85: =SUM(F81:F84) ->  | G85: =F85/d_BwAdult ->  | H85: =SUM(H81:H84) ->  | I85: =H85/d_BwAdult ->  | J85: =SUM(J81:J84) ->  | K85: =J85/d_BwAdult ->  | N85: =E85*1000 ->  | P85: =G85*1000 -> 
B87: 3. Acute exposure
B88: 3.1 Mixing and loading | D88: =i_SubstName1 -> 0 | F88: =i_SubstName2 -> 0 | H88: =i_SubstName3 -> 0 | J88: =i_SubstName4 -> 0
D89: Systemic exposure [mg a.s. /day] | E89: Systemic dose [mg a.s./kg bw/day] | F89: Systemic exposure [mg a.s. /day] | G89: Systemic dose [mg a.s./kg bw/day] | H89: Systemic exposure [mg a.s. /day] | I89: Systemic dose [mg a.s./kg bw/day] | J89: Systemic exposure [mg a.s. /day] | K89: Systemic dose [mg a.s./kg bw/day]
B90: Without RPE/PPE
B91: Hands | D91: =E17*i_AbsorpProduct1/1000 ->  | E91: =D91/d_BwAdult ->  | F91: =G17*i_AbsorpProduct2/1000 ->  | G91: =F91/d_BwAdult ->  | H91: =I17*i_AbsorpProduct3/1000 ->  | I91: =H91/d_BwAdult ->  | J91: =K17*i_AbsorpProduct4/1000 ->  | K91: =J91/d_BwAdult ->  | N91: =E91*1000 ->  | P91: =G91*1000 -> 
B92: Body | D92: =E18*i_AbsorpProduct1/1000 ->  | E92: =D92/d_BwAdult ->  | F92: =G18*i_AbsorpProduct2/1000 ->  | G92: =F92/d_BwAdult ->  | H92: =I18*i_AbsorpProduct3/1000 ->  | I92: =H92/d_BwAdult ->  | J92: =K18*i_AbsorpProduct4/1000 ->  | K92: =J92/d_BwAdult ->  | N92: =E92*1000 ->  | P92: =G92*1000 -> 
B93: Head | D93: =E19*i_AbsorpProduct1/1000 ->  | E93: =D93/d_BwAdult ->  | F93: =G19*i_AbsorpProduct2/1000 ->  | G93: =F93/d_BwAdult ->  | H93: =I19*i_AbsorpProduct3/1000 ->  | I93: =H93/d_BwAdult ->  | J93: =K19*i_AbsorpProduct4/1000 ->  | K93: =J93/d_BwAdult ->  | N93: =E93*1000 ->  | P93: =G93*1000 -> 
B94: Inhalation | D94: =E23*i_AbsorpInhalation1/1000 ->  | E94: =D94/d_BwAdult ->  | F94: =G23*i_AbsorpInhalation2/1000 ->  | G94: =F94/d_BwAdult ->  | H94: =I23*i_AbsorpInhalation3/1000 ->  | I94: =H94/d_BwAdult ->  | J94: =K23*i_AbsorpInhalation4/1000 ->  | K94: =J94/d_BwAdult ->  | N94: =E94*1000 ->  | P94: =G94*1000 -> 
B95: Sum | D95: =D91+D92+D93+D94 ->  | E95: =D95/d_BwAdult ->  | F95: =F91+F92+F93+F94 ->  | G95: =F95/d_BwAdult ->  | H95: =H91+H92+H93+H94 ->  | I95: =H95/d_BwAdult ->  | J95: =J91+J92+J93+J94 ->  | K95: =J95/d_BwAdult ->  | N95: =E95*1000 ->  | P95: =G95*1000 -> 
B96: With RPE/PPE (as selected above)
B97: Hands | D97: =IF(D25="Yes", E20,E17)*i_AbsorpProduct1/1000 ->  | E97: =D97/d_BwAdult ->  | F97: =IF(D25="Yes", G20,G17)*i_AbsorpProduct2/1000 ->  | G97: =F97/d_BwAdult ->  | H97: =IF(D25="Yes", I20,I17)*i_AbsorpProduct3/1000 ->  | I97: =H97/d_BwAdult ->  | J97: =IF(D25="Yes", K20,K17)*i_AbsorpProduct4/1000 ->  | K97: =J97/d_BwAdult ->  | N97: =E97*1000 ->  | P97: =G97*1000 -> 
B98: Body | D98: =IF($D$26<>"Potential exposure",E21,E18)*i_AbsorpProduct1/1000 ->  | F98: =IF($D$26<>"Potential exposure",G21,G18)*i_AbsorpProduct2/1000 ->  | H98: =IF($D$26<>"Potential exposure",I21,I18)*i_AbsorpProduct3/1000 ->  | J98: =IF($D$26<>"Potential exposure",K21,K18)*i_AbsorpProduct4/1000 ->  | N98: =E98*1000 ->  | P98: =G98*1000 -> 
B99: Head | D99: =IF($D27<>"None",E22*i_AbsorpProduct1,E19*i_AbsorpProduct1)/1000 ->  | F99: =IF($D27<>"None",G22*i_AbsorpProduct2,G19*i_AbsorpProduct2)/1000 ->  | H99: =IF($D27<>"None",I22*i_AbsorpProduct3,I19*i_AbsorpProduct3)/1000 ->  | J99: =IF($D27<>"None",K22*i_AbsorpProduct4,K19*i_AbsorpProduct4)/1000 ->  | N99: =E99*1000 ->  | P99: =G99*1000 -> 
B100: Inhalation | D100: =E23*i_AbsorpInhalation1*$M27/1000 ->  | F100: =G23*i_AbsorpInhalation2*$M27/1000 ->  | H100: =I23*i_AbsorpInhalation3*$M27/1000 ->  | J100: =K23*i_AbsorpInhalation4*$M27/1000 ->  | N100: =E100*1000 ->  | P100: =G100*1000 -> 
B101: Sum | D101: =SUM(D97:D100) ->  | F101: =SUM(F97:F100) ->  | H101: =SUM(H97:H100) ->  | J101: =SUM(J97:J100) ->  | N101: =E101*1000 ->  | P101: =G101*1000 -> 
B102: Water soluble bag | D102: =D101*$L28 ->  | F102: =F101*$L28 ->  | H102: =H101*$L28 ->  | J102: =J101*$L28 -> 
B104: 2.2 Application | D104: =i_SubstName1 -> 0 | F104: =i_SubstName2 -> 0 | H104: =i_SubstName3 -> 0 | J104: =i_SubstName4 -> 0
D105: Systemic exposure [mg a.s. /day] | E105: Systemic dose [mg a.s./kg bw/day] | F105: Systemic exposure [mg a.s. /day] | G105: Systemic dose [mg a.s./kg bw/day] | H105: Systemic exposure [mg a.s. /day] | I105: Systemic dose [mg a.s./kg bw/day] | J105: Systemic exposure [mg a.s. /day] | K105: Systemic dose [mg a.s./kg bw/day]
B106: Without RPE/PPE
B107: Hands | D107: =E32*i_AbsorpInuse1/1000 ->  | E107: =D107/d_BwAdult ->  | F107: =G32*i_AbsorpInuse2/1000 ->  | G107: =F107/d_BwAdult ->  | H107: =I32*i_AbsorpInuse3/1000 ->  | I107: =H107/d_BwAdult ->  | J107: =K32*i_AbsorpInuse4/1000 ->  | K107: =J107/d_BwAdult ->  | N107: =E107*1000 ->  | P107: =G107*1000 -> 
B108: Body | D108: =E33*i_AbsorpInuse1/1000 ->  | E108: =D108/d_BwAdult ->  | F108: =G33*i_AbsorpInuse2/1000 ->  | G108: =F108/d_BwAdult ->  | H108: =I33*i_AbsorpInuse3/1000 ->  | I108: =H108/d_BwAdult ->  | J108: =K33*i_AbsorpInuse4/1000 ->  | K108: =J108/d_BwAdult ->  | N108: =E108*1000 ->  | P108: =G108*1000 -> 
B109: Head | D109: =E34*i_AbsorpInuse1/1000 ->  | E109: =D109/d_BwAdult ->  | F109: =G34*i_AbsorpInuse2/1000 ->  | G109: =F109/d_BwAdult ->  | H109: =I34*i_AbsorpInuse3/1000 ->  | I109: =H109/d_BwAdult ->  | J109: =K34*i_AbsorpInuse4/1000 ->  | K109: =J109/d_BwAdult ->  | N109: =E109*1000 ->  | P109: =G109*1000 -> 
B110: Inhalation | D110: =E37*i_AbsorpInhalation1/1000 ->  | E110: =D110/d_BwAdult ->  | F110: =G37*i_AbsorpInhalation2/1000 ->  | G110: =F110/d_BwAdult ->  | H110: =I37*i_AbsorpInhalation3/1000 ->  | I110: =H110/d_BwAdult ->  | J110: =K37*i_AbsorpInhalation4/1000 ->  | K110: =J110/d_BwAdult ->  | N110: =E110*1000 ->  | P110: =G110*1000 -> 
B111: Sum | D111: =D107+D108+D109+D110 ->  | E111: =D111/d_BwAdult ->  | F111: =F107+F108+F109+F110 ->  | G111: =F111/d_BwAdult ->  | H111: =H107+H108+H109+H110 ->  | I111: =H111/d_BwAdult ->  | J111: =J107+J108+J109+J110 ->  | K111: =J111/d_BwAdult ->  | N111: =E111*1000 ->  | P111: =G111*1000 -> 
B112: With RPE/PPE (as selected above)
B113: Hands | D113: =IF(D39="Yes",E35,E32)*i_AbsorpInuse1/1000 ->  | E113: =D113/d_BwAdult ->  | F113: =IF(D39="Yes",G35,G32)*i_AbsorpInuse2/1000 ->  | G113: =F113/d_BwAdult ->  | H113: =IF(D39="Yes",I35,I32)*i_AbsorpInuse3/1000 ->  | I113: =H113/d_BwAdult ->  | J113: =IF(D39="Yes",K35,K32)*i_AbsorpInuse4/1000 ->  | K113: =J113/d_BwAdult ->  | N113: =E113*1000 ->  | P113: =G113*1000 -> 
B114: Body | D114: =IF(D40<>"Potential exposure",E36,E33)*i_AbsorpInuse1/1000 ->  | E114: =D114/d_BwAdult ->  | F114: =IF(D40<>"Potential exposure",G36,G33)*i_AbsorpInuse2/1000 ->  | G114: =F114/d_BwAdult ->  | H114: =IF(D40<>"Potential exposure",I36,I33)*i_AbsorpInuse3/1000 ->  | I114: =H114/d_BwAdult ->  | J114: =IF(D40<>"Potential exposure",K36,K33)*i_AbsorpInuse4/1000 ->  | K114: =J114/d_BwAdult ->  | N114: =E114*1000 ->  | P114: =G114*1000 -> 
B115: Head | D115: =E34*i_AbsorpInuse1*$L41/1000 ->  | E115: =D115/d_BwAdult ->  | F115: =G34*i_AbsorpInuse2*$L41/1000 ->  | G115: =F115/d_BwAdult ->  | H115: =I34*i_AbsorpInuse3*$L41/1000 ->  | I115: =H115/d_BwAdult ->  | J115: =K34*i_AbsorpInuse4*$L41/1000 ->  | K115: =J115/d_BwAdult ->  | N115: =E115*1000 ->  | P115: =G115*1000 -> 
B116: Inhalation | D116: =E37*i_AbsorpInhalation1*$M41/1000 ->  | E116: =D116/d_BwAdult ->  | F116: =G37*i_AbsorpInhalation2*$M41/1000 ->  | G116: =F116/d_BwAdult ->  | H116: =I37*i_AbsorpInhalation3*$M41/1000 ->  | I116: =H116/d_BwAdult ->  | J116: =K37*i_AbsorpInhalation4*$M41/1000 ->  | K116: =J116/d_BwAdult ->  | N116: =E116*1000 ->  | P116: =G116*1000 -> 
B117: Sum | D117: =SUM(D113:D116) ->  | E117: =D117/d_BwAdult ->  | F117: =SUM(F113:F116) ->  | G117: =F117/d_BwAdult ->  | H117: =SUM(H113:H116) ->  | I117: =H117/d_BwAdult ->  | J117: =SUM(J113:J116) ->  | K117: =J117/d_BwAdult ->  | N117: =E117*1000 ->  | P117: =G117*1000 -> 

Sheet Operator Granules
B1: ="Operator exposure for "&i_ProductName & " granular applications" -> Operator exposure for granular applications | E1: =IF(i_FormVal = "Granules, fine granules","","This sheet is only for granular applications") -> This sheet is only for granular applications
C2: =i_SubstName1 -> 0 | E2: =i_SubstName2 -> 0 | G2: =i_SubstName3 -> 0 | I2: =i_SubstName4 -> 0
B3: Application rate of active substance | C3: =i_AppRateAS1 -> 0 | E3: =i_AppRateAS2 -> 0 | G3: =i_AppRateAS3 -> 0 | I3: =i_AppRateAS4 -> 0 | K3: kg a.s./ha | L3: i_AppRateAS
B4: Amount of active substance applied | C4: =C10*i_AppRateAS1 -> 0 | E4: =C10*i_AppRateAS2 -> 0 | G4: =C10*i_AppRateAS3 -> 0 | I4: =C10*i_AppRateAS4 -> 0 | K4: kg a.s./day | L4: i_AmountAS
B5: Dermal absorption of the product | C5: =i_AbsorpProduct1 -> 0 | E5: =i_AbsorpProduct2 -> 0 | G5: =i_AbsorpProduct3 -> 0 | I5: =i_AbsorpProduct4 -> 0 | L5: i_AbsorpProduct
B6: Formulation type | C6: =i_FormVal -> 0
B7: Indoor or Outdoor application | C7: ='Data entry'!D8 -> 0
B8: Application method | C8: =i_AppMeth -> 0
B9: Application equipment | C9: =i_AppEquip -> 0
B10: Assumed area treated | C10: =d_AreaTreated -> 1 | K10: ha/day | L10: d_AreaTreated
A12: M & L | B12: Exposure values | C12: mg exposure/kg a.s. mixed and loaded | K12: Reference | L12: Comment
C13: 75th centile | D13: 95th centile
B14: Hands | C14: =INDEX(ay_OpExpVal,MATCH(i_IndoorOutdoor&i_FormVal&i_AppMeth&i_AppEquip&"Hands",key_OpExpMixL,0),7) ->  | D14: =INDEX(ay_OpExpVal,MATCH(i_IndoorOutdoor&i_FormVal&i_AppMeth&i_AppEquip&"Hands",key_OpExpMixL,0),8) ->  | K14: =IF(INDEX(ay_OpExpVal,MATCH(i_IndoorOutdoor&C6&i_AppMeth&i_AppEquip&"hands",key_OpExpMixL,0),10)=0,"",INDEX(ay_OpExpVal,MATCH(i_IndoorOutdoor&C6&i_AppMeth&i_AppEquip&"Hands",key_OpExpMixL,0),10)) ->  | L14: =IF(INDEX(ay_OpExpVal,MATCH(i_IndoorOutdoor&i_FormVal&i_AppMeth&i_AppEquip&"Hands",key_OpExpMixL,0),9)=0,"",INDEX(ay_OpExpVal,MATCH(i_IndoorOutdoor&i_FormVal&i_AppMeth&i_AppEquip&"Hands",key_OpExpMixL,0),9)) -> 
B15: Body | C15: =INDEX(ay_OpExpVal,MATCH(i_IndoorOutdoor&i_FormVal&i_AppMeth&i_AppEquip&"Body",key_OpExpMixL,0),7) ->  | D15: =INDEX(ay_OpExpVal,MATCH(i_IndoorOutdoor&i_FormVal&i_AppMeth&i_AppEquip&"Body",key_OpExpMixL,0),8) ->  | K15: =IF(INDEX(ay_OpExpVal,MATCH(i_IndoorOutdoor&i_FormVal&i_AppMeth&i_AppEquip&"Body",key_OpExpMixL,0),10)=0,"",INDEX(ay_OpExpVal,MATCH(i_IndoorOutdoor&i_FormVal&i_AppMeth&i_AppEquip&"Body",key_OpExpMixL,0),10)) ->  | L15: =IF(INDEX(ay_OpExpVal,MATCH(i_IndoorOutdoor&i_FormVal&i_AppMeth&i_AppEquip&"Body",key_OpExpMixL,0),9)=0,"",INDEX(ay_OpExpVal,MATCH(i_IndoorOutdoor&i_FormVal&i_AppMeth&i_AppEquip&"Body",key_OpExpMixL,0),9)) -> 
B16: Inhalation | C16: =INDEX(ay_OpExpVal,MATCH(i_IndoorOutdoor&i_FormVal&i_AppMeth&i_AppEquip&"Inhalation",key_OpExpMixL,0),7) ->  | D16: =INDEX(ay_OpExpVal,MATCH(i_IndoorOutdoor&i_FormVal&i_AppMeth&i_AppEquip&"Inhalation",key_OpExpMixL,0),8) ->  | K16: =IF(INDEX(ay_OpExpVal,MATCH(i_IndoorOutdoor&C6&i_AppMeth&i_AppEquip&"inhalation",key_OpExpMixL,0),10)=0,"",INDEX(ay_OpExpVal,MATCH(i_IndoorOutdoor&C6&i_AppMeth&i_AppEquip&"Inhalation",key_OpExpMixL,0),10)) ->  | L16: =IF(INDEX(ay_OpExpVal,MATCH(i_IndoorOutdoor&i_FormVal&i_AppMeth&i_AppEquip&"Inhalation",key_OpExpMixL,0),9)=0,"",INDEX(ay_OpExpVal,MATCH(i_IndoorOutdoor&i_FormVal&i_AppMeth&i_AppEquip&"Inhalation",key_OpExpMixL,0),9)) -> 
B17: Protective Equipment | C17: Choose item | K17: Penetration factor
B18: Gloves | C18: None | K18: ="Protection for granules exposure is based on measured values" -> Protection for granules exposure is based on measured values
B19: Body PPE | C19: Potential exposure
B20: RPE | C20: None | K20: =INDEX(ay_MixRPE,MATCH(C20,key_MixRPE,0),2) -> 1
A21: Application | B21: Exposure values | C21: None | K21: Reference | L21: Comment
C22: 75th centile | D22: 95th centile
B23: Hands | C23: =INDEX(ay_OpExpVal,MATCH(i_IndoorOutdoor&i_FormVal&i_AppMeth&i_AppEquip&"Hands",key_OpExpMixL,0),11) ->  | D23: =INDEX(ay_OpExpVal,MATCH(i_IndoorOutdoor&i_FormVal&i_AppMeth&i_AppEquip&"Hands",key_OpExpMixL,0),12) ->  | K23: =IF(INDEX(ay_OpExpVal,MATCH(i_IndoorOutdoor&C6&i_AppMeth&i_AppEquip&"hands",key_OpExpMixL,0),14)=0,"",INDEX(ay_OpExpVal,MATCH(i_IndoorOutdoor&C6&i_AppMeth&i_AppEquip&"Hands",key_OpExpMixL,0),14)) ->  | L23: =IF(INDEX(ay_OpExpVal,MATCH(i_IndoorOutdoor&i_FormVal&i_AppMeth&i_AppEquip&"Hands",key_OpExpMixL,0),13)=0,"",INDEX(ay_OpExpVal,MATCH(i_IndoorOutdoor&i_FormVal&i_AppMeth&i_AppEquip&"Hands",key_OpExpMixL,0),13)) -> 
B24: Body | C24: =INDEX(ay_OpExpVal,MATCH(i_IndoorOutdoor&i_FormVal&i_AppMeth&i_AppEquip&"Body",key_OpExpMixL,0),11) ->  | D24: =INDEX(ay_OpExpVal,MATCH(i_IndoorOutdoor&i_FormVal&i_AppMeth&i_AppEquip&"Body",key_OpExpMixL,0),12) ->  | K24: =IF(INDEX(ay_OpExpVal,MATCH(i_IndoorOutdoor&C6&i_AppMeth&i_AppEquip&"Body",key_OpExpMixL,0),14)=0,"",INDEX(ay_OpExpVal,MATCH(i_IndoorOutdoor&C6&i_AppMeth&i_AppEquip&"Body",key_OpExpMixL,0),14)) ->  | L24: =IF(INDEX(ay_OpExpVal,MATCH(i_IndoorOutdoor&i_FormVal&i_AppMeth&i_AppEquip&"Body",key_OpExpMixL,0),13)=0,"",INDEX(ay_OpExpVal,MATCH(i_IndoorOutdoor&i_FormVal&i_AppMeth&i_AppEquip&"Body",key_OpExpMixL,0),13)) -> 
B25: Inhalation | C25: =INDEX(ay_OpExpVal,MATCH(i_IndoorOutdoor&i_FormVal&i_AppMeth&i_AppEquip&"Inhalation",key_OpExpMixL,0),11) ->  | D25: =INDEX(ay_OpExpVal,MATCH(i_IndoorOutdoor&i_FormVal&i_AppMeth&i_AppEquip&"Inhalation",key_OpExpMixL,0),12) ->  | K25: =IF(INDEX(ay_OpExpVal,MATCH(i_IndoorOutdoor&C6&i_AppMeth&i_AppEquip&"inhalation",key_OpExpMixL,0),14)=0,"",INDEX(ay_OpExpVal,MATCH(i_IndoorOutdoor&C6&i_AppMeth&i_AppEquip&"Inhalation",key_OpExpMixL,0),14)) ->  | L25: =IF(INDEX(ay_OpExpVal,MATCH(i_IndoorOutdoor&i_FormVal&i_AppMeth&i_AppEquip&"Inhalation",key_OpExpMixL,0),13)=0,"",INDEX(ay_OpExpVal,MATCH(i_IndoorOutdoor&i_FormVal&i_AppMeth&i_AppEquip&"Inhalation",key_OpExpMixL,0),13)) -> 
B26: Protective Equipment | C26: Choose item | K26: Penetration factor
B27: Gloves | C27: None | K27: ="Protection for granules exposure is based on measured values" -> Protection for granules exposure is based on measured values
B28: Body PPE | C28: Potential exposure
B29: RPE | C29: None | K29: =INDEX(ay_MixRPE,MATCH(C29,key_MixRPE,0),2) -> 1
B30: =i_IndoorOutdoor&i_FormVal&i_AppMeth&i_AppEquip&"Hands" -> Hands
B31: 1. Total | C31: =i_SubstName1 -> 0 | E31: =i_SubstName2 -> 0 | G31: =i_SubstName3 -> 0 | I31: =i_SubstName4 -> 0 | K31: Combined
C32: Without RPE/PPE | D32: With RPE/PPE | E32: Without RPE/PPE | F32: With RPE/PPE | G32: Without RPE/PPE | H32: With RPE/PPE | I32: Without RPE/PPE | J32: With RPE/PPE | K32: Without RPE/PPE | L32: With RPE/PPE
B34: Short term
B35: Total systemic exposure from ML and application (mg a.s./day) | C35: =C51+C65 ->  | D35: =C56+C70 ->  | E35: =E51+E65 ->  | F35: =E56+E70 ->  | G35: =G51+G65 ->  | H35: =G56+G70 ->  | I35: =I51+I65 ->  | J35: =I56+I70 -> 
B36: Total systemic dose from ML and application per kg body weight (mg/kg bw/day) | C36: =C35/d_BwAdult ->  | K36: Hazard index
B37: % of AOEL | C37: =IFERROR(C36/i_AOEL1,0) -> 0 | D37: =IFERROR(D36/i_AOEL1,0) -> 0 | E37: =IFERROR(E36/i_AOEL2,0) -> 0 | F37: =IFERROR(F36/i_AOEL2,0) -> 0 | G37: =IFERROR(G36/i_AOEL3,0) -> 0 | H37: =IFERROR(H36/i_AOEL3,0) -> 0 | I37: =IFERROR(I36/i_AOEL4,0) -> 0 | J37: =IFERROR(J36/i_AOEL4,0) -> 0 | K37: =FIXED(C37+E37+G37+I37,3) -> 0.000 | L37: =FIXED(D37+F37+H37+J37,3) -> 0.000
B38: Acute
B39: Total systemic exposure from ML and application (mg a.s./day) | C39: =C80+C94 ->  | D39: =C85+C99 ->  | E39: =E80+E94 ->  | F39: =E85+E99 ->  | G39: =G80+G94 ->  | H39: =G85+G99 ->  | I39: =I80+I94 ->  | J39: =I85+I99 -> 
B40: Total systemic dose from ML and application per kg body weight (mg/kg bw/day) | C40: =C39/d_BwAdult ->  | K40: Hazard index
B41: % of AAOEL | C41: =IFERROR(C40/i_AAOEL1,0) -> 0 | D41: =IFERROR(D40/i_AAOEL1,0) -> 0 | E41: =IFERROR(E40/i_AAOEL2,0) -> 0 | F41: =IFERROR(F40/i_AAOEL2,0) -> 0 | G41: =IFERROR(G40/i_AAOEL3,0) -> 0 | H41: =IFERROR(H40/i_AAOEL3,0) -> 0 | I41: =IFERROR(I40/i_AAOEL4,0) -> 0 | J41: =IFERROR(J40/i_AAOEL4,0) -> 0 | K41: =FIXED(C41+E41+G41+I41,3) -> 0.000 | L41: =FIXED(D41+F41+H41+J41,3) -> 0.000
B43: 2. Longer term exposure
B44: 2.1 Mixing and loading | C44: =i_SubstName1 -> 0 | E44: =i_SubstName2 -> 0 | G44: =i_SubstName3 -> 0 | I44: =i_SubstName4 -> 0
C45: Systemic exposure [mg a.s. /day] | D45: Systemic dose [mg a.s./kg bw/day] | E45: Systemic exposure [mg a.s. /day] | F45: Systemic dose [mg a.s./kg bw/day] | G45: Systemic exposure [mg a.s. /day] | H45: Systemic dose [mg a.s./kg bw/day] | I45: Systemic exposure [mg a.s. /day] | J45: Systemic dose [mg a.s./kg bw/day]
B47: Without RPE/PPE
B48: Hands | C48: =($C14*100)*C4*C5 ->  | D48: =C48/d_BwAdult ->  | E48: =($C14*100)*i_AmountAS2*i_AbsorpProduct2 ->  | F48: =E48/d_BwAdult ->  | G48: =($C14*100)*i_AmountAS3*i_AbsorpProduct3 ->  | H48: =G48/d_BwAdult ->  | I48: =($C14*100)*i_AmountAS4*i_AbsorpProduct4 ->  | J48: =I48/d_BwAdult -> 
B49: Body | C49: =($C15*100)*C4*C5 ->  | D49: =C49/d_BwAdult ->  | E49: =($C15*100)*i_AmountAS2*i_AbsorpProduct2 ->  | F49: =E49/d_BwAdult ->  | G49: =($C15*100)*i_AmountAS3*i_AbsorpProduct3 ->  | H49: =G49/d_BwAdult ->  | I49: =($C15*100)*i_AmountAS4*i_AbsorpProduct4 ->  | J49: =I49/d_BwAdult -> 
B50: Inhalation | C50: =$C16*i_AmountAS1*i_AbsorpInhalation1 ->  | D50: =C50/d_BwAdult ->  | E50: =$C16*i_AmountAS2*i_AbsorpInhalation2 ->  | F50: =E50/d_BwAdult ->  | G50: =$C16*i_AmountAS3*i_AbsorpInhalation3 ->  | H50: =G50/d_BwAdult ->  | I50: =$C16*i_AmountAS4*i_AbsorpInhalation4 ->  | J50: =I50/d_BwAdult -> 
B51: Sum | C51: =C48+C49+C50 ->  | D51: =C51/d_BwAdult ->  | E51: =E48+E49+E50 ->  | F51: =E51/d_BwAdult ->  | G51: =G48+G49+G50 ->  | H51: =G51/d_BwAdult ->  | I51: =I48+I49+I50 ->  | J51: =I51/d_BwAdult -> 
B52: With RPE/PPE (as selected above)
B53: Hands | C53: =IF($C18="None",C48,$C14*C4*C5) ->  | D53: =C53/d_BwAdult ->  | E53: =IF($C18="None",E48,$C14*i_AmountAS2*i_AbsorpProduct2) ->  | F53: =E53/d_BwAdult ->  | G53: =IF($C18="None",G48,$C14*i_AmountAS3*i_AbsorpProduct3) ->  | H53: =G53/d_BwAdult ->  | I53: =IF($C18="None",I48,$C14*i_AmountAS4*i_AbsorpProduct4) ->  | J53: =I53/d_BwAdult -> 
